Workbook

Sheet ORCAMENTO_RESUMO
C1: Ministério do Desenvolvimento Regional - MDR | F1: 4367736.12
C2: Companhia de Desenvolvimento dos Vales do São Francisco e do Parnaíba | F2: =D22 -> 0
C3: Gerência de Operação do PISF - Centro de Controle e Operação (AD / GOI / CCO) | F3: =F1-F2 -> 4367736.12
A5: TERMO DE REFERÊNCIA PARA CONTRATAÇÃO DOS RECURSOS NECESSÁRIOS À OPERAÇÃO E MANUTENÇÃO DAS INFRAESTRUTURAS DO EIXO LESTE DO PISF - PROJETO DE INTEGRAÇÃO DO SÃO FRANCISCO COM AS BACIAS HIDROGRÁFICAS DO NORDESTE SETENTRIONAL | N5: =E8/12 -> 0
F7: =E8-F8 ->  | G7: =F8-G8 ->  | M7: 0.0007 | N7: =$E$8*M7 -> 0 | P7: =$N$5*M7 -> 0 | R7: =P7/$E$8 -> 
A8: ORÇAMENTO CONSOLIDADO | D8: TOTAL - (R$) | E8: =SUBTOTAL(9,D12:D55) -> 0 | F8: =#REF! ->  | G8: =H11 ->  | M8: 0.001 | N8: =$E$8*M8 -> 0 | P8: =$N$5*M8 -> 0 | R8: =P8/$E$8 -> 
F9: =#REF! ->  | G9: =F9-F8 ->  | M9: 0.002 | N9: =$E$8*M9 -> 0 | P9: =$N$5*M9 -> 0 | R9: =P9/$E$8 -> 
F10: =#REF! ->  | G10: =F10-G8 ->  | M10: 0.004 | N10: =$E$8*M10 -> 0 | P10: =$N$5*M10 -> 0 | R10: =P10/$E$8 -> 
A11: ITEM | B11: CÓDIGO | C11: DESCRIÇÃO | D11: R$ TOTAL | E11: % | H11: =SUM(H12:H56) ->  | M11: 0.02 | N11: =$E$8*M11 -> 0 | P11: =$N$5*M11 -> 0 | R11: =P11/$E$8 -> 
A12: 1. | C12: ='ORCAMENTO_CONSOLIDADO (2)'!C11 -> MOBILIZAÇÃO E DESMOBILIZAÇAO | G12: =C12 -> MOBILIZAÇÃO E DESMOBILIZAÇAO | H12: =SUMIF(#REF!,G12,#REF!) ->  | M12: =D16+D22+D33+D41 -> 0 | N12: =$E$8*M12 -> 0 | P12: =$N$5*M12 -> 0 | R12: =P12/$E$8 -> 
A13: 1.1 | C13: =VLOOKUP(A13&".",'ORCAMENTO_CONSOLIDADO (2)'!A$10:C$800,3,FALSE) -> MOBILIZAÇÃO (Máquinas, Equipamentos, Ferramentas, Instrumentos, Materiais, Mobiliário) | F13: =E8-63248004.44 -> -63248004.44 | H13: =SUMIF(#REF!,G13,#REF!) ->  | M13: =M12*1.2 -> 0 | N13: =$E$8*M13 -> 0 | P13: =$N$5*M13 -> 0 | R13: =P13/$E$8 -> 
A14: 1.2 | C14: =VLOOKUP(A14&".",'ORCAMENTO_CONSOLIDADO (2)'!A$10:C$800,3,FALSE) -> DESMOBILIZAÇÃO (Máquinas, Equip., Ferramentas, Instrumentos, Materiais, Mobiliário) | H14: =SUMIF(#REF!,G14,#REF!) ->  | M14: 0.1 | N14: =$E$8*M14 -> 0 | P14: =$N$5*M14 -> 0 | R14: =P14/$E$8 -> 
A15: 2. | C15: ='ORCAMENTO_CONSOLIDADO (2)'!C18 -> MOBILIÁRIO E EQUIPAMENTOS DE ESCRITÓRIO | G15: =C15 -> MOBILIÁRIO E EQUIPAMENTOS DE ESCRITÓRIO | H15: =SUMIF(#REF!,G15,#REF!) -> 
A16: 3. | C16: ='ORCAMENTO_CONSOLIDADO (2)'!C74 -> EQUIPE - MÃO DE OBRA | G16: =C16 -> EQUIPE - MÃO DE OBRA | H16: =SUMIF(#REF!,G16,#REF!) -> 
A17: 3.1 | C17: =VLOOKUP(A17&".",'ORCAMENTO_CONSOLIDADO (2)'!A$10:C$800,3,FALSE) -> SALÁRIOS FIXOS
A18: 3.2 | C18: =VLOOKUP(A18&".",'ORCAMENTO_CONSOLIDADO (2)'!A$10:C$800,3,FALSE) -> VALORES ADICIONAIS
A19: 4. | C19: ='ORCAMENTO_CONSOLIDADO (2)'!C139 -> VIAGENS / DIÁRIAS | G19: =C19 -> VIAGENS / DIÁRIAS | H19: =SUMIF(#REF!,G19,#REF!) -> 
A20: 4.1 | C20: =VLOOKUP(A20&".",'ORCAMENTO_CONSOLIDADO (2)'!A$10:C$800,3,FALSE) -> DESPESAS COM VIAGENS COMERCIAIS | H20: =SUMIF(#REF!,G20,#REF!) -> 
A21: 4.2 | C21: =VLOOKUP(A21&".",'ORCAMENTO_CONSOLIDADO (2)'!A$10:C$800,3,FALSE) -> DESPESAS COM DIÁRIAS | H21: =SUMIF(#REF!,G21,#REF!) -> 
A22: 5. | C22: ='ORCAMENTO_CONSOLIDADO (2)'!C147 -> VEÍCULOS AUTOMOTORES | G22: =C22 -> VEÍCULOS AUTOMOTORES | H22: =SUMIF(#REF!,G22,#REF!) -> 
A23: 6. | C23: ='ORCAMENTO_CONSOLIDADO (2)'!C154 -> FRENTES MÓVEIS DE LIMPEZA E CONSERVAÇÃO | G23: =C23 -> FRENTES MÓVEIS DE LIMPEZA E CONSERVAÇÃO | H23: =SUMIF(#REF!,G23,#REF!) -> 
A24: 7. | C24: ='ORCAMENTO_CONSOLIDADO (2)'!C159 -> MATERIAL DE CONSUMO - ALMOXARIFADOS | G24: =C24 -> MATERIAL DE CONSUMO - ALMOXARIFADOS | H24: =SUMIF(#REF!,G24,#REF!) ->  | I24: =D24+D48 -> 0
A25: 7.1 | C25: =VLOOKUP(A25&".",'ORCAMENTO_CONSOLIDADO (2)'!A$10:C$800,3,FALSE) -> MATERIAL DE CONSUMO - MECÂNICA | H25: =SUMIF(#REF!,G25,#REF!) -> 
A26: 7.2 | C26: =VLOOKUP(A26&".",'ORCAMENTO_CONSOLIDADO (2)'!A$10:C$800,3,FALSE) -> MATERIAL DE CONSUMO - ELÉTRICA | H26: =SUMIF(#REF!,G26,#REF!) -> 
A27: 7.3 | C27: =VLOOKUP(A27&".",'ORCAMENTO_CONSOLIDADO (2)'!A$10:C$800,3,FALSE) -> MATERIAL DE CONSUMO - CIVIL | H27: =SUMIF(#REF!,G27,#REF!) -> 
A28: 7.4 | C28: =VLOOKUP(A28&".",'ORCAMENTO_CONSOLIDADO (2)'!A$10:C$800,3,FALSE) -> MANUTENÇÃO DE CANTEIRO - ESCRITÓRIO | H28: =SUMIF(#REF!,G28,#REF!) -> 
A29: 8. | C29: ='ORCAMENTO_CONSOLIDADO (2)'!C325 -> FERRAMENTAS | G29: =C29 -> FERRAMENTAS | H29: =SUMIF(#REF!,G29,#REF!) -> 
A30: 8.1 | C30: =VLOOKUP(A30&".",'ORCAMENTO_CONSOLIDADO (2)'!A$10:C$800,3,FALSE) -> FERRAMENTAS - MECÂNICA | H30: =SUMIF(#REF!,G30,#REF!) -> 
A31: 8.2 | C31: =VLOOKUP(A31&".",'ORCAMENTO_CONSOLIDADO (2)'!A$10:C$800,3,FALSE) -> FERRAMENTAS - ELÉTRICA | H31: =SUMIF(#REF!,G31,#REF!) -> 
A32: 8.3 | C32: =VLOOKUP(A32&".",'ORCAMENTO_CONSOLIDADO (2)'!A$10:C$800,3,FALSE) -> FERRAMENTAS - CIVIL | H32: =SUMIF(#REF!,G32,#REF!) -> 
A33: 9. | C33: ='ORCAMENTO_CONSOLIDADO (2)'!C536 -> EQUIPAMENTOS | G33: =C33 -> EQUIPAMENTOS | H33: =SUMIF(#REF!,G33,#REF!) ->  | I33: =D33+D41 -> 0
A34: 9.1 | C34: =VLOOKUP(A34&".",'ORCAMENTO_CONSOLIDADO (2)'!A$10:C$800,3,FALSE) -> EQUIPAMENTOS - MECÂNICA | H34: =SUMIF(#REF!,G34,#REF!) -> 
A35: 9.2 | C35: =VLOOKUP(A35&".",'ORCAMENTO_CONSOLIDADO (2)'!A$10:C$800,3,FALSE) -> EQUIPAMENTOS - ELÉTRICA | H35: =SUMIF(#REF!,G35,#REF!) -> 
A36: 9.3 | C36: =VLOOKUP(A36&".",'ORCAMENTO_CONSOLIDADO (2)'!A$10:C$800,3,FALSE) -> EQUIPAMENTOS - CIVIL | H36: =SUMIF(#REF!,G36,#REF!) -> 
A37: 10. | C37: ='ORCAMENTO_CONSOLIDADO (2)'!C635 -> INSTRUMENTOS | G37: =C37 -> INSTRUMENTOS | H37: =SUMIF(#REF!,G37,#REF!) -> 
A38: 10.1 | C38: =VLOOKUP(A38&".",'ORCAMENTO_CONSOLIDADO (2)'!A$10:C$800,3,FALSE) -> INSTRUMENTOS - MECÂNICA | H38: =SUMIF(#REF!,G38,#REF!) -> 
A39: 10.2 | C39: =VLOOKUP(A39&".",'ORCAMENTO_CONSOLIDADO (2)'!A$10:C$800,3,FALSE) -> INSTRUMENTOS - ELÉTRICA | H39: =SUMIF(#REF!,G39,#REF!) -> 
A40: 10.3 | C40: =VLOOKUP(A40&".",'ORCAMENTO_CONSOLIDADO (2)'!A$10:C$800,3,FALSE) -> INSTRUMENTOS - CIVIL | H40: =SUMIF(#REF!,G40,#REF!) -> 
A41: 11. | C41: ='ORCAMENTO_CONSOLIDADO (2)'!C676 -> SEGURANÇA E MANUTENÇÃO DE BARRAGENS | G41: =C41 -> SEGURANÇA E MANUTENÇÃO DE BARRAGENS | H41: =SUMIF(#REF!,G41,#REF!) -> 
A42: 11.1 | C42: =VLOOKUP(A42&".",'ORCAMENTO_CONSOLIDADO (2)'!A$10:C$800,3,FALSE) -> MÃO DE OBRA - SEGURANÇA DE BARRAGENS
A43: 11.2 | C43: =VLOOKUP(A43&".",'ORCAMENTO_CONSOLIDADO (2)'!A$10:C$800,3,FALSE) -> EQUIPAMENTOS - SEGURANÇA DE BARRAGENS
A44: 11.3 | C44: =VLOOKUP(A44&".",'ORCAMENTO_CONSOLIDADO (2)'!A$10:C$800,3,FALSE) -> VEÍCULOS - SEGURANÇA DE BARRAGENS
A45: 12. | C45: ='ORCAMENTO_CONSOLIDADO (2)'!C700 -> SERVIÇOS ADICIONAIS | F45: =#REF! ->  | G45: =#REF! ->  | H45: =#REF! -> 
A46: 12.1 | C46: =VLOOKUP(A46&".",'ORCAMENTO_CONSOLIDADO (2)'!A$10:C$800,3,FALSE) -> FORNECIMENTO DE ÁGUA POTÁVEL PARA CANTEIRO
A47: 12.2 | C47: =VLOOKUP(A47&".",'ORCAMENTO_CONSOLIDADO (2)'!A$10:C$800,3,FALSE) -> ANÁLISES DE EFLUENTES
A48: 13. | C48: ='ORCAMENTO_CONSOLIDADO (2)'!C707 -> AQUISIÇÃO DE PEÇAS SOBRESSALENTES PISF - EIXOS LESTE
A49: 13.1 | C49: =VLOOKUP(A49&".",'ORCAMENTO_CONSOLIDADO (2)'!A$10:C$800,3,FALSE) -> SOBRESSALENTES - MECÂNICA
A50: 13.2 | C50: =VLOOKUP(A50&".",'ORCAMENTO_CONSOLIDADO (2)'!A$10:C$800,3,FALSE) -> SOBRESSALENTES - ELÉTRICA | F50: =SUMIF(#REF!,C50&".",#REF!) ->  | G50: =ROUND(F50/G$8,4) ->  | H50: =SUMIF(#REF!,E50&".",#REF!) -> 
A51: 13.3 | C51: =VLOOKUP(A51&".",'ORCAMENTO_CONSOLIDADO (2)'!A$10:C$800,3,FALSE) -> Peças para reposições nas manutenções preventivas e corretivas dos condicionadores de ar
A52: 13.4 | C52: =VLOOKUP(A52&".",'ORCAMENTO_CONSOLIDADO (2)'!A$10:C$800,3,FALSE) -> PEÇAS PARA MANUTENÇÃO GERADOR - MECÂNICA
A53: 14. | C53: ='ORCAMENTO_CONSOLIDADO (2)'!C784 -> SERVIÇOS ESPECIALIZADOS (EIXO LESTE)
A54: 14.1 | C54: =VLOOKUP(A54&".",'ORCAMENTO_CONSOLIDADO (2)'!A$10:C$800,3,FALSE) -> Serviços de recarga de extintores de incêndio (EB / SE / Canteiros)
A55: 15. | C55: ='ORCAMENTO_CONSOLIDADO (2)'!C796 -> CUSTOS INDIRETOS | M55: =D53+D48+D45+D41+D37+D33+D29+D24+D23+D22+D19+D15+D12 -> 0
G56: =C55 -> CUSTOS INDIRETOS | H56: =SUMIF(#REF!,G56,#REF!) -> 
A57: NOME DO INFORMANTE: | D57: QUALIFICAÇÃO:
A59: ASSINATURA: | D59: DATA:

Sheet ORCAMENTO_CONSOLIDADO (2)
C1: Ministério do Desenvolvimento Regional - MDR | I1: 70000000 | K1: 6 | M1: 45318771.98
C2: Companhia de Desenvolvimento dos Vales do São Francisco e do Parnaíba | I2: =G7-I1 -> -70000000
C3: Gerência de Operação do PISF - Centro de Controle e Operação (AD / GOI / CCO)
A5: TERMO DE REFERÊNCIA PARA CONTRATAÇÃO DOS RECURSOS NECESSÁRIOS À OPERAÇÃO E MANUTENÇÃO DAS INFRAESTRUTURAS DO EIXO LESTE DO PISF - PROJETO DE INTEGRAÇÃO DO SÃO FRANCISCO COM AS BACIAS HIDROGRÁFICAS DO NORDESTE SETENTRIONAL
A7: ORÇAMENTO CONSOLIDADO | F7: TOTAL - (R$) | G7: 0 | I7: 118869609.7 | J7: 88777364.98 | K7: SUBTOTAL(9;G11:G874)
A9: ITEM | B9: CÓDIGO | C9: DESCRIÇÃO | D9: UNID. | E9: QUANTID. | F9: R$ UNIT. | G9: R$ TOTAL | H9: %
A11: 1. | C11: MOBILIZAÇÃO E DESMOBILIZAÇAO
A12: 1.1. | C12: MOBILIZAÇÃO (Máquinas, Equipamentos, Ferramentas, Instrumentos, Materiais, Mobiliário)
A13: 1.1.1 | C13: Mobilização da Equipe - Canteiro apoio geral (Floresta/PE) | D13: un | E13: 1 | I13: 1
A14: 1.1.2 | C14: Mobilização da Equipe - Canteiro central (Sertânia/PE) | D14: un | E14: 1 | I14: 1
A15: 1.2. | C15: DESMOBILIZAÇÃO (Máquinas, Equip., Ferramentas, Instrumentos, Materiais, Mobiliário)
A16: 1.2.1 | C16: Desmobilização da Equipe - Canteiro apoio geral (Floresta/PE) | D16: un | E16: 1 | I16: 1
A17: 1.2.2 | C17: Desmobilização da Equipe - Canteiro central (Sertânia/PE) | D17: un | E17: 1 | I17: 1
A18: 2. | C18: MOBILIÁRIO E EQUIPAMENTOS DE ESCRITÓRIO
A19: 2.1 | B19: E209300236-EMBASA/BA | C19: Aluguel de impressora colorida-Laser com cartuchos-formatos A4 e A3 (inclusive suprimentos) | D19: un x mês | E19: 108 | I19: 288
A20: 2.2 | B20: I8612-SEINFRA/CE | C20: Aluguel de Plotter (inclusive suprimentos) | D20: un x mês | E20: 12 | I20: 36
A21: 2.3 | B21: I8610-SEINFRA/CE | C21: Servidor para backup - EQUIPAMENTO SIMILAR | D21: un x mês | E21: 12 | I21: 36
A22: 2.4 | B22: I8610-SEINFRA/CE | C22: Desktop com software-tipo 1 (i7, 1T, 8GB, monitor 19", S.O. Windows 10 e Office última versão) - EQUIPAMENTO SIMILAR | D22: un x mês | E22: 210 | I22: 540
A23: 2.5 | B23: I8610-SEINFRA/CE | C23: Notebook-tipo 1 (i7, 1T, 8GB, S.O. Windows 10 e Office última versão) - EQUIPAMENTO SIMILAR | D23: un x mês | E23: 216 | I23: 528
A24: 2.6 | B24: COT_ANTE | C24: Kit Antena Digital 4K Externa Log 16 elementos Mastro 45cm e cabo coaxial 12m | D24: un x mês | E24: 6 | I24: 12
A25: 2.7 | B25: I0123-SEINFRA/CE | C25: Armário de escritório | D25: un x mês | E25: 342 | I25: 804
A26: 2.8 | B26: 73.72.07-SUDECAP/MG | C26: Bebedouro industrial (canteiro) | D26: un x mês | E26: 12 | I26: 36
A27: 2.9 | B27: 11534-ORSE/SE | C27: Cadeira giratória, com braço, tipo executiva | D27: un x mês | E27: 702 | I27: 2112
A28: 2.10 | B28: 11543-ORSE | C28: Cadeira de plástico sem braço, cor branca | D28: un x mês | E28: 138 | I28: 504
A29: 2.11 | B29: COT_CAM_FOTO | C29: Câmera fotográfica digital 20 mp 5x HD | D29: un x mês | E29: 12 | I29: 36
A30: 2.12 | B30: COT - CAR - LIX | C30: Lixeira Carro Coletor 120L | D30: un x mês | E30: 24 | I30: 72
A31: 2.13 | B31: COT_CESTO | C31: Cestos Telado de lixo 9,6L | D31: un x mês | E31: 48 | I31: 144
A32: 2.14 | B32: 39555-SINAPI/PE | C32: Condicionador de ar 12.000 BTU | D32: un x mês | E32: 246 | I32: 624
A33: 2.15 | B33: COT_GPS | C33: GPS com cabo e software (conforme especificação) | D33: un x mês | E33: 12 | I33: 36
A34: 2.16 | B34: COT_MESA_REUN | C34: Mesa de reunião 10 lugares com 10 cadeiras | D34: un x mês | E34: 42 | I34: 108
A35: 2.17 | B35: COT_MESA_PVC | C35: Mesa retangular em Polipropileno 119x75cm | D35: un x mês | E35: 36 | I35: 108
A36: 2.18 | B36: COT_MESA_ESCR | C36: Mesas de escritório com gavetas (conforme especificação) | D36: un x mês | E36: 702 | I36: 2112
A37: 2.19 | B37: F030000293-EMBASA/BA | C37: Projetor multimídia (Datashow) | D37: un x mês | E37: 12 | I37: 36
A38: 2.20 | B38: COT_RACK | C38: Rack para TV até 60 Polegadas 1 Porta | D38: un x mês | E38: 12 | I38: 36
A39: 2.21 | B39: I0122-SEINFRA/CE | C39: Armário de cozinha completo | D39: un x mês | E39: 12 | I39: 36
A40: 2.22 | B40: COT_MES_06 | C40: Conjunto de Mesa 1,40 com Tampo MDP com 6 cadeiras | D40: un x mês | E40: 12 | I40: 36
A41: 2.23 | B41: 10231-ORSE/SE | C41: Fogão | D41: un x mês | E41: 12 | I41: 36
A42: 2.24 | B42: 029028-IOPES | C42: Cilindro de Gás de Cozinha 45 kg | D42: un x mês | E42: 30 | I42: 84
A43: 2.25 | B43: 4226-SINAPI/PE | C43: Gás de cozinha-GLP (kg) | D43: un x mês | E43: 1350 | I43: 3780
A44: 2.26 | B44: F020000716-EMBASA/BA | C44: Geladeira 280 litros | D44: un x mês | E44: 12 | I44: 36
A45: 2.27 | B45: COT_MICROOND | C45: Forno Microondas 20L | D45: un x mês | E45: 12 | I45: 36
A46: 2.28 | B46: COT_FAQUEI | C46: Faqueiro com 24 peças | D46: un x mês | E46: 204 | I46: 780
A47: 2.29 | B47: COT_PRATO | C47: Pratos rasos redondo em cerâmica | D47: un x mês | E47: 468 | I47: 1584
A48: 2.30 | B48: COT_COPO | C48: Conjunto copos em vidro 350ml com 8 unidades | D48: un x mês | E48: 24 | I48: 72
A49: 2.31 | B49: COT_TELEVISOR | C49: Smart Tv LED 32" | D49: un x mês | E49: 42 | I49: 108
A50: 2.32 | B50: AP_JANTAR | C50: Aparelho de jantar para 06 pessoas | D50: un x mês | E50: 78 | I50: 264
A51: 2.33 | B51: 11645-ORSE/SE | C51: Armário para vestiário, em aço, com 12 portas, com cadeado | D51: un x mês | E51: 12 | I51: 36
A52: 2.34 | B52: COT_CHAP | C52: Chapa gás 65 cm para grelhar | D52: un x mês | E52: 12 | I52: 36
A53: 2.35 | B53: 08600-ORSE/SE | C53: Coifa | D53: un x mês | E53: 12 | I53: 36
A54: 2.36 | B54: COT_UTENS | C54: Conjunto de utensílios gadgets inox para cozinha | D54: un x mês | E54: 12 | I54: 36
A55: 2.37 | B55: COT_FOGAO | C55: Fogão industrial 6 bocas 30x30 baixa pressão perfil 5 | D55: un x mês | E55: 12 | I55: 36
A56: 2.38 | B56: COT_FORNO | C56: Forno elétrico 46L 1500W | D56: un x mês | E56: 12 | I56: 36
A57: 2.39 | B57: F020000719-EMBASA/BA | C57: Freezer 246 l | D57: un x mês | E57: 12 | I57: 36
A58: 2.40 | B58: 10232-ORSE/SE | C58: Geladeira industrial 300 litros | D58: un x mês | E58: 12 | I58: 36
A59: 2.41 | B59: COT_PANEL | C59: Conjunto de panelas antiaderente com 7 peças | D59: un x mês | E59: 12 | I59: 36
A60: 2.42 | B60: COT_LIQUID | C60: Liquidificadores industriais alta rotação 2L | D60: un x mês | E60: 12 | I60: 36
A61: 2.43 | B61: COT_MAQ_LAVA_LOUCA | C61: Máquina de lavar louças industrial B.30 | D61: un x mês | E61: 12 | I61: 36
A62: 2.44 | B62: COT_MAQ_LAVA_ROUPA | C62: Máquina de Lavar roupa 11kg | D62: un x mês | E62: 12 | I62: 36
A63: 2.45 | B63: COT_MESA_BUF | C63: Carrinho Buffet Térmico Self Service Inox 8 cubas | D63: un x mês | E63: 12 | I63: 36
A64: 2.46 | B64: COT_MESA_REFEIT | C64: Mesa de refeitório 10 lugares com cadeiras MDF branco de 25mm | D64: un x mês | E64: 30 | I64: 108
A65: 2.47 | B65: COT_REFRESQUEIRA | C65: Refresqueira BBS2 Inox | D65: un x mês | E65: 12 | I65: 36
A66: 2.48 | B66: COT_TABUA | C66: Tábuas para carnes 19x35x1,6cm | D66: un x mês | E66: 12 | I66: 36
A67: 2.49 | B67: COT_CAMA_BOX | C67: Cama box conjugada solteiro | D67: un x mês | E67: 168 | I67: 528
A68: 2.50 | B68: COT_GUARDA_ROUPA | C68: Guarda-Roupa solteiro 4 Portas | D68: un x mês | E68: 12 | I68: 36
A69: 2.51 | B69: COT_ROUPA_CAMA | C69: Jogo de roupa de cama solteiro 100% Algodão | D69: un x mês | E69: 336 | I69: 1056
A70: 2.52 | B70: COT_ROUPA_BANHO | C70: Jogo de Roupa de banho 5 Peças | D70: un x mês | E70: 168 | I70: 528
A71: 2.53 | B71: COT_SOFA | C71: Conjunto de sofá 2 e 3 lugares | D71: un x mês | E71: 12 | I71: 36
A74: 3. | C74: EQUIPE - MÃO DE OBRA
A75: 3.1. | C75: SALÁRIOS FIXOS
A76: 3.1.1 | B76: A1 | C76: Almoxarife | D76: homem x mês | E76: 6 | I76: 12
A77: 3.1.2 | B77: A1 | C77: Auxiliar Administrativo | D77: homem x mês | E77: 6 | I77: 48
A78: 3.1.3 | B78: A9 | C78: Auxiliar de serviços gerais | D78: homem x mês | E78: 36 | I78: 144
A79: 3.1.4 | B79: T3 | C79: Auxiliar de Topografia | D79: homem x mês | E79: 12 | I79: 24
A80: 3.1.5 | B80: A8 | C80: Carpinteiro | D80: homem x mês | E80: 12 | I80: 36
A81: 3.1.6 | B81: CA | C81: Coordenador - Chefe de Escritório | D81: homem x mês | E81: 6 | I81: 12
A82: 3.1.7 | B82: P0 | C82: Coordenador - Engenheiro Sênior (Civil / Eletricista / Mecânico) | D82: homem x mês | E82: 6 | I82: 12
A83: 3.1.8 | B83: P1 | C83: Coordenador Manutenção - Engenheiro Pleno (Civil / Eletricista / Mecânico) | D83: homem x mês | E83: 6 | I83: 12
A84: 3.1.9 | B84: P1 | C84: Coordenador Operação - Engenheiro Pleno (Civil / Eletricista / Mecânico) | D84: homem x mês | E84: 6 | I84: 12
A85: 3.1.10 | B85: A5 | C85: Eletricista | D85: homem x mês | E85: 12 | I85: 36
A86: 3.1.11 | B86: A5 | C86: Eletricista (inclusive adicional de periculosidade) | D86: homem x mês | E86: 18 | I86: 168
A87: 3.1.12 | B87: P1 | C87: Engenheiro de Segurança e Medicina do Trabalho (inclusive adicional de periculosidade) | D87: homem x mês | E87: 6 | I87: 12
A88: 3.1.13 | B88: P2 | C88: Engenheiro Junior | D88: homem x mês | E88: 24 | I88: 72
A89: 3.1.14 | B89: P1 | C89: Engenheiro Pleno | D89: homem x mês | E89: 36 | I89: 144
A90: 3.1.15 | B90: A7 | C90: Ferreiro | D90: homem x mês | E90: 6 | I90: 36
A91: 3.1.16 | B91: P1 | C91: Geólogo (Geotecnia) | D91: homem x mês | E91: 6 | I91: 12
A92: 3.1.17 | B92: P2 | C92: Médico do Trabalho | D92: homem x mês | E92: 6 | I92: 12
A93: 3.1.18 | B93: A3 | C93: Motorista | D93: homem x mês | E93: 6 | I93: 12
A94: 3.1.19 | B94: A6 | C94: Pedreiro | D94: homem x mês | E94: 24 | I94: 84
A95: 3.1.20 | B95: A11 | C95: Servente | D95: homem x mês | E95: 360 | I95: 1488
A96: 3.1.21 | B96: T2 | C96: Técnico Automação - Especialista em SDSC (inclusive adicional de periculosidade) | D96: homem x mês | E96: 6 | I96: 12
A97: 3.1.22 | B97: T3 | C97: Técnico Auxiliar | D97: homem x mês | E97: 36 | I97: 144
A98: 3.1.23 | B98: T3 | C98: Técnico Auxiliar (inclusive adicional de periculosidade) | D98: homem x mês | E98: 18
A99: 3.1.24 | B99: T2 | C99: Técnico de Segurança e Medicina do Trabalho (inclusive adicional de periculosidade) | D99: homem x mês | E99: 6 | I99: 24
A100: 3.1.25 | B100: T2 | C100: Tecnico Edificações | D100: homem x mês | E100: 12 | I100: 36
A101: 3.1.26 | B101: T2 | C101: Técnico - Cadista | D101: homem x mês | E101: 6 | I101: 36
A102: 3.1.27 | B102: T2 | C102: Técnico Pleno - Eletrotécnico - Diurno (inclusive adicional de periculosidade) | D102: homem x mês | E102: 72 | I102: 288
A103: 3.1.28 | B103: T2 | C103: Técnico Pleno - Eletrotécnico - Noturno (inclusive adicional de periculosidade) | D103: homem x mês | E103: 72 | I103: 288
A104: 3.1.29 | B104: T2 | C104: Técnico Junior - Mecânico - Diurno (inclusive adicional de periculosidade) | D104: homem x mês | E104: 72 | I104: 144
A105: 3.1.30 | B105: T2 | C105: Técnico Junior - Mecânico - Noturno (inclusive adicional de periculosidade) | D105: homem x mês | E105: 72 | I105: 144
A106: 3.1.31 | B106: T2 | C106: Técnico Pleno | D106: homem x mês | E106: 60 | I106: 168
A107: 3.1.32 | B107: T2 | C107: Técnico Pleno (inclusive adicional de periculosidade) | D107: homem x mês | E107: 18 | I107: 60
A108: 3.1.33 | B108: T1 | C108: Técnico Pleno - Analista em Tecnologia da Informação | D108: homem x mês | E108: 6 | I108: 96
A109: 3.1.34 | B109: T0 | C109: Técnico - Profissional Sênior (N. Médio/Especializado) | D109: homem x mês | E109: 18 | I109: 12
A110: 3.1.35 | B110: T2 | C110: Técnico Telecomunicações/Eletrônica (inclusive adicional de periculosidade) | D110: homem x mês | E110: 6 | I110: 12
A111: 3.1.36 | B111: TS | C111: Topógrafo | D111: homem x mês | E111: 6 | I111: 72
A112: 3.1.37 | B112: A10 | C112: Vigia diurno | D112: homem x mês | E112: 24 | I112: 72
A113: 3.1.38 | B113: A10 | C113: Vigia noturno | D113: homem x mês | E113: 24
A115: 3.2. | C115: VALORES ADICIONAIS
A116: 3.2.1. | C116: ADICIONAL DE PERICULOSIDADE PARA OS ENGENHEIROS E COORDENADORES
A117: 3.2.1.1 | B117: P1 | C117: Engenheiro Pleno | D117: homem x mês | E117: 42 | I117: 12
A118: 3.2.1.2 | B118: P2 | C118: Engenheiro Júnior | D118: homem x mês | E118: 18 | I118: 12
A119: 3.2.1.3 | B119: T0 | C119: Técnico Sênior | D119: homem x mês | E119: 12 | I119: 12
A120: 3.2.1.4 | B120: T2 | C120: Técnico Pleno | D120: homem x mês | E120: 30 | I120: 12
A121: 3.2.1.5 | B121: T3 | C121: Técnico Auxiliar | D121: homem x mês | E121: 36 | I121: 12
A122: 3.2.2. | C122: MÃO DE OBRA - HORA EXTRA 50%
A123: 3.2.2.1 | B123: P1 | C123: Engenheiro Pleno - Hora Extra 50% - C/ Periculosidade | D123: Homem x Hora | E123: 192 | I123: 960 | J123: =F123*E123 -> 
A124: 3.2.2.2 | B124: T2 | C124: Técnico Pleno - Hora Extra 50% - C/ Periculosidade | D124: Homem x Hora | E124: 192 | I124: 4719.96 | J124: =F124*E124 -> 
A125: 3.2.2.3 | B125: T2 | C125: Técnico Júnior- Hora Extra 50% | D125: Homem x Hora | E125: 192 | I125: 144
A126: 3.2.2.4 | B126: T2 | C126: Técnico Júnior- Hora Extra 50% - C/ Periculosidade | D126: Homem x Hora | E126: 192 | I126: 144
A127: 3.2.2.5 | B127: T3 | C127: Técnico Auxiliar - Hora Extra 50% - C/ Periculosidade | D127: Homem x Hora | E127: 192 | I127: 3888
A128: 3.2.2.6 | B128: T3 | C128: Auxiliar - Hora Extra 50% - C/ Periculosidade | D128: Homem x Hora | E128: 192 | I128: 336
A129: 3.2.2.7 | B129: A11 | C129: Servente - Hora Extra 50% - C/ Periculosidade | D129: Homem x Hora | E129: 1080 | I129: 7560
A130: 3.2.3. | C130: MÃO DE OBRA - HORA EXTRA 100%
A131: 3.2.3.1 | B131: P1 | C131: Engenheiro Pleno - Hora Extra 100% - C/ Periculosidade | D131: Homem x Hora | E131: 96 | I131: 384
A132: 3.2.3.2 | B132: T2 | C132: Técnico Pleno - Hora Extra 100% - C/ Periculosidade | D132: Homem x Hora | E132: 96 | I132: 1872
A133: 3.2.3.3 | B133: T2 | C133: Técnico Júnior- Hora Extra 100% | D133: Homem x Hora | E133: 96 | I133: 144
A134: 3.2.3.4 | B134: T2 | C134: Técnico Júnior- Hora Extra 100% - C/ Periculosidade | D134: Homem x Hora | E134: 96 | I134: 144
A135: 3.2.3.5 | B135: T3 | C135: Técnico Auxiliar - Hora Extra 100% - C/ Periculosidade | D135: Homem x Hora | E135: 96 | I135: 1248
A136: 3.2.3.6 | B136: T3 | C136: Auxiliar - Hora Extra 100% - C/ Periculosidade | D136: Homem x Hora | E136: 96 | I136: 144
A137: 3.2.3.7 | B137: A11 | C137: Servente - Hora Extra 100% - C/ Periculosidade | D137: Homem x Hora | E137: 720 | I137: 3024
A139: 4. | C139: VIAGENS / DIÁRIAS
A140: 4.1. | C140: DESPESAS COM VIAGENS COMERCIAIS
A141: 4.1.1 | C141: Viagem por via aerea | D141: un | E141: 6 | I141: 48
A142: 4.1.2 | C142: Viagem por via terrestre (comercial) | D142: un | E142: 18 | I142: 144
A143: 4.2. | C143: DESPESAS COM DIÁRIAS
A144: 4.2.1 | C144: Diárias nacionais | D144: un | E144: 6 | I144: 48
A145: 4.2.2 | C145: Diárias regionais | D145: un | E145: 72 | I145: 144
A147: 5. | C147: VEÍCULOS AUTOMOTORES
A148: 5.1 | B148: B3 | C148: TIPO HATCH 1.6 FLEX (110 CV) | D148: un x mês | E148: 90 | I148: 456 | J148: =E148/12 -> 7.5
A149: 5.2 | B149: B4 | C149: TIPO SEDAN 1.6 FLEX (115CV) | D149: un x mês | E149: 6 | I149: 12 | J149: =E149/12 -> 0.5
A150: 5.3 | B150: B11 | C150: Veículo Tipo Pick Up Cabine Dupla 4 x 4 (163 CV) | D150: un x mês | E150: 114 | I150: 324 | J150: 9.5
A151: 5.4 | B151: B8 | C151: Veículo - Tipo Ônibus - 45 assentos (218 CV) - COM MOTORISTA | D151: un x mês | E151: 18 | I151: 48 | J151: 1.5
A152: 5.5 | B152: B1 | C152: NXR BROS 160 | D152: un x mês | E152: 18 | I152: 36 | J152: 1.5
A154: 6. | C154: FRENTES MÓVEIS DE LIMPEZA E CONSERVAÇÃO
A155: 6.1 | B155: Banco de Preços (PREGÃO ELETRÔNICO - MUNICÍPIO DE FÁTIMA/BA, 05/2022) | C155: Tenda Piramidal 5m x 5m (para refeitório) | D155: un x mês | E155: 48 | I155: 216
A156: 6.2 | B156: F099722405/EMBASA | C156: Tenda Piramidal 3m x 3m | D156: un x mês | E156: 48 | I156: 216
A157: 6.3 | B157: 10390 - ORSE/SE | C157: Banheiro Químico, com 03 limpezas semanais | D157: un x mês | E157: 120 | I157: 360
A159: 7. | C159: MATERIAL DE CONSUMO - ALMOXARIFADOS
A160: 7.1. | C160: MATERIAL DE CONSUMO - MECÂNICA
A161: 7.1.1 | B161: 04791 - SINAPI | C161: Adesivo Acrílico / Cola de contato | D161: un | E161: 480 | I161: 480
A162: 7.1.2 | B162: 05318 - SINAPI | C162: Água Raz - galão 5 l | D162: un | E162: 112 | I162: 112
A163: 7.1.3 | B163: 000312/SBC | C163: Alcool Comum 90º GL | D163: l | E163: 1200 | I163: 1200
A164: 7.1.4 | C164: Antiferrugem aerosol WD-40 - tubo de 300 ml | D164: un | E164: 289 | I164: 289
A165: 7.1.5 | B165: Banco de preços (NºPregão:142022 / UASG:926687 - Serviço Autonomo de Agua e Esgoto de Volta Redonda SAAE VR RJ, Pregão Eletrônico, 04/2022) | C165: Antiespumante – antiespumante a base de silicone | D165: l | E165: 223 | I165: 223
A166: 7.1.6 | B166: 43132 - SINAPI | C166: Arame recozido n.º 18 | D166: kg | E166: 2400 | I166: 2400
A167: 7.1.7 | B167: 00122 - SINAPI | C167: Cola de PVC com 850 g | D167: un | E167: 144 | I167: 144
A168: 7.1.8 | B168: Banco de preços (DEPART.DE OBRAS E SERV.PUBLICOS Prefeitura Municipal de Ubiretama/RS, Dispensa por Limite - 01/2022) | C168: Cola Ultra Gray 70g | D168: un | E168: 144 | I168: 144
A169: 7.1.9 | B169: Banco de preços (PREFEITURA MUNICIPAL DE QUEIROZ, PREGÃO PRESENCIAL - 80/2021) | C169: Cola para junta de motores com 73g | D169: un | E169: 1200 | I169: 1200
A170: 7.1.10 | B170: Banco de preços (FUNDO MUNICIPAL DE ASSISTÊNCIA SOCIAL Prefeitura Municipal de Hulha Negra/RS, Dispensa por Limite - 05/2022) | C170: Convertedor de ferrugem 500 ml | D170: un | E170: 445 | I170: 445
A171: 7.1.11 | B171: 038200 - SINAPI | C171: Corda de bombeiro 12mm em nylon trançado (rolo de 100,00m) | D171: m | E171: 3200 | I171: 3200
A172: 7.1.12 | B172: 004221 - SINAPI | C172: Diesel comum (l) | D172: l | E172: 480 | I172: 4800
A173: 7.1.13 | B173: 044533 - SINAPI | C173: Disco corte abrasivo 7" x 1/8" x 7/8" | D173: un | E173: 434 | I173: 434
A174: 7.1.14 | B174: 044531 - SINAPI | C174: Disco de corte diamantado - 7", para esmerilhadeira, segmentado, para concreto | D174: un | E174: 108 | I174: 434
A175: 7.1.15 | B175: 044495 - SINAPI | C175: Disco de corte para estrutura metálica 300 x 3,2 x 19,05 mm | D175: un | E175: 434 | I175: 434
A176: 7.1.16 | B176: 044533 - SINAPI | C176: Disco de desbaste para estrutura metálica de 9" x 1/4" x 7/8" ( 225 x 6,25 x 21,87 mm) | D176: un | E176: 434 | I176: 434
A177: 7.1.17 | B177: 010997 - SINAPI | C177: Eletrodos Revestido AWS-E7018, DN 4 mm | D177: kg | E177: 320 | I177: 320
A178: 7.1.18 | C178: SOLDA-ELETRODO OK 4600 AWS 6013 6,0mm 1/4" | D178: kg | E178: 320 | I178: 320
A179: 7.1.19 | B179: 000012 - SINAPI | C179: Escova de aço para remoção da graxa envelhecida dos cabos de aço | D179: un | E179: 160 | I179: 160
A180: 7.1.20 | B180: 000013 - SINAPI | C180: Estopa - embalagem 20 kg | D180: kg | E180: 294 | I180: 294
A181: 7.1.21 | B181: 000404 - SINAPI | C181: Fita auto fusão 19 mm x 10 m | D181: un | E181: 194 | I181: 194
A182: 7.1.22 | B182: 012815 - SINAPI | C182: Fita crepe adesiva 25mm x 50mm | D182: un | E182: 194 | I182: 194
A183: 7.1.23 | B183: 020111 - SINAPI | C183: Fita isolante 19 mm x 20 m | D183: un | E183: 194 | I183: 194
A184: 7.1.24 | C184: Graxa a base de lítio NGLI 2 | D184: kg | E184: 478 | I184: 478
A185: 7.1.25 | C185: Graxa a base de lítio NGLI 3 | D185: kg | E185: 478 | I185: 478
A186: 7.1.26 | C186: Graxa com dissulfeto de molibidênio (MoS2) - Lata 500 g | D186: un | E186: 478 | I186: 478
A187: 7.1.27 | C187: Graxa GMA - 2 | D187: kg | E187: 478 | I187: 478
A188: 7.1.28 | C188: Graxa de Alta Resistência a Carga, Pressão LGEP 2/1. Aplicação: Engrenagens de roda e engrenagens expostas | D188: kg | E188: 478 | I188: 478
A189: 7.1.29 | C189: Hidróxido de Cálcio P.A. 500 g | D189: kg | E189: 600 | I189: 600
A190: 7.1.30 | C190: Hipoclorito de Sódio 12% 5000 ml | D190: kg | E190: 1200 | I190: 1200
A191: 7.1.31 | B191: 8216 - ORSE | C191: Lâmina de serra para metal Starret ou similar | D191: un | E191: 667 | I191: 667
A192: 7.1.32 | C192: Lençol de borracha manta 3/16” 4,8mm | D192: m² | E192: 400 | I192: 400
A193: 7.1.33 | C193: Líquido penetrante visível lavável à água (Ensaios de Líquido Penetrante) | D193: un | E193: 98 | I193: 98
A194: 7.1.34 | B194: 003767 - SINAPI | C194: Lixa nº120 | D194: un | E194: 2400 | I194: 2400
A195: 7.1.35 | C195: Lona de borracha com alma 1,0 – 4,8 mm esp. | D195: m | E195: 45 | I195: 45
A196: 7.1.36 | B196: 003777 - SINAPI/PE | C196: Lona plástica - 4 x 100 m - 12 kg | D196: m² | E196: 3200 | I196: 3200
A197: 7.1.37 | B197: 037459 - SINAPI | C197: Mangueira Cristal, Lisa PVC transparente, 3/4" x 2 mm | D197: m | E197: 1600 | I197: 1600
A198: 7.1.38 | C198: Mangueira FLG-62/1 0 - 150 PSI 1/4" NPT | D198: m | E198: 800 | I198: 800
A199: 7.1.39 | B199: 7696 - ORSE | C199: Massa calafetar cinza-Durepox ou similiar | D199: kg | E199: 334 | I199: 334
A200: 7.1.40 | C200: Óleo - Translação pórtico e ponte e direção do carro - 20 l - Óleo EP 220 | D200: l | E200: 334 | I200: 334
A201: 7.1.41 | C201: Óleo Hidràulico para os componentes não protegido dos Servomotor Hidráulico - Óleo EP 320 | D201: l | E201: 334 | I201: 334
A202: 7.1.42 | C202: Óleo Lubrificante Redutor - Óleo SAE 90 | D202: l | E202: 334 | I202: 334
A203: 7.1.43 | C203: Óleo lubrificante, para engrenagem., EP-5, viscosidade (CSt) ( - 40ºC) = 22 - tambor 20 l | D203: l | E203: 334 | I203: 334
A204: 7.1.44 | C204: PAC – Policloreto de alumínio (5 l) | D204: l | E204: 967 | I204: 967
A205: 7.1.45 | C205: Papelão grafitado 1,50 m x 1,60 m Esp 2.4 | D205: un | E205: 30 | I205: 30
A206: 7.1.46 | C206: Pasta de Limpeza Uso Geral Limptek 500 gramas | D206: kg | E206: 400 | I206: 400
A207: 7.1.47 | C207: Querosene para limpeza | D207: l | E207: 240 | I207: 240
A208: 7.1.48 | C208: Revelador não aquoso D70 (Ensaios de Líquido Penetrante) | D208: un | E208: 98 | I208: 98
A209: 7.1.49 | C209: Sílica Gel Branca - Pacote De 1kg - Grânulos De 4-8 Mm | D209: kg | E209: 98 | I209: 98
A210: 7.1.50 | B210: 039961 - SINAPI | C210: Silicone (acético branca) - Tubo de 280g | D210: un | E210: 480 | I210: 480
A211: 7.1.51 | C211: Trava Parafusos de Alta Resistência 120 com 10g | D211: un | E211: 192 | I211: 192
... 578 more rows

Sheet Manutenção de canteiro
C1: Ministério do Desenvolvimento Regional - MDR
C2: Companhia de Desenvolvimento dos Vales do São Francisco e do Parnaíba
C3: Gerência de Operação do PISF - Centro de Controle e Operação (AD / GOI / CCO)
A5: =Equipamentos!A5 -> TERMO DE REFERÊNCIA PARA CONTRATAÇÃO DOS RECURSOS NECESSÁRIOS À OPERAÇÃO E MANUTENÇÃO DAS INFRAESTRUTURAS DO EIXO LESTE DO PISF - PROJETO DE INTEGRAÇÃO DO SÃO FRANCISCO COM AS BACIAS HIDROGRÁFICAS DO NORDESTE SETENTRIONAL
A8: ='ORCAMENTO_CONSOLIDADO (2)'!C322 -> MANUTENÇÃO DE CANTEIRO - ESCRITÓRIO
A11: ITEM | B11: CÓDIGO | C11: DESCRIÇÃO | D11: UNIDADE | E11: QUANTIDADE | F11: VALOR (R$)
F12: UNITARIO | G12: TOTAL
A13: ='ORCAMENTO_CONSOLIDADO (2)'!A159 -> 7. | C13: ='ORCAMENTO_CONSOLIDADO (2)'!C159 -> MATERIAL DE CONSUMO - ALMOXARIFADOS
A14: ='ORCAMENTO_CONSOLIDADO (2)'!A322 -> 7.4. | C14: ='ORCAMENTO_CONSOLIDADO (2)'!C322 -> MANUTENÇÃO DE CANTEIRO - ESCRITÓRIO
A16: VALOR ATUAL DO BOLETIM DE MEDIÇÃO | D16: VBM
A17: VALOR TOTAL DO SERVIÇO DE MANUTENÇÃO DE CANTEIRO | D17: VSMC
A18: VALOR TOTAL DO SERVIÇO DE MANUTENÇÃO DE CANTEIRO - ANTERIOR | D18: VSMC.ANT
A19: VALOR TOTAL DA PLANILHA | D19: VTP
A20: VALOR DO BOLETIM DE MEDIÇÃO - ANTERIOR | D20: VBM.ANT
A22: VALOR MANT. CANTEIRO = VBM*((VSMC - VSMC.ANT) / (VTP - VBM.ANT))
A26: ="TOTAL - "&C14&" - (R$):" -> TOTAL - MANUTENÇÃO DE CANTEIRO - ESCRITÓRIO - (R$): | G26: =SUBTOTAL(9,G16:G25) -> 0
A30: NOME DO INFORMANTE: | F30: QUALIFICAÇÃO:
A32: ASSINATURA: | F32: DATA:
A34: OBSERVAÇÃO:
A35: TABELAS DE REFERÊNCIA
A36: SINAPI 04/2022
A37: ORSE 03/2022
A38: SBC 07/2022
A39: EMBASA 01/2022
A40: SETOP 03/2022
A41: COMPESA 01/2022

Sheet Mao_de_Obra_VALORES_ADICIONAIS
C1: Ministério do Desenvolvimento Regional - MDR
C2: Companhia de Desenvolvimento dos Vales do São Francisco e do Parnaíba
C3: Gerência de Operação do PISF - Centro de Controle e Operação (AD / GOI / CCO)
A5: TERMO DE REFERÊNCIA PARA CONTRATAÇÃO DOS RECURSOS NECESSÁRIOS À OPERAÇÃO E MANUTENÇÃO DAS INFRAESTRUTURAS DO EIXO LESTE DO PISF - PROJETO DE INTEGRAÇÃO DO SÃO FRANCISCO COM AS BACIAS HIDROGRÁFICAS DO NORDESTE SETENTRIONAL
A8: MÃO DE OBRA - VALORES ADICIONAIS
A10: ITEM | B10: DESCRIÇÃO | C10: CLASSE | D10: Und. | E10: Prazo (Mês) | F10: Quantidade (undxmês) | H10: VALOR ADICIONAL - UNITÁRIO | O10: VALOR ADICIONAL - TOTAL
H11: VALOR BASE (Com Encargo) | I11: CÁLCULO DO VALOR ADICIONAL | O11: VALOR BASE (Com Encargo) | P11: CÁLCULO DO VALOR ADICIONAL - TOTAL (R$)
I12: Periculosidade | J12: Adicional Noturno | L12: Hora Extra 100% | M12: Hora Extra 50% | N12: VALOR DO ADICIONAL (Incluindo: encargos) | P12: Periculosidade | Q12: Adicional Noturno (c/ intrajornada) | R12: Horas Extras | S12: VALOR DO ADICIONAL - COMPLETO (Incluindo: encargos)
F13: Unitária | G13: Total | I13: 0.3 | J13: Valor da Hora Noturna | K13: Valor do Adicional Noturno (c/ intrajornada) | L13: Valor Unitário | M13: Valor Unitário | P13: 0.3
A14: 1. | B14: ADICIONAL DE PERICULOSIDADE PARA OS ENGENHEIROS E COORDENADORES | U14: =SUM(#REF!) -> 
A15: 1.1 | B15: Engenheiro Pleno | C15: P1 | D15: homem x mês | E15: 6 | F15: 7 | G15: 42
A16: 1.2 | B16: Engenheiro Júnior | C16: P2 | D16: homem x mês | E16: 6 | F16: 3 | G16: 18
A17: 1.3 | B17: Técnico Sênior | C17: T0 | D17: homem x mês | E17: 6 | F17: 2 | G17: 12
A18: 1.4 | B18: Técnico Pleno | C18: T2 | D18: homem x mês | E18: 6 | F18: 5 | G18: 30
A19: 1.5 | B19: Técnico Auxiliar | C19: T3 | D19: homem x mês | E19: 6 | F19: 6 | G19: 36
A20: 2. | B20: MÃO DE OBRA - HORA EXTRA 50%
A21: 2.1 | B21: Engenheiro Pleno - Hora Extra 50% - C/ Periculosidade | C21: P1 | D21: Homem x Hora | E21: 6 | F21: 32 | G21: 192 | U21: =SUBTOTAL(9,S21:S27) -> 0
A22: 2.2 | B22: Técnico Pleno - Hora Extra 50% - C/ Periculosidade | C22: T2 | D22: Homem x Hora | E22: 6 | F22: 32 | G22: 192
A23: 2.3 | B23: Técnico Júnior- Hora Extra 50% | C23: T2 | D23: Homem x Hora | E23: 6 | F23: 32 | G23: 192
A24: 2.4 | B24: Técnico Júnior- Hora Extra 50% - C/ Periculosidade | C24: T2 | D24: Homem x Hora | E24: 6 | F24: 32 | G24: 192
A25: 2.5 | B25: Técnico Auxiliar - Hora Extra 50% - C/ Periculosidade | C25: T3 | D25: Homem x Hora | E25: 6 | F25: 32 | G25: 192
A26: 2.6 | B26: Auxiliar - Hora Extra 50% - C/ Periculosidade | C26: T3 | D26: Homem x Hora | E26: 6 | F26: 32 | G26: 192
A27: 2.7 | B27: Servente - Hora Extra 50% - C/ Periculosidade | C27: A11 | D27: Homem x Hora | E27: 6 | F27: 180 | G27: 1080
A28: 3. | B28: MÃO DE OBRA - HORA EXTRA 100%
A29: 3.1 | B29: Engenheiro Pleno - Hora Extra 100% - C/ Periculosidade | C29: P1 | D29: Homem x Hora | E29: 6 | F29: 16 | G29: 96 | U29: =SUBTOTAL(9,S29:S35) -> 0
A30: 3.2 | B30: Técnico Pleno - Hora Extra 100% - C/ Periculosidade | C30: T2 | D30: Homem x Hora | E30: 6 | F30: 16 | G30: 96
A31: 3.3 | B31: Técnico Júnior- Hora Extra 100% | C31: T2 | D31: Homem x Hora | E31: 6 | F31: 16 | G31: 96
A32: 3.4 | B32: Técnico Júnior- Hora Extra 100% - C/ Periculosidade | C32: T2 | D32: Homem x Hora | E32: 6 | F32: 16 | G32: 96
A33: 3.5 | B33: Técnico Auxiliar - Hora Extra 100% - C/ Periculosidade | C33: T3 | D33: Homem x Hora | E33: 6 | F33: 16 | G33: 96
A34: 3.6 | B34: Auxiliar - Hora Extra 100% - C/ Periculosidade | C34: T3 | D34: Homem x Hora | E34: 6 | F34: 16 | G34: 96
A35: 3.7 | B35: Servente - Hora Extra 100% - C/ Periculosidade | C35: A11 | D35: Homem x Hora | E35: 6 | F35: 120 | G35: 720
A36: Total Geral - VALORES ADICIONAIS - MÃO DE OBRA (R$):
A38: NOME DO INFORMANTE:
A40: ASSINATURA:
A42: OBSERVAÇÕES:
A43: 1. Considerado a carga horária de 176 horas/mês
A44: 2. Os cálculos de cada parcela que compõe o salário completo foram calculadas isoladamente. (Salário Base + Adicional de Periculosidade (quando houver) + Adicional Noturno (quando houver) + Adicional de Horas Extras (quando houver) + Encargos Sociais)
A45: 3. Adicional de Periculosidade 30%: foi previsto para todos os profissionais eletricitários (Operação e Manutenção) que trabalham em contato com rede elétrica (nas estações de bombeamento, sub-estações, etc.)
A46: 4. Hora Noturna: Hora Diurna x 20%
A47: 5. Adicional Noturno: *Considerado 120 horas/profissional/mês (Total de 8h noturnas: Período de 22h as 5h = 8h noturnas + 1h até as 6h => Súmula 60 do TST) *(Incide sobre Salário Base + Periculosidade => Súmula 191 do TST)
A48: 6. Período noturno – 22 às 5 horas, o valor da hora tem 52 minutos e 30 segundos; logo, nesse período, há 8 horas
A49: 6. Foi considerado intervalo intrajornada para todos os profissionais que trabalham em escala 12h x 36h
A50: 7. Foi considerado para o cálculo de horas extras os percentuais de: *5% para as horas remuneradas a 50% sobre o valor da hora normal; e *2,5% para as horas trabalhadas remuneradas a 100% sobre o valor da hora normal
A51: 8. Horas Extras: Foi estimado um percentual de 20% de horas extras no total de contrato para todos os profissionais da manutenção. Essas horas só serão pagas se houver demanda.

Sheet MC - VALORES ADICIONAIS
C1: Ministério do Desenvolvimento Regional - MDR
C2: Companhia de Desenvolvimento dos Vales do São Francisco e do Parnaíba
C3: Gerência de Operação do PISF - Centro de Controle e Operação (AD / GOI / CCO)
A5: =ORCAMENTO_RESUMO!A5 -> TERMO DE REFERÊNCIA PARA CONTRATAÇÃO DOS RECURSOS NECESSÁRIOS À OPERAÇÃO E MANUTENÇÃO DAS INFRAESTRUTURAS DO EIXO LESTE DO PISF - PROJETO DE INTEGRAÇÃO DO SÃO FRANCISCO COM AS BACIAS HIDROGRÁFICAS DO NORDESTE SETENTRIONAL
A7: MEMÓRIA DE CÁLCULO - VALORES ADICIONAIS
A9: ITEM | B9: CÓDIGO | C9: CATEGORIA / DESCRIÇÃO | D9: UND. | E9: QUANTID.
A11: 1. | C11: ADICIONAL DE PERICULOSIDADE PARA OS ENGENHEIROS E COORDENADORES
A12: 1.1 | B12: P1 | C12: Engenheiro Pleno | D12: homem | E12: 7
A13: 1.2 | B13: P2 | C13: Engenheiro Júnior | D13: homem | E13: 3
A14: 1.3 | B14: T0 | C14: Técnico Sênior | D14: homem | E14: 2
A15: 1.4 | B15: T2 | C15: Técnico Pleno | D15: homem | E15: 5
A16: 1.5 | B16: T3 | C16: Técnico Auxiliar | D16: homem | E16: 6
A17: 2. | C17: MÃO DE OBRA - HORA EXTRA 50%
A18: 2.1 | B18: P1 | C18: Engenheiro Sênior - Hora Extra 50% - C/ Periculosidade | D18: Hora/mês | E18: 32
A19: 2.2 | B19: T2 | C19: Técnico Pleno - Hora Extra 50% - C/ Periculosidade | D19: Hora/mês | E19: 32
A20: 2.3 | B20: T2 | C20: Técnico Júnior- Hora Extra 50% | D20: Hora/mês | E20: 32
A21: 2.4 | B21: T2 | C21: Técnico Júnior- Hora Extra 50% - C/ Periculosidade | D21: Hora/mês | E21: 32
A22: 2.5 | B22: T3 | C22: Técnico Auxiliar - Hora Extra 50% - C/ Periculosidade | D22: Hora/mês | E22: 32
A23: 2.6 | B23: T3 | C23: Auxiliar - Hora Extra 50% - C/ Periculosidade | D23: Hora/mês | E23: 32
A24: 2.7 | B24: A11 | C24: Servente - Hora Extra 50% - C/ Periculosidade | D24: Hora/mês | E24: 180
A25: 3. | C25: MÃO DE OBRA - HORA EXTRA 100%
A26: 3.1 | B26: P1 | C26: Engenheiro Sênior - Hora Extra 100% - C/ Periculosidade | D26: Hora/mês | E26: 16
A27: 3.2 | B27: T2 | C27: Técnico Pleno - Hora Extra 100% - C/ Periculosidade | D27: Hora/mês | E27: 16
A28: 3.3 | B28: T2 | C28: Técnico Júnior- Hora Extra 100% | D28: Hora/mês | E28: 16
A29: 3.4 | B29: T2 | C29: Técnico Júnior- Hora Extra 100% - C/ Periculosidade | D29: Hora/mês | E29: 16
A30: 3.5 | B30: T3 | C30: Técnico Auxiliar - Hora Extra 100% - C/ Periculosidade | D30: Hora/mês | E30: 16
A31: 3.6 | B31: T3 | C31: Auxiliar - Hora Extra 100% - C/ Periculosidade | D31: Hora/mês | E31: 16
A32: 3.7 | B32: A11 | C32: Servente - Hora Extra 100% - C/ Periculosidade | D32: Hora/mês | E32: 120

Sheet Moveis_Equipamentos
C1: Ministério do Desenvolvimento Regional -MDR
C2: Companhia de Desenvolvimento dos Vales do São Francisco e do Parnaíba
C3: Gerência de Operação do PISF-Centro de Controle e Operação (AD / GOI / CCO)
A5: ='MC - VALORES ADICIONAIS'!A5:E6 -> TERMO DE REFERÊNCIA PARA CONTRATAÇÃO DOS RECURSOS NECESSÁRIOS À OPERAÇÃO E MANUTENÇÃO DAS INFRAESTRUTURAS DO EIXO LESTE DO PISF - PROJETO DE INTEGRAÇÃO DO SÃO FRANCISCO COM AS BACIAS HIDROGRÁFICAS DO NORDESTE SETENTRIONAL
A8: MOBILIÁRIO E EQUIPAMENTOS DE ESCRITÓRIO
A11: ITEM | B11: CÓDIGO | C11: DESCRIÇÃO | D11: UNIDADE | E11: QUANTIDADE | F11: VALOR (R$)
F12: UNITARIO | G12: TOTAL
A13: 1. | C13: MOBILIÁRIO E EQUIPAMENTOS DE ESCRITÓRIO
A14: 1.1 | B14: E209300236-EMBASA/BA | C14: Aluguel de impressora colorida-Laser com cartuchos-formatos A4 e A3 (inclusive suprimentos) | D14: un x mês | E14: 108
A15: 1.2 | B15: I8612-SEINFRA/CE | C15: Aluguel de Plotter (inclusive suprimentos) | D15: un x mês | E15: 12
A16: 1.3 | B16: I8610-SEINFRA/CE | C16: Servidor para backup - EQUIPAMENTO SIMILAR | D16: un x mês | E16: 12
A17: 1.4 | B17: I8610-SEINFRA/CE | C17: Desktop com software-tipo 1 (i7, 1T, 8GB, monitor 19", S.O. Windows 10 e Office última versão) - EQUIPAMENTO SIMILAR | D17: un x mês | E17: 210
A18: 1.5 | B18: I8610-SEINFRA/CE | C18: Notebook-tipo 1 (i7, 1T, 8GB, S.O. Windows 10 e Office última versão) - EQUIPAMENTO SIMILAR | D18: un x mês | E18: 216
A19: 1.6 | B19: COT_ANTE | C19: Kit Antena Digital 4K Externa Log 16 elementos Mastro 45cm e cabo coaxial 12m | D19: un x mês | E19: 6
A20: 1.7 | B20: I0123-SEINFRA/CE | C20: Armário de escritório | D20: un x mês | E20: 342
A21: 1.8 | B21: 73.72.07-SUDECAP/MG | C21: Bebedouro industrial (canteiro) | D21: un x mês | E21: 12
A22: 1.9 | B22: 11534-ORSE/SE | C22: Cadeira giratória, com braço, tipo executiva | D22: un x mês | E22: 702
A23: 1.10 | B23: 11543-ORSE | C23: Cadeira de plástico sem braço, cor branca | D23: un x mês | E23: 138
A24: 1.11 | B24: COT_CAM_FOTO | C24: Câmera fotográfica digital 20 mp 5x HD | D24: un x mês | E24: 12
A25: 1.12 | B25: COT - CAR - LIX | C25: Lixeira Carro Coletor 120L | D25: un x mês | E25: 24
A26: 1.13 | B26: COT_CESTO | C26: Cestos Telado de lixo 9,6L | D26: un x mês | E26: 48
A27: 1.14 | B27: 39555-SINAPI/PE | C27: Condicionador de ar 12.000 BTU | D27: un x mês | E27: 246
A28: 1.15 | B28: COT_GPS | C28: GPS com cabo e software (conforme especificação) | D28: un x mês | E28: 12
A29: 1.16 | B29: COT_MESA_REUN | C29: Mesa de reunião 10 lugares com 10 cadeiras | D29: un x mês | E29: 42
A30: 1.17 | B30: COT_MESA_PVC | C30: Mesa retangular em Polipropileno 119x75cm | D30: un x mês | E30: 36
A31: 1.18 | B31: COT_MESA_ESCR | C31: Mesas de escritório com gavetas (conforme especificação) | D31: un x mês | E31: 702
A32: 1.19 | B32: F030000293-EMBASA/BA | C32: Projetor multimídia (Datashow) | D32: un x mês | E32: 12
A33: 1.20 | B33: COT_RACK | C33: Rack para TV até 60 Polegadas 1 Porta | D33: un x mês | E33: 12
A34: 1.21 | B34: I0122-SEINFRA/CE | C34: Armário de cozinha completo | D34: un x mês | E34: 12
A35: 1.22 | B35: COT_MES_06 | C35: Conjunto de Mesa 1,40 com Tampo MDP com 6 cadeiras | D35: un x mês | E35: 12
A36: 1.23 | B36: 10231-ORSE/SE | C36: Fogão | D36: un x mês | E36: 12
A37: 1.24 | B37: 029028-IOPES | C37: Cilindro de Gás de Cozinha 45 kg | D37: un x mês | E37: 30
A38: 1.25 | B38: 4226-SINAPI/PE | C38: Gás de cozinha-GLP (kg) | D38: un x mês | E38: 1350
A39: 1.26 | B39: F020000716-EMBASA/BA | C39: Geladeira 280 litros | D39: un x mês | E39: 12
A40: 1.27 | B40: COT_MICROOND | C40: Forno Microondas 20L | D40: un x mês | E40: 12
A41: 1.28 | B41: COT_FAQUEI | C41: Faqueiro com 24 peças | D41: un x mês | E41: 204
A42: 1.29 | B42: COT_PRATO | C42: Pratos rasos redondo em cerâmica | D42: un x mês | E42: 468
A43: 1.30 | B43: COT_COPO | C43: Conjunto copos em vidro 350ml com 8 unidades | D43: un x mês | E43: 24
A44: 1.31 | B44: COT_TELEVISOR | C44: Smart Tv LED 32" | D44: un x mês | E44: 42
A45: 1.32 | B45: AP_JANTAR | C45: Aparelho de jantar para 06 pessoas | D45: un x mês | E45: 78
A46: 1.33 | B46: 11645-ORSE/SE | C46: Armário para vestiário, em aço, com 12 portas, com cadeado | D46: un x mês | E46: 12
A47: 1.34 | B47: COT_CHAP | C47: Chapa gás 65 cm para grelhar | D47: un x mês | E47: 12
A48: 1.35 | B48: 08600-ORSE/SE | C48: Coifa | D48: un x mês | E48: 12
A49: 1.36 | B49: COT_UTENS | C49: Conjunto de utensílios gadgets inox para cozinha | D49: un x mês | E49: 12
A50: 1.37 | B50: COT_FOGAO | C50: Fogão industrial 6 bocas 30x30 baixa pressão perfil 5 | D50: un x mês | E50: 12
A51: 1.38 | B51: COT_FORNO | C51: Forno elétrico 46L 1500W | D51: un x mês | E51: 12
A52: 1.39 | B52: F020000719-EMBASA/BA | C52: Freezer 246 l | D52: un x mês | E52: 12
A53: 1.40 | B53: 10232-ORSE/SE | C53: Geladeira industrial 300 litros | D53: un x mês | E53: 12
A54: 1.41 | B54: COT_PANEL | C54: Conjunto de panelas antiaderente com 7 peças | D54: un x mês | E54: 12
A55: 1.42 | B55: COT_LIQUID | C55: Liquidificadores industriais alta rotação 2L | D55: un x mês | E55: 12
A56: 1.43 | B56: COT_MAQ_LAVA_LOUCA | C56: Máquina de lavar louças industrial B.30 | D56: un x mês | E56: 12
A57: 1.44 | B57: COT_MAQ_LAVA_ROUPA | C57: Máquina de Lavar roupa 11kg | D57: un x mês | E57: 12
A58: 1.45 | B58: COT_MESA_BUF | C58: Carrinho Buffet Térmico Self Service Inox 8 cubas | D58: un x mês | E58: 12
A59: 1.46 | B59: COT_MESA_REFEIT | C59: Mesa de refeitório 10 lugares com cadeiras MDF branco de 25mm | D59: un x mês | E59: 30
A60: 1.47 | B60: COT_REFRESQUEIRA | C60: Refresqueira BBS2 Inox | D60: un x mês | E60: 12
A61: 1.48 | B61: COT_TABUA | C61: Tábuas para carnes 19x35x1,6cm | D61: un x mês | E61: 12
A62: 1.49 | B62: COT_CAMA_BOX | C62: Cama box conjugada solteiro | D62: un x mês | E62: 168
A63: 1.50 | B63: COT_GUARDA_ROUPA | C63: Guarda-Roupa solteiro 4 Portas | D63: un x mês | E63: 12
A64: 1.51 | B64: COT_ROUPA_CAMA | C64: Jogo de roupa de cama solteiro 100% Algodão | D64: un x mês | E64: 336
A65: 1.52 | B65: COT_ROUPA_BANHO | C65: Jogo de Roupa de banho 5 Peças | D65: un x mês | E65: 168
A66: 1.53 | B66: COT_SOFA | C66: Conjunto de sofá 2 e 3 lugares | D66: un x mês | E66: 12
A67: ="TOTAL-"&C13&"-(R$):" -> TOTAL-MOBILIÁRIO E EQUIPAMENTOS DE ESCRITÓRIO-(R$):
A70: ="RESUMO-"&A$8 -> RESUMO-MOBILIÁRIO E EQUIPAMENTOS DE ESCRITÓRIO
A71: ITEM | C71: DESCRIÇÃO | F71: VALOR TOTAL (R$)
A72: 1 | C72: =C13 -> MOBILIÁRIO E EQUIPAMENTOS DE ESCRITÓRIO
A73: ="TOTAL GERAL-"&A70&"- (R$):" -> TOTAL GERAL-RESUMO-MOBILIÁRIO E EQUIPAMENTOS DE ESCRITÓRIO- (R$):
A76: NOME DO INFORMANTE: | F76: QUALIFICAÇÃO:
A78: ASSINATURA: | F78: DATA:
A80: OBSERVAÇÃO:
A81: 1. Fonte de Preços: - Sistema Nacional de Pesquisa de Custos e Índices da Construção (Tabela SINAPI/PE). Data base: Abril/2022. - Empresa Baiana de Águas e Saneamento S.A. (Tabela de preços EMBASA). Data base: 10/2021. - Secretaria da Infraestrutura do Estado do Ceará (Tabela 027 SEINFRA/CE). Data base: 03/2021. - Sistema de Orçamento de Obras de Sergipe (ORSE). Data base: 03/2022. - Companhia Paulista de Obras e Serviços (Boletim Referencial de Custos CPOS). Data base: 07/2019 - Superintendência de Desenvolvimento da Capital-Prefeitura de Belo Horizonte (Tabela de Preços SUDECAP/MG). Data base: 02/2022. - Companhia de Águas e Esgotos do Rio Grande do Norte (Tabela de Preços CAERN/RN). Data base: 05/2019. - Sistemas e Consultoria de Custos (Base de Dados SBC/PE). Data base: 11/2019. - Instituto de Obras Públicas do Estado do Espírito Santo (Tabela REferencial de Preços IOPES/ES). Data base: 03/2022.
B98: Código | C98: Descrição | D98: Unid. | E98: R$/unit
B99: E209300236-EMBASA/BA | C99: Aluguel de impressora colorida-Laser com cartuchos-formatos A4 e A3 | D99: un x mês | E99: 225.08
B100: E209300236-EMBASA/BA | C100: Aluguel de impressora colorida-Laser com cartuchos-formatos A4 e A3 | D100: un x mês | E100: 225.08
B101: I8612-SEINFRA/CE | C101: Aluguel de Plotter | D101: un x mês | E101: 320 | F101: ok
B102: I2677-SEINFRA/CE | C102: Servidor para backup | D102: un | E102: 4685 | F102: ok
B103: 3671-ORSE/SE | C103: Desktop com software-tipo 1 (i7, 1T, 8GB, monitor 19", S.O. Windows 10 e Office última versão) | D103: un | E103: 2505.11 | F103: ok
B104: I6395-SEINFRA/CE | C104: Notebook-tipo 1 (i7, 1T, 8GB, S.O. Windows 10 e Office última versão) | D104: un | E104: 2583.64 | F104: ok
B105: P.17.000.042561-CPOS/SP | C105: Antena externa | D105: un | E105: 326.55
B106: AP_JANTAR | C106: Aparelho de jantar para 06 pessoas | D106: un | E106: 199.97
B107: I0122-SEINFRA/CE | C107: Armário de cozinha completo | D107: un | E107: 550.15 | F107: ok
B108: I0123-SEINFRA/CE | C108: Armário de escritório | D108: un | E108: 215.35 | F108: ok
B109: 11645-ORSE/SE | C109: Armário para vestiário, em aço, com 12 portas, com cadeado | D109: un | E109: 1842.89 | F109: ok
B110: 73.72.07-SUDECAP/MG | C110: Bebedouro industrial (canteiro) | D110: un | E110: 1488 | F110: ok
B111: 11534-ORSE/SE | C111: Cadeira giratória, com braço, tipo executiva | D111: un | E111: 280 | F111: ok
B112: 11543-ORSE | C112: Cadeira de plástico sem braço, cor branca | D112: un | E112: 21 | F112: ok
B113: COT_CAMA_BOX | C113: Cama box solteiro | D113: un | E113: 279.3
B114: COT_CAM_FOTO | C114: Câmera fotográfica digital | D114: un | E114: 1835.21 | G114: Esclarescimento 05
B115: DV_16-CAERN/RN | C115: Carrinhos de lixo | D115: un | E115: 429.02
B116: 040117-SBC/PE | C116: Cestos de lixo | D116: un | E116: 96
B117: COT_CHAP | C117: Chapa gás para grelhar | D117: un | E117: 674.19
B118: 08600-ORSE/SE | C118: Coifa | D118: un | E118: 1898.17 | F118: ok | G118: 2020-06-01
B119: 39555-SINAPI/PE | C119: Condicionador de ar 12.000 BTU | D119: un | E119: 1719.34
B120: COT_COPO | C120: Conjunto copos em vidro com 8 unidades | D120: un | E120: 31.32
B121: COT_MES_06 | C121: Conjunto de Mesa com 06 lugares (para cozinha) | D121: un | E121: 550.63
B122: COT_PANEL | C122: Conjunto de panelas com 7 peças | D122: un | E122: 235.96
B123: COT_SOFA | C123: Conjunto de sofá 2 e 3 lugares | D123: un | E123: 495.67
B124: COT_UTENS | C124: Conjunto de utensílios para cozinha | D124: conj. | E124: 55.15
B125: COT_FAQUEI | C125: Faqueiro com 24 peças | D125: un | E125: 45.61
B126: 10231-ORSE/SE | C126: Fogão | D126: un | E126: 605.19
B127: 78052-SIURB/SP | C127: Fogão industrial 6 bocas | D127: un | E127: 1797.94
B128: COT_FORNO | C128: Forno elétrico | D128: un | E128: 1670.61
B129: COT_MICROOND | C129: Forno Microondas | D129: un | E129: 469
B130: F020000719-EMBASA/BA | C130: Freezer 246 l | D130: un | E130: 1183.99
B131: 029028-IOPES | C131: Cilindro de Gás de Cozinha 45 kg | D131: un | E131: 566.67 | F131: ok
B132: 4226-SINAPI/PE | C132: Gás de cozinha-GLP | D132: kg | E132: 5.9
B133: F020000716-EMBASA/BA | C133: Geladeira 280 litros | D133: un | E133: 789.33
B134: 10232-ORSE/SE | C134: Geladeira industrial 300 litros | D134: un | E134: 1652.46 | F134: ok | G134: 2020-06-01
B135: COT_GPS | C135: GPS com cabo e software (conforme especificação) | D135: un | E135: 321.97
B136: COT_GUARDA_ROUPA | C136: Guarda-Roupa 4 Portas | D136: un | E136: 287.26
B137: COT_ROUPA_BANHO | C137: Jogo de Roupa de banho 5 Peças | D137: un | E137: 96.63
B138: COT_ROUPA_CAMA | C138: Jogo de roupa de cama solteiro | D138: un | E138: 147.63
B139: COT_LIQUID | C139: Liquidificadores industriais | D139: un | E139: 616.17
B140: COT_MAQ_LAVA_LOUCA | C140: Máquina de lavar louças industrial | D140: um | E140: 1050
B141: COT_MAQ_LAVA_ROUPA | C141: Máquina de Lavar roupa 11kg | D141: un | E141: 1450.07
B142: COT_MESA_BUF | C142: Mesa buffets | D142: un | E142: 1577.7
B143: COT_MESA_REFEIT | C143: Mesa de refeitório 10 lugares com cadeiras | D143: un | E143: 1280.48
B144: COT_MESA_REUN | C144: Mesa de reunião 10 lugares com 10 cadeiras | D144: un | E144: 3669.74
B145: COT_MESA_PVC | C145: Mesa retangular em PVC | D145: un | E145: 188
B146: COT_MESA_ESCR | C146: Mesas de escritório com gavetas (conforme especificação) | D146: un | E146: 390.96
B147: COT_PRATO | C147: Pratos rasos | D147: un | E147: 6.73
B148: F030000293-EMBASA/BA | C148: Projetor multimídia (Datashow) | D148: un | E148: 1587.81
B149: COT_RACK | C149: Rack (sala) | D149: un | E149: 210.3
B150: COT_REFRESQUEIRA | C150: Refresqueira | D150: un | E150: 1606.88
B151: COT_TABUA | C151: Tábuas para carnes | D151: un | E151: 91.6
B152: COT_TELEVISOR | C152: Televisor LCD com 27,5" | D152: un | E152: 913.48
B153: 01885-ORSE/SE | C153: Prateleira de madeira revestida com fórmica | D153: m | E153: 64.98

Sheet CPU_Móveis e Equipamentos
C1: Ministério do Desenvolvimento Regional -MDR
C2: Companhia de Desenvolvimento dos Vales do São Francisco e do Parnaíba
C3: Gerência de Operação do PISF-Centro de Controle e Operação (AD / GOI / CCO)
A5: =Moveis_Equipamentos!A5 -> TERMO DE REFERÊNCIA PARA CONTRATAÇÃO DOS RECURSOS NECESSÁRIOS À OPERAÇÃO E MANUTENÇÃO DAS INFRAESTRUTURAS DO EIXO LESTE DO PISF - PROJETO DE INTEGRAÇÃO DO SÃO FRANCISCO COM AS BACIAS HIDROGRÁFICAS DO NORDESTE SETENTRIONAL
A8: COMPOSIÇÃO DE PREÇO - MÓVEIS E EQUIPAMENTOS
A10: VALOR DE AQUISIÇÃO (*Exceto itens : 1.1, 1.2, 1.3, 1.4, 1.5 e 1.25) | G10: VALOR DE LOCAÇÃO
A12: ITEM | B12: CÓDIGO | C12: DESCRIÇÃO | D12: UNIDADE | E12: QUANTIDADE | F12: VALOR (R$) | G12: UNIDADE | H12: VALOR (R$)
F13: UNITARIO | H13: UNITARIO
A14: 1.
A15: 1.1 | B15: E209300236-EMBASA/BA | C15: Aluguel de impressora colorida-Laser com cartuchos-formatos A4 e A3 (inclusive suprimentos) | D15: un x mês | E15: =Moveis_Equipamentos!E14 -> 108 | G15: un x mês | H15: =IF(F15="","",F15) -> 
A16: 1.2 | B16: I8612-SEINFRA/CE | C16: Aluguel de Plotter (inclusive suprimentos) | D16: un x mês | E16: =Moveis_Equipamentos!E15 -> 12 | G16: un x mês | H16: =IF(F16="","",F16) -> 
A17: 1.3 | B17: I8610-SEINFRA/CE | C17: Servidor para backup | D17: un x mês | E17: =Moveis_Equipamentos!E16 -> 12 | G17: un x mês | H17: =IF(F17="","",F17) -> 
A18: 1.4 | B18: I8610-SEINFRA/CE | C18: Desktop com software-tipo 1 (i7, 1T, 8GB, monitor 19", S.O. Windows 10 e Office última versão) | D18: un x mês | E18: =Moveis_Equipamentos!E17 -> 210 | G18: un x mês | H18: =IF(F18="","",F18) -> 
A19: 1.5 | B19: I8610-SEINFRA/CE | C19: Notebook-tipo 1 (i7, 1T, 8GB, S.O. Windows 10 e Office última versão) | D19: un x mês | E19: =Moveis_Equipamentos!E18 -> 216 | G19: un x mês | H19: =IF(F19="","",F19) -> 
A20: 1.6 | B20: COT_ANTE | C20: Kit Antena Digital 4K Externa Log 16 elementos Mastro 45cm e cabo coaxial 12m | D20: un | E20: =Moveis_Equipamentos!E19/12 -> 0.5 | G20: un x mês | H20: =IF(F20="","",((F20*$C$82))/'MC - VALORES ADICIONAIS'!$B$170) -> 
A21: 1.7 | B21: I0123-SEINFRA/CE | C21: Armário de escritório | D21: un | E21: =Moveis_Equipamentos!E20/12 -> 28.5 | G21: un x mês | H21: =IF(F21="","",((F21*$C$82))/'MC - VALORES ADICIONAIS'!$B$170) -> 
A22: 1.8 | B22: 73.72.07-SUDECAP/MG | C22: Bebedouro industrial (canteiro) | D22: un | E22: =Moveis_Equipamentos!E21/12 -> 1 | G22: un x mês | H22: =IF(F22="","",((F22*$C$82))/'MC - VALORES ADICIONAIS'!$B$170) -> 
A23: 1.9 | B23: 11534-ORSE/SE | C23: Cadeira giratória, com braço, tipo executiva | D23: un | E23: =Moveis_Equipamentos!E22/12 -> 58.5 | G23: un x mês | H23: =IF(F23="","",((F23*$C$82))/'MC - VALORES ADICIONAIS'!$B$170) -> 
A24: 1.10 | B24: 11543-ORSE | C24: Cadeira de plástico sem braço, cor branca | D24: un | E24: =Moveis_Equipamentos!E23/12 -> 11.5 | G24: un x mês | H24: =IF(F24="","",((F24*$C$82))/'MC - VALORES ADICIONAIS'!$B$170) -> 
A25: 1.11 | B25: COT_CAM_FOTO | C25: Câmera fotográfica digital 20 mp 5x HD | D25: un | E25: =Moveis_Equipamentos!E24/12 -> 1 | G25: un x mês | H25: =IF(F25="","",((F25*$C$82))/'MC - VALORES ADICIONAIS'!$B$170) -> 
A26: 1.12 | B26: COT - CAR - LIX | C26: Lixeira Carro Coletor 120L | D26: un | E26: =Moveis_Equipamentos!E25/12 -> 2 | G26: un x mês | H26: =IF(F26="","",((F26*$C$82))/'MC - VALORES ADICIONAIS'!$B$170) -> 
A27: 1.13 | B27: COT_CESTO | C27: Cestos Telado de lixo 9,6L | D27: un | E27: =Moveis_Equipamentos!E26/12 -> 4 | G27: un x mês | H27: =IF(F27="","",((F27*$C$82))/'MC - VALORES ADICIONAIS'!$B$170) -> 
A28: 1.14 | B28: 39555-SINAPI/PE | C28: Condicionador de ar 12.000 BTU | D28: un | E28: =Moveis_Equipamentos!E27/12 -> 20.5 | G28: un x mês | H28: =IF(F28="","",((F28*$C$82))/'MC - VALORES ADICIONAIS'!$B$170) -> 
A29: 1.15 | B29: COT_GPS | C29: GPS com cabo e software (conforme especificação) | D29: un | E29: =Moveis_Equipamentos!E28/12 -> 1 | G29: un x mês | H29: =IF(F29="","",((F29*$C$82))/'MC - VALORES ADICIONAIS'!$B$170) -> 
A30: 1.16 | B30: COT_MESA_REUN | C30: Mesa de reunião 10 lugares com 10 cadeiras | D30: un | E30: =Moveis_Equipamentos!E29/12 -> 3.5 | G30: un x mês | H30: =IF(F30="","",((F30*$C$82))/'MC - VALORES ADICIONAIS'!$B$170) -> 
A31: 1.17 | B31: COT_MESA_PVC | C31: Mesa retangular em Polipropileno 119x75cm | D31: un | E31: =Moveis_Equipamentos!E30/12 -> 3 | G31: un x mês | H31: =IF(F31="","",((F31*$C$82))/'MC - VALORES ADICIONAIS'!$B$170) -> 
A32: 1.18 | B32: COT_MESA_ESCR | C32: Mesas de escritório com gavetas (conforme especificação) | D32: un | E32: =Moveis_Equipamentos!E31/12 -> 58.5 | G32: un x mês | H32: =IF(F32="","",((F32*$C$82))/'MC - VALORES ADICIONAIS'!$B$170) -> 
A33: 1.19 | B33: F030000293-EMBASA/BA | C33: Projetor multimídia (Datashow) | D33: un | E33: =Moveis_Equipamentos!E32/12 -> 1 | G33: un x mês | H33: =IF(F33="","",((F33*$C$82))/'MC - VALORES ADICIONAIS'!$B$170) -> 
A34: 1.20 | B34: COT_RACK | C34: Rack para TV até 60 Polegadas 1 Porta | D34: un | E34: =Moveis_Equipamentos!E33/12 -> 1 | G34: un x mês | H34: =IF(F34="","",((F34*$C$82))/'MC - VALORES ADICIONAIS'!$B$170) -> 
A35: 1.21 | B35: I0122-SEINFRA/CE | C35: Armário de cozinha completo | D35: un | E35: =Moveis_Equipamentos!E34/12 -> 1 | G35: un x mês | H35: =IF(F35="","",((F35*$C$82))/'MC - VALORES ADICIONAIS'!$B$170) -> 
A36: 1.22 | B36: COT_MES_06 | C36: Conjunto de Mesa 1,40 com Tampo MDP com 6 cadeiras | D36: un | E36: =Moveis_Equipamentos!E35/12 -> 1 | G36: un x mês | H36: =IF(F36="","",((F36*$C$82))/'MC - VALORES ADICIONAIS'!$B$170) -> 
A37: 1.23 | B37: 10231-ORSE/SE | C37: Fogão | D37: un | E37: =Moveis_Equipamentos!E36/12 -> 1 | G37: un x mês | H37: =IF(F37="","",((F37*$C$82))/'MC - VALORES ADICIONAIS'!$B$170) -> 
A38: 1.24 | B38: 029028-IOPES | C38: Cilindro de Gás de Cozinha 45 kg | D38: un | E38: =Moveis_Equipamentos!E37/12 -> 2.5 | G38: un x mês | H38: =IF(F38="","",((F38*$C$82))/'MC - VALORES ADICIONAIS'!$B$170) -> 
A39: 1.25 | B39: 4226-SINAPI/PE | C39: Gás de cozinha-GLP (kg) | D39: kg | E39: =Moveis_Equipamentos!E38 -> 1350 | G39: un x mês | H39: =IF(F39="","",F39) -> 
A40: 1.26 | B40: F020000716-EMBASA/BA | C40: Geladeira 280 litros | D40: un | E40: =Moveis_Equipamentos!E39/12 -> 1 | G40: un x mês | H40: =IF(F40="","",((F40*$C$82))/'MC - VALORES ADICIONAIS'!$B$170) -> 
A41: 1.27 | B41: COT_MICROOND | C41: Forno Microondas 20L | D41: un | E41: =Moveis_Equipamentos!E40/12 -> 1 | G41: un x mês | H41: =IF(F41="","",((F41*$C$82))/'MC - VALORES ADICIONAIS'!$B$170) -> 
A42: 1.28 | B42: COT_FAQUEI | C42: Faqueiro com 24 peças | D42: un | E42: =Moveis_Equipamentos!E41/12 -> 17 | G42: un x mês | H42: =IF(F42="","",((F42*$C$82))/'MC - VALORES ADICIONAIS'!$B$170) -> 
A43: 1.29 | B43: COT_PRATO | C43: Pratos rasos redondo em cerâmica | D43: un | E43: =Moveis_Equipamentos!E42/12 -> 39 | G43: un x mês | H43: =IF(F43="","",((F43*$C$82))/'MC - VALORES ADICIONAIS'!$B$170) -> 
A44: 1.30 | B44: COT_COPO | C44: Conjunto copos em vidro 350ml com 8 unidades | D44: un | E44: =Moveis_Equipamentos!E43/12 -> 2 | G44: un x mês | H44: =IF(F44="","",((F44*$C$82))/'MC - VALORES ADICIONAIS'!$B$170) -> 
A45: 1.31 | B45: COT_TELEVISOR | C45: Smart Tv LED 32" | D45: un | E45: =Moveis_Equipamentos!E44/12 -> 3.5 | G45: un x mês | H45: =IF(F45="","",((F45*$C$82))/'MC - VALORES ADICIONAIS'!$B$170) -> 
A46: 1.32 | B46: AP_JANTAR | C46: Aparelho de jantar para 06 pessoas | D46: un | E46: =Moveis_Equipamentos!E45/12 -> 6.5 | G46: un x mês | H46: =IF(F46="","",((F46*$C$82))/'MC - VALORES ADICIONAIS'!$B$170) -> 
A47: 1.33 | B47: 11645-ORSE/SE | C47: Armário para vestiário, em aço, com 12 portas, com cadeado | D47: un | E47: =Moveis_Equipamentos!E46/12 -> 1 | G47: un x mês | H47: =IF(F47="","",((F47*$C$82))/'MC - VALORES ADICIONAIS'!$B$170) -> 
A48: 1.34 | B48: COT_CHAP | C48: Chapa gás 65 cm para grelhar | D48: un | E48: =Moveis_Equipamentos!E47/12 -> 1 | G48: un x mês | H48: =IF(F48="","",((F48*$C$82))/'MC - VALORES ADICIONAIS'!$B$170) -> 
A49: 1.35 | B49: 08600-ORSE/SE | C49: Coifa | D49: un | E49: =Moveis_Equipamentos!E48/12 -> 1 | G49: un x mês | H49: =IF(F49="","",((F49*$C$82))/'MC - VALORES ADICIONAIS'!$B$170) -> 
A50: 1.36 | B50: COT_UTENS | C50: Conjunto de utensílios gadgets inox para cozinha | D50: conj. | E50: =Moveis_Equipamentos!E49/12 -> 1 | G50: un x mês | H50: =IF(F50="","",((F50*$C$82))/'MC - VALORES ADICIONAIS'!$B$170) -> 
A51: 1.37 | B51: COT_FOGAO | C51: Fogão industrial 6 bocas 30x30 baixa pressão perfil 5 | D51: un | E51: =Moveis_Equipamentos!E50/12 -> 1 | G51: un x mês | H51: =IF(F51="","",((F51*$C$82))/'MC - VALORES ADICIONAIS'!$B$170) -> 
A52: 1.38 | B52: COT_FORNO | C52: Forno elétrico 46L 1500W | D52: un | E52: =Moveis_Equipamentos!E51/12 -> 1 | G52: un x mês | H52: =IF(F52="","",((F52*$C$82))/'MC - VALORES ADICIONAIS'!$B$170) -> 
A53: 1.39 | B53: F020000719-EMBASA/BA | C53: Freezer 246 l | D53: un | E53: =Moveis_Equipamentos!E52/12 -> 1 | G53: un x mês | H53: =IF(F53="","",((F53*$C$82))/'MC - VALORES ADICIONAIS'!$B$170) -> 
A54: 1.40 | B54: 10232-ORSE/SE | C54: Geladeira industrial 300 litros | D54: un | E54: =Moveis_Equipamentos!E53/12 -> 1 | G54: un x mês | H54: =IF(F54="","",((F54*$C$82))/'MC - VALORES ADICIONAIS'!$B$170) -> 
A55: 1.41 | B55: COT_PANEL | C55: Conjunto de panelas antiaderente com 7 peças | D55: un | E55: =Moveis_Equipamentos!E54/12 -> 1 | G55: un x mês | H55: =IF(F55="","",((F55*$C$82))/'MC - VALORES ADICIONAIS'!$B$170) -> 
A56: 1.42 | B56: COT_LIQUID | C56: Liquidificadores industriais alta rotação 2L | D56: un | E56: =Moveis_Equipamentos!E55/12 -> 1 | G56: un x mês | H56: =IF(F56="","",((F56*$C$82))/'MC - VALORES ADICIONAIS'!$B$170) -> 
A57: 1.43 | B57: COT_MAQ_LAVA_LOUCA | C57: Máquina de lavar louças industrial B.30 | D57: un | E57: =Moveis_Equipamentos!E56/12 -> 1 | G57: un x mês | H57: =IF(F57="","",((F57*$C$82))/'MC - VALORES ADICIONAIS'!$B$170) -> 
A58: 1.44 | B58: COT_MAQ_LAVA_ROUPA | C58: Máquina de Lavar roupa 11kg | D58: un | E58: =Moveis_Equipamentos!E57/12 -> 1 | G58: un x mês | H58: =IF(F58="","",((F58*$C$82))/'MC - VALORES ADICIONAIS'!$B$170) -> 
A59: 1.45 | B59: COT_MESA_BUF | C59: Carrinho Buffet Térmico Self Service Inox 8 cubas | D59: un | E59: =Moveis_Equipamentos!E58/12 -> 1 | G59: un x mês | H59: =IF(F59="","",((F59*$C$82))/'MC - VALORES ADICIONAIS'!$B$170) -> 
A60: 1.46 | B60: COT_MESA_REFEIT | C60: Mesa de refeitório 10 lugares com cadeiras MDF branco de 25mm | D60: un | E60: =Moveis_Equipamentos!E59/12 -> 2.5 | G60: un x mês | H60: =IF(F60="","",((F60*$C$82))/'MC - VALORES ADICIONAIS'!$B$170) -> 
A61: 1.47 | B61: COT_REFRESQUEIRA | C61: Refresqueira BBS2 Inox | D61: un | E61: =Moveis_Equipamentos!E60/12 -> 1 | G61: un x mês | H61: =IF(F61="","",((F61*$C$82))/'MC - VALORES ADICIONAIS'!$B$170) -> 
A62: 1.48 | B62: COT_TABUA | C62: Tábuas para carnes 19x35x1,6cm | D62: un | E62: =Moveis_Equipamentos!E61/12 -> 1 | G62: un x mês | H62: =IF(F62="","",((F62*$C$82))/'MC - VALORES ADICIONAIS'!$B$170) -> 
A63: 1.49 | B63: COT_CAMA_BOX | C63: Cama box conjugada solteiro | D63: un | E63: =Moveis_Equipamentos!E62/12 -> 14 | G63: un x mês | H63: =IF(F63="","",((F63*$C$82))/'MC - VALORES ADICIONAIS'!$B$170) -> 
A64: 1.50 | B64: COT_GUARDA_ROUPA | C64: Guarda-Roupa solteiro 4 Portas | D64: un | E64: =Moveis_Equipamentos!E63/12 -> 1 | G64: un x mês | H64: =IF(F64="","",((F64*$C$82))/'MC - VALORES ADICIONAIS'!$B$170) -> 
A65: 1.51 | B65: COT_ROUPA_CAMA | C65: Jogo de roupa de cama solteiro 100% Algodão | D65: un | E65: =Moveis_Equipamentos!E64/12 -> 28 | G65: un x mês | H65: =IF(F65="","",((F65*$C$82))/'MC - VALORES ADICIONAIS'!$B$170) -> 
A66: 1.52 | B66: COT_ROUPA_BANHO | C66: Jogo de Roupa de banho 5 Peças | D66: un | E66: =Moveis_Equipamentos!E65/12 -> 14 | G66: un x mês | H66: =IF(F66="","",((F66*$C$82))/'MC - VALORES ADICIONAIS'!$B$170) -> 
A67: 1.53 | B67: COT_SOFA | C67: Conjunto de sofá 2 e 3 lugares | D67: un | E67: =Moveis_Equipamentos!E66/12 -> 1 | G67: un x mês | H67: =IF(F67="","",((F67*$C$82))/'MC - VALORES ADICIONAIS'!$B$170) -> 
A68: Observações | J68: =SUM(H15:H67) -> 0
J69: =(J68/2906.02)-1 -> -1
A70: art. 305 do RIR/1999 esclarece que: "Art. 305. Poderá ser computada, como custo ou encargo, em cada período de apuração, a importância correspondente à diminuição do valor dos bens do ativo resultante do desgaste pelo uso, ação da natureza e obsolescência normal (Lei nº 4.506, de 1964, art. 57)."
A75: Instrução Normativa da Secretaria da Receita Federal (SRF)
A76: Da | B76: Depreciação | C76: Da = (VN - VR) / N
A77: VN | B77: Valor Novo
A78: VR | B78: Valor Residual
A79: N | B79: Vída útil (anos)
A81: DADOS - MÓVEIS UTENSÍLIOS | D81: CONSIDERAÇÕES
A82: Depreciação anual (%) | C82: 0.4 | D82: *Taxas adotadas dos itens 1.6 até 1.54 (exceto o item 1.25, visto que o valor adotado para gás de cozinha já está com a unidade "kg")
A83: Vida últil (anos) | C83: 2.5
A87: 1. Valor unitário final = (Depreciação anual) / (Tempo de contrato)
A88: 2. A vida útil adotada, leva em consideração o uso serevero dos itens listados, visto que são utilizados em canteiros de obras e frequentemente são deslocados entre canteiros e postos de serviço em campo.

Sheet Mobilizacao_Desmobilizacao
C1: Ministério do Desenvolvimento Regional - MDR
C2: Companhia de Desenvolvimento dos Vales do São Francisco e do Parnaíba
C3: Gerência de Operação do PISF - Centro de Controle e Operação (AD / GOI / CCO)
A5: =Moveis_Equipamentos!A5 -> TERMO DE REFERÊNCIA PARA CONTRATAÇÃO DOS RECURSOS NECESSÁRIOS À OPERAÇÃO E MANUTENÇÃO DAS INFRAESTRUTURAS DO EIXO LESTE DO PISF - PROJETO DE INTEGRAÇÃO DO SÃO FRANCISCO COM AS BACIAS HIDROGRÁFICAS DO NORDESTE SETENTRIONAL
A8: MOBILIZAÇÃO E DESMOBILIZAÇAO
A11: ITEM | B11: CÓDIGO | C11: DESCRIÇÃO | D11: UNIDADE | E11: QUANTIDADE | F11: VALOR (R$)
F12: UNITARIO | G12: TOTAL
C13: =A8 -> MOBILIZAÇÃO E DESMOBILIZAÇAO
A15: 1. | C15: MOBILIZAÇÃO (Máquinas, Equipamentos, Ferramentas, Instrumentos, Materiais, Mobiliário)
A16: 1.1 | C16: Mobilização da Equipe - Canteiro apoio geral (Floresta/PE) | D16: un | E16: 1 | F16: =IF(CPU_MOBILIZAÇAO!I98=0,"",CPU_MOBILIZAÇAO!I98) ->  | G16: =IF(F16="","",ROUND(E16*F16,2)) -> 
A17: 1.2 | C17: Mobilização da Equipe - Canteiro central (Sertânia/PE) | D17: un | E17: 1 | F17: =IF(CPU_MOBILIZAÇAO!I57=0,"",CPU_MOBILIZAÇAO!I57) ->  | G17: =IF(F17="","",ROUND(E17*F17,2)) -> 
A18: TOTAL - MOBILIZAÇÃO DA EQUIPE (R$): | G18: =SUBTOTAL(9,G16:G17) -> 0
A20: 2. | C20: DESMOBILIZAÇÃO (Máquinas, Equip., Ferramentas, Instrumentos, Materiais, Mobiliário)
A21: 2.1 | C21: Desmobilização da Equipe - Canteiro apoio geral (Floresta/PE) | D21: un | E21: 1 | F21: =F16 ->  | G21: =IF(F21="","",ROUND(E21*F21,2)) -> 
A22: 2.2 | C22: Desmobilização da Equipe - Canteiro central (Sertânia/PE) | D22: un | E22: 1 | F22: =F17 ->  | G22: =IF(F22="","",ROUND(E22*F22,2)) -> 
A23: TOTAL - DESMOBILIZAÇÃO DA EQUIPE (R$): | G23: =SUBTOTAL(9,G21:G22) -> 0
A25: ="TOTAL - "&C13&" - (R$):" -> TOTAL - MOBILIZAÇÃO E DESMOBILIZAÇAO - (R$): | G25: =SUBTOTAL(9,G15:G24) -> 0
A28: ="RESUMO - "&A$8 -> RESUMO - MOBILIZAÇÃO E DESMOBILIZAÇAO
A29: ITEM | C29: DESCRIÇÃO | F29: VALOR TOTAL (R$)
A30: 01 | C30: =C15 -> MOBILIZAÇÃO (Máquinas, Equipamentos, Ferramentas, Instrumentos, Materiais, Mobiliário) | F30: =G18 -> 0
A31: 02 | C31: =C20 -> DESMOBILIZAÇÃO (Máquinas, Equip., Ferramentas, Instrumentos, Materiais, Mobiliário) | F31: =G23 -> 0
A32: ="TOTAL GERAL - "&A$8&" - (R$):" -> TOTAL GERAL - MOBILIZAÇÃO E DESMOBILIZAÇAO - (R$): | F32: =SUM(F30:G31) -> 0 | I32: 230168.14
I33: =Mob_Desmob/I32 -> 0
A35: NOME DO INFORMANTE: | F35: QUALIFICAÇÃO:
A37: ASSINATURA: | F37: DATA:
A39: OBSERVAÇÃO:
A40: 1. Considerou-se na Mobilizaçao: Transporte dos materiais e equipamentos / Instalação de Pessoal, entre outras despesas.
A41: 2. Considerou-se na Desmobilização: Retirada de máquinas e equipamentos / Demolições e/ou Recuperação de Canteiro, entre outras despesas.
A42: 3. Mobilização e Desmobilização do Quadro de Pessoal: Será realizada com os veículos previstos no contrato.

Sheet CPU_MOBILIZAÇAO
A1: Ministério do Desenvolvimento Regional -MDR
A2: Companhia de Desenvolvimento dos Vales do São Francisco e do Parnaíba
A3: Gerência de Operação do PISF-Centro de Controle e Operação (AD / GOI / CCO)
A5: SERVIÇOS DE OPERAÇÃO E MANUTENÇÃO DAS INFRAESTRUTURAS DO EIXO LESTE DO PROJETO DE INTEGRAÇÃO DO RIO SÃO FRANCISCO COM AS BACIAS HIDROGRÁFICAS DO NORDESTE SETENTRIONAL – PISF
A9: COMPOSIÇÃO DE PREÇO UNITÁRIO-MOBILIZAÇÃO
A10: Local / Canteiros: EIXO LESTE-Canteiro Central (Sertânia/PE)
A12: Distância entre Recife/PE-Canteiro Central (km): | D12: =Canteiros!H18 -> 320 | E12: Veloc. Média (km/h): | I12: 60
A14: EQUIPAMENTO
A15: CÓDIGO | B15: DESCRIÇÃO | C15: MEIO DE LOCOMOÇÃO | D15: QUANTIDADE | E15: FU | F15: K | G15: DMT (km) | H15: CHP (R$) | I15: CUSTO TOTAL (R$)
A16: E9592-DNIT/PE | B16: CAMINHÃO TRUCADO (C/ TERCEIRO EIXO) ELETRÔNICO - POTÊNCIA 231CV - PBT = 22000KG - DIST. ENTRE EIXOS 5170 MM - INCLUI CARROCERIA FIXA ABERTA DE MADEIRA | C16: Rodando | D16: =(Equipamentos!E85/Equipamentos!E85)*3 -> 3 | E16: 1 | F16: 1 | G16: =$D$12 -> 320 | H16: =IF(VLOOKUP(A16,A$117:C$125,3,FALSE)="","",VLOOKUP(A16,A$117:C$125,3,FALSE)) ->  | I16: =IF(H16="","",ROUND(D16*(((G16*F16*E16)/$I$12)*H16),2)) ->  | M16: CAMINHÃO TRUCADO (C/ TERCEIRO EIXO) ELETRÔNICO - POTÊNCIA 231CV - PBT = 22000KG - DIST. ENTRE EIXOS 5170 MM - INCLUI CARROCERIA FIXA ABERTA DE MADEIRA
A17: E9579-DNIT/PE | B17: CAMINHÃO BASCULANTE 10 M3, TRUCADO CABINE SIMPLES, PESO BRUTO TOTAL 23.000 KG, CARGA ÚTIL MÁXIMA 15.935 KG, DISTÂNCIA ENTRE EIXOS 4,80 M, POTÊNCIA 230 CV INCLUSIVE CAÇAMBA METÁLICA | C17: Rodando | D17: =(Equipamentos!E84/Equipamentos!E84)*3 -> 3 | E17: 1 | F17: 1 | G17: =$D$12 -> 320 | H17: =IF(VLOOKUP(A17,A$117:C$125,3,FALSE)="","",VLOOKUP(A17,A$117:C$125,3,FALSE)) ->  | I17: =IF(H17="","",ROUND(D17*(((G17*F17*E17)/$I$12)*H17),2)) ->  | M17: CAMINHÃO BASCULANTE 10 M3, TRUCADO CABINE SIMPLES, PESO BRUTO TOTAL 23.000 KG, CARGA ÚTIL MÁXIMA 15.935 KG, DISTÂNCIA ENTRE EIXOS 4,80 M, POTÊNCIA 230 CV INCLUSIVE CAÇAMBA METÁLICA
A18: E9509-DNIT/PE | B18: Caminhão Comboio para lubrificação e abastecimento (melosa), convencional totalmente equipado (Capacidade de Combustível: 5.000 l, Capacidade de Lubrificante: 500 l, Capacidade de Graxa: 200 kg, Capacidade de Água: 300 l, Recipiente para Óleo Usado: 200 l, Compressor de Ar e Bomba- d’agua) | C18: Rodando | D18: =Equipamentos!E86/Equipamentos!E86 -> 1 | E18: 1 | F18: 1 | G18: 320 | M18: Caminhão guindauto com capacidade de carga até 10,0 t
A19: E9686-DNIT/PE | B19: Caminhão guindauto com capacidade de carga até 10,0 t | C19: Rodando | D19: =Equipamentos!E87/Equipamentos!E87 -> 1 | E19: 1 | F19: 1 | G19: 320 | M19: Caminhão tanque, capacidade de volume 6000 l e potência 136,0 hp
A20: E9605-DNIT/PE | B20: Caminhão tanque, capacidade de volume 6000 l e potência 136,0 hp | C20: Rodando | D20: =(Equipamentos!E88/Equipamentos!E88)*4 -> 4 | E20: 1 | F20: 1 | G20: 320 | M20: Carreta Reboque (para embarcação)
A21: A9353-DNIT/PE | B21: Carreta Reboque (para embarcação) | C21: Rodando | D21: =('SEGURANÇA DE BARRAGENS'!E37/'SEGURANÇA DE BARRAGENS'!E37)*2 -> 2 | E21: 1 | F21: 1 | G21: 320 | M21: Minicarregadeira sobre rodas, potência líquida de 47 hp, capacidade nominal de operação de 646 kg
A22: E9666-DNIT/PE | B22: ESCAVADEIRA HIDRAULICA SOBRE ESTEIRAS CACAMBA 0,40 A 1,20 M3, PESO OPERACIONAL 21,19 T, POTENCIA LIQUIDA 173 HP | C22: Carreta | D22: =Equipamentos!E94/Equipamentos!E94+'SEGURANÇA DE BARRAGENS'!E32/'SEGURANÇA DE BARRAGENS'!E32 -> 2 | E22: 1 | F22: 2 | G22: 320 | M22: Retroescavadeira sobre rodas com carregadeira, tração 4x4, potência líquida 72 hp, peso operacional mínimo de 7.140 kg, capacidade mínima da carregadeira de 0,79 m³ e da retroescavadeira mínima de 0,18 m³, profundidade de escavação máxima de 4,50 m.
A23: E9686-DNIT/PE | B23: =Equipamentos!C95 -> Grupo gerador de 13/14 KVA, 220v, trifásico, silenciado, com 100 metros de cabos e 01 QTA. | C23: Guindauto | D23: =Equipamentos!E95/Equipamentos!E95 -> 1 | E23: 1 | F23: 2 | G23: 320 | M23: Trator de esteiras, potência de 150 hp, peso operacional de 16,7 t, com roda motriz elevada e lâmina com contato de 3,18 m³.
A24: E9686-DNIT/PE | B24: =Equipamentos!C96 -> Grupo gerador de 145/160 kVA | C24: Guindauto | D24: =Equipamentos!E96/Equipamentos!E96 -> 1 | E24: 1 | F24: 2 | G24: 320 | M24: Barco tipo Alumínio, 7 m de comprimento, Alumínio soldado, reforçado, borda sem corrimão, chapa de Alumínio 2,00 cm, boca 1,50 cm, borda 0,60 cm. / Motor popa, tipo partida manual, potência 15 hp, aplicação barco Alumínio, características adicionais: válvulas automáticas descompressão, refrigerado a ar, quantidade marchas 2 und, quantidade cilíndro 2 und, capacidade tanque 23 l, tipo motor: 2 tempos, velocidade: 4.500 a 5.800 rpm.
A25: E9686-DNIT/PE | B25: =Equipamentos!C97 -> Grupo gerador de 310/340 kVA | C25: Guindauto | D25: =Equipamentos!E97/Equipamentos!E97 -> 1 | E25: 1 | F25: 2 | G25: 320
A26: E9666-DNIT/PE | B26: MOTONIVELADORA POTENCIA BASICA LIQUIDA (PRIMEIRA MARCHA) 171 HP, PESO BRUTO 14768 KG, LARGURA DA LAMINA DE 3,7 M | C26: Carreta | D26: =Equipamentos!E105/Equipamentos!E105+'SEGURANÇA DE BARRAGENS'!E31/'SEGURANÇA DE BARRAGENS'!E31 -> 2 | E26: 1 | F26: 2 | G26: 320
A27: E9666-DNIT/PE | B27: Grupo Gerador-32,0 kVA, 220 V, trifásico, silenciado, com 100 metros de cabos e 01 QTA. | C27: Carreta | D27: ='SEGURANÇA DE BARRAGENS'!E30/'SEGURANÇA DE BARRAGENS'!E30 -> 1 | E27: 1 | F27: 2 | G27: 320
A28: E9666-DNIT/PE | B28: Cavalo Mecânico com Reboque M. Benz Randon LS-1634/45 29,5 t, ou similar | C28: Carreta | D28: =Equipamentos!E89/Equipamentos!E89+('SEGURANÇA DE BARRAGENS'!E34/'SEGURANÇA DE BARRAGENS'!E34) -> 2 | E28: 1 | F28: 2 | G28: 320
A29: E9666-DNIT/PE | B29: Retroescavadeira sobre rodas com carregadeira, tração 4x4, potência líquida 72 hp, peso operacional mínimo de 7.140 kg, capacidade mínima da carregadeira de 0,79 m³ e da retroescavadeira mínima de 0,18 m³, profundidade de escavação máxima de 4,50 m. | C29: Carreta | D29: =(Equipamentos!E108/Equipamentos!E108)*3 -> 3 | E29: 1 | F29: 2 | G29: 320
A30: E9666-DNIT/PE | B30: ='SEGURANÇA DE BARRAGENS'!C33 -> Trator de esteiras, potência de 150 hp, peso operacional de 16,7 t, com roda motriz elevada e lâmina com contato de 3,18 m³. | C30: Carreta | D30: ='SEGURANÇA DE BARRAGENS'!E33/'SEGURANÇA DE BARRAGENS'!E33 -> 1 | E30: 1 | F30: 2 | G30: 320
A31: E9666-DNIT/PE | B31: Rolo compactador pé-de-carneiro vibratório, potência 125 hp, peso operacional sem/com lastro 11,95/13,30 t, impacto dinâmico 38,5/22,5 t, largura de trabalho 2,15 m. | C31: Carreta | D31: =+('SEGURANÇA DE BARRAGENS'!E35/'SEGURANÇA DE BARRAGENS'!E35) -> 1 | E31: 1 | F31: 2 | G31: 320
A32: A9353-DNIT/PE | B32: Barco tipo Alumínio, 7 m de comprimento, Alumínio soldado, reforçado, borda sem corrimão, chapa de Alumínio 2,00 cm, boca 1,50 cm, borda 0,60 cm. / Motor popa, tipo partida manual, potência 15 hp, aplicação barco Alumínio, características adicionais: válvulas automáticas descompressão, refrigerado a ar, quantidade marchas 2 und, quantidade cilíndro 2 und, capacidade tanque 23 l, tipo motor: 2 tempos, velocidade: 4.500 a 5.800 rpm. | C32: Rodando | D32: =('SEGURANÇA DE BARRAGENS'!E36/'SEGURANÇA DE BARRAGENS'!E36)*2 -> 2 | E32: 1 | F32: 1 | G32: 320
A34: SUB-TOTAL (R$):
A36: MATERIAL
A37: CÓDIGO | B37: DESCRIÇÃO | C37: UNIDADE | D37: QUANTIDADE | H37: CUSTO UNIT. (R$) | I37: CUSTO TOTAL (R$)
A38: SINDUSCON/PE | B38: Alimentação (motorista que vai rodando) | C38: und | D38: =SUMIF(C16:C32,"RODANDO",D16:D32) -> 16 | H38: =IF($C$124="","",$C$124) ->  | I38: =IF(H38="","",ROUND(D38*H38,2)) -> 
A39: SINDUSCON/PE | B39: Alimentação (motorista que retorna) | C39: und | D39: =SUMIF(C16:C32,"CARRETA",D16:D32)+SUMIF(C16:C32,"REBOQUE",D16:D32)+SUMIF(C16:C32,"GUINDAUTO",D16:D32) -> 15 | H39: =IF($C$124="","",$C$124) ->  | I39: =IF(H39="","",ROUND(D39*H39,2)) -> 
A41: SUB-TOTAL (R$):
A43: SERVIÇOS-COMPOSIÇÕES AUXILIARES
A44: CÓDIGO | B44: DESCRIÇÃO | C44: UNIDADE | D44: QUANTIDADE | H44: CUSTO UNIT. (R$) | I44: CUSTO TOTAL (R$)
A47: SUB-TOTAL (R$):
A49: MÃO DE OBRA
A50: CÓDIGO | B50: DESCRIÇÃO | C50: UNIDADE | D50: QUANTIDADE | H50: CUSTO UNIT. (R$) | I50: CUSTO TOTAL (R$)
A53: SUB-TOTAL (R$):
A55: PRODUÇÃO DA EQUIPE: | C55: 1 | D55: CUSTO (R$): | I55: =I53+I47+I41+I34 -> 0
A57: TOTAL-COMPOSIÇÃO DE PREÇO UNITÁRIO-MOBILIZAÇÃO-(R$):
A60: COMPOSIÇÃO DE PREÇO UNITÁRIO-MOBILIZAÇÃO
A61: Local / Canteiros: EIXO LESTE-Canteiro apoio geral (Floresta/PE)
A63: Distância entre Recife/PE-Canteiro apoio geral (km): | D63: =Canteiros!H13 -> 472 | E63: Veloc. Média (km/h): | I63: 60
A65: EQUIPAMENTO
A66: CÓDIGO | B66: DESCRIÇÃO | C66: MEIO DE LOCOMOÇÃO | D66: QUANTIDADE | E66: FU | F66: K | G66: DMT (km) | H66: CHP (R$) | I66: CUSTO TOTAL (R$)
A67: E9592-DNIT/PE | B67: CAMINHÃO TRUCADO (C/ TERCEIRO EIXO) ELETRÔNICO - POTÊNCIA 231CV - PBT = 22000KG - DIST. ENTRE EIXOS 5170 MM - INCLUI CARROCERIA FIXA ABERTA DE MADEIRA | C67: Rodando | D67: =Equipamentos!E85/Equipamentos!E85 -> 1 | E67: 1 | F67: 1 | G67: =$D$63 -> 472 | H67: =IF(VLOOKUP(A67,A$117:C$125,3,FALSE)="","",VLOOKUP(A67,A$117:C$125,3,FALSE)) ->  | I67: =IF(H67="","",ROUND(D67*(((G67*F67*E67)/$I$12)*H67),2)) -> 
A68: E9579-DNIT/PE | B68: CAMINHÃO BASCULANTE 10 M3, TRUCADO CABINE SIMPLES, PESO BRUTO TOTAL 23.000 KG, CARGA ÚTIL MÁXIMA 15.935 KG, DISTÂNCIA ENTRE EIXOS 4,80 M, POTÊNCIA 230 CV INCLUSIVE CAÇAMBA METÁLICA | C68: Rodando | D68: =Equipamentos!E84/Equipamentos!E84 -> 1 | E68: 1 | F68: 1 | G68: =$D$63 -> 472 | H68: =IF(VLOOKUP(A68,A$117:C$125,3,FALSE)="","",VLOOKUP(A68,A$117:C$125,3,FALSE)) ->  | I68: =IF(H68="","",ROUND(D68*(((G68*F68*E68)/$I$12)*H68),2)) -> 
A69: E9686-DNIT/PE | B69: Caminhão guindauto com capacidade de carga até 10,0 t | C69: Rodando | D69: =Equipamentos!E87/Equipamentos!E87 -> 1 | E69: 1 | F69: 1 | G69: =$D$63 -> 472
A70: E9605-DNIT/PE | B70: Caminhão tanque, capacidade de volume 6000 l e potência 136,0 hp | C70: Rodando | D70: =Equipamentos!E88/Equipamentos!E88 -> 1 | E70: 1 | F70: 1 | G70: =$D$63 -> 472
A71: A9353-DNIT/PE | B71: Carreta Reboque (para embarcação) | C71: Rodando | D71: ='SEGURANÇA DE BARRAGENS'!E37/'SEGURANÇA DE BARRAGENS'!E37 -> 1 | E71: 1 | F71: 1 | G71: =$D$63 -> 472
A72: E9666-DNIT/PE | B72: Retroescavadeira sobre rodas com carregadeira, tração 4x4, potência líquida 72 hp, peso operacional mínimo de 7.140 kg, capacidade mínima da carregadeira de 0,79 m³ e da retroescavadeira mínima de 0,18 m³, profundidade de escavação máxima de 4,50 m. | C72: Carreta | D72: =(Equipamentos!E108/Equipamentos!E108)*1 -> 1 | E72: 1 | F72: 2 | G72: =$D$12 -> 320
A73: A9353-DNIT/PE | B73: Barco tipo Alumínio, 7 m de comprimento, Alumínio soldado, reforçado, borda sem corrimão, chapa de Alumínio 2,00 cm, boca 1,50 cm, borda 0,60 cm. / Motor popa, tipo partida manual, potência 15 hp, aplicação barco Alumínio, características adicionais: válvulas automáticas descompressão, refrigerado a ar, quantidade marchas 2 und, quantidade cilíndro 2 und, capacidade tanque 23 l, tipo motor: 2 tempos, velocidade: 4.500 a 5.800 rpm. | C73: Rodando | D73: ='SEGURANÇA DE BARRAGENS'!E36/'SEGURANÇA DE BARRAGENS'!E36 -> 1 | E73: 1 | F73: 1 | G73: =$D$63 -> 472
A75: SUB-TOTAL (R$): | I75: =SUBTOTAL(9,I67:I73) -> 0
A77: MATERIAL
A78: CÓDIGO | B78: DESCRIÇÃO | C78: UNIDADE | D78: QUANTIDADE | H78: CUSTO UNIT. (R$) | I78: CUSTO TOTAL (R$)
A79: SINDUSCON/PE | B79: Alimentação (motorista que vai rodando) | C79: und | D79: =SUMIF(C67:C73,"RODANDO",D67:D73) -> 6 | H79: =IF($C$124="","",$C$124) ->  | I79: =IF(H79="","",ROUND(D79*H79,2)) -> 
A80: SINDUSCON/PE | B80: Alimentação (motorista que retorna) | C80: und | D80: =SUMIF(C67:C73,"CARRETA",D67:D73)+SUMIF(C67:C73,"REBOQUE",D67:D73)+SUMIF(C67:C73,"GUINDAUTO",D67:D73) -> 1 | H80: =IF($C$124="","",$C$124) ->  | I80: =IF(H80="","",ROUND(D80*H80,2)) -> 
A82: SUB-TOTAL (R$): | I82: =SUM(I79:I81) -> 0
A84: SERVIÇOS-COMPOSIÇÕES AUXILIARES
A85: CÓDIGO | B85: DESCRIÇÃO | C85: UNIDADE | D85: QUANTIDADE | H85: CUSTO UNIT. (R$) | I85: CUSTO TOTAL (R$)
A88: SUB-TOTAL (R$): | I88: 0
A90: MÃO DE OBRA
A91: CÓDIGO | B91: DESCRIÇÃO | C91: UNIDADE | D91: QUANTIDADE | H91: CUSTO UNIT. (R$) | I91: CUSTO TOTAL (R$)
A94: SUB-TOTAL (R$): | I94: 0
A96: PRODUÇÃO DA EQUIPE: | C96: 1 | D96: CUSTO (R$): | I96: =I94+I88+I82+I75 -> 0
A98: TOTAL-COMPOSIÇÃO DE PREÇO UNITÁRIO-MOBILIZAÇÃO-(R$): | I98: =ROUND(I96*C96,2) -> 0
A102: NOME DO INFORMANTE: | H102: QUALIFICAÇÃO:
A104: ASSINATURA: | H104: DATA:
A116: Código | B116: Descrição | C116: R$/h
A117: E9592-DNIT/PE | B117: Caminhão carroceria com capacidade de 15 t-188 kW | D117: ok
A118: E9579-DNIT/PE | B118: Caminhão basculante com capacidade de 10 m³-188 kW | D118: ok
A119: E9509-DNIT/PE | B119: Caminhão tanque distribuidor de asfalto com capacidade de 6.000 l-7 kW/136 kW | D119: ok
A120: E9686-DNIT/PE | B120: Caminhão carroceria com guindauto com capacidade de 20 t.m-136 kW
A121: E9605-DNIT/PE | B121: Caminhão tanque com capacidade de 6.000 l-136 kW | D121: ok
A122: A9353-DNIT/PE | B122: Semirreboque com 2 eixos | D122: ok
A123: E9666-DNIT/PE | B123: Cavalo mecânico com semirreboque com capacidade de 30 t-265 kW | D123: ok
A124: SINDCON/PE | B124: Alimentação (motorista que vai rodando)-Convenção Coletiva de Trabalho 2021-2023-SINDCON/PE (Cláusula 19ª)
E125: =SUM(C117:C124) -> 0

Sheet CPU_DESMOBILIZAÇAO
A1: Ministério do Desenvolvimento Regional -MDR
A2: Companhia de Desenvolvimento dos Vales do São Francisco e do Parnaíba
A3: Gerência de Operação do PISF-Centro de Controle e Operação (AD / GOI / CCO)
A5: SERVIÇOS DE OPERAÇÃO E MANUTENÇÃO DAS INFRAESTRUTURAS DO EIXO LESTE DO PROJETO DE INTEGRAÇÃO DO RIO SÃO FRANCISCO COM AS BACIAS HIDROGRÁFICAS DO NORDESTE SETENTRIONAL – PISF
A9: COMPOSIÇÃO DE PREÇO UNITÁRIO-DESMOBILIZAÇÃO
A10: Local / Canteiros: EIXO LESTE-Canteiro Central (Sertânia/PE)
A12: Distância entre Recife/PE-Canteiro Central (km): | D12: 320 | E12: Veloc. Média (km/h): | I12: 60
A14: EQUIPAMENTO
A15: CÓDIGO | B15: DESCRIÇÃO | C15: MEIO DE LOCOMOÇÃO | D15: QUANTIDADE | E15: FU | F15: K | G15: DMT (km) | H15: CHP (R$) | I15: CUSTO TOTAL (R$)
A16: E9592-DNIT/PE | B16: CAMINHÃO TRUCADO (C/ TERCEIRO EIXO) ELETRÔNICO - POTÊNCIA 231CV - PBT = 22000KG - DIST. ENTRE EIXOS 5170 MM - INCLUI CARROCERIA FIXA ABERTA DE MADEIRA | C16: Rodando | D16: 3 | E16: 1 | F16: 1 | G16: 320 | M16: CAMINHÃO TRUCADO (C/ TERCEIRO EIXO) ELETRÔNICO - POTÊNCIA 231CV - PBT = 22000KG - DIST. ENTRE EIXOS 5170 MM - INCLUI CARROCERIA FIXA ABERTA DE MADEIRA
A17: E9579-DNIT/PE | B17: CAMINHÃO BASCULANTE 10 M3, TRUCADO CABINE SIMPLES, PESO BRUTO TOTAL 23.000 KG, CARGA ÚTIL MÁXIMA 15.935 KG, DISTÂNCIA ENTRE EIXOS 4,80 M, POTÊNCIA 230 CV INCLUSIVE CAÇAMBA METÁLICA | C17: Rodando | D17: 3 | E17: 1 | F17: 1 | G17: 320 | M17: CAMINHÃO BASCULANTE 10 M3, TRUCADO CABINE SIMPLES, PESO BRUTO TOTAL 23.000 KG, CARGA ÚTIL MÁXIMA 15.935 KG, DISTÂNCIA ENTRE EIXOS 4,80 M, POTÊNCIA 230 CV INCLUSIVE CAÇAMBA METÁLICA
A18: E9509-DNIT/PE | B18: Caminhão Comboio para lubrificação e abastecimento (melosa), convencional totalmente equipado (Capacidade de Combustível: 5.000 l, Capacidade de Lubrificante: 500 l, Capacidade de Graxa: 200 kg, Capacidade de Água: 300 l, Recipiente para Óleo Usado: 200 l, Compressor de Ar e Bomba- d’agua) | C18: Rodando | D18: 0.5 | E18: 1 | F18: 1 | G18: 320 | M18: Caminhão guindauto com capacidade de carga até 10,0 t
A19: E9686-DNIT/PE | B19: Caminhão guindauto com capacidade de carga até 10,0 t | C19: Rodando | D19: 1 | E19: 1 | F19: 1 | G19: 320 | M19: Caminhão tanque, capacidade de volume 6000 l e potência 136,0 hp
A20: E9605-DNIT/PE | B20: Caminhão tanque, capacidade de volume 6000 l e potência 136,0 hp | C20: Rodando | D20: 4 | E20: 1 | F20: 1 | G20: 320 | M20: Carreta Reboque (para embarcação)
A21: A9353-DNIT/PE | B21: Carreta Reboque (para embarcação) | C21: Rodando | D21: 1 | E21: 1 | F21: 1 | G21: 320 | M21: Minicarregadeira sobre rodas, potência líquida de 47 hp, capacidade nominal de operação de 646 kg
A22: E9666-DNIT/PE | B22: ESCAVADEIRA HIDRAULICA SOBRE ESTEIRAS CACAMBA 0,40 A 1,20 M3, PESO OPERACIONAL 21,19 T, POTENCIA LIQUIDA 173 HP | C22: Carreta | D22: 1.5 | E22: 1 | F22: 2 | G22: 320 | M22: Retroescavadeira sobre rodas com carregadeira, tração 4x4, potência líquida 72 hp, peso operacional mínimo de 7.140 kg, capacidade mínima da carregadeira de 0,79 m³ e da retroescavadeira mínima de 0,18 m³, profundidade de escavação máxima de 4,50 m.
A23: E9686-DNIT/PE | B23: Grupo gerador de 13/14 KVA, 220v, trifásico, silenciado, com 100 metros de cabos e 01 QTA. | C23: Guindauto | D23: 0.5 | E23: 1 | F23: 2 | G23: 320 | M23: Trator de esteiras, potência de 150 hp, peso operacional de 16,7 t, com roda motriz elevada e lâmina com contato de 3,18 m³.
A24: E9686-DNIT/PE | B24: Grupo gerador de 145/160 kVA | C24: Guindauto | D24: 0.5 | E24: 1 | F24: 2 | G24: 320 | M24: Barco tipo Alumínio, 7 m de comprimento, Alumínio soldado, reforçado, borda sem corrimão, chapa de Alumínio 2,00 cm, boca 1,50 cm, borda 0,60 cm. / Motor popa, tipo partida manual, potência 15 hp, aplicação barco Alumínio, características adicionais: válvulas automáticas descompressão, refrigerado a ar, quantidade marchas 2 und, quantidade cilíndro 2 und, capacidade tanque 23 l, tipo motor: 2 tempos, velocidade: 4.500 a 5.800 rpm.
A25: E9686-DNIT/PE | B25: Grupo gerador de 310/340 kVA | C25: Guindauto | D25: 0.5 | E25: 1 | F25: 2 | G25: 320
A26: E9666-DNIT/PE | B26: MOTONIVELADORA POTENCIA BASICA LIQUIDA (PRIMEIRA MARCHA) 171 HP, PESO BRUTO 14768 KG, LARGURA DA LAMINA DE 3,7 M | C26: Carreta | D26: 1.5 | E26: 1 | F26: 2 | G26: 320
A27: E9666-DNIT/PE | B27: Grupo Gerador-32,0 kVA, 220 V, trifásico, silenciado, com 100 metros de cabos e 01 QTA. | C27: Carreta | D27: 0.5 | E27: 1 | F27: 2 | G27: 320
A28: E9666-DNIT/PE | B28: Cavalo Mecânico com Reboque M. Benz Randon LS-1634/45 29,5 t, ou similar | C28: Carreta | D28: 1 | E28: 1 | F28: 2 | G28: 320
A29: E9666-DNIT/PE | B29: Retroescavadeira sobre rodas com carregadeira, tração 4x4, potência líquida 72 hp, peso operacional mínimo de 7.140 kg, capacidade mínima da carregadeira de 0,79 m³ e da retroescavadeira mínima de 0,18 m³, profundidade de escavação máxima de 4,50 m. | C29: Carreta | D29: 3 | E29: 1 | F29: 2 | G29: 320
A30: E9666-DNIT/PE | B30: Trator de esteiras, potência de 150 hp, peso operacional de 16,7 t, com roda motriz elevada e lâmina com contato de 3,18 m³. | C30: Carreta | D30: 1 | E30: 1 | F30: 2 | G30: 320
A31: E9666-DNIT/PE | B31: Rolo compactador pé-de-carneiro vibratório, potência 125 hp, peso operacional sem/com lastro 11,95/13,30 t, impacto dinâmico 38,5/22,5 t, largura de trabalho 2,15 m. | C31: Carreta | D31: 0.5 | E31: 1 | F31: 2 | G31: 320
A32: A9353-DNIT/PE | B32: Barco tipo Alumínio, 7 m de comprimento, Alumínio soldado, reforçado, borda sem corrimão, chapa de Alumínio 2,00 cm, boca 1,50 cm, borda 0,60 cm. / Motor popa, tipo partida manual, potência 15 hp, aplicação barco Alumínio, características adicionais: válvulas automáticas descompressão, refrigerado a ar, quantidade marchas 2 und, quantidade cilíndro 2 und, capacidade tanque 23 l, tipo motor: 2 tempos, velocidade: 4.500 a 5.800 rpm. | C32: Rodando | D32: 1 | E32: 1 | F32: 1 | G32: 320
A34: SUB-TOTAL (R$):
A36: MATERIAL
A37: CÓDIGO | B37: DESCRIÇÃO | C37: UNIDADE | D37: QUANTIDADE | H37: CUSTO UNIT. (R$) | I37: CUSTO TOTAL (R$)
A38: SINDUSCON/PE | B38: Alimentação (motorista que vai rodando) | C38: und | D38: 13.5
A39: SINDUSCON/PE | B39: Alimentação (motorista que retorna) | C39: und | D39: 10.5
A41: SUB-TOTAL (R$):
A43: SERVIÇOS-COMPOSIÇÕES AUXILIARES
A44: CÓDIGO | B44: DESCRIÇÃO | C44: UNIDADE | D44: QUANTIDADE | H44: CUSTO UNIT. (R$) | I44: CUSTO TOTAL (R$)
A47: SUB-TOTAL (R$):
A49: MÃO DE OBRA
A50: CÓDIGO | B50: DESCRIÇÃO | C50: UNIDADE | D50: QUANTIDADE | H50: CUSTO UNIT. (R$) | I50: CUSTO TOTAL (R$)
A53: SUB-TOTAL (R$):
A55: PRODUÇÃO DA EQUIPE: | C55: 1 | D55: CUSTO (R$):
A57: TOTAL-COMPOSIÇÃO DE PREÇO UNITÁRIO-DESMOBILIZAÇÃO-(R$):
A60: COMPOSIÇÃO DE PREÇO UNITÁRIO-DESMOBILIZAÇÃO
A61: Local / Canteiros: EIXO LESTE-Canteiro apoio geral (Floresta/PE)
A63: Distância entre Recife/PE-Canteiro apoio geral (km): | D63: 472 | E63: Veloc. Média (km/h): | I63: 60
A65: EQUIPAMENTO
A66: CÓDIGO | B66: DESCRIÇÃO | C66: MEIO DE LOCOMOÇÃO | D66: QUANTIDADE | E66: FU | F66: K | G66: DMT (km) | H66: CHP (R$) | I66: CUSTO TOTAL (R$)
A67: E9592-DNIT/PE | B67: CAMINHÃO TRUCADO (C/ TERCEIRO EIXO) ELETRÔNICO - POTÊNCIA 231CV - PBT = 22000KG - DIST. ENTRE EIXOS 5170 MM - INCLUI CARROCERIA FIXA ABERTA DE MADEIRA | C67: Rodando | D67: 1 | E67: 1 | F67: 1 | G67: 472
A68: E9579-DNIT/PE | B68: CAMINHÃO BASCULANTE 10 M3, TRUCADO CABINE SIMPLES, PESO BRUTO TOTAL 23.000 KG, CARGA ÚTIL MÁXIMA 15.935 KG, DISTÂNCIA ENTRE EIXOS 4,80 M, POTÊNCIA 230 CV INCLUSIVE CAÇAMBA METÁLICA | C68: Rodando | D68: 1 | E68: 1 | F68: 1 | G68: 472
A69: E9686-DNIT/PE | B69: Caminhão guindauto com capacidade de carga até 10,0 t | C69: Rodando | D69: 1 | E69: 1 | F69: 1 | G69: 472
A70: E9605-DNIT/PE | B70: Caminhão tanque, capacidade de volume 6000 l e potência 136,0 hp | C70: Rodando | D70: 1 | E70: 1 | F70: 1 | G70: 472
A71: A9353-DNIT/PE | B71: Carreta Reboque (para embarcação) | C71: Rodando | D71: 0.5 | E71: 1 | F71: 1 | G71: 472
A72: E9666-DNIT/PE | B72: Retroescavadeira sobre rodas com carregadeira, tração 4x4, potência líquida 72 hp, peso operacional mínimo de 7.140 kg, capacidade mínima da carregadeira de 0,79 m³ e da retroescavadeira mínima de 0,18 m³, profundidade de escavação máxima de 4,50 m. | C72: Carreta | D72: 1 | E72: 1 | F72: 2 | G72: 320
A73: A9353-DNIT/PE | B73: Barco tipo Alumínio, 7 m de comprimento, Alumínio soldado, reforçado, borda sem corrimão, chapa de Alumínio 2,00 cm, boca 1,50 cm, borda 0,60 cm. / Motor popa, tipo partida manual, potência 15 hp, aplicação barco Alumínio, características adicionais: válvulas automáticas descompressão, refrigerado a ar, quantidade marchas 2 und, quantidade cilíndro 2 und, capacidade tanque 23 l, tipo motor: 2 tempos, velocidade: 4.500 a 5.800 rpm. | C73: Rodando | D73: 0.5 | E73: 1 | F73: 1 | G73: 472
A75: SUB-TOTAL (R$):
A77: MATERIAL
A78: CÓDIGO | B78: DESCRIÇÃO | C78: UNIDADE | D78: QUANTIDADE | H78: CUSTO UNIT. (R$) | I78: CUSTO TOTAL (R$)
A79: SINDUSCON/PE | B79: Alimentação (motorista que vai rodando) | C79: und | D79: 5
A80: SINDUSCON/PE | B80: Alimentação (motorista que retorna) | C80: und | D80: 1
A82: SUB-TOTAL (R$):
A84: SERVIÇOS-COMPOSIÇÕES AUXILIARES
A85: CÓDIGO | B85: DESCRIÇÃO | C85: UNIDADE | D85: QUANTIDADE | H85: CUSTO UNIT. (R$) | I85: CUSTO TOTAL (R$)
A88: SUB-TOTAL (R$):
A90: MÃO DE OBRA
A91: CÓDIGO | B91: DESCRIÇÃO | C91: UNIDADE | D91: QUANTIDADE | H91: CUSTO UNIT. (R$) | I91: CUSTO TOTAL (R$)
A94: SUB-TOTAL (R$):
A96: PRODUÇÃO DA EQUIPE: | C96: 1 | D96: CUSTO (R$):
A98: TOTAL-COMPOSIÇÃO DE PREÇO UNITÁRIO-DESMOBILIZAÇÃO-(R$):
A102: NOME DO INFORMANTE: | H102: QUALIFICAÇÃO:
A104: ASSINATURA: | H104: DATA:
A106: OBSERVAÇÃO:
A107: 1. Fonte de Preços: Sistemas de Custos Referenciais de Obras-DNIT/PE (Tabela SICRO/PE). Data base: Janeiro/2022.
A108: 1. Fonte de Preços: SINAPI/PE. Data base: Abril/2022.
A109: 2. Para o Cálculo do Custo da Mobilização foi utilizada a metodologia do DNIT/PE.
A110: 3. Distância considerada a partir da capital mais próxima ao canteiro
A116: Código | B116: Descrição | C116: R$/h
A117: E9592-DNIT/PE | B117: Caminhão carroceria com capacidade de 15 t-188 kW | C117: 248.2681 | D117: ok
A118: E9579-DNIT/PE | B118: Caminhão basculante com capacidade de 10 m³-188 kW | C118: 249.494 | D118: ok
A119: E9509-DNIT/PE | B119: Caminhão tanque distribuidor de asfalto com capacidade de 6.000 l-7 kW/136 kW | C119: 244.79 | D119: ok
A120: E9686-DNIT/PE | B120: Caminhão carroceria com guindauto com capacidade de 20 t.m-136 kW | C120: 279.49
A121: E9605-DNIT/PE | B121: Caminhão tanque com capacidade de 6.000 l-136 kW | C121: 234.19 | D121: ok
A122: A9353-DNIT/PE | B122: Semirreboque com 2 eixos | C122: 55.6056 | D122: ok
A123: E9666-DNIT/PE | B123: Cavalo mecânico com semirreboque com capacidade de 30 t-265 kW | C123: 378.45 | D123: ok
A124: SINDCON/PE | B124: Alimentação (motorista que vai rodando)-Convenção Coletiva de Trabalho 2021-2023-SINDCON/PE (Cláusula 19ª) | C124: 16.5
E125: =SUM(C117:C124) -> 1706.7877

Sheet Canteiros
D1: Ministério do Desenvolvimento Regional - MDR
D2: Companhia de Desenvolvimento dos Vales do São Francisco e do Parnaíba
D3: Gerência de Operação do PISF - Centro de Controle e Operação (AD / GOI / CCO)
A5: =Mobilizacao_Desmobilizacao!A5 -> TERMO DE REFERÊNCIA PARA CONTRATAÇÃO DOS RECURSOS NECESSÁRIOS À OPERAÇÃO E MANUTENÇÃO DAS INFRAESTRUTURAS DO EIXO LESTE DO PISF - PROJETO DE INTEGRAÇÃO DO SÃO FRANCISCO COM AS BACIAS HIDROGRÁFICAS DO NORDESTE SETENTRIONAL
A8: CANTEIROS - INFORMAÇÕES COMPLEMENTARES
A11: ITEM | B11: CANTEIRO | D11: TRECHO | E11: RESERVATÓRIOS | F11: ESTAÇÕES DE BOMBEAMENTO | G11: LOCALIZAÇÃO
G12: CAPITAL MAIS PRÓXIMA | H12: DIST. ATÉ CAPITAL (km)
A13: 1 | B13: Canteiro apoio geral (Reforma e / ou Construção) | C13: Floresta / PE | D13: Trecho 1 - Do reservatório de Itaparica até o canal 2213 | E13: Areias | F13: EBV-1 | G13: Recife / PE | H13: 472
E14: Braúnas | F14: EBV-2
E15: Mandantes | F15: EBV-3
E16: Salgueiro
E17: Muquem
A18: 2 | B18: Canteiro Central (Reforma e / ou Construção) | C18: Sertânia / PE | D18: Trecho 2 - De Reservatório Cacimba Nova até Monteiro/PB. | E18: Cacimba Nova | F18: EBV-4 | G18: Recife / PE | H18: 320
E19: Bagres
E20: Copiti
E21: Moxotó | F21: EBV-5
E22: Barreiro | F22: EBV-6
E23: Campos
E24: Barro Branco
E25: Monteiro
E26: Monteiro
A27: NOME DO INFORMANTE: | G27: QUALIFICAÇÃO:
A29: ASSINATURA: | G29: DATA:
A31: OBSERVAÇAO:

Sheet Mao_de_Obra
C1: Ministério do Desenvolvimento Regional - MDR
C2: Companhia de Desenvolvimento dos Vales do São Francisco e do Parnaíba
C3: Gerência de Operação do PISF - Centro de Controle e Operação (AD / GOI / CCO)
A5: =ORCAMENTO_RESUMO!A5 -> TERMO DE REFERÊNCIA PARA CONTRATAÇÃO DOS RECURSOS NECESSÁRIOS À OPERAÇÃO E MANUTENÇÃO DAS INFRAESTRUTURAS DO EIXO LESTE DO PISF - PROJETO DE INTEGRAÇÃO DO SÃO FRANCISCO COM AS BACIAS HIDROGRÁFICAS DO NORDESTE SETENTRIONAL
A8: EQUIPE - MÃO DE OBRA
A11: ITEM | B11: CÓDIGO | C11: DESCRIÇÃO | D11: UNIDADE | E11: QUANTIDADE | F11: VALOR (R$)
F12: UNITARIO | G12: TOTAL
A13: 1. | C13: EQUIPE - MÃO DE OBRA
A14: 1.1 | B14: A1 | C14: Almoxarife | D14: homem x mês | E14: 6 | H14: 47118.6
A15: 1.2 | B15: A1 | C15: Auxiliar Administrativo | D15: homem x mês | E15: 6 | H15: 188474.4
A16: 1.3 | B16: A9 | C16: Auxiliar de serviços gerais | D16: homem x mês | E16: 36 | H16: 466871.04
A17: 1.4 | B17: T3 | C17: Auxiliar de Topografia | D17: homem x mês | E17: 12 | H17: 105009.36
A18: 1.5 | B18: A8 | C18: Carpinteiro | D18: homem x mês | E18: 12 | H18: 136999.44
A19: 1.6 | B19: CA | C19: Coordenador - Chefe de Escritório | D19: homem x mês | E19: 6 | H19: 82067.76
A20: 1.7 | B20: P0 | C20: Coordenador - Engenheiro Sênior (Civil / Eletricista / Mecânico) | D20: homem x mês | E20: 6 | H20: 374418.84
A21: 1.8 | B21: P1 | C21: Coordenador Manutenção - Engenheiro Pleno (Civil / Eletricista / Mecânico) | D21: homem x mês | E21: 6 | H21: 266942.76
A22: 1.9 | B22: P1 | C22: Coordenador Operação - Engenheiro Pleno (Civil / Eletricista / Mecânico) | D22: homem x mês | E22: 6 | H22: 266942.76
A23: 1.10 | B23: A5 | C23: Eletricista | D23: homem x mês | E23: 12 | H23: 139231.44
A24: 1.11 | B24: A5 | C24: Eletricista (inclusive adicional de periculosidade) | D24: homem x mês | E24: 18 | H24: 844670.4
A25: 1.12 | B25: P1 | C25: Engenheiro de Segurança e Medicina do Trabalho (inclusive adicional de periculosidade) | D25: homem x mês | E25: 6 | H25: 347025.6
A26: 1.13 | B26: P2 | C26: Engenheiro Junior | D26: homem x mês | E26: 24 | H26: 1235866.32
A27: 1.14 | B27: P1 | C27: Engenheiro Pleno | D27: homem x mês | E27: 36 | H27: 3203313.12
A28: 1.15 | B28: A7 | C28: Ferreiro | D28: homem x mês | E28: 6 | H28: 137722.32
A29: 1.16 | B29: P1 | C29: Geólogo (Geotecnia) | D29: homem x mês | E29: 6 | H29: 266942.76
A30: 1.17 | B30: P2 | C30: Médico do Trabalho | D30: homem x mês | E30: 6 | H30: 266942.76
A31: 1.18 | B31: A3 | C31: Motorista | D31: homem x mês | E31: 6 | H31: 62155.56
A32: 1.19 | B32: A6 | C32: Pedreiro | D32: homem x mês | E32: 24 | H32: 322656.6
A33: 1.20 | B33: A11 | C33: Servente | D33: homem x mês | E33: 360 | H33: 4588992
A34: 1.21 | B34: T2 | C34: Técnico Automação - Especialista em SDSC (inclusive adicional de periculosidade) | D34: homem x mês | E34: 6 | H34: 99377.16
A35: 1.22 | B35: T3 | C35: Técnico Auxiliar | D35: homem x mês | E35: 36 | H35: 630056.16
A36: 1.23 | B36: T3 | C36: Técnico Auxiliar (inclusive adicional de periculosidade) | D36: homem x mês | E36: 18
A37: 1.24 | B37: T2 | C37: Técnico de Segurança e Medicina do Trabalho (inclusive adicional de periculosidade) | D37: homem x mês | E37: 6 | H37: 198754.32
A38: 1.25 | B38: T2 | C38: Tecnico Edificações | D38: homem x mês | E38: 12 | H38: 229331.88
A39: 1.26 | B39: T2 | C39: Técnico - Cadista | D39: homem x mês | E39: 6 | H39: 229331.88
A40: 1.27 | B40: T2 | C40: Técnico Pleno - Eletrotécnico - Diurno (inclusive adicional de periculosidade) | D40: homem x mês | E40: 72 | H40: 2385051.84
A41: 1.28 | B41: T2 | C41: Técnico Pleno - Eletrotécnico - Noturno (inclusive adicional de periculosidade) | D41: homem x mês | E41: 72 | H41: 2918610.01
A42: 1.29 | B42: T2 | C42: Técnico Junior - Mecânico - Diurno (inclusive adicional de periculosidade) | D42: homem x mês | E42: 72 | H42: 1192525.92
A43: 1.30 | B43: T2 | C43: Técnico Junior - Mecânico - Noturno (inclusive adicional de periculosidade) | D43: homem x mês | E43: 72 | H43: 1459305.01
A44: 1.31 | B44: T2 | C44: Técnico Pleno | D44: homem x mês | E44: 60 | H44: 1070215.44
A45: 1.32 | B45: T2 | C45: Técnico Pleno (inclusive adicional de periculosidade) | D45: homem x mês | E45: 18 | H45: 496885.8
A46: 1.33 | B46: T1 | C46: Técnico Pleno - Analista em Tecnologia da Informação | D46: homem x mês | E46: 6
A47: 1.34 | B47: T0 | C47: Técnico - Profissional Sênior (N. Médio/Especializado) | D47: homem x mês | E47: 18 | H47: 1647821.76
A48: 1.35 | B48: T2 | C48: Técnico Telecomunicações/Eletrônica (inclusive adicional de periculosidade) | D48: homem x mês | E48: 6 | H48: 99377.16
A49: 1.36 | B49: TS | C49: Topógrafo | D49: homem x mês | E49: 6 | H49: 80742
A50: 1.37 | B50: A10 | C50: Vigia diurno | D50: homem x mês | E50: 24 | H50: 295647.84
A51: 1.38 | B51: A10 | C51: Vigia noturno | D51: homem x mês | E51: 24
A52: ="TOTAL - "&C13&" - (R$):" -> TOTAL - EQUIPE - MÃO DE OBRA - (R$): | G52: =SUM(G14:G51) -> 0
A55: ="RESUMO - "&A$8 -> RESUMO - EQUIPE - MÃO DE OBRA
A56: ITEM | C56: DESCRIÇÃO | F56: VALOR TOTAL (R$)
A57: 1 | C57: =C13 -> EQUIPE - MÃO DE OBRA | F57: =G52 -> 0
A58: ="TOTAL GERAL - "&A$8&" - (R$):" -> TOTAL GERAL - EQUIPE - MÃO DE OBRA - (R$): | F58: =SUM(F57:G57) -> 0 | I58: 31038949.16
A61: NOME DO INFORMANTE: | F61: QUALIFICAÇÃO:
A63: ASSINATURA: | F63: DATA:
A65: OBSERVAÇÕES:
A66: 1. Considerado a carga horária de 176 horas/mês
A67: 2. Os cálculos de cada parcela que compõe o salário completo foram calculadas isoladamente. (Salário Base + Adicional de Periculosidade (quando houver) + Adicional Noturno (quando houver) + Adicional de Horas Extras (quando houver) + Encargos Sociais)
A69: 3. Adicional de Periculosidade 30%: foi previsto para todos os profissionais eletricitários (Operação e Manutenção) que trabalham em contato com rede elétrica (nas estações de bombeamento, sub-estações, etc.)
A71: 4. Hora Noturna: Hora Diurna x 20%
A72: 5. Adicional Noturno: *Considerado 120 horas/profissional/mês (Total de 8h noturnas: Período de 22h as 5h = 8h noturnas + 1h até as 6h => Súmula 60 do TST) *(Incide sobre Salário Base + Periculosidade => Súmula 191 do TST)
A74: 6. Período noturno – 22 às 5 horas, o valor da hora tem 52 minutos e 30 segundos; logo, nesse período, há 8 horas
A75: 7. Foi considerado intervalo intrajornada para todos os profissionais que trabalham em escala 12h x 36h

Sheet Mao_de_Obra (Total)
C1: Ministério do Desenvolvimento Regional - MDR
C2: Companhia de Desenvolvimento dos Vales do São Francisco e do Parnaíba
C3: Gerência de Operação do PISF - Centro de Controle e Operação (AD / GOI / CCO)
A5: =Mao_de_Obra!A5 -> TERMO DE REFERÊNCIA PARA CONTRATAÇÃO DOS RECURSOS NECESSÁRIOS À OPERAÇÃO E MANUTENÇÃO DAS INFRAESTRUTURAS DO EIXO LESTE DO PISF - PROJETO DE INTEGRAÇÃO DO SÃO FRANCISCO COM AS BACIAS HIDROGRÁFICAS DO NORDESTE SETENTRIONAL
A8: MÃO DE OBRA - TOTAL
A11: ITEM | B11: DESCRIÇÃO | C11: CLASSE | D11: Prazo (Mês) | E11: Quantidade (undxmês) | G11: SALÁRIOS MENSAL (R$) | L11: SALÁRIOS TOTAL (R$)
G12: SALÁRIO BASE (Com Encargo) | H12: Periculosidade | I12: Adicional Noturno | K12: SALÁRIO COMPLETO (Incluindo: encargos, benefícios, adicionais e horas extras) | L12: SALÁRIO BASE (Com Encargo) | M12: Periculosidade | N12: Adicional Noturno (c/ intrajornada) | O12: SALÁRIO COMPLETO (Incluindo: encargos, adicionais e horas extras)
E13: Unitária | F13: Total | H13: 0.3 | I13: Valor da Hora Noturna | J13: Valor do Adicional Noturno (c/ intrajornada) | M13: =H13 -> 0.3
A14: 1. | B14: COORDENAÇÃO GERAL
A15: 1.1 | B15: Coordenador - Engenheiro Sênior (Civil / Eletricista / Mecânico) | C15: P0 | D15: ='ORCAMENTO_CONSOLIDADO (2)'!$K$1 -> 6 | E15: =Mem_Calculo_EQUIPE!F13 -> 1 | F15: =D15*E15 -> 6 | Y15: 1 | Z15: =AC15-$Y15 -> 0 | AA15: 1 | AB15: =AC15-AA15 -> 0 | AC15: =SUM(AD15:AG15) -> 1 | AD15: 1 | AE15: 0 | AF15: 0 | AG15: 0
A16: 2. | B16: COORDENAÇÃO DA OPERAÇÃO
A17: 2.1 | B17: Coordenador Operação - Engenheiro Pleno (Civil / Eletricista / Mecânico) | C17: P1 | D17: =D$15 -> 6 | E17: =Mem_Calculo_EQUIPE!F16 -> 1 | F17: =D17*E17 -> 6 | Y17: 1 | Z17: =AC17-$Y17 -> 0 | AA17: 1 | AB17: =AC17-AA17 -> 0 | AC17: =SUM(AD17:AG17) -> 1 | AD17: 1 | AE17: 0 | AF17: 0 | AG17: 0
A18: 3. | B18: COORDENAÇÃO DA MANUTENÇÃO
A19: 3.1 | B19: Coordenador Manutenção - Engenheiro Pleno (Civil / Eletricista / Mecânico) | C19: P1 | D19: =D$15 -> 6 | E19: =Mem_Calculo_EQUIPE!F19 -> 1 | F19: =D19*E19 -> 6 | Y19: 1 | Z19: =AC19-$Y19 -> 0 | AA19: 1 | AB19: =AC19-AA19 -> 0 | AC19: =SUM(AD19:AG19) -> 1 | AD19: 1 | AE19: 0 | AF19: 0 | AG19: 0
A20: 4. | B20: COORDENAÇÃO ADMINISTRAÇÃO E LOGÍSTICA
A21: 4.1 | B21: Coordenador - Chefe de Escritório | C21: CA | D21: =D$15 -> 6 | E21: =Mem_Calculo_EQUIPE!F22 -> 1 | F21: =D21*E21 -> 6 | Y21: 1 | Z21: =AC21-$Y21 -> 0 | AA21: 1 | AB21: =AC21-AA21 -> 0 | AC21: =SUM(AD21:AG21) -> 1 | AD21: 1 | AE21: 0 | AF21: 0 | AG21: 0
A22: 4.2 | B22: Auxiliar Administrativo | C22: A1 | D22: 6 | E22: =Mem_Calculo_EQUIPE!F23 -> 1 | F22: 6 | Y22: 2 | Z22: -1 | AA22: 2 | AB22: -1 | AC22: 1 | AD22: 1 | AE22: 0 | AF22: 0 | AG22: 0
A23: 4.3 | B23: Técnico Pleno - Analista em Tecnologia da Informação | C23: T1 | D23: 6 | E23: =Mem_Calculo_EQUIPE!F24 -> 1 | F23: 6 | Y23: 1 | Z23: 0 | AA23: 1 | AB23: 0 | AC23: 1 | AD23: 1 | AE23: 0 | AF23: 0 | AG23: 0
A24: 4.4 | B24: Motorista | C24: A3 | D24: 6 | E24: =Mem_Calculo_EQUIPE!F25 -> 1 | F24: 6 | Y24: 9 | Z24: -4 | AA24: 5 | AB24: 0 | AC24: 5 | AD24: 2 | AE24: 1 | AF24: 1 | AG24: 1
A25: 4.5 | B25: Almoxarife | C25: A1 | D25: 6 | E25: =Mem_Calculo_EQUIPE!F26 -> 1 | F25: 6 | Y25: 2 | Z25: -1 | AA25: 1 | AB25: 0 | AC25: 1 | AD25: 1 | AE25: 0 | AF25: 0 | AG25: 0
A26: 4.6 | B26: Auxiliar de serviços gerais | C26: A9 | D26: 6 | E26: =Mem_Calculo_EQUIPE!F27 -> 6 | F26: =D26*E26 -> 36 | Y26: 6 | Z26: 6 | AA26: 6 | AB26: 6 | AC26: 12 | AD26: 0 | AE26: 4 | AF26: 4 | AG26: 4
A27: 5. | B27: SEGURANÇA E MEDICINA DO TRABALHO
A28: 5.1 | B28: Engenheiro de Segurança e Medicina do Trabalho (inclusive adicional de periculosidade) | C28: P1 | D28: =D$15 -> 6 | E28: =Mem_Calculo_EQUIPE!F30 -> 1 | F28: =D28*E28 -> 6 | Y28: 1 | Z28: =AC28-$Y28 -> 0 | AA28: 1 | AB28: =AC28-AA28 -> 0 | AC28: =SUM(AD28:AG28) -> 1 | AD28: 1 | AE28: 0 | AF28: 0 | AG28: 0
A29: 5.2 | B29: Técnico de Segurança e Medicina do Trabalho (inclusive adicional de periculosidade) | C29: T2 | D29: 6 | E29: =Mem_Calculo_EQUIPE!F32 -> 1 | F29: =D29*E29 -> 6 | Y29: 7 | Z29: =AC29-$Y29 -> -5 | AA29: 3 | AB29: =AC29-AA29 -> -1 | AC29: =SUM(AD29:AG29) -> 2 | AD29: 2 | AE29: 0 | AF29: 0 | AG29: 0
A30: 5.3 | B30: Médico do Trabalho | C30: P2 | D30: 6 | E30: 1 | F30: =D30*E30 -> 6 | Y30: 1 | Z30: =AC30-$Y30 -> 0 | AA30: 1 | AB30: =AC30-AA30 -> 0 | AC30: =SUM(AD30:AG30) -> 1 | AD30: 1 | AE30: 0 | AF30: 0 | AG30: 0
A31: 6. | B31: PLANEJAMENTO E CONTROLE DA OPERAÇÃO
A32: 6.1 | B32: Engenheiro Pleno | C32: P1 | D32: =D$15 -> 6 | E32: =Mem_Calculo_EQUIPE!F35 -> 1 | F32: =D32*E32 -> 6 | Y32: 1 | Z32: =AC32-$Y32 -> 0 | AA32: 1 | AB32: =AC32-AA32 -> 0 | AC32: =SUM(AD32:AG32) -> 1 | AD32: 1 | AE32: 0 | AF32: 0 | AG32: 0
A33: 6.2 | B33: Engenheiro Junior | C33: P2 | D33: 6 | E33: =Mem_Calculo_EQUIPE!F36 -> 1 | F33: =D33*E33 -> 6 | Y33: 2 | Z33: =AC33-$Y33 -> -1 | AA33: 1 | AB33: =AC33-AA33 -> 0 | AC33: =SUM(AD33:AG33) -> 1 | AD33: 1 | AE33: 0 | AF33: 0 | AG33: 0
A34: 7. | B34: PLANEJAMENTO E CONTROLE DA MANUTENÇÃO
A35: 7.1 | B35: Engenheiro Pleno | C35: P1 | D35: =D$15 -> 6 | E35: =Mem_Calculo_EQUIPE!F39 -> 5 | F35: =D35*E35 -> 30 | Y35: 1 | Z35: =AC35-$Y35 -> 0 | AA35: 1 | AB35: =AC35-AA35 -> 0 | AC35: =SUM(AD35:AG35) -> 1 | AD35: 1 | AE35: 0 | AF35: 0 | AG35: 0
A36: 7.2 | B36: Engenheiro Junior | C36: P2 | D36: 6 | E36: =Mem_Calculo_EQUIPE!F40 -> 3 | F36: 18 | Y36: 2 | Z36: -2 | AA36: 1 | AB36: -1 | AC36: =SUM(AD36:AG36) -> 0 | AD36: 0 | AE36: 0 | AF36: 0 | AG36: 0
A37: 7.3 | B37: Técnico Pleno | C37: T2 | D37: 6 | E37: =Mem_Calculo_EQUIPE!F41 -> 3 | F37: 18 | Y37: 2 | Z37: -1 | AA37: 2 | AB37: -1 | AC37: =SUM(AD37:AG37) -> 1 | AD37: 1 | AE37: 0 | AF37: 0 | AG37: 0
A38: 7.4 | B38: Geólogo (Geotecnia) | C38: P1 | D38: 6 | E38: =Mem_Calculo_EQUIPE!F42 -> 1 | F38: 6 | Y38: 2 | Z38: -1 | AA38: 1 | AB38: 0 | AC38: =SUM(AD38:AG38) -> 1 | AD38: 1 | AE38: 0 | AF38: 0 | AG38: 0
A39: 8. | B39: OPERAÇÃO
A40: 8.1 | B40: Técnico Pleno - Eletrotécnico - Diurno (inclusive adicional de periculosidade) | C40: T2 | D40: =D$15 -> 6 | E40: =Mem_Calculo_EQUIPE!F45 -> 12 | F40: =D40*E40 -> 72 | Y40: 18 | Z40: =AC40-$Y40 -> -6 | AA40: 12 | AB40: =AC40-AA40 -> 0 | AC40: =SUM(AD40:AG40) -> 12 | AD40: 0 | AE40: 6 | AF40: 2 | AG40: 4
A41: 8.2 | B41: Técnico Pleno - Eletrotécnico - Noturno (inclusive adicional de periculosidade) | C41: T2 | D41: 6 | E41: =Mem_Calculo_EQUIPE!F46 -> 12 | F41: 72 | Y41: 18 | Z41: -6 | AA41: 12 | AB41: 0 | AC41: =SUM(AD41:AG41) -> 12 | AD41: 0 | AE41: 6 | AF41: 2 | AG41: 4
A42: 8.3 | B42: Técnico Junior - Mecânico - Diurno (inclusive adicional de periculosidade) | C42: T2 | D42: 6 | E42: =Mem_Calculo_EQUIPE!F47 -> 12 | F42: =D42*E42 -> 72 | Y42: 18 | Z42: -6 | AA42: 12 | AB42: 0 | AC42: =SUM(AD42:AG42) -> 12 | AD42: 0 | AE42: 6 | AF42: 2 | AG42: 4
A43: 8.4 | B43: Técnico Junior - Mecânico - Noturno (inclusive adicional de periculosidade) | C43: T2 | D43: 6 | E43: =Mem_Calculo_EQUIPE!F48 -> 12 | F43: 72
A44: 8.5 | B44: Técnico Auxiliar (inclusive adicional de periculosidade) | C44: T3 | D44: 6 | E44: =Mem_Calculo_EQUIPE!F49 -> 3 | F44: 18 | Y44: 18 | Z44: -5 | AA44: 4 | AB44: 9 | AC44: =SUM(AD44:AG44) -> 13 | AD44: =1*(4+4+5) -> 13 | AE44: 0 | AF44: 0 | AG44: 0
A45: 8.6 | B45: Técnico - Profissional Sênior (N. Médio/Especializado) | C45: T0 | D45: 6 | E45: =Mem_Calculo_EQUIPE!F50 -> 3 | F45: 18
A46: 9. | B46: MANUTENÇÃO - MECÂNICA
A47: 9.1 | B47: Técnico Pleno | C47: T2 | D47: =D$15 -> 6 | E47: =Mem_Calculo_EQUIPE!F53 -> 3 | F47: =D47*E47 -> 18 | Y47: 7 | Z47: =AC47-$Y47 -> -4 | AA47: 2 | AB47: =AC47-AA47 -> 1 | AC47: =SUM(AD47:AG47) -> 3 | AD47: 0 | AE47: 1 | AF47: 1 | AG47: 1
A48: 9.2 | B48: Técnico Auxiliar | C48: T3 | D48: 6 | E48: =Mem_Calculo_EQUIPE!F54 -> 6 | F48: 36 | Y48: 12 | Z48: -8 | AA48: 5 | AB48: -1 | AC48: =SUM(AD48:AG48) -> 4 | AD48: 0 | AE48: 2 | AF48: 1 | AG48: 1
A49: 10. | B49: MANUTENÇÃO - EQUIPAMENTOS E SISTEMAS ELÉTRICOS
A50: 10.1 | B50: Técnico Pleno (inclusive adicional de periculosidade) | C50: T2 | D50: =D$15 -> 6 | E50: =Mem_Calculo_EQUIPE!F57 -> 3 | F50: =D50*E50 -> 18 | Y50: 6 | Z50: =AC50-$Y50 -> -3 | AA50: 3 | AB50: =AC50-AA50 -> 0 | AC50: =SUM(AD50:AG50) -> 3 | AD50: 0 | AE50: 1 | AF50: 1 | AG50: 1
A51: 10.2 | B51: Eletricista (inclusive adicional de periculosidade) | C51: A5 | D51: 6 | E51: =Mem_Calculo_EQUIPE!F58 -> 3 | F51: =D51*E51 -> 18 | Y51: 8 | Z51: =AC51-$Y51 -> -4 | AA51: 4 | AB51: =AC51-AA51 -> 0 | AC51: =SUM(AD51:AG51) -> 4 | AD51: 0 | AE51: 2 | AF51: 0 | AG51: 2
A52: 11. | B52: MANUTENÇÃO SDSC
A53: 11.1 | B53: Técnico Automação - Especialista em SDSC (inclusive adicional de periculosidade) | C53: T2 | D53: =D$15 -> 6 | E53: =Mem_Calculo_EQUIPE!F61 -> 1 | F53: =D53*E53 -> 6 | Y53: 2 | Z53: =AC53-$Y53 -> 1 | AA53: 2 | AB53: =AC53-AA53 -> 1 | AC53: =SUM(AD53:AG53) -> 3 | AD53: 0 | AE53: 1 | AF53: 1 | AG53: 1
A54: 12. | B54: MANUTENÇÃO TELECOM
A55: 12.1 | B55: Técnico Telecomunicações/Eletrônica (inclusive adicional de periculosidade) | C55: T2 | D55: =D$15 -> 6 | E55: =Mem_Calculo_EQUIPE!F64 -> 1 | F55: =D55*E55 -> 6 | Y55: 4 | Z55: =AC55-$Y55 -> -3 | AA55: 2 | AB55: =AC55-AA55 -> -1 | AC55: =SUM(AD55:AG55) -> 1 | AD55: 1 | AE55: 0 | AF55: 0 | AG55: 0
A56: 13. | B56: MANUTENÇÃO - CIVIL
A57: 13.1 | B57: Técnico Pleno | C57: T2 | D57: =$D$55 -> 6 | E57: =Mem_Calculo_EQUIPE!F67 -> 4 | F57: =D57*E57 -> 24 | P57: =SUBTOTAL(9,O57:O68) -> 0 | Q57: 5
A58: 13.2 | B58: Tecnico Edificações | C58: T2 | D58: =D$15 -> 6 | E58: =Mem_Calculo_EQUIPE!F68 -> 2 | F58: 12 | Q58: 3 | Y58: 3 | Z58: =AC58-$Y58 -> 0 | AA58: 1 | AB58: =AC58-AA58 -> 2 | AC58: =SUM(AD58:AG58) -> 3 | AD58: 0 | AE58: 1 | AF58: 1 | AG58: 1
A59: 13.3 | B59: Técnico - Cadista | C59: T2 | D59: 6 | E59: =Mem_Calculo_EQUIPE!F69 -> 1 | F59: 6 | Q59: 3 | Y59: 3 | Z59: 0 | AA59: 2 | AB59: 1 | AC59: =SUM(AD59:AG59) -> 3 | AD59: 0 | AE59: 1 | AF59: 1 | AG59: 1
A60: 13.4 | B60: Topógrafo | C60: TS | D60: 6 | E60: =Mem_Calculo_EQUIPE!F70 -> 1 | F60: 6 | Q60: 1
A61: 13.5 | B61: Auxiliar de Topografia | C61: T3 | D61: 6 | E61: =Mem_Calculo_EQUIPE!F71 -> 2 | F61: 12 | Q61: 2
A62: 13.6 | B62: Carpinteiro | C62: A8 | D62: 6 | E62: =Mem_Calculo_EQUIPE!F72 -> 2 | F62: 12 | Q62: 3
A63: 13.7 | B63: Eletricista | C63: A5 | D63: 6 | E63: =Mem_Calculo_EQUIPE!F73 -> 2 | F63: 12 | Q63: 3
A64: 13.8 | B64: Ferreiro | C64: A7 | D64: 6 | E64: =Mem_Calculo_EQUIPE!F74 -> 1 | F64: 6 | Q64: 3 | R64: 2
A65: 13.9 | B65: Pedreiro | C65: A6 | D65: 6 | E65: =Mem_Calculo_EQUIPE!F75 -> 4 | F65: 24 | Q65: 7 | R65: 2
A66: 13.10 | B66: Servente | C66: A11 | D66: 6 | E66: =Mem_Calculo_EQUIPE!F76 -> 60 | F66: 360 | Q66: 124 | R66: 44
A67: 13.11 | B67: Vigia diurno | C67: A10 | D67: 6 | E67: =Mem_Calculo_EQUIPE!F77 -> 4 | F67: 24 | Q67: 6 | Y67: 4 | Z67: -4 | AA67: 2 | AB67: -2 | AC67: =SUM(AD67:AG67) -> 0 | AD67: 0 | AE67: 0 | AF67: 0 | AG67: 0
A68: 13.12 | B68: Vigia noturno | C68: A10 | D68: 6 | E68: =Mem_Calculo_EQUIPE!F78 -> 4 | F68: 24 | Q68: 6
A69: Total Geral - Equipe com Vínculo Mensalista (R$):
A71: NOME DO INFORMANTE:
A73: ASSINATURA:
A75: OBSERVAÇÕES:
A76: 1. Considerado a carga horária de 176 horas/mês
A77: 2. Os cálculos de cada parcela que compõe o salário completo foram calculadas isoladamente. (Salário Base + Adicional de Periculosidade (quando houver) + Adicional Noturno (quando houver) + Adicional de Horas Extras (quando houver) + Encargos Sociais)
A78: 3. Adicional de Periculosidade 30%: foi previsto para todos os profissionais eletricitários (Operação e Manutenção) que trabalham em contato com rede elétrica (nas estações de bombeamento, sub-estações, etc.)
A79: 4. Hora Noturna: Hora Diurna x 20%
A80: 5. Adicional Noturno: *Considerado 120 horas/profissional/mês (Total de 8h noturnas: Período de 22h as 5h = 8h noturnas + 1h até as 6h => Súmula 60 do TST) *(Incide sobre Salário Base + Periculosidade => Súmula 191 do TST)
A81: 6. Período noturno – 22 às 5 horas, o valor da hora tem 52 minutos e 30 segundos; logo, nesse período, há 8 horas
A82: 6. Foi considerado intervalo intrajornada para todos os profissionais que trabalham em escala 12h x 36h
A83: 7. Foi considerado para o cálculo de horas extras os percentuais de: *5% para as horas remuneradas a 50% sobre o valor da hora normal; e *2,5% para as horas trabalhadas remuneradas a 100% sobre o valor da hora normal
A84: 8. Horas Extras: Foi estimado um percentual de 20% de horas extras no total de contrato para todos os profissionais da manutenção. Essas horas só serão pagas se houver demanda.

Sheet Mem_Calculo_EQUIPE
B1: Ministério do Desenvolvimento Regional - MDR
B2: Companhia de Desenvolvimento dos Vales do São Francisco e do Parnaíba
B3: Gerência de Operação do PISF - Centro de Controle e Operação (AD / GOI / CCO)
A5: ='Mao_de_Obra (Total)'!A5 -> TERMO DE REFERÊNCIA PARA CONTRATAÇÃO DOS RECURSOS NECESSÁRIOS À OPERAÇÃO E MANUTENÇÃO DAS INFRAESTRUTURAS DO EIXO LESTE DO PISF - PROJETO DE INTEGRAÇÃO DO SÃO FRANCISCO COM AS BACIAS HIDROGRÁFICAS DO NORDESTE SETENTRIONAL
A8: MEMORIAL DE CÁLCULO - EQUIPE DE MÃO DE OBRA
A11: ITEM | B11: DESCRIÇÃO | C11: CLASSE | D11: LOTAÇÃO | E11: MOBILIZAÇÃO | F11: QUANTIDADE | G11: OBSERVAÇÕES
A12: 1. | B12: COORDENAÇÃO GERAL
A13: 1.1 | B13: Coordenador - Engenheiro Sênior (Civil / Eletricista / Mecânico) | C13: P0 | D13: Coordenação (à definir) | E13: Escritório | F13: 1
A15: 2. | B15: COORDENAÇÃO DA OPERAÇÃO
A16: 2.1 | B16: Coordenador Operação - Engenheiro Pleno (Civil / Eletricista / Mecânico) | C16: P1 | D16: Coordenação (à definir) | E16: Escritório | F16: 1
A18: 3. | B18: COORDENAÇÃO DA MANUTENÇÃO
A19: 3.1 | B19: Coordenador Manutenção - Engenheiro Pleno (Civil / Eletricista / Mecânico) | C19: P1 | D19: Coordenação (à definir) | E19: Escritório | F19: 1
A21: 4. | B21: COORDENAÇÃO ADMINISTRAÇÃO E LOGÍSTICA
A22: 4.1 | B22: Almoxarife | C22: CA | D22: Coordenação (à definir) | E22: Não utilliza o Escritório | F22: 1
A23: 4.2 | B23: Auxiliar Administrativo | C23: A1 | D23: Coordenação (à definir) | E23: Escritório | F23: 1
A24: 4.3 | B24: Motorista | C24: T1 | D24: Coordenação (à definir) | E24: Não utilliza o Escritório | F24: 1
A25: 4.4 | B25: Coordenador - Chefe de Escritório | C25: A3 | D25: Coordenação (à definir) | E25: Escritório | F25: 1
A26: 4.5 | B26: Técnico Pleno - Analista em Tecnologia da Informação | C26: A1 | D26: Coordenação (à definir) | E26: Escritório | F26: 1
A27: 4.6 | B27: Auxiliar de serviços gerais | C27: A9 | D27: Coordenação (à definir) | E27: Não utilliza o Escritório | F27: 6
A29: 5. | B29: SEGURANÇA E MEDICINA DO TRABALHO
A30: 5.1 | B30: Engenheiro de Segurança e Medicina do Trabalho | C30: P1 | D30: Coordenação (à definir) | E30: Escritório | F30: 1
A31: 5.2 | B31: Médico do Trabalho | C31: T2 | D31: Coordenação (à definir) | E31: Escritório | F31: 1
A32: 5.3 | B32: Técnico de Segurança e Medicina do Trabalho | C32: P2 | D32: Coordenação (à definir) | E32: Pode utilizar o escritório | F32: 1
A34: 6. | B34: PLANEJAMENTO E CONTROLE DA OPERAÇÃO
A35: 6.1 | B35: Engenheiro Pleno - (Civil / Eletricista) | C35: P1 | D35: Coordenação (à definir) | E35: Planeja / Utiliza - Escritório | F35: 1
A36: 6.2 | B36: Engenheiro Junior - (Civil / Eletricista) | C36: P2 | D36: Coordenação (à definir) | E36: Planeja / Utiliza - Escritório | F36: 1
A38: 7. | B38: PLANEJAMENTO E CONTROLE DA MANUTENÇÃO
A39: 7.1 | B39: Engenheiro Pleno | C39: P1 | D39: Coordenação (à definir) | E39: Planeja / Utiliza - Escritório | F39: 5
A40: 7.2 | B40: Engenheiro Junior | C40: P2 | D40: Coordenação (à definir) | E40: Planeja / Utiliza - Escritório | F40: 3
A41: 7.3 | B41: Técnico Pleno | C41: T2 | D41: Coordenação (à definir) | E41: Pode utilizar o escritório | F41: 3
A42: 7.4 | B42: Geólogo (Geotecnia) | C42: P1 | D42: Coordenação (à definir) | E42: Pode utilizar o escritório | F42: 1
A44: 8. | B44: OPERAÇÃO
A45: 8.1 | B45: Técnico Pleno - Eletrotécnico - Diurno (inclusive adicional de periculosidade) | C45: T2 | D45: Coordenação (à definir) | E45: Não utilliza o Escritório | F45: 12
A46: 8.2 | B46: Técnico Pleno - Eletrotécnico - Noturno (inclusive adicional de periculosidade) | C46: T2 | D46: Coordenação (à definir) | E46: Não utilliza o Escritório | F46: 12
A47: 8.3 | B47: Técnico Junior - Mecânico - Diurno (inclusive adicional de periculosidade) | C47: T2 | D47: Coordenação (à definir) | E47: Não utilliza o Escritório | F47: 12
A48: 8.4 | B48: Técnico Junior - Mecânico - Noturno (inclusive adicional de periculosidade) | C48: T2 | D48: Coordenação (à definir) | E48: Não utilliza o Escritório | F48: 12
A49: 8.5 | B49: Técnico Auxiliar (inclusive adicional de periculosidade) | C49: T3 | D49: Coordenação (à definir) | E49: Não utilliza o Escritório | F49: 3
A50: 8.6 | B50: Técnico - Profissional Sênior (N. Médio/Especializado) | C50: T0 | D50: Coordenação (à definir) | E50: Não utilliza o Escritório | F50: 3
A52: 9. | B52: MANUTENÇÃO - MECÂNICA
A53: 9.1 | B53: Técnico Pleno | C53: T2 | D53: Coordenação (à definir) | E53: Pode utilizar o escritório | F53: 3
A54: 9.2 | B54: Técnico Auxiliar | C54: T3 | D54: Coordenação (à definir) | E54: Não utilliza o Escritório | F54: 6
A56: 10. | B56: MANUTENÇÃO - EQUIPAMENTOS E SISTEMAS ELÉTRICOS
A57: 10.1 | B57: Técnico Pleno | C57: T2 | D57: Coordenação (à definir) | E57: Pode utilizar o escritório | F57: 3
A58: 10.2 | B58: Técnico Auxiliar | C58: A5 | D58: Coordenação (à definir) | E58: Não utilliza o Escritório | F58: 3
A60: 11. | B60: MANUTENÇÃO SDSC
A61: 11.1 | B61: Técnico Automação - Especialista em SDSC (inclusive adicional de periculosidade) | C61: T2 | D61: Coordenação (à definir) | E61: Não utilliza o Escritório | F61: 1
A63: 12. | B63: MANUTENÇÃO TELECOM
A64: 12.1 | B64: Técnico Telecomunicações/Eletrônica (inclusive adicional de periculosidade) | C64: T2 | D64: Coordenação (à definir) | E64: Não utilliza o Escritório | F64: 1 | G64: Equipe: 01/EIXO
A66: 13. | B66: MANUTENÇÃO - CIVIL | J66: 14 | K66: MANUTENÇÃO - CIVIL - SUBESTAÇÃO, LINHA DE TRANSMISSÃO E LINHA DE DISTRIBUIÇÃO
A67: 13.1 | B67: Técnico Pleno | C67: T2 | D67: Coordenação (à definir) | E67: Pode utilizar o escritório | F67: 4 | J67: 14.1 | K67: Tecnico Edificações - Inspeção (inclusive adicional de periculosidade) | O67: T2 | P67: 0
A68: 13.2 | B68: Tecnico Edificações | C68: T2 | D68: Coordenação (à definir) | E68: Pode utilizar o escritório | F68: 2 | J68: 14.2 | K68: Carpinteiro (inclusive adicional de periculosidade) | O68: A8 | P68: 0
A69: 13.3 | B69: Técnico - Cadista | C69: T2 | D69: Coordenação (à definir) | E69: Pode utilizar o escritório | F69: 1 | J69: 14.3 | K69: Eletricista (inclusive adicional de periculosidade) | O69: A5 | P69: 0
A70: 13.4 | B70: Topógrafo | C70: TS | D70: Coordenação (à definir) | E70: Pode utilizar o escritório | F70: 1 | J70: 14.4 | K70: Ferreiro (inclusive adicional de periculosidade) | O70: A7 | P70: 0
A71: 13.5 | B71: Auxiliar de Topografia | C71: T3 | D71: Coordenação (à definir) | E71: Não utilliza o Escritório | F71: 2 | J71: 14.5 | K71: Pedreiro (inclusive adicional de periculosidade) | O71: A6 | P71: 0
A72: 13.6 | B72: Carpinteiro | C72: A8 | D72: Coordenação (à definir) | E72: Não utilliza o Escritório | F72: 2 | J72: 14.6 | K72: Servente (inclusive adicional de periculosidade) | O72: A11 | P72: 0
A73: 13.7 | B73: Eletricista | C73: A5 | D73: Coordenação (à definir) | E73: Não utilliza o Escritório | F73: 2
A74: 13.8 | B74: Ferreiro | C74: A7 | D74: Coordenação (à definir) | E74: Não utilliza o Escritório | F74: =1+P70 -> 1
A75: 13.9 | B75: Pedreiro | C75: A6 | D75: Coordenação (à definir) | E75: Não utilliza o Escritório | F75: 4
A76: 13.10 | B76: Servente | C76: A11 | D76: Coordenação (à definir) | E76: Não utilliza o Escritório | F76: =60+P72 -> 60
A77: 13.11 | B77: Vigia diurno | C77: A10 | D77: Coordenação (à definir) | E77: Não utilliza o Escritório | F77: 4
A78: 13.12 | B78: Vigia noturno | C78: A10 | D78: Coordenação (à definir) | E78: Não utilliza o Escritório | F78: 4
A80: NOME DO INFORMANTE: | G80: QUALIFICAÇÃO:
A82: ASSINATURA: | G82: DATA:
A84: OBSERVAÇAO:

Sheet SEGURANÇA DE BARRAGENS
D1: Ministério do Desenvolvimento Regional - MDR
D2: Companhia de Desenvolvimento dos Vales do São Francisco e do Parnaíba
D3: Gerência de Operação do PISF - Centro de Controle e Operação (AD / GOI / CCO)
A5: =ORCAMENTO_RESUMO!A5 -> TERMO DE REFERÊNCIA PARA CONTRATAÇÃO DOS RECURSOS NECESSÁRIOS À OPERAÇÃO E MANUTENÇÃO DAS INFRAESTRUTURAS DO EIXO LESTE DO PISF - PROJETO DE INTEGRAÇÃO DO SÃO FRANCISCO COM AS BACIAS HIDROGRÁFICAS DO NORDESTE SETENTRIONAL
A8: SEGURANÇA DE BARRAGENS
A10: 1.0 | C10: MÃO DE OBRA - SEGURANÇA DE BARRAGENS
A11: ITEM | C11: DESCRIÇÃO | D11: CLASSE | E11: Prazo (Mês) | F11: Quantidade (undxmês) | H11: SALÁRIOS MENSAL (R$) | M11: SALÁRIOS TOTAL (R$)
H12: SALÁRIO BASE (Com Encargo) | I12: Periculosidade | J12: Adicional Noturno | L12: SALÁRIO COMPLETO (Incluindo: encargos, benefícios, adicionais e horas extras) | M12: SALÁRIO BASE (Com Encargo) | N12: Periculosidade | O12: Adicional Noturno (c/ intrajornada) | P12: SALÁRIO COMPLETO (Incluindo: encargos, adicionais e horas extras)
F13: Unitária | G13: Total | I13: 0.3 | J13: Valor da Hora Noturna | K13: Valor do Adicional Noturno (c/ intrajornada) | N13: 0.3
A14: 1.1 | C14: MÃO DE OBRA - SEGURAÇA DE BARRAGEM - LESTE
A15: 1.1.1 | C15: Engenheiro Pleno - Esp. Em Seg. de Barragem | D15: P1 | E15: 6 | F15: 1 | G15: 6
A16: 1.1.2 | C16: Engenheiro. Civil (Geotecnico) | D16: P1 | E16: 6 | F16: 1 | G16: 6
A17: 1.1.3 | C17: Engenheiro Junior - Civil | D17: P2 | E17: 6 | F17: 1 | G17: 6 | R17: ANTES P3
A18: 1.1.4 | C18: Assistente Administrativo (Assistente social) | D18: AS | E18: 6 | F18: 2 | G18: 12 | R18: ANTES T1
A19: 1.1.5 | C19: Assistente Administrativo (administrativo) | D19: A1 | E19: 6 | F19: 2 | G19: 12
A20: 1.1.6 | C20: Auxiliar Administrativo | D20: A1 | E20: 6 | F20: 1 | G20: 6
A21: 1.1.7 | C21: Topógrafo | D21: TS | E21: 6 | F21: 1 | G21: 6 | R21: ANTES T1
A22: 1.1.8 | C22: Auxiliar de Topografia | D22: T3 | E22: 6 | F22: 2 | G22: 12 | R22: ANTES T4
A23: 1.1.9 | C23: Técnico Pleno | D23: T2 | E23: 6 | F23: 1 | G23: 6
A24: Total Geral - Equipe com Vínculo Mensalista (R$):
A26: 2.0 | C26: EQUIPAMENTOS - SEGURANÇA DE BARRAGENS
A27: ITEM | B27: CÓDIGO | C27: DESCRIÇÃO | D27: UNIDADE | E27: QUANTIDADE | F27: VALOR (R$)
F28: UNITARIO | G28: TOTAL
A29: 2.1 | B29: SEGURANÇA DE BARRAGEM | T29: 12 | U29: ='ORCAMENTO_CONSOLIDADO (2)'!$K$1 -> 6
A30: 2.1.1 | B30: E9763-DNIT/PE | C30: Grupo Gerador - 32,0 kVA, 220 V, trifásico, silenciado, com 100 metros de cabos e 01 QTA. | D30: un x mês | E30: 6 | S30: 12 | T30: =S30/$T$29 -> 1 | U30: =T30*$U$29 -> 6
A31: 2.1.2 | B31: 13227 - SINAPI/PE | C31: MOTONIVELADORA POTENCIA BASICA LIQUIDA (PRIMEIRA MARCHA) 171 HP, PESO BRUTO 14768 KG, LARGURA DA LAMINA DE 3,7 M | D31: un x mês | E31: 6 | S31: 12 | T31: 1 | U31: 6
A32: 2.1.3 | B32: 36483 - SINAPI/PE | C32: ESCAVADEIRA HIDRAULICA SOBRE ESTEIRAS CACAMBA 0,40 A 1,20 M3, PESO OPERACIONAL 21,19 T, POTENCIA LIQUIDA 173 HP | D32: un x mês | E32: 6 | S32: 12 | T32: 1 | U32: 6
A33: 2.1.4 | B33: E9540-DNIT/PE | C33: Trator de esteiras, potência de 150 hp, peso operacional de 16,7 t, com roda motriz elevada e lâmina com contato de 3,18 m³. | D33: un x mês | E33: 6 | S33: 12 | T33: 1 | U33: 6
A34: 2.1.5 | B34: 89883-SINAPI/PE | C34: Cavalo Mecânico com Reboque M. Benz Randon LS-1634/45 29,5 t, ou similar | D34: un x mês | E34: 6 | S34: 12 | T34: 1 | U34: 6
A35: 2.1.6 | B35: E9685-DNIT/PE | C35: Rolo compactador pé-de-carneiro vibratório, potência 125 hp, peso operacional sem/com lastro 11,95/13,30 t, impacto dinâmico 38,5/22,5 t, largura de trabalho 2,15 m. | D35: un x mês | E35: 6 | S35: 12 | T35: 1 | U35: 6
A36: 2.1.7 | B36: E9043-DNIT/PE | C36: Embarcação de alumínio com comprimento de 6 m e motor de popa - 18,60 kW (inclusive barqueiro) | D36: un x mês | E36: 18 | S36: 36 | T36: 3 | U36: 18
A37: 2.1.8 | B37: A9382-DNIT/PE | C37: Dolly intermediário com 2 eixos para semirreboque (para embarcação) | D37: un x mês | E37: 18 | S37: 36 | T37: 3 | U37: 18
A38: TOTAL - EQUIPAMENTOS DE SEGURANÇA DE BARRAGENS | G38: 0
A41: 3.0 | C41: VEÍCULOS - SEGURANÇA DE BARRAGENS
A42: ITEM | B42: CÓDIGO | C42: DESCRIÇÃO | D42: UNIDADE | E42: QUANTIDADE | F42: VALOR (R$)
F43: UNITARIO | G43: TOTAL
A44: 3.1 | C44: VEÍCULOS AUTOMOTORES
A45: 3.1.1 | B45: B4 | C45: TIPO SEDAN 1.6 FLEX (115CV) | D45: un x mês | E45: 6 | S45: 12 | T45: =S45/$T$29 -> 1 | U45: =T45*$U$29 -> 6
A46: 3.1.2 | B46: B11 | C46: Veículo Tipo Pick Up Cabine Dupla 4 x 4 (163 CV) | D46: un x mês | E46: 6 | S46: 12 | T46: =S46/$T$29 -> 1 | U46: =T46*$U$29 -> 6
A47: TOTAL - VEÍCULOS AUTOMOTORES - (R$):
A49: TOTAL - SEGURANÇA DE BARRAGENS | G49: 0

Sheet Mao_de_Obra (SEG.BARRAGENS)
C1: Ministério do Desenvolvimento Regional - MDR
C2: Companhia de Desenvolvimento dos Vales do São Francisco e do Parnaíba
C3: Gerência de Operação do PISF - Centro de Controle e Operação (AD / GOI / CCO)
A5: =ORCAMENTO_RESUMO!A5 -> TERMO DE REFERÊNCIA PARA CONTRATAÇÃO DOS RECURSOS NECESSÁRIOS À OPERAÇÃO E MANUTENÇÃO DAS INFRAESTRUTURAS DO EIXO LESTE DO PISF - PROJETO DE INTEGRAÇÃO DO SÃO FRANCISCO COM AS BACIAS HIDROGRÁFICAS DO NORDESTE SETENTRIONAL
A8: EQUIPE - MÃO DE OBRA (SEGURANÇA DE BARRAGENS)
A10: ITEM | B10: CÓDIGO | C10: DESCRIÇÃO | D10: UNIDADE | E10: QUANTIDADE | F10: VALOR (R$)
F11: UNITARIO | G11: TOTAL
A12: 1. | C12: EQUIPE - MÃO DE OBRA (SEGURANÇA DE BARRAGENS) | J12: 12 | K12: ='ORCAMENTO_CONSOLIDADO (2)'!$K$1 -> 6
A13: 1.1 | B13: P1 | C13: Engenheiro Pleno - Esp. Em Seg. de Barragem | D13: homem x mês | E13: 6 | I13: 12 | J13: =I13/$J$12 -> 1
A14: 1.2 | B14: P1 | C14: Engenheiro. Civil (Geotecnico) | D14: homem x mês | E14: 6 | I14: 12 | J14: =I14/$J$12 -> 1
A15: 1.3 | B15: P2 | C15: Engenheiro Junior - Civil | D15: homem x mês | E15: 6 | I15: 12 | J15: 1
A16: 1.4 | B16: A1 | C16: Assistente Administrativo (Assistente social) | D16: homem x mês | E16: 12 | I16: 24 | J16: 2
A17: 1.5 | B17: AS | C17: Assistente Administrativo (administrativo) | D17: homem x mês | E17: 12 | I17: 24 | J17: 2
A18: 1.6 | B18: A1 | C18: Auxiliar Administrativo | D18: homem x mês | E18: 6 | I18: 12 | J18: 1
A19: 1.7 | B19: TS | C19: Topógrafo | D19: homem x mês | E19: 6 | I19: 12 | J19: 1
A20: 1.8 | B20: T3 | C20: Auxiliar de Topografia | D20: homem x mês | E20: 12 | I20: 24 | J20: 2
A21: 1.9 | B21: T2 | C21: Técnico Pleno | D21: homem x mês | E21: 6 | I21: 12 | J21: 1
A22: TOTAL - EQUIPE - MÃO DE OBRA (SEGURANÇA DE BARRAGENS) - (R$):
A25: RESUMO - EQUIPE - MÃO DE OBRA (SEGURANÇA DE BARRAGENS)
A26: ITEM | C26: DESCRIÇÃO | F26: VALOR TOTAL (R$)
A27: 1 | C27: EQUIPE - MÃO DE OBRA (SEGURANÇA DE BARRAGENS)
A28: TOTAL GERAL - EQUIPE - MÃO DE OBRA (SEGURANÇA DE BARRAGENS) - (R$):
A31: NOME DO INFORMANTE: | F31: QUALIFICAÇÃO:
A33: ASSINATURA: | F33: DATA:
A35: OBSERVAÇÕES:
A36: 1. Considerado a carga horária de 176 horas/mês
A37: 2. Os cálculos de cada parcela que compõe o salário completo foram calculadas isoladamente. (Salário Base + Adicional de Periculosidade (quando houver) + Adicional Noturno (quando houver) + Adicional de Horas Extras (quando houver) + Encargos Sociais)
A39: 3. Adicional de Periculosidade 30%: foi previsto para todos os profissionais eletricitários (Operação e Manutenção) que trabalham em contato com rede elétrica (nas estações de bombeamento, sub-estações, etc.)
A41: 4. Hora Noturna: Hora Diurna x 20%
A42: 5. Adicional Noturno: *Considerado 120 horas/profissional/mês (Total de 8h noturnas: Período de 22h as 5h = 8h noturnas + 1h até as 6h => Súmula 60 do TST) *(Incide sobre Salário Base + Periculosidade => Súmula 191 do TST)
A44: 6. Período noturno – 22 às 5 horas, o valor da hora tem 52 minutos e 30 segundos; logo, nesse período, há 8 horas
A45: 7. Foi considerado intervalo intrajornada para todos os profissionais que trabalham em escala 12h x 36h

Sheet MEM_CALCULO_SEG DE BARRAGENS
C1: Ministério do Desenvolvimento Regional - MDR
C2: Companhia de Desenvolvimento dos Vales do São Francisco e do Parnaíba
C3: Gerência de Operação do PISF - Centro de Controle e Operação (AD / GOI / CCO)
A5: =ORCAMENTO_RESUMO!A5 -> TERMO DE REFERÊNCIA PARA CONTRATAÇÃO DOS RECURSOS NECESSÁRIOS À OPERAÇÃO E MANUTENÇÃO DAS INFRAESTRUTURAS DO EIXO LESTE DO PISF - PROJETO DE INTEGRAÇÃO DO SÃO FRANCISCO COM AS BACIAS HIDROGRÁFICAS DO NORDESTE SETENTRIONAL
A8: MEMÓRIA DE CÁLCULO - EQUIPE - MÃO DE OBRA (SEGURANÇA DE BARRAGENS)
A10: ITEM | C10: DESCRIÇÃO | D10: CLASSE | E10: LOTAÇÃO | F10: MOBILIZAÇÃO | G10: QUANTIDADE | H10: OBSERVAÇÕES
A13: 1.0 | C13: MÃO DE OBRA - SEGURAÇA DE BARRAGEM - LESTE
A14: 1.1 | C14: Engenheiro Sênior - Esp. Em Seg. de Barragem | D14: P1 | E14: Coordenação (à definir) | F14: Pode utilizar o escritório | G14: =J14-K14 -> 1 | H14: Equipe: 1/EIXO | J14: 1
A15: 1.2 | C15: Engenheiro. Civil (Geotecnico) | D15: P1 | E15: Coordenação (à definir) | F15: Pode utilizar o escritório | G15: =J15-K15 -> 1 | H15: Equipe: 1/EIXO | J15: 1
A16: 1.3 | C16: Engenheiro Junior - Civil | D16: P2 | E16: Coordenação (à definir) | F16: Pode utilizar o escritório | G16: 1 | H16: Equipe: 1/EIXO | J16: 1
A17: 1.4 | C17: Assistente Administrativo (Assistente social) | D17: AS | E17: Coordenação (à definir) | F17: Pode utilizar o escritório | G17: 2 | H17: Equipe: 1/TRECHO | J17: 2
A18: 1.5 | C18: Assistente Administrativo (administrativo) | D18: A1 | E18: Coordenação (à definir) | F18: Pode utilizar o escritório | G18: 2 | H18: Equipe: 1/TRECHO | J18: 2
A19: 1.6 | C19: Auxiliar Administrativo | D19: A1 | E19: Coordenação (à definir) | F19: Pode utilizar o escritório | G19: 1 | H19: Inserido no item 3.0 | J19: 1
A20: 1.7 | C20: Topógrafo | D20: TS | E20: Coordenação (à definir) | F20: Pode utilizar o escritório | G20: 1 | H20: Equipe: 1/TRECHO | J20: 2 | K20: 1
A21: 1.8 | C21: Auxiliar de Topografia | D21: T3 | E21: Coordenação (à definir) | F21: Não utilliza o Escritório | G21: 2 | H21: Equipe: 2/TRECHO | J21: 4 | K21: 2
A22: 1.9 | C22: Técnico Pleno | D22: T2 | E22: Coordenação (à definir) | F22: Pode utilizar o escritório | G22: 1 | H22: Equipe: 1/EIXO | J22: 1
A24: 2. | C24: MÃO DE OBRA - SEGURAÇA DE BARRAGEM - LESTE
A25: 2.1 | B25: B11 | C25: Veículo Tipo Pick Up Cabine Dupla 4 x 4 (163 CV) | D25: 12 | E25: =J25-K25 -> 1 | F25: =E25*D25 -> 12 | J25: 2 | K25: 1
A26: 2.2 | B26: B4 | C26: TIPO SEDAN 1.6 FLEX (115CV) | D26: 12 | E26: =J26-K26 -> 1 | F26: =E26*D26 -> 12 | J26: 2 | K26: 1
A27: TOTAL DE VEÍCULOS - MÃO DE OBRA - SEGURAÇA DE BARRAGEM - NORTE : | E27: =SUM(E25:E26) -> 2 | F27: =SUM(F25:F26) -> 24

Sheet CPU_SALARIOS
D1: Ministério do Desenvolvimento Regional - MDR
D2: Companhia de Desenvolvimento dos Vales do São Francisco e do Parnaíba
D3: Gerência de Operação do PISF - Centro de Controle e Operação (AD / GOI / CCO)
A5: =Mem_Calculo_EQUIPE!A5 -> TERMO DE REFERÊNCIA PARA CONTRATAÇÃO DOS RECURSOS NECESSÁRIOS À OPERAÇÃO E MANUTENÇÃO DAS INFRAESTRUTURAS DO EIXO LESTE DO PISF - PROJETO DE INTEGRAÇÃO DO SÃO FRANCISCO COM AS BACIAS HIDROGRÁFICAS DO NORDESTE SETENTRIONAL
A8: MEMORIAL DE CÁLCULO - SALÁRIOS
A11: ITEM | D11: CLASSE | E11: PROFISSIONAL | F11: SALÁRIO
F12: HORISTA | G12: MENSALISTA
F13: COM ENCARGO | G13: VALOR BASE | H13: COM ENCARGO
A14: 1 | B14: Sicro | C14: P9955 | D14: P0.1 | E14: Engenheiro - Profissional Sênior c/ Encargos Complementares (N. Superior - Formação: 10 anos < T; mais de 5 anos de experiencia na função de Cooredenador)
A15: 2 | B15: Sicro | C15: P9955 | D15: P0 | E15: Engenheiro - Profissional Sênior c/ Encargos Complementares (N. Superior - Formação: 10 anos < T )
A16: 3 | B16: Sicro | C16: P9819 | D16: P1 | E16: Engenheiro - Profissional Pleno c/ Encargos Complementares (N. Superior - Formação: 5 anos < T )
A17: 4 | B17: Sicro | C17: P9946 | D17: P2 | E17: Engenheiro - Profissional Junior c/ Encargos Complementares (N. Superior - Formação: 2 anos < T )
A18: 5 | B18: Sicro | C18: P9949 | D18: TS | E18: Topógrafo (N. Médio/Especializado - Formação: 5 anos < T )
A19: 6 | B19: Sicro | C19: P9840 | D19: T0 | E19: Técnico - Profissional Sênior (N. Médio/Especializado - Formação: 10 anos < T )
A20: 7 | B20: Sicro | C20: P9867 | D20: T1 | E20: Técnico TI (N. Médio/Especializado - Formação: 2 anos < T)
A21: 8 | B21: Sicro | C21: P9867 | D21: T2 | E21: Auxiliar Tecnico / Assistente de Engenharia com Encargos Complementares (N. Médio/Especializado - Formação: 2 anos < T )
A22: 9 | B22: Sicro | C22: P9950 | D22: T3 | E22: Auxiliar de Topografia/Técnico auxiliar (N. Médio)
A23: 10 | B23: Sicro | C23: P9883 | D23: AS | E23: Assistene Social (usado o custo de referência do setor administrativo)(N. Superior - Formação: 2 anos < T )
A24: 11 | B24: Sicro | C24: P9826 | D24: CA | E24: Coordenador Administrativo - Chefe do setor administrativo (Chefe de Escritório) (N. Superior - Formação: 2 anos < T )
A25: 12 | B25: Sicro | C25: P9806 | D25: A1 | E25: Auxiliar administrativo com Encargos Complementares
A26: 13 | B26: Sinapi | C26: 101377 | D26: A2 | E26: Mobilizador - Ajudante de Operação em Geral com Encargos Complementares (N. Médio)
A27: 14 | B27: Sinapi | C27: 101422 | D27: A3 | E27: Motorista de Carro com Encargos Complementares (N. Elementar)
A28: 15 | B28: Sinapi | C28: 100316 | D28: A4 | E28: AUXILIAR DE ALMOXARIFE COM ENCARGOS COMPLEMENTARES
A29: 16 | B29: Sinapi | C29: 101399 | D29: A5 | E29: ELETRICISTA COM ENCARGOS COMPLEMENTARES
A30: 17 | B30: Sinapi | C30: 101445 | D30: A6 | E30: PEDREIRO COM ENCARGOS COMPLEMENTARES
A31: 18 | B31: Sinapi | C31: 101381 | D31: A7 | E31: ARMADOR COM ENCARGOS COMPLEMENTARES
A32: 19 | B32: Sinapi | C32: 101397 | D32: A8 | E32: CARPINTEIRO DE FORMAS COM ENCARGOS COMPLEMENTARES
A33: 20 | B33: Sinapi | C33: 101388 | D33: A9 | E33: Auxiliar de Serviços Gerais com Encargos Complementares (Limpeza / Copa) (N. Elementar)
A34: 21 | B34: Sinapi | C34: 101460 | D34: A10 | E34: VIGIA DIURNO COM ENCARGOS COMPLEMENTARES
A35: 22 | B35: Sinapi | C35: 101452 | D35: A11 | E35: SERVENTE DE OBRAS COM ENCARGOS COMPLEMENTARES
A36: 23 | B36: Sicro | C36: P9867* | D36: T2*(SA) | E36: Auxiliar Tecnico / Assistente de Engenharia com Encargos Complementares (N. Médio/Especializado - Formação: 5 anos < T )
A37: 24 | B37: Sicro | C37: P9950* | D37: T3*(SA) | E37: Técnico - Auxiliar (N. Elementar)
A38: 25 | B38: Sicro | C38: P9819* | D38: P1*(SA) | E38: Engenheiro - Profissional Pleno c/ Encargos Complementares (N. Superior - Formação: 5 anos < T ) | J38: =SUM(H14:H38) -> 0
A42: NOME DO INFORMANTE: | G42: QUALIFICAÇÃO:
A44: ASSINATURA: | G44: DATA:
A46: OBSERVAÇAO:
A47: 1. Fonte de Preços: Sinapi 04-2022 ; Sicro 01-2022
A48: *(SA)Profissionais com regime de sobreaviso
A49: *consideração de | C49: 176 | D49: horas por mês

Sheet Encargos Sociais e Benefícios
B1: Ministério do Desenvolvimento Regional - MDR
B2: Companhia de Desenvolvimento dos Vales do São Francisco e do Parnaíba
B3: Gerência de Operação do PISF - Centro de Controle e Operação (AD / GOI / CCO)
A5: =CPU_SALARIOS!A5 -> TERMO DE REFERÊNCIA PARA CONTRATAÇÃO DOS RECURSOS NECESSÁRIOS À OPERAÇÃO E MANUTENÇÃO DAS INFRAESTRUTURAS DO EIXO LESTE DO PISF - PROJETO DE INTEGRAÇÃO DO SÃO FRANCISCO COM AS BACIAS HIDROGRÁFICAS DO NORDESTE SETENTRIONAL
A8: ENCARGOS SOCIAIS E TRABALHISTAS E BENEFÍCIOS
A11: ITEM | B11: DESCRIÇÃO | C11: Mensalista Diurno
A12: 1.0 Encargos sociais - SISTEMA NACIONAL DE PESQUISA DE CUSTOS E ÍNDICES DA CONSTRUÇÃO CIVIL - Pernambuco - 2022
A13: GRUPO "A" | C13: %
A14: A1 | B14: INSS (Art. 22 inciso I da Lei 8.212/91) | C14: 0.2
A15: A2 | B15: SESC/SESI (Art. 3° da Lei 8036/90) | C15: 0.015
A16: A3 | B16: SENAC/SENAI (Decreto 2.318/86) | C16: 0.01
A17: A4 | B17: INCRA (Lei 7787 de 30/06/890e DL 1146/70) | C17: 0.002
A18: A5 | B18: SEBRAE (Art. 8° Lei 8029/90 e 8154 de 28/12/90) | C18: 0.006
A19: A6 | B19: Salário Educação (Art. 3° inciso I Decreto 87.043/) | C19: 0.025
A20: A7 | B20: Seguro contra Acidentes de Trabalho (Decreto 3.048/1999, Anexo V e Decreto 6.957/2009) | C20: 0.03
A21: A8 | B21: FGTS (Art. 15 da Lei 8030/90 art. 7° inciso III CF/88) | C21: 0.08
A22: A8 | B22: SECONCI | C22: -
A23: ="TOTAL - "&A13&" - (%):" -> TOTAL - GRUPO "A" - (%): | C23: =SUM(C14:C22) -> 0.368
A25: GRUPO "B" | C25: %
A26: B1 | B26: Repouso semanal remunerado | C26: -
A27: B2 | B27: Feriados | C27: -
A28: B3 | B28: Auxílio Enfermidade | C28: 0.0066
A29: B4 | B29: 13º Salário | C29: 0.0833
A30: B5 | B30: Licença Paternidade Faltas justificadas | C30: 0.0006
A31: B6 | B31: Faltas Justificadas | C31: 0.0056
A32: B7 | B32: Dias de Chuva | C32: -
A33: B8 | B33: Auxílio Acidente de Trabalho | C33: 0.0008
A34: B9 | B34: Férias Gozadas | C34: 0.0678
A35: B10 | B35: Salário Maternidade | C35: 0.0002
A36: ="TOTAL - "&A25&" - (%):" -> TOTAL - GRUPO "B" - (%): | C36: =SUM(C26:C35) -> 0.1649
A38: GRUPO "C" | C38: %
A39: C1 | B39: Aviso Prévio Indenizado | C39: 0.0363
A40: C2 | B40: Aviso Prévio Trabalhado | C40: 0.0009
A41: C3 | B41: Férias Indenizadas | C41: 0.0362
A42: C4 | B42: Depósito Rescisão sem Justa Causa | C42: 0.0259
A43: C5 | B43: Indenização Adicional | C43: 0.0031
A44: ="TOTAL - "&A38&" - (%):" -> TOTAL - GRUPO "C" - (%): | C44: =SUM(C39:C43) -> 0.1024
A46: GRUPO "D" | C46: %
A47: D1 | B47: Reincidência de Grupo A sobre Grupo B | C47: 0.0606832
A48: D2 | B48: Reincidência de Grupo A sobre C2 e Reincidência de A8 sobre C1 | C48: 0.0032352
A49: ="TOTAL - "&A46&" - (%):" -> TOTAL - GRUPO "D" - (%): | C49: =SUM(C47:C48) -> 0.0639184
A51: GRUPO "E" | C51: %
A52: E1 | B52: Auxílio Alimentação | C52: 0.04
A53: E2 | B53: Equipamento de Proteção Individual - EPI | C53: 0.013
A54: E3 | B54: Consultas e exames Médicos | C54: 0.005
A55: E4 | B55: Seguro de Vida | C55: 0
A56: ="TOTAL - "&A51&" - (%):" -> TOTAL - GRUPO "E" - (%): | C56: =SUM(C52:C55) -> 0.058
A58: RESUMO - 1.0 Encargos sociais - SISTEMA NACIONAL DE PESQUISA DE CUSTOS E ÍNDICES DA CONSTRUÇÃO CIVIL - Pernambuco - 2022
A59: ITEM | B59: DESCRIÇÃO | C59: %
A60: 1 | B60: =A13 -> GRUPO "A" | C60: =C23 -> 0.368
A61: 2 | B61: =A25 -> GRUPO "B" | C61: =C36 -> 0.1649
A62: 3 | B62: =A38 -> GRUPO "C" | C62: =C44 -> 0.1024
A63: 4 | B63: =A46 -> GRUPO "D" | C63: =C49 -> 0.0639184
A64: 5 | B64: =A51 -> GRUPO "E" | C64: =C56 -> 0.058
A65: ="TOTAL - "&A58&" - (%):" -> TOTAL - RESUMO - 1.0 Encargos sociais - SISTEMA NACIONAL DE PESQUISA DE CUSTOS E ÍNDICES DA CONSTRUÇÃO CIVIL - Pernambuco - 2022 - (%): | C65: =SUM(C60:C64) -> 0.7572184
A66: OBS: Utilizando os valores dos encargos complementares do SINAPI-PE 12/21 para os itens alimentação, EPI, seguro e exames, os menores indices encontrados respectivamentes são 8,80%, 2,32%, 3,12% e 0%. Então foi aplicado para todos os profissionais de referência SINAPI os indices do contrato vigente de O&M (nº 0.086.00/2019) que são 4,00%, 1,3% e 0,5%.
A69: 2.0 Encargos sociais - SISTEMA DE CUSTOS REFERENCIAIS DE OBRAS - SICRO - Pernambuco - 2022
A70: Os encargos sociais variam para cada categoria profissional
A71: NOME DO INFORMANTE: | C71: QUALIFICAÇÃO:
A73: ASSINATURA: | C73: DATA:
A75: OBSERVAÇÃO:
A76: 1. Fonte: Sistema Nacional de Pesquisa de Custos e Índices da Construção (Tablea SINAPI - Composição de Encargos Sociais); SISTEMA DE CUSTOS REFERENCIAIS DE OBRAS - SICRO (Tabela SICRO - Relatório Sintético de Encargos Sociais).
A77: 2. Os percentuais dos encargos previdenciários e FGTS, a serem preenchidos na coluna %, são aqueles estabelecidos pela legislação vigente, incidentes sobre a remuneração

Sheet CPU_Viagens
B1: Ministério do Desenvolvimento Regional - MDR
B2: Companhia de Desenvolvimento dos Vales do São Francisco e do Parnaíba
B3: Gerência de Operação do PISF - Centro de Controle e Operação (AD / GOI / CCO)
A5: =[2]Viagens_Diárias!A5 -> TERMO DE REFERÊNCIA PARA CONTRATAÇÃO DOS RECURSOS NECESSÁRIOS À OPERAÇÃO E MANUTENÇÃO DAS INFRAESTRUTURAS DO EIXO LESTE DO PISF - PROJETO DE INTEGRAÇÃO DO SÃO FRANCISCO COM AS BACIAS HIDROGRÁFICAS DO NORDESTE SETENTRIONAL
A8: MEMORIAL DE CÁLCULO - VIAGENS
A11: ITEM | B11: ORIGEM | C11: DESTINO | D11: COMPANHIA | E11: VALOR (R$)
E12: TAXA | F12: TRECHO | G12: TOTAL
A13: 1. | B13: PASSAGENS AÉREAS
A14: 1.1 | B14: Brasília (BSB) | C14: Curitiba (CWB) | D14: LATAM
A15: 1.2 | B15: Brasília (BSB) | C15: Rio de Janeiro (GIG) | D15: LATAM
A16: 1.3 | B16: Brasília (BSB) | C16: São Paulo (GRU) | D16: LATAM
A17: 1.4 | B17: Brasília (BSB) | C17: Juazeiro do Norte (JDO) | D17: LATAM
A18: 1.5 | B18: Brasília (BSB) | C18: Petrolina (PNZ) | D18: LATAM
A19: 1.6 | B19: Brasília (BSB) | C19: Porto Alegre (POA) | D19: LATAM
A20: 1.7 | B20: Brasília (BSB) | C20: Recife (REC) | D20: LATAM
A21: 1.8 | B21: Brasília (BSB) | C21: Salvador (SSA) | D21: GOL
A22: 1.9 | B22: Curitiba (CWB) | C22: Rio de Janeiro (GIG) | D22: LATAM
A23: 1.10 | B23: Curitiba (CWB) | C23: São Paulo (GRU) | D23: LATAM
A24: 1.11 | B24: Curitiba (CWB) | C24: Juazeiro do Norte (JDO) | D24: LATAM
A25: 1.12 | B25: Curitiba (CWB) | C25: Petrolina (PNZ) | D25: LATAM
A26: 1.13 | B26: Curitiba (CWB) | C26: Porto Alegre (POA) | D26: AZUL
A27: 1.14 | B27: Curitiba (CWB) | C27: Recife (REC) | D27: LATAM
A28: 1.15 | B28: Curitiba (CWB) | C28: Salvador (SSA) | D28: LATAM
A29: 1.16 | B29: Rio de Janeiro (GIG) | C29: São Paulo (GRU) | D29: LATAM
A30: 1.17 | B30: Rio de Janeiro (GIG) | C30: Juazeiro do Norte (JDO) | D30: LATAM
A31: 1.18 | B31: Rio de Janeiro (GIG) | C31: Petrolina (PNZ) | D31: LATAM
A32: 1.19 | B32: Rio de Janeiro (GIG) | C32: Porto Alegre (POA) | D32: LATAM
A33: 1.20 | B33: Rio de Janeiro (GIG) | C33: Recife (REC) | D33: LATAM
A34: 1.21 | B34: Rio de Janeiro (GIG) | C34: Salvador (SSA) | D34: GOL
A35: 1.22 | B35: São Paulo (GRU) | C35: Juazeiro do Norte (JDO) | D35: LATAM
A36: 1.23 | B36: São Paulo (GRU) | C36: Petrolina (PNZ) | D36: GOL
A37: 1.24 | B37: São Paulo (GRU) | C37: Porto Alegre (POA) | D37: LATAM
A38: 1.25 | B38: São Paulo (GRU) | C38: Recife (REC) | D38: LATAM
A39: 1.26 | B39: São Paulo (GRU) | C39: Salvador (SSA) | D39: LATAM
A40: 1.27 | B40: Juazeiro do Norte (JDO) | C40: Porto Alegre (POA) | D40: AZUL
A41: 1.28 | B41: Juazeiro do Norte (JDO) | C41: Recife (REC) | D41: AZUL
A42: 1.29 | B42: Juazeiro do Norte (JDO) | C42: Salvador (SSA) | D42: AZUL
A43: 1.30 | B43: Petrolina (PNZ) | C43: Porto Alegre (POA) | D43: GOL
A44: 1.31 | B44: Petrolina (PNZ) | C44: Recife (REC) | D44: AZUL
A45: 1.32 | B45: Petrolina (PNZ) | C45: Salvador (SSA) | D45: GOL
A46: 1.33 | B46: Porto Alegre (POA) | C46: Recife (REC) | D46: LATAM
A47: 1.34 | B47: Porto Alegre (POA) | C47: Salvador (SSA) | D47: GOL
A48: 1.35 | B48: Recife (REC) | C48: Salvador (SSA) | D48: AZUL
A49: VALOR MÉDIO - PASSAGENS AÉREAS - (R$):
A51: 2. | B51: PASSAGENS TERRESTRES
A52: 2.1 | B52: Brasília (BSB) | C52: Curitiba (CWB) | D52: Real Expresso
A53: 2.2 | B53: Brasília (BSB) | C53: Rio de Janeiro (GIG) | D53: GIPSYY
A54: 2.3 | B54: Brasília (BSB) | C54: São Paulo (GRU) | D54: Real Expresso
A55: 2.4 | B55: Brasília (BSB) | C55: Juazeiro do Norte (JDO) | D55: Guanabara
A56: 2.5 | B56: Brasília (BSB) | C56: Petrolina (PNZ) | D56: Guanabara
A57: 2.6 | B57: Brasília (BSB) | C57: Porto Alegre (POA) | D57: Real Expresso
A58: 2.7 | B58: Brasília (BSB) | C58: Recife (REC) | D58: Expresso São Luiz
A59: 2.8 | B59: Brasília (BSB) | C59: Salvador (SSA) | D59: Rápido Federal
A60: 2.9 | B60: Curitiba (CWB) | C60: Rio de Janeiro (GIG) | D60: Penha
A61: 2.10 | B61: Curitiba (CWB) | C61: São Paulo (GRU) | D61: Penha
A62: 2.11 | B62: Curitiba (CWB) | C62: Porto Alegre (POA) | D62: Penha
A63: 2.12 | B63: Rio de Janeiro (GIG) | C63: São Paulo (GRU) | D63: Aguia Branca
A64: 2.13 | B64: Rio de Janeiro (GIG) | C64: Porto Alegre (POA) | D64: Penha
A65: 2.14 | B65: Rio de Janeiro (GIG) | C65: Recife (REC) | D65: Gontijo
A66: 2.15 | B66: Rio de Janeiro (GIG) | C66: Salvador (SSA) | D66: Aguia Branca
A67: 2.16 | B67: São Paulo (GRU) | C67: Porto Alegre (POA) | D67: Penha
A68: 2.17 | B68: São Paulo (GRU) | C68: Recife (REC) | D68: Itapemirim
A69: 2.18 | B69: Juazeiro do Norte (JDO) | C69: Recife (REC) | D69: Progresso
A70: 2.19 | B70: Petrolina (PNZ) | C70: Recife (REC) | D70: Progresso
A71: 2.20 | B71: Petrolina (PNZ) | C71: Salvador (SSA) | D71: Aguia Branca
A72: 2.21 | B72: Recife (REC) | C72: Salvador (SSA) | D72: Guanabara
A73: 2.22 | B73: Brasília (BSB) | C73: Salgueiro (SGI) | D73: Guanabara
A74: 2.23 | B74: Petrolina (PNZ) | C74: Salgueiro (SGI) | D74: Progresso
A75: 2.24 | B75: Recife (REC) | C75: Salgueiro (SGI) | D75: Progresso
A76: VALOR MÉDIO - PASSAGENS TERRESTRES - (R$):
A79: RESUMO - MEMORIAL DE CÁLCULO - VIAGENS
A80: ITEM | B80: DESCRIÇÃO | F80: VALOR TOTAL (R$)
A81: 1 | B81: PASSAGENS AÉREAS
A82: 2 | B82: PASSAGENS TERRESTRES
A83: MÉDIA GERAL - MEMORIAL DE CÁLCULO - VIAGENS - (R$):
A85: NOME DO INFORMANTE: | F85: QUALIFICAÇÃO:
A87: ASSINATURA: | F87: DATA:
A89: OBSERVAÇÃO:
A90: 1. Fonte de Preço: www.decolar.com. Considerando menores preços e companhias aéreas para registro do preço.
A91: 2. Data de pesquisa: 12/01/2022 .
A92: 3. Fonte de Preço: www.clickbus.com.br. Considerando menores preços e companhias aéreas para registro do preço.
A93: 4. Diárias - Fonte www.Booking.com - Considerando os menores preços

Sheet Frentes_Moveis
C1: Ministério do Desenvolvimento Regional - MDR
C2: Companhia de Desenvolvimento dos Vales do São Francisco e do Parnaíba
C3: Gerência de Operação do PISF - Centro de Controle e Operação (AD / GOI / CCO)
A5: =CPU_Viagens!A5 -> TERMO DE REFERÊNCIA PARA CONTRATAÇÃO DOS RECURSOS NECESSÁRIOS À OPERAÇÃO E MANUTENÇÃO DAS INFRAESTRUTURAS DO EIXO LESTE DO PISF - PROJETO DE INTEGRAÇÃO DO SÃO FRANCISCO COM AS BACIAS HIDROGRÁFICAS DO NORDESTE SETENTRIONAL
A8: FRENTES MÓVEIS DE LIMPEZA E CONSERVAÇÃO
A11: ITEM | B11: ITEM | C11: DESCRIÇÃO | D11: UNIDADE | E11: QUANTIDADE | F11: VALOR (R$)
F12: UNITARIO | G12: TOTAL
A13: 1. | C13: FRENTES MÓVEIS DE LIMPEZA E CONSERVAÇÃO | K13: 12 | L13: ='ORCAMENTO_CONSOLIDADO (2)'!$K$1 -> 6
A14: 1.1 | B14: Banco de Preços (PREGÃO ELETRÔNICO - MUNICÍPIO DE FÁTIMA/BA, 05/2022) | C14: Tenda Piramidal 5m x 5m (para refeitório) | D14: un x mês | E14: 48 | J14: 96 | K14: =J14/$K$13 -> 8 | L14: =K14*$L$13 -> 48
A15: 1.2 | B15: F099722405/EMBASA | C15: Tenda Piramidal 3m x 3m | D15: un x mês | E15: 48 | J15: 96 | K15: =J15/$K$13 -> 8 | L15: =K15*$L$13 -> 48
A16: 1.3 | B16: 10390 - ORSE/SE | C16: Banheiro Químico, com 03 limpezas semanais | D16: un x mês | E16: 120 | J16: 240 | K16: 20 | L16: 120
A17: TOTAL - FRENTES MÓVEIS DE LIMPEZA E CONSERVAÇÃO - (R$):
A19: RESUMO - FRENTES MÓVEIS DE LIMPEZA E CONSERVAÇÃO
A20: ITEM | C20: DESCRIÇÃO | F20: VALOR TOTAL (R$)
A21: 01 | C21: FRENTES MÓVEIS DE LIMPEZA E CONSERVAÇÃO
A22: TOTAL GERAL - FRENTES MÓVEIS DE LIMPEZA E CONSERVAÇÃO - (R$):
A24: NOME DO INFORMANTE: | F24: QUALIFICAÇÃO:
A26: ASSINATURA: | F26: DATA:
A28: Observações
A30: art. 305 do RIR/1999 esclarece que: "Art. 305. Poderá ser computada, como custo ou encargo, em cada período de apuração, a importância correspondente à diminuição do valor dos bens do ativo resultante do desgaste pelo uso, ação da natureza e obsolescência normal (Lei nº 4.506, de 1964, art. 57)."
A35: Instrução Normativa da Secretaria da Receita Federal (SRF)
A36: Da | B36: Depreciação | C36: Da = (VN - VR) / N
A37: VN | B37: Valor Novo
A38: VR | B38: Valor Residual
A39: N | B39: Vída útil (anos)
A41: DADOS - Frentes móveis | D41: CONSIDERAÇÕES
A42: Depreciação anual (%) | C42: 0.4
A43: Vida últil (anos) | C43: 2.5
A45: DESCRIÇÃO | D45: Valor de aquisição (R$) | E45: Valor com depreciação (R$)
A46: und | B46: COT_TP1 | C46: Tenda Piramidal 5m x 5m (para refeitório)
A47: und | B47: COT_TP2 | C47: Tenda Piramidal 3m x 3m
A48: 1. Valor unitário final = (Depreciação anual) / (Tempo de contrato)

Sheet Viagens_Diárias
C1: Ministério do Desenvolvimento Regional - MDR
C2: Companhia de Desenvolvimento dos Vales do São Francisco e do Parnaíba
C3: Gerência de Operação do PISF - Centro de Controle e Operação (AD / GOI / CCO)
A5: ='Encargos Sociais e Benefícios'!A5 -> TERMO DE REFERÊNCIA PARA CONTRATAÇÃO DOS RECURSOS NECESSÁRIOS À OPERAÇÃO E MANUTENÇÃO DAS INFRAESTRUTURAS DO EIXO LESTE DO PISF - PROJETO DE INTEGRAÇÃO DO SÃO FRANCISCO COM AS BACIAS HIDROGRÁFICAS DO NORDESTE SETENTRIONAL
A8: VIAGENS / DIÁRIAS
A11: ITEM | B11: CÓDIGO | C11: DESCRIÇÃO | D11: UNIDADE | E11: QUANTIDADE | F11: VALOR (R$)
F12: UNITARIO | G12: TOTAL
C13: VIAGENS / DIÁRIAS
A15: 1. | C15: DESPESAS COM VIAGENS COMERCIAIS | M15: ='ORCAMENTO_CONSOLIDADO (2)'!$K$1 -> 6
A16: 1.1 | C16: Viagem por via aerea | D16: un | E16: 6 | K16: 12 | L16: =K16/12 -> 1 | M16: =L16*$M$15 -> 6
A17: 1.2 | C17: Viagem por via terrestre (comercial) | D17: un | E17: 18 | K17: 36 | L17: =K17/12 -> 3 | M17: =L17*$M$15 -> 18
A18: TOTAL - DESPESAS COM VIAGENS COMERCIAIS - (R$):
A20: 2. | C20: DESPESAS COM DIÁRIAS
A21: 2.1 | C21: Diárias nacionais | D21: un | E21: 6 | K21: 12 | L21: =K21/12 -> 1 | M21: 6
A22: 2.2 | C22: Diárias regionais | D22: un | E22: 72 | K22: 144 | L22: 12 | M22: 72
A23: TOTAL - DESPESAS COM DIÁRIAS - (R$):
A25: TOTAL - VIAGENS / DIÁRIAS - (R$):
A28: RESUMO - VIAGENS / DIÁRIAS
A29: ITEM | C29: DESCRIÇÃO | F29: VALOR TOTAL (R$)
A30: 1 | C30: DESPESAS COM VIAGENS COMERCIAIS
A31: 2 | C31: DESPESAS COM DIÁRIAS
A32: TOTAL GERAL - VIAGENS / DIÁRIAS - (R$): | H32: ok
A35: NOME DO INFORMANTE: | F35: QUALIFICAÇÃO:
A37: ASSINATURA: | F37: DATA:
A39: OBSERVAÇÃO:
A40: 1. Os produtos serão pagos por demanda (Conforme efetiva utilização, mediante autorização prévia da fiscalização)
A41: 2. O valor estimado para as passagens aéreas foi calculado conforme "MEMORIAL DE CÁLCULO - VIAGENS"
A42: 3. O valor adotado para a diária é o valor praticado pela Codevasf, conforme "Tabela de Diárias da Codevasf", considerando: diária completa; demais localidades; e empregados de nível superior, médio e operacional.
A44: 4. Os quantitativos foram estimados de acordo com a quantidae de pessoal lotada no campo, e baseadas na quantidade de viagens que a equipe da Codevasf utiliza.
A45: 5. Os valores previstos são o máximo que serão pagos pela Codevasf durante todo o período do contrato.

Sheet Materiais_Consumo
C1: Ministério do Desenvolvimento Regional - MDR
C2: Companhia de Desenvolvimento dos Vales do São Francisco e do Parnaíba
C3: Gerência de Operação do PISF - Centro de Controle e Operação (AD / GOI / CCO)
A5: =Frentes_Moveis!A5 -> TERMO DE REFERÊNCIA PARA CONTRATAÇÃO DOS RECURSOS NECESSÁRIOS À OPERAÇÃO E MANUTENÇÃO DAS INFRAESTRUTURAS DO EIXO LESTE DO PISF - PROJETO DE INTEGRAÇÃO DO SÃO FRANCISCO COM AS BACIAS HIDROGRÁFICAS DO NORDESTE SETENTRIONAL
A8: MATERIAL DE CONSUMO - ALMOXARIFADOS
A10: ITEM | B10: CÓDIGO | C10: DESCRIÇÃO | D10: UNIDADE | E10: QUANTIDADE | F10: VALOR (R$)
F11: UNITARIO | G11: TOTAL
C12: =A8 -> MATERIAL DE CONSUMO - ALMOXARIFADOS
A14: 1. | C14: MATERIAL DE CONSUMO - MECÂNICA
A15: 1.1 | B15: 04791 - SINAPI | C15: Adesivo Acrílico / Cola de contato | D15: un | E15: 480 | H15: at
A16: 1.2 | B16: 05318 - SINAPI | C16: Água Raz - galão 5 l | D16: un | E16: 112 | H16: at
A17: 1.3 | B17: 000312/SBC | C17: Alcool Comum 90º GL | D17: l | E17: 1200
A18: 1.4 | C18: Antiferrugem aerosol WD-40 - tubo de 300 ml | D18: un | E18: 289
A19: 1.5 | B19: Banco de preços (NºPregão:142022 / UASG:926687 - Serviço Autonomo de Agua e Esgoto de Volta Redonda SAAE VR RJ, Pregão Eletrônico, 04/2022) | C19: Antiespumante – antiespumante a base de silicone | D19: l | E19: 223
A20: 1.6 | B20: 43132 - SINAPI | C20: Arame recozido n.º 18 | D20: kg | E20: 2400 | H20: at
A21: 1.7 | B21: 00122 - SINAPI | C21: Cola de PVC com 850 g | D21: un | E21: 144 | H21: at
A22: 1.8 | B22: Banco de preços (DEPART.DE OBRAS E SERV.PUBLICOS Prefeitura Municipal de Ubiretama/RS, Dispensa por Limite - 01/2022) | C22: Cola Ultra Gray 70g | D22: un | E22: 144
A23: 1.9 | B23: Banco de preços (PREFEITURA MUNICIPAL DE QUEIROZ, PREGÃO PRESENCIAL - 80/2021) | C23: Cola para junta de motores com 73g | D23: un | E23: 1200
A24: 1.10 | B24: Banco de preços (FUNDO MUNICIPAL DE ASSISTÊNCIA SOCIAL Prefeitura Municipal de Hulha Negra/RS, Dispensa por Limite - 05/2022) | C24: Convertedor de ferrugem 500 ml | D24: un | E24: 445
A25: 1.11 | B25: 038200 - SINAPI | C25: Corda de bombeiro 12mm em nylon trançado (rolo de 100,00m) | D25: m | E25: 3200 | H25: at
A26: 1.12 | B26: 004221 - SINAPI | C26: Diesel comum (l) | D26: l | E26: 480 | H26: at
A27: 1.13 | B27: 044533 - SINAPI | C27: Disco corte abrasivo 7" x 1/8" x 7/8" | D27: un | E27: 434
A28: 1.14 | B28: 044531 - SINAPI | C28: Disco de corte diamantado - 7", para esmerilhadeira, segmentado, para concreto | D28: un | E28: 108
A29: 1.15 | B29: 044495 - SINAPI | C29: Disco de corte para estrutura metálica 300 x 3,2 x 19,05 mm | D29: un | E29: 434
A30: 1.16 | B30: 044533 - SINAPI | C30: Disco de desbaste para estrutura metálica de 9" x 1/4" x 7/8" ( 225 x 6,25 x 21,87 mm) | D30: un | E30: 434
A31: 1.17 | B31: 010997 - SINAPI | C31: Eletrodos Revestido AWS-E7018, DN 4 mm | D31: kg | E31: 320 | H31: at
A32: 1.18 | C32: SOLDA-ELETRODO OK 4600 AWS 6013 6,0mm 1/4" | D32: kg | E32: 320
A33: 1.19 | B33: 000012 - SINAPI | C33: Escova de aço para remoção da graxa envelhecida dos cabos de aço | D33: un | E33: 160 | H33: at
A34: 1.20 | B34: 000013 - SINAPI | C34: Estopa - embalagem 20 kg | D34: kg | E34: 294 | H34: at
A35: 1.21 | B35: 000404 - SINAPI | C35: Fita auto fusão 19 mm x 10 m | D35: un | E35: 194 | H35: at
A36: 1.22 | B36: 012815 - SINAPI | C36: Fita crepe adesiva 25mm x 50mm | D36: un | E36: 194 | H36: at
A37: 1.23 | B37: 020111 - SINAPI | C37: Fita isolante 19 mm x 20 m | D37: un | E37: 194 | H37: at
A38: 1.24 | C38: Graxa a base de lítio NGLI 2 | D38: kg | E38: 478
A39: 1.25 | C39: Graxa a base de lítio NGLI 3 | D39: kg | E39: 478
A40: 1.26 | C40: Graxa com dissulfeto de molibidênio (MoS2) - Lata 500 g | D40: un | E40: 478
A41: 1.27 | C41: Graxa GMA - 2 | D41: kg | E41: 478 | H41: ok
A42: 1.28 | C42: Graxa de Alta Resistência a Carga, Pressão LGEP 2/1. Aplicação: Engrenagens de roda e engrenagens expostas | D42: kg | E42: 478
A43: 1.29 | C43: Hidróxido de Cálcio P.A. 500 g | D43: kg | E43: 600
A44: 1.30 | C44: Hipoclorito de Sódio 12% 5000 ml | D44: kg | E44: 1200
A45: 1.31 | B45: 8216 - ORSE | C45: Lâmina de serra para metal Starret ou similar | D45: un | E45: 667 | H45: at
A46: 1.32 | C46: Lençol de borracha manta 3/16” 4,8mm | D46: m² | E46: 400
A47: 1.33 | C47: Líquido penetrante visível lavável à água (Ensaios de Líquido Penetrante) | D47: un | E47: 98
A48: 1.34 | B48: 003767 - SINAPI | C48: Lixa nº120 | D48: un | E48: 2400 | H48: at
A49: 1.35 | C49: Lona de borracha com alma 1,0 – 4,8 mm esp. | D49: m | E49: 45
A50: 1.36 | B50: 003777 - SINAPI/PE | C50: Lona plástica - 4 x 100 m - 12 kg | D50: m² | E50: 3200 | H50: at
A51: 1.37 | B51: 037459 - SINAPI | C51: Mangueira Cristal, Lisa PVC transparente, 3/4" x 2 mm | D51: m | E51: 1600 | H51: at
A52: 1.38 | C52: Mangueira FLG-62/1 0 - 150 PSI 1/4" NPT | D52: m | E52: 800
A53: 1.39 | B53: 7696 - ORSE | C53: Massa calafetar cinza-Durepox ou similiar | D53: kg | E53: 334 | H53: at
A54: 1.40 | C54: Óleo - Translação pórtico e ponte e direção do carro - 20 l - Óleo EP 220 | D54: l | E54: 334
A55: 1.41 | C55: Óleo Hidràulico para os componentes não protegido dos Servomotor Hidráulico - Óleo EP 320 | D55: l | E55: 334
A56: 1.42 | C56: Óleo Lubrificante Redutor - Óleo SAE 90 | D56: l | E56: 334
A57: 1.43 | C57: Óleo lubrificante, para engrenagem., EP-5, viscosidade (CSt) ( - 40ºC) = 22 - tambor 20 l | D57: l | E57: 334
A58: 1.44 | C58: PAC – Policloreto de alumínio (5 l) | D58: l | E58: 967
A59: 1.45 | C59: Papelão grafitado 1,50 m x 1,60 m Esp 2.4 | D59: un | E59: 30 | H59: ok
A60: 1.46 | C60: Pasta de Limpeza Uso Geral Limptek 500 gramas | D60: kg | E60: 400
A61: 1.47 | C61: Querosene para limpeza | D61: l | E61: 240
A62: 1.48 | C62: Revelador não aquoso D70 (Ensaios de Líquido Penetrante) | D62: un | E62: 98
A63: 1.49 | C63: Sílica Gel Branca - Pacote De 1kg - Grânulos De 4-8 Mm | D63: kg | E63: 98
A64: 1.50 | B64: 039961 - SINAPI | C64: Silicone (acético branca) - Tubo de 280g | D64: un | E64: 480 | H64: at
A65: 1.51 | C65: Trava Parafusos de Alta Resistência 120 com 10g | D65: un | E65: 192
A66: 1.52 | B66: Banco de preços (FUNDO MUNICIPAL DE CULTURA SECRETARIA DE CULTURA E TURISMO Prefeitura Municipal de Leme/SP, Dispensa por Limite - 04/2022) | C66: Vaselina sólida anti-inflamável 500g | D66: kg | E66: 120
A68: TOTAL - MATERIAL DE CONSUMO - MECÂNICA - (R$): | G68: 0
A70: 2. | C70: MATERIAL DE CONSUMO - ELÉTRICA
A71: 2.1 | B71: 00181 - ORSE | C71: Anilha Identificação - 0,5 a 6mm² (pacote com 100 unidades) | D71: un | E71: 10 | H71: at
A72: 2.2 | B72: 00181 - ORSE | C72: Anilha Identificação - 10 a 16mm² (pacote com 100 unidades) | D72: un | E72: 10 | H72: at
A73: 2.3 | B73: 03875 - ORSE | C73: Anilha Identificação - 25 a 70mm² (pacote com 100 unidades) | D73: un | E73: 10 | H73: at
A74: 2.4 | B74: 03875 - ORSE | C74: Anilha Identificação - 95 a 120mm² (pacote com 100 unidades) | D74: un | E74: 10 | H74: at
A75: 2.5 | B75: 03531 - ORSE | C75: Ar comprimido seco Aerossol 300ml | D75: un | E75: 100 | H75: at
A76: 2.6 | B76: 00993 - SINAPI | C76: Cabo cobre flexível classe 4 ou 5 isolação PVC/A M 1,68 e cobertura PVC-ST1 antichama BWF-B 0,6/1 kV 1,5mm² | D76: m | E76: 500 | H76: at
A77: 2.7 | B77: 01022 - SINAPI | C77: Cabo cobre flexível classe 4 ou 5 isolação PVC/A M 1,68 e cobertura PVC-ST1 antichama BWF-B 0,6/1 kV 2,5mm² | D77: m | E77: 1000 | H77: at
A78: 2.8 | B78: 01003 - SINAPI | C78: Cabo cobre flexível classe 4 ou 5 isolação PVC/A M 1,68 e cobertura PVC-ST1 antichama BWF-B 0,6/1 kV 4mm² | D78: m | E78: 1000 | H78: at
A79: 2.9 | B79: 00994 - SINAPI | C79: Cabo cobre flexível classe 4 ou 5 isolação PVC/A M 1,68 e cobertura PVC-ST1 antichama BWF-B 0,6/1 kV 6mm² | D79: m | E79: 1000 | H79: at
A80: 2.10 | B80: 01020 - SINAPI | C80: Cabo cobre flexível classe 4 ou 5 isolação PVC/A M 1,68 e cobertura PVC-ST1 antichama BWF-B 0,6/1 kV 10mm² | D80: m | E80: 500 | H80: at
A81: 2.11 | B81: 00995 - SINAPI | C81: Cabo cobre flexível classe 4 ou 5 isolação PVC/A M 1,68 e cobertura PVC-ST1 antichama BWF-B 0,6/1 kV 16mm² | D81: m | E81: 500 | H81: at
A82: 2.12 | B82: 00996 - SINAPI | C82: Cabo cobre flexível classe 4 ou 5 isolação PVC/A M 1,68 e cobertura PVC-ST1 antichama BWF-B 0,6/1 kV 25mm² | D82: m | E82: 500 | H82: at
A83: 2.13 | B83: 01019 - SINAPI | C83: Cabo cobre flexível classe 4 ou 5 isolação PVC/A M 1,68 e cobertura PVC-ST1 antichama BWF-B 0,6/1 kV 35mm² | D83: m | E83: 500 | H83: at
A84: 2.14 | B84: 01018 - SINAPI | C84: Cabo cobre flexível classe 4 ou 5 isolação PVC/A M 1,68 e cobertura PVC-ST1 antichama BWF-B 0,6/1 kV 50mm² | D84: m | E84: 500 | H84: at
A85: 2.15 | B85: 00977 - SINAPI | C85: Cabo cobre flexível classe 4 ou 5 isolação PVC/A M 1,68 e cobertura PVC-ST1 antichama BWF-B 0,6/1 kV 70mm² | D85: m | E85: 500 | H85: at
A86: 2.16 | B86: 00998 - SINAPI | C86: Cabo cobre flexível classe 4 ou 5 isolação PVC/A M 1,68 e cobertura PVC-ST1 antichama BWF-B 0,6/1 kV 95mm² | D86: m | E86: 200 | H86: at
A87: 2.17 | B87: 01017 - SINAPI | C87: Cabo cobre flexível classe 4 ou 5 isolação PVC/A M 1,68 e cobertura PVC-ST1 antichama BWF-B 0,6/1 kV 120mm² | D87: m | E87: 200 | H87: at
A88: 2.18 | B88: 00863 - SINAPI | C88: Cabo de cobre nu, eletrolítico, têmpera meio duro, #35mm² (m) | D88: m | E88: 200 | H88: at
A89: 2.19 | B89: 00867 - SINAPI | C89: Cabo de cobre nu, eletrolítico, têmpera meio duro, #50mm² (m) | D89: m | E89: 200 | H89: at
A90: 2.20 | B90: 00864 - SINAPI | C90: Cabo de cobre nu, eletrolítico, têmpera meio duro, #70mm² (m) | D90: m | E90: 200 | H90: at
A91: 2.21 | B91: 09720 - ORSE | C91: Conector para haste aterramento #35mm² GTDU | D91: un | E91: 25 | H91: at
A92: 2.22 | B92: 09720 - ORSE | C92: Conector para haste aterramento #50mm² GTDU | D92: un | E92: 20 | H92: at
A93: 2.23 | B93: 09720 - ORSE | C93: Conector para haste aterramento #70mm² GTDU | D93: un | E93: 20 | H93: at
A94: 2.24 | B94: 11602 - ORSE | C94: Filtro de ventiladores de painéis | D94: un | E94: 180 | H94: at
A95: 2.25 | C95: Filtro dos motores do eixo leste EBV6 (fabricante Aeroglass (670x280x25mm) | D95: un | E95: 48 | H95: ok
A96: 2.26 | C96: Filtro dos motores do eixo leste EBV5 (fabricante Aeroglass (750x225x25mm) | D96: un | E96: 48 | H96: ok
A97: 2.27 | C97: Filtro dos motores do eixo leste EBV1, 2, 3 e 4 (fabricante Aeroglass-modelo FMT_C2015 inox - 345x925x25mm) | D97: un | E97: 64 | H97: ok
A98: 2.28 | B98: 02643 - ORSE | C98: Fita isolante de borracha autofusão impermeável à prova dágua , até 69 kV (alta tensão)- 19mm x 10m | D98: un | E98: 200 | H98: at
A99: 2.29 | B99: 020111 - SINAPI | C99: Fita isolante adesiva antichama 19mm x 20m | D99: un | E99: 280 | H99: at
A100: 2.30 | B100: 01118 - ORSE | C100: Interruptor simples com 01 tecla | D100: un | E100: 4 | H100: at
A101: 2.31 | B101: 01119 - ORSE | C101: Interruptor simples com 02 teclas | D101: un | E101: 4 | H101: at
A102: 2.32 | B102: 38070 - SINAPI | C102: Interruptor tipo three-way (paralelos) com 02 teclas | D102: un | E102: 4 | H102: at
A103: 2.33 | C103: Limpador de contatos elétricos 300ml | D103: un | E103: 84
A104: 2.34 | C104: Pano para limpeza (Rolo Tipo Perfex 20 cm x 300 metros) | D104: un | E104: 50
A105: 2.35 | B105: 11443 - ORSE | C105: Pincel - kit 03 pincéis 1/2" 1" 1.1/2" | D105: un | E105: 76 | H105: at
A106: 2.36 | B106: Banco de preços (NºPregão:202022 / UASG:926430 - GOVERNO DO ESTADO DO AMAZONAS DEFENSORIA PUBLICA DO ESTADO DO AMAZONAS, Pregão Eletrônico - 05/2022) | C106: Sabão líquido neutro (5 l) | D106: un | E106: 54
A107: 2.37 | B107: 02922 - ORSE | C107: Solvente/Desengraxante de alta rigidez dielétrica 1l | D107: un | E107: 36 | H107: at
A108: 2.38 | B108: 12377 - ORSE* | C108: Terminal isolado tipo agulha para condutores de 0,5 a 1,5mm² (pct c/ 100) | D108: un | E108: 100 | H108: at
A109: 2.39 | B109: 12377 - ORSE* | C109: Terminal isolado tipo agulha para condutores de 1,5 a 2,5 mm² (pct c/ 100) | D109: un | E109: 100 | H109: at
A110: 2.40 | B110: 07948 - ORSE* | C110: Terminal isolado tipo agulha para condutores de 4 a 6 mm² (pct c/ 100) | D110: un | E110: 100
A111: 2.41 | B111: 04669 - ORSE | C111: Terminal de compressão – 10mm² | D111: un | E111: 200 | H111: at
A112: 2.42 | B112: 04670 - ORSE | C112: Terminal de compressão – 16mm² | D112: un | E112: 200 | H112: at
A113: 2.43 | B113: 02676 - ORSE | C113: Terminal de compressão – 25mm² | D113: un | E113: 100 | H113: at
A114: 2.44 | B114: 02677 - ORSE | C114: Terminal de compressão – 35mm² | D114: un | E114: 100 | H114: at
A115: 2.45 | B115: 03559 - ORSE | C115: Terminal de compressão – 50mm² | D115: un | E115: 100 | H115: at
A116: 2.46 | B116: 06911 - ORSE | C116: Terminal de compressão – 70mm² | D116: un | E116: 100 | H116: at
A117: 2.47 | B117: 03153 - ORSE | C117: Terminal de compressão – 95mm² | D117: un | E117: 50 | H117: at
A118: 2.48 | B118: 04673 - ORSE | C118: Terminal de compressão – 120mm² | D118: un | E118: 50 | H118: at
A119: 2.49 | B119: 01587 - SINAPI | C119: Terminal de pressão – 35mm² | D119: un | E119: 50 | H119: at
A120: 2.50 | B120: 01588 - SINAPI | C120: Terminal de pressão – 50mm² | D120: un | E120: 40 | H120: at
A121: 2.51 | B121: 01589 - SINAPI | C121: Terminal de pressão – 70mm² | D121: un | E121: 40 | H121: at
A123: TOTAL - MATERIAL DE CONSUMO - ELÉTRICA - (R$): | G123: 0
A125: 3. | C125: MATERIAL DE CONSUMO - CIVIL
A126: 3.1 | B126: 00034 - SINAPI | C126: Aço D=10 mm CA 50 | D126: kg | E126: 1556 | H126: at
A127: 3.2 | B127: 00043055 - SINAPI | C127: Aço D=12 mm CA 50 | D127: kg | E127: 1556 | H127: at
A128: 3.3 | B128: 00043059 - SINAPI | C128: Aço D=5.0 mm CA 60 | D128: kg | E128: 1556 | H128: at
A129: 3.4 | B129: 00032 - SINAPI | C129: Aço D=6.3 mm CA 50 | D129: kg | E129: 1556 | H129: at
A130: 3.5 | B130: 00033 - SINAPI | C130: Aço D=8.0 mm CA 50 | D130: kg | E130: 1556 | H130: at
A131: 3.6 | B131: 00340 - SINAPI | C131: Arame farpado nº. 16 galvanizado Simples | D131: m | E131: 2223 | H131: at
A132: 3.7 | B132: 43131 - SINAPI | C132: Arame galvanizado 8BWG, d=4,19mm | D132: kg | E132: 240 | H132: at
A133: 3.8 | B133: 43132 - SINAPI | C133: Arame recozido n.º 18 | D133: kg | E133: 134 | H133: at
A134: 3.9 | B134: 00367 - SINAPI | C134: Areia grossa comercial, posto em obra | D134: m³ | E134: 491.740504 | H134: at
A135: 3.10 | B135: 00000134 - SINAPI | C135: Argamassa para grauteamento | D135: kg | E135: 1112 | H135: at
A136: 3.11 | B136: 004729 - SINAPI | C136: Pedra britada comercial (n.º 0 a 5) | D136: m³ | E136: 574.263898 | H136: at
A137: 3.12 | B137: 04513 - SINAPI | C137: Caibro de 5x5cm | D137: m | E137: 1334 | H137: at
A138: 3.13 | B138: 001106 - SINAPI | C138: Cal hidratada | D138: kg | E138: 92897 | H138: at
A139: 3.14 | B139: 001379 - SINAPI | C139: Cimento CPII-32 | D139: kg | E139: 226100 | H139: at
A140: 3.15 | B140: 001358 - SINAPI | C140: Compensado resinado 17mm | D140: m² | E140: 96 | H140: at
A141: 3.16 | B141: 002692 - SINAPI | C141: Desmoldante | D141: l | E141: 86 | H141: at
A142: 3.17 | B142: 020111 - SINAPI | C142: Fita isolante adesiva antichama 19mm x 20m | D142: un | E142: 16 | H142: at
A143: 3.18 | B143: M2018 - SICRO3/PE | C143: Gastalho 10x2,5cm | D143: m | E143: 1334
A144: 3.19 | B144: 005076 - SINAPI | C144: Grampo para cerca galvanizado 1 x 9 | D144: kg | E144: 96 | H144: at
A145: 3.20 | B145: 003681 - SINAPI | C145: Junta de dilatação (O-22 ou similar) | D145: m | E145: 268 | H145: at
A146: 3.21 | B146: 014077 - SINAPI | C146: Junta de dilatação - Perfil elastomerico pre-formado em epmd, para junta de dilatacao de pisos com pouca solicitacao, 15 mm de largura, movimentacao de 11 a 19 mm | D146: m | E146: 268 | H146: at
A147: 3.22 | B147: 38780 - SINAPI/PE | C147: Lâmpada fluorescente compacta, branca 20 W, base E27 (127/220 V) | D147: un | E147: 134 | H147: at
A148: 3.23 | B148: 038780 - SINAPI | C148: Lâmpada fluorecente de 20W | D148: un | E148: 134 | H148: at
A149: 3.24 | B149: 003751 - SINAPI | C149: Lâmpada vapor mercúrio 400 W (base E40) | D149: un | E149: 16 | H149: at
A150: 3.25 | B150: 003767 - SINAPI | C150: Lixa nº120 | D150: un | E150: 40 | H150: at
A151: 3.26 | B151: 003777 - SINAPI | C151: Lona plástica - 4 x 100m - 12kg | D151: m² | E151: 2400 | H151: at
A152: 3.27 | B152: 025865 - SINAPI | C152: Manta termoplástica PEAD, geomembrana lisa, e=2 mm | D152: m² | E152: 12062.8 | H152: at
A153: 3.28 | B153: 004047 - SINAPI | C153: Massa corrida - latão 18 l | D153: un | E153: 23 | H153: at
A154: 3.29 | B154: 2866 - ORSE | C154: Mastique elástico base silicone | D154: l | E154: 1967.575069 | Y154: =F154*(1+'ORCAMENTO_CONSOLIDADO (2)'!P797) -> 0
A155: 3.30 | B155: 00036799 - SINAPI | C155: Mourão de concreto reto para cercas | D155: un | E155: 112 | H155: at
A156: 3.31 | C156: Perfil para fixação das geomembrana Barra de 6m | D156: m | E156: 134
A157: 3.32 | B157: 11442 - ORSE | C157: Pincel 1" | D157: un | E157: 89 | H157: at
A158: 3.33 | B158: 005075 - SINAPI | C158: Prego 18x30 | D158: kg | E158: 214 | H158: at
A159: 3.34 | B159: 038390 - SINAPI | C159: Rolo de lã de carneiro - 20cm | D159: un | E159: 89 | H159: at
A160: 3.35 | B160: 038393 - SINAPI | C160: Rolo de espuma poliéster 23 cm com cabo | D160: un | E160: 89 | H160: at
A161: 3.36 | B161: 012296 - SINAPI | C161: Soquete de porcelana base E27, para uso ao tempo, para lâmpadas | D161: un | E161: 16 | H161: at
A162: 3.37 | B162: 00006194 - SINAPI | C162: Tábua de madeira não aparelhada *2,5 X 15 CM (1 X 6 ") pinus, mista ou equivalente da região | D162: m | E162: 223 | H162: at
A163: 3.38 | B163: 005318 - SINAPI* | C163: Thinner/águarras - 5 l | D163: un | E163: 9 | H163: at
A164: 3.39 | B164: 07258 - SINAPI | C164: Tijolo comum (5,5x10x20) cm | D164: un | E164: 10667 | H164: at
A165: 3.40 | B165: 00154 - SINAPI | C165: Tinta Alcatrão de Hulha - galão de 3,6 litros | D165: l | E165: 9 | H165: at
A166: 3.41 | B166: 02232/ORSE | C166: Tinta Latex PVA | D166: l | E166: 221 | H166: at
A167: 3.42 | B167: 38386 - SINAPI | C167: Trincha de 2 " | D167: un | E167: 89 | H167: at
A168: 3.43 | B168: 38400 - SINAPI | C168: Vassourão 40cm com cabo | D168: un | E168: 110 | H168: at
A169: 3.44 | B169: 12001 - SINAPI | C169: CAIXA OCTOGONAL DE FUNDO MOVEL, EM PVC, DE 4" X 4", PARA ELETRODUTO FLEXIVEL CORRUGADO | D169: un | E169: 12 | H169: at
A170: 3.45 | B170: 1872 - SINAPI | C170: CAIXA DE PASSAGEM, EM PVC, DE 4" X 2", PARA ELETRODUTO FLEXIVEL CORRUGADO | D170: un | E170: 96 | H170: at
A171: 3.46 | B171: 2688 - SINAPI | C171: ELETRODUTO PVC FLEXIVEL CORRUGADO, COR AMARELA, DE 25 MM | D171: m | E171: 500 | H171: at
A172: 3.47 | B172: 7528 - SINAPI | C172: TOMADA 2P+T 10A, 250V, CONJUNTO MONTADO PARA EMBUTIR 4" X 2" (PLACA + SUPORTE + MODULO) | D172: un | E172: 96 | H172: at
A173: 3.48 | B173: 38062 - SINAPI | C173: INTERRUPTOR SIMPLES 10A, 250V, CONJUNTO MONTADO PARA EMBUTIR 4" X 2" (PLACA + SUPORTE + MODULO) | D173: un | E173: 12 | H173: at
A174: 3.49 | B174: 0000345 - SINAPI | C174: ARAME GALVANIZADO 18 BWG, D = 1,24MM (0,009 KG/M) | D174: Kg | E174: 6.24 | H174: at
A175: 3.50 | B175: 00003315 - SINAPI | C175: GESSO EM PO PARA REVESTIMENTOS/MOLDURAS/SANCAS E USO GERAL | D175: kg | E175: 248.70144 | H175: at
A176: 3.51 | B176: 00004812 - SINAPI | C176: PLACA DE GESSO PARA FORRO, *60 X 60* CM, ESPESSURA DE 12 MM (SEM COLOCACAO) | D176: m² | E176: 249.6 | H176: at
A177: 3.52 | B177: 00020250 - SINAPI | C177: SISAL EM FIBRA | D177: Kg | E177: 1.94688 | H177: at
A178: 3.53 | B178: 00040547 - SINAPI | C178: PARAFUSO ZINCADO, AUTOBROCANTE, FLANGEADO, 4,2 MM X 19 MM | D178: Cento | E178: 7.68768 | H178: at
A179: 3.54 | B179: 39484 - SINAPI | C179: KIT PORTA PRONTA DE MADEIRA, FOLHA LEVE (NBR 15930) DE 800 X 2100 MM, DE 35 MM A 40 MM DE ESPESSURA, COM MARCO EM ACO, NUCLEO COLMEIA, CAPA LISA EM HDF, ACABAMENTO MELAMINICO BRANCO (INCLUI MARCO, ALIZARES, DOBRADICAS E FECHADURA) | D179: un | E179: 12 | H179: at
A180: 3.55 | B180: 031443 - IOPES | C180: JANELA DE CORRER EM ALUMINIO, 100 X 150 CM (A X L), 4 FLS, SEM BANDEIRA, ACABAMENTO ACET OU BRILHANTE, COM VIDRO, COM GUARNICAO PARA 1 FACE | D180: m² | E180: 7.2
A182: TOTAL - MATERIAL DE CONSUMO - CIVIL - (R$): | G182: 0
A184: 4. | C184: MANUTENÇÃO DE CANTEIRO - ESCRITÓRIO | J184: 12 | K184: ='ORCAMENTO_CONSOLIDADO (2)'!$K$1 -> 6
A185: 4.1 | C185: Taxa de manutenção de canteiros, incluindo despesas com material de expediente, material de limpeza, água, energia, comunicação, entre outras | D185: un x mês | E185: 6 | I185: 12 | J185: =I185/J184 -> 1 | K185: =J185*K184 -> 6
A187: TOTAL - MANUTENÇÃO DE CANTEIRO - ESCRITÓRIO - (R$): | G187: 0
A190: TOTAL - MATERIAL DE CONSUMO - ALMOXARIFADOS - (R$): | G190: 0
A192: RESUMO - MATERIAL DE CONSUMO - ALMOXARIFADOS
A193: ITEM | C193: DESCRIÇÃO | F193: VALOR TOTAL (R$)
A194: 1 | C194: MATERIAL DE CONSUMO - MECÂNICA | F194: 0
A195: 2 | C195: MATERIAL DE CONSUMO - ELÉTRICA | F195: 0
A196: 3 | C196: MATERIAL DE CONSUMO - CIVIL | F196: 0
A197: 4 | C197: MANUTENÇÃO DE CANTEIRO - ESCRITÓRIO | F197: 0
A198: TOTAL GERAL - RESUMO - MATERIAL DE CONSUMO - ALMOXARIFADOS - (R$): | F198: 0 | H198: =Mat_Cons/4479175.63 -> 0
A201: NOME DO INFORMANTE: | F201: QUALIFICAÇÃO:
A203: ASSINATURA: | F203: DATA:
A205: OBSERVAÇÃO:

Sheet Veiculos
C1: Ministério do Desenvolvimento Regional - MDR
C2: Companhia de Desenvolvimento dos Vales do São Francisco e do Parnaíba
C3: Gerência de Operação do PISF - Centro de Controle e Operação (AD / GOI / CCO)
A5: =Materiais_Consumo!A5 -> TERMO DE REFERÊNCIA PARA CONTRATAÇÃO DOS RECURSOS NECESSÁRIOS À OPERAÇÃO E MANUTENÇÃO DAS INFRAESTRUTURAS DO EIXO LESTE DO PISF - PROJETO DE INTEGRAÇÃO DO SÃO FRANCISCO COM AS BACIAS HIDROGRÁFICAS DO NORDESTE SETENTRIONAL
A8: VEÍCULOS AUTOMOTORES
A10: ITEM | B10: CÓDIGO | C10: DESCRIÇÃO | D10: UNIDADE | E10: QUANTIDADE | F10: VALOR (R$)
F11: UNITARIO | G11: TOTAL
A12: 1. | C12: VEÍCULOS AUTOMOTORES
A13: 1.1 | B13: B3 | C13: TIPO HATCH 1.6 FLEX (110 CV) | D13: un x mês | E13: 90 | H13: =E13/6 -> 15 | I13: at
A14: 1.2 | B14: B4 | C14: TIPO SEDAN 1.6 FLEX (115CV) | D14: un x mês | E14: 6 | H14: =E14/6 -> 1 | I14: at
A15: 1.3 | B15: B11 | C15: Veículo Tipo Pick Up Cabine Dupla 4 x 4 (163 CV) | D15: un x mês | E15: 114 | H15: 19 | I15: at
A16: 1.4 | B16: B8 | C16: Veículo - Tipo Ônibus - 45 assentos (218 CV) - COM MOTORISTA | D16: un x mês | E16: 18 | H16: 3 | I16: at
A17: 1.5 | B17: B1 | C17: NXR BROS 160 | D17: un x mês | E17: 18 | H17: 3 | I17: at
A18: TOTAL - VEÍCULOS AUTOMOTORES - (R$):
A21: RESUMO - VEÍCULOS AUTOMOTORES
A22: ITEM | C22: DESCRIÇÃO | F22: VALOR TOTAL (R$)
A23: 1 | C23: VEÍCULOS AUTOMOTORES
A24: TOTAL GERAL - RESUMO - VEÍCULOS AUTOMOTORES - (R$):
A27: NOME DO INFORMANTE: | F27: QUALIFICAÇÃO:
A29: ASSINATURA: | F29: DATA:
A31: OBSERVAÇÃO:
A33: =Mem_Calculo_VEICULOS!A113 -> 1. Despesas incluem manutenção, combustível, óleos, lubrificantes, pneus, etc.
A34: =Mem_Calculo_VEICULOS!A114 -> 2. Quilometragem adotada: 3.000 km/mês

Sheet Mem_Calculo_VEICULOS
C1: Ministério do Desenvolvimento Regional - MDR
C2: Companhia de Desenvolvimento dos Vales do São Francisco e do Parnaíba
C3: Gerência de Operação do PISF - Centro de Controle e Operação (AD / GOI / CCO)
A5: =Veiculos!A5 -> TERMO DE REFERÊNCIA PARA CONTRATAÇÃO DOS RECURSOS NECESSÁRIOS À OPERAÇÃO E MANUTENÇÃO DAS INFRAESTRUTURAS DO EIXO LESTE DO PISF - PROJETO DE INTEGRAÇÃO DO SÃO FRANCISCO COM AS BACIAS HIDROGRÁFICAS DO NORDESTE SETENTRIONAL
A8: TABELA DE VEÍCULOS
A11: ITEM | B11: CÓDIGO | C11: DESCRIÇÃO | D11: CUSTO MENSAL (R$) | F11: OBSERVAÇÕES
D12: S/ MOTORISTA | E12: C/ MOTORISTA
A13: 1. | C13: VEÍCULOS LEVES
A14: 1.1 | B14: B1 | C14: NXR BROS 160 | G14: at
A16: 2. | C16: VEÍCULOS LEVES
A17: 2.1 | B17: B3 | C17: TIPO HATCH 1.6 FLEX (110 CV) | G17: at
A18: 2.2 | B18: B4 | C18: TIPO SEDAN 1.6 FLEX (115CV) | G18: at
A20: 3. | C20: VEÍCULOS LEVES
A21: 3.2 | B21: B6 | C21: TIPO UTILITÁRIO (VAN 16 LUG) (129 CV) | G21: at
A22: 3.4 | B22: B8 | C22: TIPO ÔNIBUS (45 LUG) (218 CV) | G22: at
A24: 4. | C24: VEÍCULOS LEVES
A25: 4.3 | B25: B11 | C25: Veículo Tipo Pick Up Cabine Dupla 4 x 4 (163 CV) | G25: at
A29: MEMORIAL DE CÁLCULO - VEÍCULOS (Quantidade / Local)
A32: ITEM | B32: CLASSE | C32: DESCRIÇÃO | D32: PRAZO (mês) | E32: QUANTIDADE
E33: UNITÁRIA (mês) | F33: TOTAL (un x mês)
A34: 1. | C34: COORDENAÇÃO GERAL | Z34: 12 | AA34: ='ORCAMENTO_CONSOLIDADO (2)'!$K$1 -> 6
A35: 1.1 | C35: Veículo Tipo Pick Up Cabine Dupla 4 x 4 (163 CV) | D35: 6 | E35: 1 | F35: 6 | Y35: 12 | Z35: =Y35/$Z$34 -> 1 | AA35: =Z35*$AA$34 -> 6
A37: TOTAL DE VEÍCULOS - COORDENAÇÃO GERAL: | E37: 1 | F37: 6
A39: 2. | C39: COORDENAÇÃO DA OPERAÇÃO
A40: 2.1 | C40: Veículo Tipo Pick Up Cabine Dupla 4 x 4 (163 CV) | D40: 6 | E40: 1 | F40: 6 | Y40: 12 | Z40: =Y40/$Z$34 -> 1 | AA40: =Z40*$AA$34 -> 6
A42: TOTAL DE VEÍCULOS - COORDENAÇÃO DA OPERAÇÃO: | E42: 1 | F42: 6
A44: 3. | C44: COORDENAÇÃO DA MANUTENÇÃO
A45: 3.1 | C45: Veículo Tipo Pick Up Cabine Dupla 4 x 4 (163 CV) | D45: 6 | E45: 1 | F45: 6 | Y45: 12 | Z45: 1 | AA45: 6
A47: TOTAL DE VEÍCULOS - COORDENAÇÃO DA MANUTENÇÃO: | E47: 1 | F47: 6
A49: 4. | C49: COORDENAÇÃO ADMINISTRAÇÃO E LOGÍSTICA
A50: 4.1 | C50: TIPO HATCH 1.6 FLEX (110 CV) | D50: 6 | E50: 1 | F50: 6 | H50: 4 | I50: 2 | Y50: 12 | Z50: 1 | AA50: 6
A52: TOTAL DE VEÍCULOS - COORDENAÇÃO ADMINISTRAÇÃO E LOGÍSTICA: | E52: 1 | F52: 6
A54: 5. | C54: SEGURANÇA E MEDICINA DO TRABALHO
A55: 5.1 | C55: TIPO HATCH 1.6 FLEX (110 CV) | D55: 6 | E55: 1 | F55: 6 | H55: 3 | I55: 2 | Y55: 12 | Z55: 1 | AA55: 6
A57: TOTAL DE VEÍCULOS - SEGURANÇA E MEDICINA DO TRABALHO: | E57: 1 | F57: 6
A59: 6. | C59: PLANEJAMENTO E CONTROLE DA OPERAÇÃO
A60: 6.1 | C60: Veículo Tipo Pick Up Cabine Dupla 4 x 4 (163 CV) | D60: 6 | E60: 1 | F60: 6 | H60: 2 | I60: 1 | Y60: 12 | Z60: 1 | AA60: 6
A62: TOTAL DE VEÍCULOS - PLANEJAMENTO E CONTROLE DA OPERAÇÃO: | E62: 1 | F62: 6
A64: 7. | C64: PLANEJAMENTO E CONTROLE DA MANUTENÇÃO
A65: 7.1 | C65: Veículo Tipo Pick Up Cabine Dupla 4 x 4 (163 CV) | D65: 6 | E65: 3 | F65: 18 | H65: 7 | I65: 2 | Y65: 12 | Z65: 1 | AA65: 6
A66: 7.2 | C66: TIPO HATCH 1.6 FLEX (110 CV) | D66: 6 | E66: 1 | F66: 6 | H66: 5 | I66: 1 | Y66: 12 | Z66: 1 | AA66: 6
A68: TOTAL DE VEÍCULOS - PLANEJAMENTO E CONTROLE DA MANUTENÇÃO: | E68: 4 | F68: 24
A70: 8. | C70: OPERAÇÃO
A71: 8.1 | C71: NXR BROS 160 | D71: 6 | E71: 3 | F71: 18 | H71: 3 | Y71: 12 | Z71: 1 | AA71: 6
A72: 8.2 | C72: Veículo Tipo Pick Up Cabine Dupla 4 x 4 (163 CV) | D72: 6 | E72: 2 | F72: 12 | H72: 3 | I72: 1 | Y72: 12 | Z72: 1 | AA72: 6
A73: 8.3 | C73: TIPO HATCH 1.6 FLEX (110 CV) | D73: 6 | E73: 5 | F73: 30 | H73: 12 | I73: 7 | Y73: 12 | Z73: 1 | AA73: 6
A75: TOTAL DE VEÍCULOS - OPERAÇÃO: | E75: 10 | F75: 60
A77: 9. | C77: MANUTENÇÃO - MECÂNICA
A78: 9.1 | C78: TIPO HATCH 1.6 FLEX (110 CV) | D78: 6 | E78: 2 | F78: 12 | H78: 3 | I78: 1 | Y78: 12 | Z78: 1 | AA78: 6
A80: TOTAL DE VEÍCULOS - MANUTENÇÃO - MECÂNICA: | E80: 2 | F80: 12
A82: 10. | C82: MANUTENÇÃO - EQUIPAMENTOS E SISTEMAS ELÉTRICOS
A83: 10.1 | C83: TIPO HATCH 1.6 FLEX (110 CV) | D83: 6 | E83: 2 | F83: 12 | H83: 3 | I83: 1 | Y83: 12 | Z83: 1 | AA83: 6
A85: TOTAL DE VEÍCULOS - MANUTENÇÃO - EQUIPAMENTOS E SISTEMAS ELÉTRICOS: | E85: 2 | F85: 12
A88: 11. | C88: MANUTENÇÃO TELECOM / SDSC
A89: 11.1 | C89: TIPO HATCH 1.6 FLEX (110 CV) | D89: 6 | E89: 1 | F89: 6 | Y89: 12 | Z89: 1 | AA89: 6
A91: TOTAL DE VEÍCULOS - MANUTENÇÃO TELECOM: | E91: 1 | F91: 6
A93: 12. | C93: MANUTENÇÃO - CIVIL | J93: 15 | L93: MANUTENÇÃO - CIVIL - SUBESTAÇÃO, LINHA DE TRANSMISSÃO E LINHA DE DISTRIBUIÇÃO
A94: 12.1 | C94: Veículo Tipo Pick Up Cabine Dupla 4 x 4 (163 CV) | D94: 6 | E94: 2 | F94: 12 | H94: 2 | I94: 1 | J94: 15.1 | L94: Veículo Tipo Pick Up Cabine Dupla 4 x 4 (163 CV) | M94: 12 | N94: 1 | O94: 12 | Y94: 12 | Z94: 1 | AA94: 6
A95: 12.2 | C95: Veículo - Tipo Ônibus - 45 assentos (218 CV) - COM MOTORISTA | D95: 6 | E95: 3 | F95: 18 | H95: 4 | I95: 1 | J95: 15.2 | L95: Veículo Utilitário - Tipo Van - 16 assentos (129 CV) - COM MOTORISTA | M95: 12 | N95: 1 | O95: 12 | Y95: 12 | Z95: 1 | AA95: 6
A96: 12.3 | C96: TIPO SEDAN 1.6 FLEX (115CV) | D96: 6 | E96: 1 | F96: 6 | H96: 1 | Y96: 12 | Z96: 1 | AA96: 6
A97: 12.4 | C97: TIPO HATCH 1.6 FLEX (110 CV) | D97: 6 | E97: 2 | F97: 12 | Y97: 12 | Z97: 1 | AA97: 6
H98: 3 | I98: 1 | J98: TOTAL DE VEÍCULOS - MANUTENÇÃO - CIVIL - SUBESTAÇÃO, LINHA DE TRANSMISSÃO E LINHA DE DISTRIBUIÇÃO: | N98: 2 | O98: 24
A99: TOTAL DE VEÍCULOS - MANUTENÇÃO - CIVIL: | E99: 8 | F99: 48
A101: 13 | C101: EQUIPE DE SUPERVISÃO / FISCALIZAÇÃO
A102: 13.1 | C102: Veículo Tipo Pick Up Cabine Dupla 4 x 4 (163 CV) | D102: 6 | E102: 8 | F102: 48 | Y102: 12 | Z102: =Y102/$Z$34 -> 1 | AA102: =Z102*$AA$34 -> 6
H103: 6 | I103: 4
A104: TOTAL DE VEÍCULOS - EQUIPE DE SUPERVISÃO: | E104: 8 | F104: 48
A107: NOME DO INFORMANTE: | E107: QUALIFICAÇÃO:
A109: ASSINATURA: | E109: DATA:
A111: OBSERVAÇÃO:
A113: 1. Despesas incluem manutenção, combustível, óleos, lubrificantes, pneus, etc.
A114: 2. Quilometragem adotada: 3.000 km/mês

Sheet CPU_VEÍCULOS
A2: COMPOSIÇÕES MENSAIS DE VEÍCULOS:
A3: CÓD. | B3: DESCRICAO DA COMPOSICAO | C3: UND | D3: COEF. | E3: P. UNIT. | F3: CUSTO T. | G3: % item
A4: AJUST.1 | B4: VEÍCULO CAMINHONETE DIESEL POT. MÍNIMA 180CV, CABINE DUPLA, 4x4, CHP e CHI AJUSTADAS S/MOTORISTA | C4: H
A5: SINAPI - 92138 | B5: CAMINHONETE COM MOTOR A DIESEL, POTÊNCIA 180 CV, CABINE DUPLA, 4X4 - CHP. AF_11/2015 | C5: CHP
A6: SINAPI - 92139 | B6: CAMINHONETE COM MOTOR A DIESEL, POTÊNCIA 180 CV, CABINE DUPLA, 4X4 - CHI. AF_11/2015 | C6: CHI
B7: CUSTO MENSAL (referência média 176 horas, sendo 45% CHP e 55% CHI) | C7: MÊS | D7: 176
A8: CÓD. | B8: DESCRICAO DA COMPOSICAO | C8: UND | D8: COEF. | E8: P. UNIT. | F8: CUSTO T. | G8: % item
A9: AJUST.2 | B9: VEÍCULO PICAPE 1.6 FLEX MANUAL POT. MÍN. 101CV SIMILAR P/ VEÍCULOS TIPO SEDAN 4 PORTAS S/MOTORISTA | C9: H
A10: SINAPI - 92145 | B10: CAMINHONETE SIMPLES MOTOR 1.6 FLEX, MANUAL, POT. 101/104 CV, 2 PORTAS - CHP. AF_11/2015 | C10: CHP
A11: SINAPI - 92146 | B11: CAMINHONETE SIMPLES MOTOR 1.6 FLEX, MANUAL, POT. 101/104 CV, 2 PORTAS - CHI. AF_11/2015 | C11: CHI
B12: CUSTO MENSAL (referência média 176 horas, sendo 35% CHP e 65% CHI) | C12: MÊS | D12: 176
A14: AJUST.2 | B14: VEÍCULO PICAPE 1.6 FLEX MANUAL POT. MÍN. 101CV SIMILAR P/ VEÍCULOS TIPO HATCH 4 PORTAS S/MOTORISTA | C14: H
A15: SINAPI - 92145 | B15: CAMINHONETE SIMPLES MOTOR 1.6 FLEX, MANUAL, POT. 101/104 CV, 2 PORTAS - CHP. AF_11/2015 | C15: CHP
A16: SINAPI - 92146 | B16: CAMINHONETE SIMPLES MOTOR 1.6 FLEX, MANUAL, POT. 101/104 CV, 2 PORTAS - CHI. AF_11/2015 | C16: CHI
B17: CUSTO MENSAL (referência média 176 horas, sendo 35% CHP e 65% CHI) | C17: MÊS | D17: 176
A20: SICRO - E9125 | B20: Veículo tipo van furgão com capacidade de 1,54 t - 93 kW | C20: UND | D20: COEF. | E20: P. UNIT. | F20: CUSTO T. | G20: % item
C21: CHP
C22: CHI
B23: PICK-UP DIESEL REPOSIÇÃO DE PNEUS R16 COM BASE NA UTILIZAÇÃO NO O&M PISF (1jg./ano) | C23: H | D23: 0 | F23: 0
C24: MÊS | D24: 176 | E24: 0 | F24: 0
A26: SICRO - E9134 | B26: Miniônibus com capacidade para 30 passageiros - 111 kW | C26: UND | D26: COEF. | E26: P. UNIT. | F26: CUSTO T. | G26: % item
C27: CHP
C28: CHI
C29: H
C30: MÊS | D30: 176 | E30: 0 | F30: 0
A32: COTAÇÃO | B32: NXR BROS 160 | C32: UND | D32: COEF. | E32: P. UNIT. | F32: CUSTO T. | G32: % item
A33: COTAÇÃO | B33: Locação | C33: MÊS
A34: 4222 / SINAPI | B34: Gasolina (Considerando quilometrametragem rodada do CHP-diesel supracitado - 4500 km/mês.Consumo de 30 km/L. | C34: L
B35: NXR 160 BROS REPOSIÇÃO DE PNEUS ARO 17 COM BASE NA UTILIZAÇÃO NO O&M PISF (1jg./ano) | C35: MÊS
C36: MÊS | D36: 1
A39: DESCRIÇÃO DAS COMPOSIÇÕES:
A41: CÓD. | B41: DESCRICAO DA COMPOSICAO | C41: UND | D41: COEF. | E41: P. UNIT. | F41: CUSTO T. | G41: % item
B42: VEÍCULO CAMINHONETE DIESEL POTÊNCIA MÍNIMA 180CV, CABINE DUPLA, 4x4, CHP e CHI AJUSTADAS SEM MOTORISTA
A43: 92138 | B43: CAMINHONETE COM MOTOR A DIESEL, POTÊNCIA 180 CV, CABINE DUPLA, 4X4 - CHP. AF_11/2015 | C43: CHP | I43: 67.85875421
A44: 88284 | B44: MOTORISTA DE VEIÍCULO LEVE COM ENCARGOS COMPLEMENTARES | C44: H
A45: 92133 | B45: CAMINHONETE COM MOTOR A DIESEL, POTÊNCIA 180 CV, CABINE DUPLA, 4X4 - DEPRECIAÇÃO. AF_11/2015 | C45: H
A46: 92134 | B46: CAMINHONETE COM MOTOR A DIESEL, POTÊNCIA 180 CV, CABINE DUPLA, 4X4 - JUROS. AF_11/2015 | C46: H
A47: 92135 | B47: CAMINHONETE COM MOTOR A DIESEL, POTÊNCIA 180 CV, CABINE DUPLA, 4X4 - IMPOSTOS E SEGUROS. AF_11/2015 | C47: H
A48: 92136 | B48: CAMINHONETE COM MOTOR A DIESEL, POTÊNCIA 180 CV, CABINE DUPLA, 4X4 - MANUTENÇÃO. AF_11/2015 | C48: H
A49: 92137 | B49: CAMINHONETE COM MOTOR A DIESEL, POTÊNCIA 180 CV, CABINE DUPLA, 4X4 - MATERIAIS NA OPERAÇÃO. AF_11/2015 | C49: H
A50: a1.pneus | B50: PICK-UP DIESEL REPOSIÇÃO DE PNEUS R16 COM BASE NA UTILIZAÇÃO NO O&M PISF (1 jogo/ano = 4 pneus) | C50: H
A51: a2.comb. | B51: PICK-UP DIESEL, POT. 180 CV, CD, 4x4 - COMBUSTÍVEL ADICIONAL COM BASE NA UTILIZAÇÃO NO O&M PISF | C51: H
A52: 92139 | B52: CAMINHONETE COM MOTOR A DIESEL, POTÊNCIA 180 CV, CABINE DUPLA, 4X4 - CHI. AF_11/2015 | C52: CHI
A53: 88284 | B53: MOTORISTA DE VEIÍCULO LEVE COM ENCARGOS COMPLEMENTARES | C53: H
A54: 92133 | B54: CAMINHONETE COM MOTOR A DIESEL, POTÊNCIA 180 CV, CABINE DUPLA, 4X4 - DEPRECIAÇÃO. AF_11/2015 | C54: H
A55: 92134 | B55: CAMINHONETE COM MOTOR A DIESEL, POTÊNCIA 180 CV, CABINE DUPLA, 4X4 - JUROS. AF_11/2015 | C55: H
A56: 92135 | B56: CAMINHONETE COM MOTOR A DIESEL, POTÊNCIA 180 CV, CABINE DUPLA, 4X4 - IMPOSTOS E SEGUROS. AF_11/2015 | C56: H
B57: VEÍCULO PICAPE SIMPLES MOTOR 1.6 FLEX MANUAL POTÊNCIA MÍNIMA 101 CV SIMILAR PARA VEÍCULOS TIPO GOL 4 PORTAS FLEX SEM MOTORISTA
A58: 92145 | B58: CAMINHONETE SIMPLES MOTOR 1.6 FLEX, MANUAL, POT. 101/104 CV, 2 PORTAS - CHP. AF_11/2015 | C58: CHP | H58: 55.59562771
A59: 88284 | B59: MOTORISTA DE VEIÍCULO LEVE COM ENCARGOS COMPLEMENTARES | C59: H
A60: 92140 | B60: PICAPE SIMPLES MOTOR 1.6 FLEX, MANUAL, POTÊNCIA 101/104 CV - DEPRECIAÇÃO. AF_11/2015 | C60: H
A61: 92141 | B61: PICAPE SIMPLES MOTOR 1.6 FLEX, MANUAL, POTÊNCIA 101/104 CV - JUROS. AF_11/2015 | C61: H
A62: 92142 | B62: PICAPE SIMPLES MOTOR 1.6 FLEX, MANUAL, POTÊNCIA 101/104 CV - IMPOSTOS E SEGUROS. AF_11/2015 | C62: H
A63: 92143 | B63: PICAPE SIMPLES MOTOR 1.6 FLEX, MANUAL, POTÊNCIA 101/104 CV - MANUTENÇÃO. AF_11/2015 | C63: H
A64: 92144 | B64: PICAPE SIMPLES MOTOR 1.6 FLEX, MANUAL, POTÊNCIA 101/104 CV - MATERIAIS NA OPERAÇÃO. AF_11/2015 | C64: H
A65: a3.pneus | B65: VEÍCULO FLEX REPOSIÇÃO DE PNEUS R14 COM BASE NA UTILIZAÇÃO NO O&M PISF (1 jogo/ano = 4 pneus) | C65: H
A66: a4.comb. | B66: VEÍCULO FLEX COMBUSTÍVEL ADICIONAL COM BASE NA UTILIZAÇÃO NO O&M PISF | C66: H
A67: 92146 | B67: CAMINHONETE SIMPLES MOTOR 1.6 FLEX, MANUAL, POT. 101/104 CV, 2 PORTAS - CHI. AF_11/2015 | C67: CHI
A68: 88284 | B68: MOTORISTA DE VEIÍCULO LEVE COM ENCARGOS COMPLEMENTARES | C68: H
A69: 92140 | B69: PICAPE SIMPLES MOTOR 1.6 FLEX, MANUAL, POTÊNCIA 101/104 CV - DEPRECIAÇÃO. AF_11/2015 | C69: H
A70: 92141 | B70: PICAPE SIMPLES MOTOR 1.6 FLEX, MANUAL, POTÊNCIA 101/104 CV - JUROS. AF_11/2015 | C70: H
A71: 92142 | B71: PICAPE SIMPLES MOTOR 1.6 FLEX, MANUAL, POTÊNCIA 101/104 CV - IMPOSTOS E SEGUROS. AF_11/2015 | C71: H
A72: SUB-COMPOSIÇÕES
A73: CÓD. | B73: DESCRICAO DA COMPOSICAO | C73: UND | D73: COEF. | E73: P. UNIT. | F73: CUSTO T. | G73: % item
A74: 92133 | B74: CAMINHONETE MOTOR DIESEL, POTÊNCIA 180 CV, CABINE DUPLA, 4X4 - DEPRECIAÇÃO. AF_11/2015
B75: CAMINHONETE MOTOR DIESEL, POTÊNCIA 180 CV, CABINE DUPLA, 4X4 - DEPRECIAÇÃO. AF_11/2015 | C75: H
A76: 92134 | B76: CAMINHONETE MOTOR DIESEL, POTÊNCIA 180 CV, CABINE DUPLA, 4X4 - JUROS. AF_11/2015
B77: CAMINHONETE MOTOR DIESEL, POTÊNCIA 180 CV, CABINE DUPLA, 4X4 - JUROS. AF_11/2015 | C77: H
A78: 92135 | B78: CAMINHONETE MOTOR DIESEL, POTÊNCIA 180 CV, CABINE DUPLA, 4X4 - IMPOSTOS E SEGUROS. AF_11/2015
B79: CAMINHONETE MOTOR DIESEL, POTÊNCIA 180 CV, CABINE DUPLA, 4X4 - IMPOSTOS E SEGUROS. AF_11/2015 | C79: H
A80: 92136 | B80: CAMINHONETE MOTOR DIESEL, POTÊNCIA 180 CV, CABINE DUPLA, 4X4 - MANUTENÇÃO. AF_11/2015
B81: CAMINHONETE MOTOR DIESEL, POTÊNCIA 180 CV, CABINE DUPLA, 4X4 - MANUTENÇÃO. AF_11/2015 | C81: H
A82: 92137 | B82: CAMINHONETE MOTOR DIESEL, POTÊNCIA 180 CV, CABINE DUPLA, 4X4 - MATERIAIS NA OPERAÇÃO. AF_11/2015
B83: CAMINHONETE MOTOR DIESEL, POTÊNCIA 180 CV, CABINE DUPLA, 4X4 - MATERIAIS NA OPERAÇÃO. AF_11/2015 | C83: H
A84: a1.pneus | B84: PICK-UP DIESEL REPOSIÇÃO DE PNEUS R16 COM BASE NA UTILIZAÇÃO NO O&M PISF (1jg./ano)
B85: PICK-UP DIESEL, POT. 180 CV, CD, 4x4 - REPOSIÇÃO DE PNEUS COM BASE NA UTILIZAÇÃO NO O&M PISF (1jg./ano) | C85: H
A86: a2.comb. | B86: PICK-UP DIESEL, POT. 180 CV, CD, 4x4 - COMBUSTÍVEL ADICIONAL COM BASE NA UTILIZAÇÃO NO O&M PISF
B87: PICK-UP DIESEL, POT. 180 CV, CD, 4x4 - COMBUSTÍVEL ADICIONAL COM BASE NA UTILIZAÇÃO NO O&M PISF | C87: L/H
A88: 92140 | B88: PICAPE SIMPLES MOTOR 1.6 FLEX, MANUAL, POTÊNCIA 101/104 CV - DEPRECIAÇÃO. AF_11/2015 | C88: H
B89: PICAPE SIMPLES MOTOR 1.6 FLEX, MANUAL, POTÊNCIA 101/104 CV - DEPRECIAÇÃO. AF_11/2015 | C89: H
A90: 92141 | B90: PICAPE SIMPLES MOTOR 1.6 FLEX, MANUAL, POTÊNCIA 101/104 CV - JUROS. AF_11/2015 | C90: H
B91: PICAPE SIMPLES MOTOR 1.6 FLEX, MANUAL, POTÊNCIA 101/104 CV - JUROS. AF_11/2015 | C91: H
A92: 92142 | B92: PICAPE SIMPLES MOTOR 1.6 FLEX, MANUAL, POTÊNCIA 101/104 CV - IMPOSTOS E SEGUROS. AF_11/2015 | C92: H
B93: PICAPE SIMPLES MOTOR 1.6 FLEX, MANUAL, POTÊNCIA 101/104 CV - IMPOSTOS E SEGUROS. AF_11/2015 | C93: H
A94: 92143 | B94: PICAPE SIMPLES MOTOR 1.6 FLEX, MANUAL, POTÊNCIA 101/104 CV - MANUTENÇÃO. AF_11/2015 | C94: H
B95: PICAPE SIMPLES MOTOR 1.6 FLEX, MANUAL, POTÊNCIA 101/104 CV - MANUTENÇÃO. AF_11/2015 | C95: H
A96: 92144 | B96: PICAPE SIMPLES MOTOR 1.6 FLEX, MANUAL, POTÊNCIA 101/104 CV - MATERIAIS NA OPERAÇÃO. AF_11/2015 | C96: H
B97: PICAPE SIMPLES MOTOR 1.6 FLEX, MANUAL, POTÊNCIA 101/104 CV - MATERIAIS NA OPERAÇÃO. AF_11/2015 | C97: H
A98: a3.pneus | B98: VEÍCULO FLEX REPOSIÇÃO DE PNEUS R14 COM BASE NA UTILIZAÇÃO NO O&M PISF (1jg./ano)
B99: VEÍCULO FLEX REPOSIÇÃO DE PNEUS R14 COM BASE NA UTILIZAÇÃO NO O&M PISF (1jg./ano) | C99: H
A100: a4.comb. | B100: VEÍCULO FLEX COMBUSTÍVEL ADICIONAL COM BASE NA UTILIZAÇÃO NO O&M PISF
B101: VEÍCULO FLEX COMBUSTÍVEL ADICIONAL COM BASE NA UTILIZAÇÃO NO O&M PISF | C101: L/H
A102: INSUMOS
A103: CÓD. | B103: DESCRICAO DO INSUMO | C103: UND | D103: COEF. | E103: P. UNIT. | F103: CUSTO T.
A104: 1159 | B104: CAMINHONETE COM MOTOR A DIESEL, POTÊNCIA 180 CV, CABINE DUPLA, 4X4 | C104: UN
A105: 4221 | B105: ÓLEO DIESEL COMBUSTÍVEL COMUM | C105: L
A106: 13617 | B106: PICAPE SIMPLES MOTOR 1.6 FLEX, MANUAL, POT. MÍNIMA 101/104 CV, 2 PORTAS - SIMILAR A GOL 4 PORTAS | C106: UN
A107: 4222 | B107: GASOLINA COMUM | C107: L
A108: CÁLCULO HORÁRIO MÉDIO EM CIRCUITO MISTO DO CONSUMO DE COMBUSTÍVEL E CÁLCULO MÉDIO DO KM RODADO POR MÊS MÉDIO* | C108: H | D108: KM | E108: KM/L médio | F108: L/H
A109: I.Rodovia | B109: Cálclo da distância em rodovia mista BR(Federal em boas condições) e PE(Estadual em boas condições) vias asfaltadas e sinalizadas | C109: 1 | D109: 77.4
A110: II.Est.Vic. | B110: Cálclo da distância em Estrada Vicinal em condições medianas | C110: 1 | D110: 35.6
A111: MÉDIA | B111: Média entre as condições I e II | C111: 1 | D111: 56.5 | G111: Arredondando
A112: CHP-Flex | B112: Considerando a necessidade de 35% de horas produtivas mês e que o mês médio nos dá 176 horas (44 hs/sem. x 4 = 176 hs)-FLEX | C112: 176
A113: CHP-Diesel | B113: Considerando a necessidade de 45% de horas produtivas mês e que o mês médio nos dá 176 horas (44 hs/sem. x 4 = 176 hs)-DIESEL | C113: 176
A114: OBSERVAÇÃO: O mês médio leva em consideração que há meses de 28 dias, outros com 30 dias e outros com 31 dias. Há meses que têm mais feriados e outros não, incluindo recessos e paradas técnicas.
A115: Outra observação importante é que se trata do quilômetro rodado médio de todos os veículos de cada categoria de combustível, servindo tanto para os veículos à diesel quanto aos à Gaolina/Flex.
A117: Consumo de pneus - Motocicleta | C117: UND | D117: COEF. | E117: P. UNIT. | F117: CUSTO T. | G117: % item
B118: NXR 160 BROS ESDD FLEXONE | C118: UN
B119: NXR 160 BROS REPOSIÇÃO DE PNEUS ARO 17 COM BASE NA UTILIZAÇÃO NO O&M PISF (1jg./ano) | C119: H
B120: NXR 160 BROS REPOSIÇÃO DE PNEUS ARO 17 COM BASE NA UTILIZAÇÃO NO O&M PISF (1jg./ano) | C120: MÊS | D120: 176
A122: Miniônibus com capacidade para 30 passageiros - 111 kW | C122: UND | D122: COEF. | E122: P. UNIT. | F122: CUSTO T. | G122: % item
A123: SICRO - E9134 | B123: Miniônibus com capacidade para 30 passageiros - 111 k | C123: UN | D123: 1 | F123: 0
B124: Ônibus REPOSIÇÃO DE PNEUS ARO 22.5 COM BASE NA UTILIZAÇÃO NO O&M PISF (1jg./ano) | C124: H
B125: Ônibus REPOSIÇÃO DE PNEUS ARO 22.5 COM BASE NA UTILIZAÇÃO NO O&M PISF (1jg./ano) | C125: MÊS | D125: 176
A127: *Observações
A128: - SICRO 01/2022
A129: -SINAPI 04/2022
J144: SINAPI 04/2022 - NÃO DESONERADO
J145: SICRO 01/2022 - NÃO DESONERADO

Sheet Equipamentos
C1: Ministério do Desenvolvimento Regional - MDR
C2: Companhia de Desenvolvimento dos Vales do São Francisco e do Parnaíba
C3: Gerência de Operação do PISF - Centro de Controle e Operação (AD / GOI / CCO)
A5: =Mem_Calculo_VEICULOS!A5 -> TERMO DE REFERÊNCIA PARA CONTRATAÇÃO DOS RECURSOS NECESSÁRIOS À OPERAÇÃO E MANUTENÇÃO DAS INFRAESTRUTURAS DO EIXO LESTE DO PISF - PROJETO DE INTEGRAÇÃO DO SÃO FRANCISCO COM AS BACIAS HIDROGRÁFICAS DO NORDESTE SETENTRIONAL
A8: EQUIPAMENTOS
A12: ITEM | B12: CÓDIGO | C12: DESCRIÇÃO | D12: UNIDADE | E12: QUANTIDADE | F12: VALOR (R$)
F13: UNITARIO | G13: TOTAL
C14: =A8 -> EQUIPAMENTOS
A16: 1. | C16: EQUIPAMENTOS - MECÂNICA | K16: 12 | L16: ='ORCAMENTO_CONSOLIDADO (2)'!$K$1 -> 6
A17: 1.1 | B17: COT_AFER | C17: Aferidor de manômetro de 0 a 150 bar | D17: un x mês | E17: =L17 -> 6 | G17: =IF(F17="","",ROUND(E17*F17,2)) ->  | I17: 12 | K17: =I17/$K$16 -> 1 | L17: =ROUNDUP(K17*$L$16,0) -> 6
A18: 1.2 | B18: COT_ALMO_FLEX | C18: Almotolia de bico flexível 500ml | D18: un x mês | E18: =L18 -> 18 | G18: =IF(F18="","",ROUND(E18*F18,2)) ->  | I18: 36 | K18: =I18/$K$16 -> 3 | L18: =ROUNDUP(K18*$L$16,0) -> 18
A19: 1.3 | B19: COT_ALMO_RIG | C19: Almotolia de bico rígido 500ml | D19: un x mês | E19: 18 | I19: 36 | K19: 3 | L19: =ROUNDUP(K19*$L$16,0) -> 18
A20: 1.4 | B20: 4154/ORSE | C20: Andaime metálico tipo fachadeiro Dim: Largura= 1,20m / Altura por peça= 2,00m. (Altura Total=10m - 5 peças por conjunto) | D20: m² x mês | E20: 864 | I20: 1728 | K20: 144 | L20: 864
A21: 1.5 | B21: COT_BANC_OFIC | C21: Bancada para oficina (Dim: 1,2m x 2,5m) | D21: un x mês | E21: 36 | I21: 72 | K21: 6 | L21: 36
A22: 1.6 | B22: COT_BOMB_GRAX | C22: Bomba de graxa manual 5kg | D22: un x mês | E22: 18 | I22: 36 | K22: 3 | L22: 18
A23: 1.7 | B23: 13914 - SINAPI/PE | C23: Talha Manual de Corrente com Alavanca 1,5 t Elevação 1,5m (Catraca 1,5 ton) | D23: un x mês | E23: 6 | I23: 12 | K23: 1 | L23: 6
A24: 1.8 | B24: COT_CHAV_46 | C24: Chave de impacto 46mm boca/estria | D24: un x mês | E24: 12 | I24: 24 | K24: 2 | L24: 12
A25: 1.9 | B25: COT_CHAV_55 | C25: Chave de impacto 55mm boca/estria | D25: un x mês | E25: 12 | I25: 24 | K25: 2 | L25: 12
A26: 1.10 | B26: COT_CHAV_60 | C26: Chave de impacto 60mm boca/estria | D26: un x mês | E26: 12 | I26: 24 | K26: 2 | L26: 12
A27: 1.11 | B27: COT_CHAV_65 | C27: Chave de impacto 65mm boca/estria | D27: un x mês | E27: 12 | I27: 24 | K27: 2 | L27: 12
A28: 1.12 | B28: COT_CHAV_70 | C28: Chave de impacto 70mm boca/estria | D28: un x mês | E28: 12 | I28: 24 | K28: 2 | L28: 12
A29: 1.13 | B29: COT_CHAV_75 | C29: Chave de impacto 75mm boca/estria | D29: un x mês | E29: 24 | I29: 48 | K29: 4 | L29: 24
A30: 1.14 | B30: COT_CHAV_85 | C30: Chave de impacto 85mm boca/estria | D30: un x mês | E30: 24 | I30: 48 | K30: 4 | L30: 24
A31: 1.15 | B31: COT_CINT_3T | C31: Cinta para elevação de carga (comprimento: 3m / capacidade de carga: 3t) | D31: un x mês | E31: 12 | I31: 24 | K31: 2 | L31: 12
A32: 1.16 | B32: COT_CINT_20T | C32: Cinta para elevação de carga (comprimento: 6m / capacidade de carga: 20t) | D32: un x mês | E32: 12 | I32: 24 | K32: 2 | L32: 12
A33: 1.17 | B33: COT_CORT | C33: Cortador a frio para tubos - Cortador Tubo Ferro Ferrari 1/8" - 2" | D33: un x mês | E33: 12 | I33: 24 | K33: 2 | L33: 12
A34: 1.18 | B34: COT_CURV | C34: Curvador de tubos (Até 1”) - Curvador e Dobrador De Tubos Manual | D34: un x mês | E34: 12 | I34: 24 | K34: 2 | L34: 12
A35: 1.19 | B35: 38476 - SINAPI/PE | C35: Escada de abrir com 2 x 8 degraus (2,40m) em alumínio | D35: un x mês | E35: 24 | I35: 48 | K35: 4 | L35: 24
A36: 1.20 | B36: 38477 - SINAPI/PE | C36: Escada de marinheiro extensível em duraluníno com 10 x 20 degraus (3,00m / 6,00m) | D36: un x mês | E36: 18 | I36: 36 | K36: 3 | L36: 18
A37: 1.21 | B37: COT_ESCA_07 | C37: Escada metálica de 07 degraus | D37: un x mês | E37: 18 | I37: 36 | K37: 3 | L37: 18
A38: 1.22 | B38: COT_ESCA_16 | C38: Escada articulada multifuncional 4x4 16 degraus | D38: un x mês | E38: 6 | I38: 12 | K38: 1 | L38: 6
A39: 1.23 | B39: COT_ESME | C39: Esmerilhadeira angular de 4 ½” | D39: un x mês | E39: 12 | I39: 24 | K39: 2 | L39: 12
A40: 1.24 | B40: 11359 - SINAPI/PE | C40: Esmerilhadeira angular de 7” | D40: un x mês | E40: 12 | I40: 24 | K40: 2 | L40: 12
A41: 1.25 | B41: I9376 - SEINFRA/CE | C41: Furadeira Manual 650W 1050 – 1450 RPM 220V Ø 13mm | D41: un x mês | E41: 12 | I41: 24 | K41: 2 | L41: 12
A42: 1.26 | B42: COT_INDU | C42: Indutor elétrico para aquecimento de rolamentos (JM 500) | D42: un x mês | E42: 6 | I42: 12 | K42: 1 | L42: 6
A43: 1.27 | B43: COT_LIXA | C43: Lixadeira 4 1/2" | D43: un x mês | E43: 12 | I43: 24 | K43: 2 | L43: 12
A44: 1.28 | B44: COT_MACA_20T | C44: Macaco de comando a distância 20 t - Macaco Hidráulico 20 Toneladas Tipo Garrafa | D44: un x mês | E44: 12 | I44: 24 | K44: 2 | L44: 12
A45: 1.29 | B45: COT_MACA_50T | C45: Macaco de comando a distância 50 t - Macaco Hidráulico 50 Toneladas Tipo Garrafa | D45: un x mês | E45: 12 | I45: 24 | K45: 2 | L45: 12
A46: 1.30 | B46: COT_MACA_2T | C46: Macaco tipo elevador capacidade de 2 t - Macaco Hidráulico 2 Toneladas tipo Garrafa | D46: un x mês | E46: 12 | I46: 24 | K46: 2 | L46: 12
A47: 1.31 | B47: COT_MACA_GIR | C47: Macaco tipo girafa de 2 t - Guincho Hidráulico 2 Toneladas com Prolongador | D47: un x mês | E47: 12 | I47: 24 | K47: 2 | L47: 12
A48: 1.32 | B48: 40403 - SINAPI/PE | C48: Máquina de solda elétrica de 250 A com kit. | D48: un x mês | E48: 12 | I48: 24 | K48: 2 | L48: 12
A49: 1.33 | B49: COT_MORS | C49: Morsa para bancada nº 08 | D49: un x mês | E49: 36 | I49: 72 | K49: 6 | L49: 36
A50: 1.34 | B50: E9630-DNIT/PE | C50: Conjunto Motor bomba 7,5 CV, 380 V, Q=75,6 m3/h e H=17 mca. (Poço de rebaixamento da EBV-3) | D50: un x mês | E50: 6 | I50: 12 | K50: 1 | L50: 6
A51: 1.35 | B51: COT_BOMB_SUB | C51: Bomba Submersível 5 Cv Trifásica 380V, Q=2 - 52 m3/h e H= 3-25 mca.(Poço de rebaixamento do Res. de areias (Estrutura de Controle) | D51: un x mês | E51: 6 | I51: 12 | K51: 1 | L51: 6
A52: 1.36 | B52: COT_MOTO_ESMER | C52: Motoesmeril de 1cv - 3.500 RPM | D52: un x mês | E52: 36 | I52: 72 | K52: 6 | L52: 36
A53: 1.37 | B53: COT_MULT | C53: Multiplicador de Torque Manual 2700 N.m/2000 lb.ft CDI GA190 | D53: un x mês | E53: 6 | I53: 12 | K53: 1 | L53: 6
A54: 1.38 | B54: E9552 - DNIT/PE | C54: Nível de precisão | D54: un x mês | E54: 6 | I54: 12 | K54: 1 | L54: 6
A55: 1.39 | B55: COT_PARA | C55: Parafusadeira elétrica a bateria | D55: un x mês | E55: 12 | I55: 24 | K55: 2 | L55: 12
A56: 1.40 | B56: COT_PREN | C56: Prensa hidráulica de 10 ton | D56: un x mês | E56: 12 | I56: 24 | K56: 2 | L56: 12
A57: 1.41 | B57: E9207-DNIT/PE | C57: Retífica elétrica | D57: un x mês | E57: 12 | I57: 24 | K57: 2 | L57: 12
A58: 1.42 | B58: E9748-DNIT/PE | C58: Rosqueadeira ( para tubos de ½” a 4”) -Rosqueadeira Elétrica 1/2 A 4 Pol. 750w 220v-Br Motors-Brr124bsp | D58: un x mês | E58: 6 | I58: 12 | K58: 1 | L58: 6
A59: 1.43 | B59: 10740 - SINAPI/PE | C59: Talha capacidade 3t | D59: un x mês | E59: 12 | I59: 24 | K59: 2 | L59: 12
A60: 1.44 | B60: COT_TIFO | C60: Tifor 3t | D60: un x mês | E60: 12 | I60: 24 | K60: 2 | L60: 12
A61: ="TOTAL - "&C16&":" -> TOTAL - EQUIPAMENTOS - MECÂNICA: | K61: 0 | L61: 0
K62: 0 | L62: 0
A63: 2. | C63: EQUIPAMENTOS - ELÉTRICA | K63: 0 | L63: 0
A64: 2.1 | B64: COT_ANAL | C64: Analisador de grandezas elétricas trifásico, display LCD colorido 5,6", TRMS 1.000 V, corrente 3.000A | D64: un x mês | E64: =L64 -> 6 | G64: =IF(F64="","",ROUND(E64*F64,2)) ->  | I64: 12 | K64: 1 | L64: 6
A65: 2.2 | B65: COT_BANC_TESTE | C65: Bancada de teste, amperimetro 150A, voltímetro 40V | D65: un x mês | E65: 6 | I65: 12 | K65: 1 | L65: 6
A66: 2.3 | B66: COT_BANC_PROT | C66: Bancada protegida contra eletricidade estática | D66: un x mês | E66: 6 | I66: 12 | K66: 1 | L66: 6
A67: 2.4 | B67: COT_DATA | C67: Data Logger de 4 a 20 mA (verificação de intermitência em instrumentação) | D67: un x mês | E67: 6 | I67: 12 | K67: 1 | L67: 6
A68: 2.5 | B68: 13761 - SINAPI/PE | C68: Estação de solda com temperatura ajustável e proteção antiestático | D68: un x mês | E68: 6 | I68: 12 | K68: 1 | L68: 6
A69: 2.6 | B69: 10236 - ORSE/SE | C69: Fonte de alimentação com tensão variável de 0 a 30Vcc de 3 A | D69: un x mês | E69: 6 | I69: 12 | K69: 1 | L69: 6
A70: 2.7 | B70: COT_FONT | C70: Fonte de bancada 12 V | D70: un x mês | E70: 6 | I70: 12 | K70: 1 | L70: 6
A71: 2.8 | B71: I9376 - SEINFRA/CE | C71: Furadeira Manual 650W 1050 – 1450 RPM 220V Ø 13mm | D71: un x mês | E71: 6 | I71: 12 | K71: 1 | L71: 6
A72: 2.9 | B72: COT_GERA | C72: Gerador de corrente e tensão de 0 a 20 mA e 0 a 10V, precisão de 0,1% | D72: un x mês | E72: 6 | I72: 12 | K72: 1 | L72: 6
A73: 2.10 | B73: COT_TTR | C73: TTR - medidor digital de relação de espiras, escala de medição 0,8000:1 a 8.000,0: 1 | D73: un x mês | E73: 6 | I73: 12 | K73: 1 | L73: 6
A74: ="TOTAL - "&C63&":" -> TOTAL - EQUIPAMENTOS - ELÉTRICA: | K74: 0 | L74: 0
K75: 0 | L75: 0
A76: 3. | C76: EQUIPAMENTOS - CIVIL | K76: 0 | L76: 0
A77: 3.1 | C77: MANUTENÇÃO | K77: 0 | L77: 0
A78: 3.1.1 | B78: E9630-DNIT/PE | C78: Bomba submersível com capacidade de 75 m³/h - 3,6 kW | D78: un x mês | E78: =L78 -> 12 | G78: =IF(F78="","",ROUND(E78*F78,2)) ->  | I78: 24 | K78: 2 | L78: 12
A79: 3.1.2 | B79: =B20 -> 4154/ORSE | C79: Andaime metálico tipo fachadeiro Dim: Largura= 1,20m / Altura por peça= 2,00m. (Altura Total=10m - 5 peças por conjunto) | D79: m² x mês | E79: 432 | I79: 864 | K79: 72 | L79: 432
A80: 3.1.3 | B80: E9519 - DNIT/PE | C80: Betoneira com motor a gasolina com capacidade de 600 l - 10 kW | D80: un x mês | E80: 12 | I80: 24 | K80: 2 | L80: 12
A81: 3.1.4 | B81: 746 - SINAPI/PE | C81: Lavadora de alta pressão a diesel, partida elétrica, motor de 10 hp | D81: un x mês | E81: 6 | I81: 12 | K81: 1 | L81: 6
A82: 3.1.5 | B82: 36503 - SINAPI/PE | C82: MOTOBOMBA TRASH (PARA AGUA SUJA) AUTO ESCORVANTE, MOTOR GASOLINA DE 6,41 HP, DIAMETROS DE SUCCAO X RECALQUE: 3" X 3", HM/Q: 10/60 A 23/0 | D82: un x mês | E82: 12 | I82: 24 | K82: =I82/$K$16 -> 2 | L82: =ROUNDUP(K82*$L$16,0) -> 12
A83: 3.1.6 | B83: E9630-DNIT/PE | C83: Bomba submersível com capacidade de 75 m³/h - 3,6 kW | D83: un x mês | E83: 12 | I83: 24 | K83: 2 | L83: 12
A84: 3.1.7 | B84: E9579-DNIT/PE | C84: CAMINHÃO BASCULANTE 10 M3, TRUCADO CABINE SIMPLES, PESO BRUTO TOTAL 23.000 KG, CARGA ÚTIL MÁXIMA 15.935 KG, DISTÂNCIA ENTRE EIXOS 4,80 M, POTÊNCIA 230 CV INCLUSIVE CAÇAMBA METÁLICA | D84: un x mês | E84: 24 | I84: 48 | K84: 4 | L84: 24
A85: 3.1.8 | B85: E9592-DNIT/PE | C85: CAMINHÃO TRUCADO (C/ TERCEIRO EIXO) ELETRÔNICO - POTÊNCIA 231CV - PBT = 22000KG - DIST. ENTRE EIXOS 5170 MM - INCLUI CARROCERIA FIXA ABERTA DE MADEIRA | D85: un x mês | E85: 24 | I85: 48 | K85: 4 | L85: 24
A86: 3.1.9 | B86: E9509-DNIT/PE | C86: Caminhão Comboio para lubrificação e abastecimento (melosa), convencional totalmente equipado (Capacidade de Combustível: 5.000 l, Capacidade de Lubrificante: 500 l, Capacidade de Graxa: 200 kg, Capacidade de Água: 300 l, Recipiente para Óleo Usado: 200 l, Compressor de Ar e Bomba- d’agua). | D86: un x mês | E86: 6 | I86: 12 | K86: 1 | L86: 6
A87: 3.1.10 | B87: E9686-DNIT/PE | C87: Caminhão guindauto com capacidade de carga até 10,0 t. | D87: un x mês | E87: 12 | I87: 24 | K87: 2 | L87: 12
A88: 3.1.11 | B88: 6259 - SINAPI/PE | C88: Caminhão tanque, capacidade de volume 6000 l e potência 136,0 hp . | D88: un x mês | E88: 30 | I88: 60 | K88: 5 | L88: 30
A89: 3.1.12 | B89: 89883-SINAPI/PE | C89: Cavalo Mecânico com Reboque M. Benz Randon LS-1634/45 29,5 t, ou similar | D89: un x mês | E89: 6 | I89: 12 | K89: 1 | L89: 6
A90: 3.1.13 | B90: E9107-DNIT/PE | C90: Compactador de solo a percussão (soquete), com motor gasolina de 4 tempos, peso entre 55 e 65 kg, força de impacto de 1.000 a 1.500 kgf, frequência de 600 a 700 golpes por minuto,velocidade de trabalho entre 10 e 15 m/min, potência entre 2 e 3 hp. | D90: un x mês | E90: 6 | I90: 12 | K90: 1 | L90: 6
A91: 3.1.14 | B91: E9556-DNIT/PE | C91: Compactador de solo, tipo placa vibratória reversível, com motor a diesel, peso entre 700 e 820 kg, força centrífuga entre 6.200 e 10.000 kgf, largura de trabalho entre 650 e 720 mm, frequência de vibração entre 3.000 e 3.500 rpm, velocidade de trabalho entre 25 e 30 m/min, potência entre 13,0 e 15,0 hp. | D91: un x mês | E91: 6 | I91: 12 | K91: 1 | L91: 6
A92: 3.1.15 | B92: E9513-DNIT/PE | C92: Compressor de ar rebocável, vazão 400 pcm, pressão efetiva de trabalho 102 psi, motor diesel, potência 110 cv. | D92: un x mês | E92: 3 | I92: 6 | K92: 0.5 | L92: 3
A93: 3.1.16 | B93: COT_CONJ_30 | C93: Conjunto motorbomba com 30 kW de potência no motor elétrico (25 mca x 0,1 m³/s) para esgotamento, com respectivos mangotes de sucção e descarga a serem especificados em função dos diâmetros. | D93: un x mês | E93: 3 | I93: 6 | K93: 0.5 | L93: 3
A94: 3.1.17 | B94: 36483 - SINAPI/PE | C94: ESCAVADEIRA HIDRAULICA SOBRE ESTEIRAS CACAMBA 0,40 A 1,20 M3, PESO OPERACIONAL 21,19 T, POTENCIA LIQUIDA 173 HP | D94: un x mês | E94: 6 | I94: 12 | K94: 1 | L94: 6
A95: 3.1.18 | B95: E9066-DNIT/PE | C95: Grupo gerador de 13/14 KVA, 220v, trifásico, silenciado, com 100 metros de cabos e 01 QTA. | D95: un x mês | E95: 6 | I95: 12 | K95: 1 | L95: 6
A96: 3.1.19 | B96: E9776 - DNIT/PE | C96: Grupo gerador de 145/160 kVA | D96: un x mês | E96: 6 | I96: 12 | K96: 1 | L96: 6
A97: 3.1.20 | B97: E9778 - DNIT/PE | C97: Grupo gerador de 310/340 kVA | D97: un x mês | E97: 6 | I97: 12 | K97: 1 | L97: 6
A98: 3.1.21 | B98: E9535 - DNIT/PE | C98: Serra circular de bancada, modelo pica-pau, diâmetro de 350 mm. Características do motor: trifásico, potência de 5 hp, frequência de 60 H. | D98: un x mês | E98: 12 | I98: 24 | K98: 2 | L98: 12
A99: 3.1.22 | B99: 40403 - SINAPI/PE | C99: Máquina de solda elétrica de 250 A com kit. | D99: un x mês | E99: 12 | I99: 24 | K99: 2 | L99: 12
A100: 3.1.23 | B100: E9568-DNIT/PE | C100: Furadeira elétrica profissional. | D100: un x mês | E100: 12 | I100: 24 | K100: 2 | L100: 12
A101: 3.1.24 | B101: 13192 - SINAPI/PE | C101: Lixadeira elétrica angular para concreto, potência 1.400 W, prato diamantado de 5''. | D101: un x mês | E101: 12 | I101: 24 | K101: 2 | L101: 12
A102: 3.1.25 | B102: 14619 - SINAPI/PE | C102: Máquina para corte com disco abrasivo de diâmetro de 18'' (450 mm), com motor elétrico trifásico de 10 cv. | D102: un x mês | E102: 12 | I102: 24 | K102: 2 | L102: 12
A103: 3.1.26 | B103: 40703 - SINAPI/PE | C103: Martelete rompedor 33 kg. | D103: un x mês | E103: 6 | I103: 12 | K103: 1 | L103: 6
A104: 3.1.27 | B104: 36533 - SINAPI/PE | C104: Martelo demolidor pneumático manual, com redução de vibração, peso de 31,5 kg. | D104: un x mês | E104: 12 | I104: 24 | K104: 2 | L104: 12
A105: 3.1.28 | B105: 13227 - SINAPI/PE | C105: MOTONIVELADORA POTENCIA BASICA LIQUIDA (PRIMEIRA MARCHA) 171 HP, PESO BRUTO 14768 KG, LARGURA DA LAMINA DE 3,7 M | D105: un x mês | E105: 6 | I105: 12 | K105: 1 | L105: 6
A106: 3.1.29 | B106: E9585 - DNIT/PE | C106: Motoserra portátil com motor a gosolina de 60 cc. | D106: un x mês | E106: 18 | I106: 36 | K106: 3 | L106: 18
A107: 3.1.30 | B107: 11651 - SINAPI/PE | C107: Perfuratriz pneumática manual de peso médio, 18 kg, comprimento de curso de 6 m, diâmetro do pistão de 5,5 cm | D107: un x mês | E107: 3 | I107: 6 | K107: 0.5 | L107: 3
A108: 3.1.31 | B108: E9526-DNIT/PE | C108: Retroescavadeira sobre rodas com carregadeira, tração 4x4, potência líquida 72 hp, peso operacional mínimo de 7.140 kg, capacidade mínima da carregadeira de 0,79 m³ e da retroescavadeira mínima de 0,18 m³, profundidade de escavação máxima de 4,50 m. | D108: un x mês | E108: 24 | I108: 48 | K108: 4 | L108: 24
A109: 3.1.32 | B109: E9089 - DNIT/PE | C109: Roçadeira costal com motor a gasolina de 32 cc. | D109: un x mês | E109: 24 | I109: 48 | K109: 4 | L109: 24
A110: 3.1.33 | B110: COT - SOLD | C110: Soldador manual para mantas Leister Triac-st | D110: un x mês | E110: 12 | I110: 24 | K110: 2 | L110: 12
A111: 3.1.34 | B111: COT_TORR | C111: Torre de iluminação 4000 W | D111: un x mês | E111: 12 | I111: 24 | K111: 2 | L111: 12
A112: 3.1.35 | B112: COT - TRIT | C112: Triturador de Galhos e Resíduos TR-500G à Gasolina Motor 13HP | D112: un x mês | E112: 24 | I112: 48 | K112: 4 | L112: 24
A113: 3.1.36 | B113: 39628 - SINAPI/PE | C113: Motor a diesel para vibrador de imersão de 4,7 cv. | D113: un x mês | E113: 6 | I113: 12 | K113: 1 | L113: 6
A114: 3.1.37 | B114: 39399 - SINAPI/PE | C114: Vibrador de imersão, com ponteira de 35 mm, mangote de 5 m, sem motor. | D114: un x mês | E114: 2 | I114: 4 | K114: 0.3333333333 | L114: 2
A115: 3.1.38 | B115: 39400 - SINAPI/PE | C115: Vibrador de imersão, com ponteira de 45 mm, mangote de 5 m, sem motor. | D115: un x mês | E115: 2 | I115: 4 | K115: 0.3333333333 | L115: 2
A116: 3.1.39 | B116: 39401 - SINAPI/PE | C116: Vibrador de imersão, com ponteira de 60 mm, mangote de 5 m, sem motor. | D116: un x mês | E116: 2 | I116: 4 | K116: 0.3333333333 | L116: 2
A117: ="TOTAL - "&C77&":" -> TOTAL - MANUTENÇÃO:
A120: ="TOTAL - "&C76&" - (R$):" -> TOTAL - EQUIPAMENTOS - CIVIL - (R$):
A122: ="TOTAL - "&C14&" - (R$):" -> TOTAL - EQUIPAMENTOS - (R$):
A125: ="RESUMO - "&A$8 -> RESUMO - EQUIPAMENTOS
A126: ITEM | C126: DESCRIÇÃO | F126: VALOR TOTAL (R$)
A127: 01 | C127: =C16 -> EQUIPAMENTOS - MECÂNICA
A128: 02 | C128: =C63 -> EQUIPAMENTOS - ELÉTRICA
A129: 03 | C129: =C76 -> EQUIPAMENTOS - CIVIL
A130: ="TOTAL GERAL - "&A125&" - (R$):" -> TOTAL GERAL - RESUMO - EQUIPAMENTOS - (R$):
A133: NOME DO INFORMANTE: | F133: QUALIFICAÇÃO:
A135: ASSINATURA: | F135: DATA:
A137: OBSERVAÇÃO:
A138: 1. A unidade adotada na planilha (un x mês) foi de acordo com o cronograma de alocação de recursos materiais, onde foi feita a divisão de uso mensalmente de cada equipamento, por canteiro. Dessa forma, é possivel diluir o custo durante todo o período do contrato.
A140: 2. Os preços apresentados inlcuem o custo de operadores, motoristas e demais mão de obra necesária para utilização do mesmo. Bem como combustível, quando requeridos.
A143: 1. Considerado a carga horária de 176 horas/mês
C145: Carga horária mensal: | D145: 176 | E145: =582.5/(12*30*8) -> 0.2022569444
D147: Operativa | E147: R$/h (Operativa) | F147: R$/h (Improdutiva) | G147: R$/mês
B148: COT_AFER | C148: Aferidor de manômetro de 0 a 150 bar | D148: 1 | G148: 382.3055556
B149: COT_ALMO_FLEX | C149: Almotolia de bico flexível 500ml | D149: 1 | G149: 2.675185185
B150: COT_ALMO_RIG | C150: Almotolia de bico rígido 500ml | D150: 1 | G150: 1.886296296
B151: COT_ANAL | C151: Analisador de grandezas elétricas trifásico, display LCD colorido 5,6", TRMS 1.000 V, corrente 3.000A | D151: 1 | G151: 2485.67
B152: COT_ANDA | C152: Andaime metálico tipo fachadeiro Dim: Largura= 1,20m / Altura por peça= 2,00m. (Altura Total=10m - 5 peças por conjunto) | D152: 1 | G152: =((1224/144)+(0.98*30))/2 -> 18.95
B153: COT_BANC_TESTE | C153: Bancada de teste, amperimetro 150A, voltímetro 40V | D153: 1 | G153: 13.76
B154: COT_BANC_OFIC | C154: Bancada para oficina (Dim: 1,2m x 2,5m) | D154: 1 | G154: 58.70148148
B155: COT_BANC_PROT | C155: Bancada protegida contra eletricidade estática | D155: 1 | G155: 61.09
B156: E9043-DNIT/PE | C156: Embarcação de alumínio com comprimento de 6 m e motor de popa - 18,60 kW (inclusive barqueiro) | D156: 1 | G156: 12389.28
B157: 10537 - SINAPI/PE | C157: Betoneira, capacidade nominal 400 l, capacidade de mistura 310 l, motor a diesel potência 5 cv, sem carregador. | D157: 1 | G157: 691.36
B158: 36398 - SINAPI/PE | C158: Betoneira, capacidade nominal 600 l, capacidade de mistura 440 l, motor a diesel potência 10 cv, com carregador. | D158: 1 | G158: 2033.28
B159: COT_BOMB_GRAX | C159: Bomba de graxa manual 5kg | D159: 1 | G159: 14.31222222
B160: 36503 - SINAPI/PE | C160: MOTOBOMBA TRASH (PARA AGUA SUJA) AUTO ESCORVANTE, MOTOR GASOLINA DE 6,41 HP, DIAMETROS DE SUCCAO X RECALQUE: 3" X 3", HM/Q: 10/60 A 23/0 | D160: 1 | G160: 603.92
B161: E9630-DNIT/PE | C161: Bomba submersível com capacidade de 75 m³/h - 3,6 kW | D161: 1 | G161: 302.17
B162: COT_BOMB_SUB | C162: Bomba Submersível 5 Cv Trifásica 380V, Q=2 - 52 m3/h e H= 3-25 mca.(Poço de rebaixamento do Res. de areias (Estrutura de Controle) | D162: 1 | G162: 905.8902778
B163: 91386 - SINAPI/PE | C163: CAMINHÃO BASCULANTE 10 M3, TRUCADO CABINE SIMPLES, PESO BRUTO TOTAL 23.000 KG, CARGA ÚTIL MÁXIMA 15.935 KG, DISTÂNCIA ENTRE EIXOS 4,80 M, POTÊNCIA 230 CV INCLUSIVE CAÇAMBA METÁLICA | D163: 1 | G163: 52766.67
B164: 91031 - SINAPI/PE | C164: CAMINHÃO TRUCADO (C/ TERCEIRO EIXO) ELETRÔNICO - POTÊNCIA 231CV - PBT = 22000KG - DIST. ENTRE EIXOS 5170 MM - INCLUI CARROCERIA FIXA ABERTA DE MADEIRA | D164: 1 | G164: 48073.07
B165: E9509-DNIT/PE | C165: Caminhão Comboio para lubrificação e abastecimento (melosa), convencional totalmente equipado (Capacidade de Combustível: 5.000 l, Capacidade de Lubrificante: 500 l, Capacidade de Graxa: 200 kg, Capacidade de Água: 300 l, Recipiente para Óleo Usado: 200 l, Compressor de Ar e Bomba- d’agua). | D165: 1 | G165: 49301.32
B166: E9686-DNIT/PE | C166: Caminhão guindauto com capacidade de carga até 10,0 t. | D166: 1 | G166: 67170.57
B167: 6259 - SINAPI/PE | C167: Caminhão tanque, capacidade de volume 6000 l e potência 136,0 hp . | D167: 1 | G167: 46992.35
B168: A9382-DNIT/PE | C168: Dolly intermediário com 2 eixos para semirreboque (para embarcação) | D168: 1 | G168: 5698.37
B169: 89883-SINAPI/PE | C169: Cavalo Mecânico com Reboque M. Benz Randon LS-1634/45 29,5 t, ou similar | D169: 1 | G169: 66504.75
B170: COT_CHAV_46 | C170: Chave de impacto 46mm boca/estria | D170: 1 | G170: 6.841111111
B171: COT_CHAV_55 | C171: Chave de impacto 55mm boca/estria | D171: 1 | G171: 12.59148148
B172: COT_CHAV_60 | C172: Chave de impacto 60mm boca/estria | D172: 1 | G172: 13.59944444
B173: COT_CHAV_65 | C173: Chave de impacto 65mm boca/estria | D173: 1 | G173: 24.81722222
B174: COT_CHAV_70 | C174: Chave de impacto 70mm boca/estria | D174: 1 | G174: 22.4962963
B175: COT_CHAV_75 | C175: Chave de impacto 75mm boca/estria | D175: 1 | G175: 37.02759259
B176: COT_CHAV_85 | C176: Chave de impacto 85mm boca/estria | D176: 1 | G176: 62.66444444
B177: COT_CINT_20T | C177: Cinta para elevação de carga (comprimento: 6m / capacidade de carga: 20t) | D177: 1 | G177: 69.44444444
B178: COT_CINT_3T | C178: Cinta para elevação de carga (comprimento: 3m / capacidade de carga: 3t) | D178: 1 | G178: 6.464444444
B179: E9107-DNIT/PE | C179: Compactador de solo a percussão (soquete), com motor gasolina de 4 tempos, peso entre 55 e 65 kg, força de impacto de 1.000 a 1.500 kgf, frequência de 600 a 700 golpes por minuto,velocidade de trabalho entre 10 e 15 m/min, potência entre 2 e 3 hp. | D179: 1 | G179: 868.19
B180: E9556-DNIT/PE | C180: Compactador de solo, tipo placa vibratória reversível, com motor a diesel, peso entre 700 e 820 kg, força centrífuga entre 6.200 e 10.000 kgf, largura de trabalho entre 650 e 720 mm, frequência de vibração entre 3.000 e 3.500 rpm, velocidade de trabalho entre 25 e 30 m/min, potência entre 13,0 e 15,0 hp. | D180: 1 | G180: 968
B181: E9661-DNIT/PE | C181: Compressor de ar rebocável, vazão 189 pcm, pressão efetiva de trabalho 102 psi, motor diesel, potência 63 cv. | D181: 1 | G181: 7949.88
B182: E9513-DNIT/PE | C182: Compressor de ar rebocável, vazão 400 pcm, pressão efetiva de trabalho 102 psi, motor diesel, potência 110 cv. | D182: 1 | G182: 13545.12
B183: E9630-DNIT/PE | C183: Conjunto Motor bomba 7,5 CV, 380 V, Q=75,6 m3/h e H=17 mca. (Poço de rebaixamento da EBV-3) | D183: 1 | G183: 302.17
B184: COT_CONJ_160 | C184: Conjunto motorbomba com 160 kW de potência no motor elétrico (25 mca x 0,5 m³/s) para esgotamento, com respectivos mangotes de sucção e descarga a serem especificados em função dos diâmetros. | D184: 1 | G184: =113150/12 -> 9429.166667
B185: COT_CONJ_30 | C185: Conjunto motorbomba com 30 kW de potência no motor elétrico (25 mca x 0,1 m³/s) para esgotamento, com respectivos mangotes de sucção e descarga a serem especificados em função dos diâmetros. | D185: 1 | G185: 3195.47
B186: COT_CORT | C186: Cortador a frio para tubos - Cortador Tubo Ferro Ferrari 1/8" - 2" | D186: 1 | G186: 19.6537037
B187: COT_CURV | C187: Curvador de tubos (Até 1”) - Curvador e Dobrador De Tubos Manual | D187: 1 | G187: 78.40703704
B188: E9609-DNIT/PE | C188: Draga de sucção para extração de areia com tubo de descarga de 150 mm - 100 kW | D188: 1 | G188: 21381.73
B189: COT_DATA | C189: Data Logger de 4 a 20 mA (verificação de intermitência em instrumentação) | D189: 1 | G189: 31.96
B190: E9528-DNIT/PE | C190: Empilhadeira sobre pneus com torre de três estágios, 4,80 m de elevação, com deslocador lateral dos garfos, motor glp 2.4 l, capacidade nominal de carga de 2,5 t. | D190: 1 | E190: =86.2687-20.0299 -> 66.2388 | F190: =41.2745-20.0299 -> 21.2446 | G190: 36789.36
B191: E9206-DNIT/PE | C191: Equipamento de solda MIG automática com acessórios - 14,6 kVA | D191: 1 | G191: 5233.29
B192: COT_ESCA_16 | C192: Escada articulada multifuncional 4x4 16 degraus | D192: 1 | G192: 19.14351852
B193: 38476 - SINAPI/PE | C193: Escada de abrir com 2 x 8 degraus (2,40m) em alumínio | D193: 1 | G193: 4.07
B194: 38477 - SINAPI/PE | C194: Escada de marinheiro extensível em duraluníno com 10 x 20 degraus (3,00m / 6,00m) | D194: 1 | E194: =975.46/(12*30*8) -> 0.3387013889 | G194: 12.83
B195: COT_ESCA_07 | C195: Escada metálica de 07 degraus | D195: 1 | G195: 6.894444444
B196: 36483 - SINAPI/PE | C196: ESCAVADEIRA HIDRAULICA SOBRE ESTEIRAS CACAMBA 0,40 A 1,20 M3, PESO OPERACIONAL 21,19 T, POTENCIA LIQUIDA 173 HP | D196: 1 | G196: 54600.88
B197: E9017-DNIT/PE | C197: Escavadeira hidráulica sobre esteiras, caçamba 0,62 m³, peso operacional 12,61 t, potência líquida 95 hp. | D197: 1 | G197: 49535.69
B198: COT_ESME | C198: Esmerilhadeira angular de 4 ½” | D198: 1 | G198: 8.497777778
B199: 11359 - SINAPI/PE | C199: Esmerilhadeira angular de 7” | D199: 1 | G199: 14.17
B200: 13761 - SINAPI/PE | C200: Estação de solda com temperatura ajustável e proteção antiestático | D200: 1 | G200: 983.76
B201: 10236 - ORSE/SE | C201: Fonte de alimentação com tensão variável de 0 a 30Vcc de 3 A | D201: 1 | E201: =193/(12*30*8) -> 0.06701388889 | G201: 4.02
B202: COT_FONT | C202: Fonte de bancada 12 V | D202: 1 | G202: 12.13
B203: E9568-DNIT/PE | C203: Furadeira elétrica profissional. | D203: 1 | G203: 84.66
B204: I9376 - SEINFRA/CE | C204: Furadeira Manual 650W 1050 – 1450 RPM 220V Ø 13mm | D204: 1 | E204: 0.08 | G204: 18.81
B205: COT_GERA | C205: Gerador de corrente e tensão de 0 a 20 mA e 0 a 10V, precisão de 0,1% | D205: 1 | G205: 47.27
B206: E9763-DNIT/PE | C206: Grupo Gerador - 32,0 kVA, 220 V, trifásico, silenciado, com 100 metros de cabos e 01 QTA. | D206: 1 | G206: 3569.08
B207: E9066-DNIT/PE | C207: Grupo gerador de 10 KVA, 220v, trifásico, silenciado, com 100 metros de cabos e 01 QTA. | D207: 1 | G207: 2786.78
B208: E9066-DNIT/PE | C208: Grupo gerador de 15 kVA, 220V, trifásico, silenciado, com 100 metros de cabos e 01 QTA. | D208: 1 | G208: 2786.78
B209: E9521-DNIT/PE | C209: Grupo gerador de 4 KVA, 220v, trifásico, silenciado, com 100 metros de cabos e 01 QTA. | D209: 1 | G209: 254.27
B210: 39588 - SINAPI/PE | C210: Grupo gerador diesel, com carenagem, potência standart entre 250 e 260 kVA, velocidade de 1800 rpm, frequência de 60 Hz. | D210: 1 | G210: 15376.61
B211: COT_GRUP_15KVA | C211: Grupo gerador, potência nominal 15 kVA (emergência), incluindo instalação, cabeamento, base de concreto e demais materiais necessários. | D211: 1 | G211: 1719.95
B212: COT_INDU | C212: Indutor elétrico para aquecimento de rolamentos (JM 500) | D212: 1 | G212: 2012.16
B213: COT_KIT | C213: Kit para enchimento e complementação para gás SF6, composto de adaptador ,regulador, mangueira e manômetro padrão | D213: 1 | G213: 542.9
B214: 746 - SINAPI/PE | C214: Lavadora de alta pressão a diesel, partida elétrica, motor de 10 hp | D214: 1 | G214: 158
B215: COT_LIXA | C215: Lixadeira 4 1/2" | D215: 1 | G215: 21.66148148
B216: 13192 - SINAPI/PE | C216: Lixadeira elétrica angular para concreto, potência 1.400 W, prato diamantado de 5''. | D216: 1 | G216: 88.31
B217: E9630-DNIT/PE | C217: Bomba submersível com capacidade de 75 m³/h - 3,6 kW | D217: 1 | G217: 302.17
B218: 743 - SINAPI/PE | C218: Locação de bomba submersível para drenagem e esgotamento, motor elétrico trifásico, potência de 2 cv, diâmetro de recalque de 2". Faixa de operação: Q= 35 m³/h (± 3 m³/h) e AMT=2 m; Q=13 m³/h (± 3 m³/h) e AMT = 17 m (± 3 m). | D218: 1 | E218: 1.96 | G218: =ROUND($D$145*(D218*E218+(1-D218)*F218),2) -> 344.96
B219: 36500 - SINAPI/PE | C219: Locação de grupo gerador acima de 125 até 180 kVA, motor diesel, rebocável, acionamento manual. | D219: 1 | G219: 4902.32
B220: COT_MACA_20T | C220: Macaco de comando a distância 20 t - Macaco Hidráulico 20 Toneladas Tipo Garrafa | D220: 1 | G220: 10.92037037
B221: COT_MACA_50T | C221: Macaco de comando a distância 50 t - Macaco Hidráulico 50 Toneladas Tipo Garrafa | D221: 1 | G221: 39.44055556
... 40 more rows

Sheet CPU_EQUIPAMENTOS_
C1: Ministério do Desenvolvimento Regional - MDR
C2: Companhia de Desenvolvimento dos Vales do São Francisco e do Parnaíba
A3: Gerência de Operação do PISF - Centro de Controle e Operação (AD / GOI / CCO)
A5: =[3]Mem_Calculo_VEICULOS!A5 -> TERMO DE REFERÊNCIA PARA CONTRATAÇÃO DOS RECURSOS NECESSÁRIOS À OPERAÇÃO E MANUTENÇÃO DAS INFRAESTRUTURAS DO EIXO LESTE DO PISF - PROJETO DE INTEGRAÇÃO DO SÃO FRANCISCO COM AS BACIAS HIDROGRÁFICAS DO NORDESTE SETENTRIONAL
A8: COMPOSIÇÃO DE PREÇO - EQUIPAMENTOS
B11: COMPOSIÇÕES - EQUIPAMENTOS - CIVIL
B15: =ROUNDUP(E21/E36,0) -> 38 | G15: =ROUNDUP(I21/I36,0) -> 25 | K15: =ROUNDUP(M21/M36,0) -> 17
B16: CHP e CHI:
C17: Pá Carregadeira 128hp (SINAPI 4262) | G17: Grupo Gerador 145/160 KVA (E9776) | K17: Betoneira 600l- 10kW- motor a gasolina (E9519)
C18: Cód.Comp. | D18: Índice | E18: SINAPI/PE | G18: Cód.Comp. | H18: Índice | I18: SICRO | L18: Índice | M18: SICRO
C19: SINAPI | D19: SINAPI | E19: 4262 (128Hp/95,4Kw) | H19: SICRO | I19: E9776 | L19: SICRO | M19: E9519(600l)
B20: Mês Ref. | E20: 2022-04-01 | I20: 2022-01-01 | M20: 2022-01-01
B21: Aquisição | C21: 4262 | D21: 1 | E21: 720000 | I21: 107062.0469 | M21: 38762.3351
B22: Depreciação | C22: 5627 | D22: 5.6e-05 | E22: =TRUNC(D22*$E$21,2) -> 40.32 | I22: 5.3531 | M22: 3.101
B23: Juros | C23: 5628 | D23: 7.6e-06 | E23: 5.47 | I23: =TRUNC(H23*$I$21,2) -> 0
B24: Manutenção | C24: 5629 | D24: 7e-05 | E24: =TRUNC(D24*$E$21,2) -> 50.4 | I24: 3.8236 | M24: 2.3257
B25: Mat.na Op. | C25: 5630 | D25: 10.77 | E25: =TRUNC(D25*E26,2) -> 73.77 | I25: =TRUNC(H25*I26,2) -> 0
B26: Óleo Diesel | C26: I - 4221 | D26: I - 4221 | E26: 6.85
B27: Operador ec | C27: 88301 | D27: 1 | E27: 33.33
B28: Oport.Capit. | I28: 1.8874 | M28: 0.7175
B29: Seg. e Imp.
B30: M.d.o
B31: Operação | I31: 107.5552 | M31: 20.825
B32: CHP | E32: =E22+E23+E24+E25+E27 -> 203.29 | I32: =I22+I23+I24+I25+I27+I28+I30+I31 -> 118.6193 | M32: =M22+M23+M24+M25+M27+M28+M30+M31 -> 26.9692
B33: CHI | E33: =E22+E23+E27 -> 79.12 | I33: =I22+I23+I27+I28+I30 -> 7.2405 | M33: =M22+M23+M27+M28+M30 -> 3.8185
B34: Horas Produtivas | D34: =($C$42*$D$42*$E$42)*30% -> 42 | E34: =E32*D34 -> 8538.18 | H34: =($C$42*$D$42*$E$42)*20% -> 28 | I34: =I32*H34 -> 3321.3404 | L34: =($C$42*$D$42*$E$42)*50% -> 70 | M34: =M32*L34 -> 1887.844
B35: Horas Improdutivas | D35: =$C$43-D34 -> 134 | E35: =D35*E33 -> 10602.08 | H35: =$C$43-H34 -> 148 | I35: =H35*I33 -> 1071.594 | L35: =$C$43-L34 -> 106 | M35: =L35*M33 -> 404.761
B36: TOTAL HPM+HIM | E36: =E34+E35 -> 19140.26 | I36: =I34+I35 -> 4392.9344 | M36: =M34+M35 -> 2292.605
B37: Horas/dia | C37: Dias/sem. | D37: Dias/mês | E37: Horas/mês
B38: 24 | C38: 7 | D38: 30 | E38: =D38*B38 -> 720 | F38: minimizado
B40: 44 horas úteis semanais: | D40: Produtiva
B41: hs/semana | C41: semana | D41: horas/dia | E41: dias/sem. | F41: horas/sem.
B42: 44 | C42: 4 | D42: 7 | E42: 5 | F42: =D42*E42 -> 35
B43: => | C43: =B42*C42 -> 176 | D43: Total de horas úteis/mês
B47: =ROUNDUP(E53/E67,0) -> 37 | G47: =ROUNDUP(I53/I67,0) -> 40
C49: Bomba submersível - 3,6 KW (DNIT 9630) | G49: Lavadora de alta pressão, 10 hp (746)
C50: Cód.Comp. | D50: Índice | E50: SICRO - DNIT | H50: Índice | I50: SINAPI/PE
C51: DNIT | D51: DNIT | E51: E9630 | H51: SINAPI | I51: 746
B52: Mês Ref. | E52: 2022-01-01 | I52: 2022-04-01
B53: Aquisição | C53: E9630 | D53: 1 | E53: 4479.852 | H53: 746 | I53: 2050
B54: Depreciação | E54: 0.3584 | H54: 99829 | I54: 0.14
B55: Juros | H55: 99830 | I55: 0.01
B56: Manutenção | E56: 0.3136 | H56: 99831 | I56: 0.18
B57: Mat.na Op.
B58: Óleo Diesel
B59: Operador ec
B60: Oport.Capit. | E60: 0.0829
B61: Seg. e Imp.
B62: M.d.o
B63: CHP | E63: =E54+E55+E56+E57+E59+E60 -> 0.7549 | I63: =I54+I55+I56+I57+I59 -> 0.33
B64: CHI | E64: =E54+E55+E59+E60 -> 0.4413 | I64: =I54+I55+I59 -> 0.15
B65: Horas Produtivas | D65: =($C$73*$D$73*$E$73)*100% -> 140 | E65: =E63*D65 -> 105.686 | H65: =($C$73*$D$73*$E$73)*100% -> 140 | I65: =I63*H65 -> 46.2
B66: Horas Improdutivas | D66: =$C$43-D65 -> 36 | E66: =D66*E64 -> 15.8868 | H66: =$C$43-H65 -> 36 | I66: =H66*I64 -> 5.4
B67: TOTAL HPM+HIM | E67: =E65+E66 -> 121.5728 | I67: =I65+I66 -> 51.6
B68: Horas/dia | C68: Dias/sem. | D68: Dias/mês | E68: Horas/mês
B69: 24 | C69: 7 | D69: 30 | E69: =D69*B69 -> 720 | F69: minimizado
B71: 44 horas úteis semanais: | D71: Produtiva
B72: hs/semana | C72: semana | D72: horas/dia | E72: dias/sem. | F72: horas/sem.
B73: 44 | C73: 4 | D73: 7 | E73: 5 | F73: =D73*E73 -> 35
B74: => | C74: =B73*C73 -> 176 | D74: Total de horas úteis/mês
B78: =ROUNDUP(E84/E98,0) -> 10
C80: Motobomba Trash Autoescorvante (36503)
C81: Cód.Comp. | D81: Índice | E81: SINAPI/PE
C82: SINAPI | D82: SINAPI | E82: 36503
B83: Mês Ref. | E83: 2022-04-01
B84: Aquisição | C84: 36503 | D84: 1 | E84: 4262.72
B85: Depreciação | C85: 7044 | D85: 6.4e-05 | E85: =TRUNC(D85*$E$84,2) -> 0.27
B86: Juros | C86: 7045 | D86: 7.6e-06 | E86: =TRUNC(D86*$E$84,2) -> 0.03
B87: Manutenção | C87: 7046 | D87: 7e-05 | E87: =TRUNC(D87*$E$84,2) -> 0.29
B88: Mat.na Op. | C88: 7047 | D88: 4.06 | E88: =TRUNC(D88*E89,2) -> 29.39
B89: Gasolina comum | C89: I - 4222 | D89: I - 4222 | E89: 7.24
B90: Operador ec
B91: Oport.Capit.
B92: Seg. e Imp.
B93: M.d.o
B94: CHP | E94: =E85+E86+E87+E88+E90 -> 29.98
B95: CHI | E95: =E85+E86+E90 -> 0.3
B96: Horas Produtivas | D96: =($C$105*$D$105*$E$105)*10% -> 14 | E96: =E94*D96 -> 419.72
B97: Horas Improdutivas | D97: =$C$43-D96 -> 162 | E97: =D97*E95 -> 48.6
B98: TOTAL HPM+HIM | E98: =E96+E97 -> 468.32
B100: Horas/dia | C100: Dias/sem. | D100: Dias/mês | E100: Horas/mês
B101: 24 | C101: 7 | D101: 30 | E101: =D101*B101 -> 720 | F101: minimizado
B103: 44 horas úteis semanais: | D103: Produtiva
B104: hs/semana | C104: semana | D104: horas/dia | E104: dias/sem. | F104: horas/sem.
B105: 44 | C105: 4 | D105: 7 | E105: 5 | F105: =D105*E105 -> 35
B106: => | C106: =B105*C105 -> 176 | D106: Total de horas úteis/mês
B110: =ROUNDUP(E116/E131,0) -> 0 | G110: =ROUNDUP(I116/I131,0) -> 35 | K110: =ROUNDUP(M116/M131,0) -> 39
C112: Escavadeira, caçamba 173 hp (SICRO E9017) | G112: Grupo gerador 310/340 kva (E9778) | K112: Serra circular, 5hp (E9535)
C113: Cód.Comp. | D113: Índice | E113: SICRO | G113: Cód.Comp. | H113: Índice | I113: SICRO | L113: Índice | M113: SICRO - DNIT
C114: SICRO | D114: SICRO | E114: E9017 | H114: SICRO | I114: E9778 | L114: SICRO - DNIT | M114: E9535
B115: Mês Ref. | E115: 01/041/2022 | I115: 2022-01-01 | M115: 2022-01-01
B116: Aquisição | I116: 203207.4419 | L116: E9535 | M116: 5261.9064
B117: Depreciação | I117: 10.1604 | M117: 0.4736
B118: Juros | I118: =TRUNC(H118*$I$116,2) -> 0 | M118: =TRUNC(L118*$M$21,2) -> 0
B119: Manutenção | I119: 7.2574 | M119: 0.2631
B120: Mat.na Op. | I120: =H120*I121 -> 0 | M120: =TRUNC(L120*$M$26,2) -> 0
B121: Óleo Diesel
B122: Operador ec | L122: 0
B123: Oport.Capit. | I123: 3.5823 | M123: 0.0974
B124: Seg. e Imp.
B125: M.d.o
B126: Operação | I126: 241.072
B127: CHP | E127: 178.24 | I127: =I117+I118+I119+I120+I122+I123+I125+I126 -> 262.0721 | M127: =M117+M118+M119+M120+M122+M123+M125 -> 0.8341
B128: CHI | E128: 89.32 | I128: =I117+I118+I122+I123+I125 -> 13.7427 | M128: =M117+M118+M122+M125+M123 -> 0.571
B129: Horas Produtivas | D129: =($C$138*$D$138*$E$138)*30% -> 42 | E129: =E127*D129 -> 7486.08 | H129: =($C$138*$D$138*$E$138)*10% -> 14 | I129: =I127*H129 -> 3669.0094 | L129: =($C$138*$D$138*$E$138)*100% -> 140 | M129: =M127*L129 -> 116.774
B130: Horas Improdutivas | D130: =$C$43-D129 -> 134 | E130: =D130*E128 -> 11968.88 | H130: =$C$43-H129 -> 162 | I130: =H130*I128 -> 2226.3174 | L130: =$C$43-L129 -> 36 | M130: =L130*M128 -> 20.556
B131: TOTAL HPM+HIM | E131: =E129+E130 -> 19454.96 | I131: =I129+I130 -> 5895.3268 | M131: =M129+M130 -> 137.33
B133: Horas/dia | C133: Dias/sem. | D133: Dias/mês | E133: Horas/mês
B134: 24 | C134: 7 | D134: 30 | E134: =D134*B134 -> 720 | F134: minimizado
B136: 44 horas úteis semanais: | D136: Produtiva
B137: hs/semana | C137: semana | D137: horas/dia | E137: dias/sem. | F137: horas/sem.
B138: 44 | C138: 4 | D138: 7 | E138: 5 | F138: =D138*E138 -> 35
B139: => | C139: =B138*C138 -> 176 | D139: Total de horas úteis/mês
B143: CRITERIO RECEITA FEDERAL | D143: 3.1.36 | G143: 3.1.38 | L143: 3.1.39
B144: CHP e CHI: | D144: Máquina de solda, 250A (40403); Lixadeira elétrica, 1400 W (13192); Máquina para corte, 10 Cv (14619)
C146: Cód.Comp. | D146: Índice | E146: SINAPI/PE (AS) | G146: Cód.Comp. | H146: Índice | I146: SINAPI/PE (AS) | L146: Índice | M146: SINAPI/PE (AS) | O146: 1º.Pag. | P146: ATUAL | Q146: Dif. | R146: + ou -
C147: SINAPI | D147: SINAPI | H147: SINAPI | L147: SINAPI
B148: Mês Ref. | E148: 2021-10-01 | I148: 2021-10-01 | M148: 2021-10-01 | O148: 2021-01-01 | P148: 2021-03-01
B149: Aquisição | C149: 40403 | E149: 606.67 | G149: 13192 | I149: 4239.03 | K149: 14619 | M149: 11982.58
B150: Depreciação (RF) | E150: =TRUNC(D150*$E$21,2) -> 0 | I150: =TRUNC(H150*$I$21,2) -> 0 | M150: =TRUNC(L150*$M$21,2) -> 0
B151: Juros | E151: 0 | I151: =TRUNC(H151*$I$21,2) -> 0 | M151: =TRUNC(L151*$M$21,2) -> 0
B152: Manutenção | E152: =TRUNC(D152*$E$21,2) -> 0 | I152: =TRUNC(H152*$I$21,2) -> 0 | M152: =TRUNC(L152*$M$21,2) -> 0
B153: Mat.na Op. | E153: =TRUNC(D153*E154,2) -> 0 | I153: =H153*I154 -> 0 | M153: =TRUNC(L153*$M$26,2) -> 0
B154: Óleo Diesel | C154: I - 4221 | D154: I - 4221 | H154: I - 4221 | I154: 5.58 | L154: I - 4221 | M154: 5.58
B155: Operador ec | C155: 88301 | D155: 1 | H155: 0 | L155: 0
B156: Oport.Capit.
B157: Seg. e Imp.
B158: M.d.o
B159: CHP | D159: %CHP | E159: =E150+E151+E152+E153+E155 -> 0 | H159: %CHP | I159: =I150+I151+I152+I153+I155 -> 0 | L159: %CHP | M159: =M150+M151+M152+M153+M155 -> 0
B160: CHI | D160: =E160/E159 ->  | E160: =E150+E151+E155 -> 0 | H160: =I160/I159 ->  | I160: =I150+I151+I155 -> 0 | L160: =M160/M159 ->  | M160: =M150+M151+M155 -> 0
B161: CHS | D161: =E161/E159 ->  | E161: =E150+E151+(E155*(1/3)) -> 0 | H161: =I161/I159 ->  | I161: =I150+I151+(I155*(1/3)) -> 0 | L161: =M161/M159 ->  | M161: =M150+M151+(M155*(1/3)) -> 0
B162: Horas Produtivas | D162: =6*5*4 -> 120 | E162: =E159*$D$34 -> 0 | H162: =2*5*4 -> 40 | I162: =I159*H162 -> 0 | L162: =4*5*4 -> 80 | M162: =M159*L162 -> 0
B163: Horas Improdutivas | D163: =$C$43-D162 -> 56 | E163: =$D$35*E160 -> 0 | H163: =$C$43-H162 -> 136 | I163: =I160*H163 -> 0 | L163: =$C$43-L162 -> 96 | M163: =M160*L163 -> 0
B164: Horas de sobreaviso(1/3) | D164: =$E$38-D162-D163 -> 544 | E164: =(E150+E151+(E155*(1/3)*(1/3)))*#REF! ->  | H164: =$E$38-H162-H163 -> 544 | I164: =(I150+I151+(I155*(1/3)*(1/3)))*H164 -> 0 | L164: =$E$38-L162-L163 -> 544 | M164: =(M150+M151+(M155*(1/3)*(1/3)))*L164 -> 0
B165: TOTAL HPM+HIM | E165: =E162+E163+E164 ->  | I165: =I162+I163+I164 -> 0 | M165: =M162+M163+M164 -> 0
C166: Preço Base Codevasf:
B167: Horas/dia | C167: Dias/sem. | D167: Dias/mês | E167: Horas/mês
B168: 24 | C168: 7 | D168: 28 | E168: =D168*B168 -> 672 | F168: minimizado
I169: Máquina de solda | M169: Lixadeira elétrica | P169: Máquina para corte
B170: 44 horas úteis semanais: | D170: Produtiva | I170: Produtiva | J170: Improdutiva | L170: Sobreaviso | M170: Produtiva | N170: Improdutiva | O170: Sobreaviso | P170: Produtiva | Q170: Improdutiva | R170: Sobreaviso
B171: hs/semana | C171: semana | D171: horas/dia | E171: dias/sem. | F171: horas/sem. | H171: semanas | I171: horas/mês | J171: horas/mês | L171: horas/mês | M171: horas/mês | N171: horas/mês | O171: horas/mês | P171: horas/mês | Q171: horas/mês | R171: horas/mês
B172: 44 | C172: 4 | D172: 6 | E172: 5 | F172: =D172*E172 -> 30 | H172: 4 | I172: =D162 -> 120 | J172: =D163 -> 56 | L172: =D164 -> 544 | M172: =H162 -> 40 | N172: =H163 -> 136 | O172: =H164 -> 544 | P172: =L162 -> 80 | Q172: =L163 -> 96 | R172: =L164 -> 544
B173: => | C173: =B172*C172 -> 176 | D173: Total de horas úteis/mês | H173: -120 | I173: => | J173: 56 | L173: =L172+J172+I172 -> 720 | O173: =O172+N172+M172 -> 720 | R173: =R172+Q172+P172 -> 720
B177: =ROUNDUP(E183/E197,0) -> 43 | K177: =ROUNDUP(M183/M197,0) -> 55
C179: Martele rompedor, 33 kg (40703) | K179: Minicarregadeira, 47 hp (37514)
C180: Cód.Comp. | D180: Índice | E180: SINAPI/PE (AS) | L180: Índice | M180: SINAPI/PE
C181: SINAPI | D181: SINAPI | E181: 40703 | L181: SINAPI | M181: 37514
B182: Mês Ref. | E182: 2022-04-01 | M182: 2022-04-01
B183: Aquisição | C183: 40703 | D183: 1 | E183: 7700 | K183: 37514 | L183: 1 | M183: 400000
B184: Depreciação | C184: 102270 | D184: 6.4e-05 | E184: =TRUNC(D184*$E$183,2) -> 0.49 | K184: 90688 | L184: 8e-05 | M184: =TRUNC(L184*$M$183,2) -> 32
B185: Juros | C185: 102271 | D185: 7.5e-06 | E185: =TRUNC(D185*$E$183,2) -> 0.05 | K185: 90689 | L185: 8.1e-06 | M185: =TRUNC(L185*$M$183,2) -> 3.24
B186: Manutenção | C186: 102272 | D186: 8e-05 | E186: =TRUNC(D186*$E$183,2) -> 0.61 | K186: 90690 | L186: 0.0001 | M186: =TRUNC(L186*$M$183,2) -> 40
B187: Mat.na Op. | K187: 90691 | L187: 6.66 | M187: =TRUNC(L187*$M$26,2) -> 0
B188: Energia elétrica (kW) | K188: 4221 | L188: 1 | M188: 6.85
B189: Operador ec
B190: Oport.Capit.
B191: Seg. e Imp.
B192: M.d.o
B193: CHP | E193: =E184+E185+E186+E187+E189 -> 1.15 | M193: =M184+M185+M186+M187+M189 -> 75.24
B194: CHI | E194: =E184+E185+E189 -> 0.54 | M194: =M184+M185+M189 -> 35.24
B195: Horas Produtivas | D195: =($C$203*$D$203*$E$203)*100% -> 140 | E195: =E193*D195 -> 161 | L195: =($C$203*$D$203*$E$203)*20% -> 28 | M195: =M193*L195 -> 2106.72
B196: Horas Improdutivas | D196: =$C$43-D195 -> 36 | E196: =D196*E194 -> 19.44 | L196: =$C$43-L195 -> 148 | M196: =L196*M194 -> 5215.52
B197: TOTAL HPM+HIM | E197: =E195+E196 -> 180.44 | M197: =M195+M196 -> 7322.24
B198: Horas/dia | C198: Dias/sem. | D198: Dias/mês | E198: Horas/mês
B199: 24 | C199: 7 | D199: 30 | E199: =D199*B199 -> 720 | F199: minimizado
B201: 44 horas úteis semanais: | D201: Produtiva
B202: hs/semana | C202: semana | D202: horas/dia | E202: dias/sem. | F202: horas/sem.
B203: 44 | C203: 4 | D203: 7 | E203: 5 | F203: =D203*E203 -> 35
B204: => | C204: =B203*C203 -> 176 | D204: Total de horas úteis/mês
B208: =ROUNDUP(E214/E228,0) -> 51 | G208: =ROUNDUP(I214/I228,0) -> 43
C210: Motoniveladora, 171 hp (13227) | G210: Perfuratriz, 18 kg (11651)
C211: Cód.Comp. | D211: Índice | E211: SINAPI/PE | G211: Cód.Comp. | H211: Índice | I211: SINAPI/PE (AS)
C212: SINAPI | E212: 13227 | I212: 11651
B213: Mês Ref. | E213: 2022-04-01 | I213: 2022-04-01
B214: Aquisição | C214: 13227 | D214: 1 | E214: 1615412.11 | G214: 11651 | H214: 1 | I214: 12793.74
B215: Depreciação | C215: 89228 | D215: 4e-05 | E215: =TRUNC(D215*$E$214,2) -> 64.61 | G215: 95617 | H215: 6.4e-05 | I215: =TRUNC(H215*$I$214,2) -> 0.81
B216: Juros | C216: 89229 | D216: 7.2e-06 | E216: =TRUNC(D216*$E$214,2) -> 11.63 | G216: 95618 | H216: 7.6e-06 | I216: =TRUNC(H216*$I$214,2) -> 0.09
B217: Manutenção | C217: 5779 | D217: 6.43e-05 | E217: 103.87 | G217: 95619 | H217: 8e-05 | I217: =TRUNC(H217*$I$214,2) -> 1.02
B218: Mat.na Op. | C218: 53849 | D218: 13.99 | E218: =TRUNC(D218*E219,2) -> 95.83 | I218: =TRUNC(H218*$M$26,2) -> 0
B219: Óleo Diesel | C219: I - 4221 | D219: I - 4221 | E219: 6.85
B220: Operador ec | C220: 88300 | D220: 1 | E220: 41.29
B221: Oport.Capit.
B222: Seg. e Imp.
B223: M.d.o
B224: CHP | E224: =E215+E216+E217+E218+E220 -> 317.23 | I224: =I215+I216+I217+I218+I220 -> 1.92
B225: CHI | E225: =E215+E216+E220 -> 117.53 | I225: =I215+I216+I220 -> 0.9
B226: Horas Produtivas | D226: =($C$234*$D$234*$E$234)*40% -> 56 | E226: =E224*D226 -> 17764.88 | H226: =($C$234*$D$234*$E$234)*100% -> 140 | I226: =I224*H226 -> 268.8
B227: Horas Improdutivas | D227: =$C$43-D226 -> 120 | E227: =D227*E225 -> 14103.6 | H227: =$C$43-H226 -> 36 | I227: =H227*I225 -> 32.4
B228: TOTAL HPM+HIM | E228: =E226+E227 -> 31868.48 | I228: =I226+I227 -> 301.2
B229: Horas/dia | C229: Dias/sem. | D229: Dias/mês | E229: Horas/mês
B230: 24 | C230: 7 | D230: 30 | E230: =D230*B230 -> 720 | F230: minimizado
B232: 44 horas úteis semanais: | D232: Produtiva
B233: hs/semana | C233: semana | D233: horas/dia | E233: dias/sem. | F233: horas/sem.
B234: 44 | C234: 4 | D234: 7 | E234: 5 | F234: =D234*E234 -> 35
B235: => | C235: =B234*C234 -> 176 | D235: Total de horas úteis/mês
B239: =ROUNDUP(E245/E260,0) -> 5
C241: Motoserra - 2,30 kW (DNIT E9585)
C242: Cód.Comp. | D242: Índice | E242: DNIT
C243: DNIT | D243: DNIT
B244: Mês Ref. | E244: 2022-01-01
... 863 more rows

Sheet Ferramentas
C1: Ministério do Desenvolvimento Regional - MDR
C2: Companhia de Desenvolvimento dos Vales do São Francisco e do Parnaíba
C3: Gerência de Operação do PISF - Centro de Controle e Operação (AD / GOI / CCO)
A5: =Equipamentos!A5 -> TERMO DE REFERÊNCIA PARA CONTRATAÇÃO DOS RECURSOS NECESSÁRIOS À OPERAÇÃO E MANUTENÇÃO DAS INFRAESTRUTURAS DO EIXO LESTE DO PISF - PROJETO DE INTEGRAÇÃO DO SÃO FRANCISCO COM AS BACIAS HIDROGRÁFICAS DO NORDESTE SETENTRIONAL
A8: FERRAMENTAS
A10: ITEM | B10: CÓDIGO | C10: DESCRIÇÃO | D10: UNIDADE | E10: QUANTIDADE | F10: VALOR (R$)
F11: UNITARIO | G11: TOTAL
C12: =A8 -> FERRAMENTAS
A14: 1. | C14: FERRAMENTAS - MECÂNICA
A15: 1.1 | C15: Alavanca para mecânico 38,4 cm | D15: un | E15: 6 | G15: =IF(F15="","",ROUND(E15*F15,2)) ->  | I15: 6 | J15: =ROUNDDOWN((I15/2),0) -> 3
A16: 1.2 | B16: 11240 - ORSE | C16: Alicate de bico com isolamento para 1000V | D16: un | E16: 9 | G16: =IF(F16="","",ROUND(E16*F16,2)) ->  | I16: 9 | J16: =ROUNDDOWN((I16/2),0) -> 4
A17: 1.3 | B17: 38470 - SINAPI | C17: Alicate de corte diagonal | D17: um | E17: 9 | I17: 9 | J17: =ROUNDDOWN((I17/2),0) -> 4
A18: 1.4 | B18: 38471 - SINAPI | C18: Alicate para anéis externo pontas retas | D18: un | E18: 9 | I18: 9 | J18: 4
A19: 1.5 | B19: 38471 - SINAPI | C19: Alicate para anéis externos ponta curva 90° | D19: un | E19: 9 | I19: 9 | J19: 4
A20: 1.6 | B20: 38471 - SINAPI | C20: Alicate para anéis internos | D20: un | E20: 9 | I20: 9 | J20: 4
A21: 1.7 | C21: Alicate de pressão modelo curvo reto, 10", 250mm | D21: un | E21: 9 | I21: 9 | J21: 4
A22: 1.8 | B22: 11240 - ORSE | C22: Alicate universal, 8", com isolação 1000 V | D22: un | E22: 9 | I22: 9 | J22: 4
A23: 1.9 | B23: 10585 - ORSE | C23: Arco de Serra manual (com serra) | D23: un | E23: 6 | I23: 6 | J23: 3
A24: 1.10 | C24: Cabo de força T com encaixe de ½”, ¾” e 1” para soquetes | D24: un | E24: 6 | I24: 6 | J24: 3
A25: 1.11 | B25: 5090 - SINAPI | C25: Cadeado 30mm | D25: un | E25: 9 | I25: 9 | J25: 4
A26: 1.12 | B26: 00425 - ORSE | C26: Cadeado 40mm | D26: un | E26: 9 | I26: 9 | J26: 4
A27: 1.13 | C27: Calibrador de folgas de 0,03 mm - 0,50 mm 17 Lâminas (Jogo) | D27: un | E27: 6 | I27: 6 | J27: 3
A28: 1.14 | C28: Canivete sem ponta inox com lâmina larga | D28: un | E28: 9 | I28: 9 | J28: 4
A29: 1.15 | C29: Chave ajustável oxidada n.º 08 | D29: un | E29: 9 | I29: 9 | J29: 4
A30: 1.16 | C30: Chave combinada 1" x 5/16" | D30: un | E30: 9 | I30: 9 | J30: 4
A31: 1.17 | C31: Chave combinada 22 mm | D31: un | E31: 9 | I31: 9 | J31: 4
A32: 1.18 | C32: Chave combinada n.º 5/16" | D32: un | E32: 9 | I32: 9 | J32: 4
A33: 1.19 | C33: Chave cruzada 8 x 150 | D33: un | E33: 9 | I33: 9 | J33: 4
A34: 1.20 | C34: Chave de boca 3/4" x 25/32" | D34: un | E34: 9 | I34: 9 | J34: 4
A35: 1.21 | C35: Chave de boca 5/16" x 1/4" | D35: un | E35: 9 | I35: 9 | J35: 4
A36: 1.22 | C36: Chave de fenda 1/4x10 | D36: un | E36: 9 | I36: 9 | J36: 4
A37: 1.23 | C37: Chave de fenda 1/8x3 | D37: un | E37: 9 | I37: 9 | J37: 4
A38: 1.24 | C38: Chave de fenda 3/16x6 | D38: un | E38: 9 | I38: 9 | J38: 4
A39: 1.25 | C39: Chave de fenda 3/8x10 | D39: un | E39: 9 | I39: 9 | J39: 4
A40: 1.26 | C40: Chave de fenda 8x150 | D40: un | E40: 9 | I40: 9 | J40: 4
A41: 1.27 | C41: Chave de fenda cruzada (Philips) 1/4" x 1. 1/2" | D41: un | E41: 9 | I41: 9 | J41: 4
A42: 1.28 | C42: Chave de fenda tipo toco 1/4" x 1. 1/2" | D42: un | E42: 9 | I42: 9 | J42: 4
A43: 1.29 | C43: Chave grifo americana n.º 8 200mm | D43: un | E43: 6 | I43: 6 | J43: 3
A44: 1.30 | C44: Chave grifo americana n.º 18 450mm | D44: un | E44: 6 | I44: 6 | J44: 3
A45: 1.31 | C45: Chave Philips | D45: un | E45: 9 | I45: 9 | J45: 4
A46: 1.32 | C46: Chave soquete tipo canhão 1/2" | D46: un | E46: 3 | I46: 3 | J46: 1
A47: 1.33 | C47: Chave soquete tipo canhão 1/4" | D47: un | E47: 3 | I47: 3 | J47: 1
A48: 1.34 | C48: Chave soquete tipo canhão 11/32" | D48: un | E48: 3 | I48: 3 | J48: 1
A49: 1.35 | C49: Chave soquete tipo canhão 3/8" | D49: un | E49: 3 | I49: 3 | J49: 1
A50: 1.36 | C50: Chave soquete tipo canhão 7/16" | D50: un | E50: 3 | I50: 3 | J50: 1
A51: 1.37 | C51: Chave soquete tipo canhão 9/16" | D51: un | E51: 3 | I51: 3 | J51: 1
A52: 1.38 | B52: 12 - SINAPI | C52: Escova de aço, com cabo, *4 X 15* fileiras de cerdas | D52: un | E52: 3 | I52: 3 | J52: 1
A53: 1.39 | B53: 04725 - ORSE | C53: Espátula n.º 38A-23 | D53: un | E53: 9 | H53: ok | I53: 9 | J53: 4
A54: 1.40 | B54: 38380 - SINAPI | C54: Esquadro Profissional 12" (em aço) | D54: un | E54: 6 | I54: 6 | J54: 3
A55: 1.41 | C55: Extensão elétrica 20m 2x2,50mm com carretel | D55: un | E55: 6 | I55: 6 | J55: 3
A56: 1.42 | C56: Faca reta desencapadora com isolamento para 1000V | D56: un | E56: 9 | I56: 9 | J56: 4
A57: 1.43 | C57: Funil para troca de óleo | D57: un | E57: 6 | I57: 6 | J57: 3
A58: 1.44 | C58: Jogo de broca de aço de 6 a 19mm (concreto parede) | D58: un | E58: 9 | I58: 9 | J58: 4
A59: 1.45 | C59: Jogo de soquete Estriado de 1/2 Pol. Com 22 peças | D59: un | E59: 6 | I59: 6 | J59: 3
A60: 1.46 | C60: Jogo de chave combinada de nº 6 a nº 50 | D60: un | E60: 9 | I60: 9 | J60: 4
A61: 1.47 | C61: Jogo de chave hexagonal (Allen) em polegada | D61: un | E61: 9 | I61: 9 | J61: 4
A62: 1.48 | C62: Jogo de chave hexagonal (Allen) nº 03 a 17mm | D62: un | E62: 9 | I62: 9 | J62: 4
A63: 1.49 | C63: Jogo de chave Phillips com isolamento para 1000V | D63: un | E63: 9 | I63: 9 | J63: 4
A64: 1.50 | C64: Jogo de chave soquete 22 mm a 50 mm | D64: un | E64: 6 | I64: 6 | J64: 3
A65: 1.51 | C65: Jogo de chaves de fenda com isolamento para 1000V | D65: un | E65: 9 | I65: 9 | J65: 4
A66: 1.52 | C66: Jogo para Reparo de Rosca Postiça Master M5xM12 | D66: un | E66: 6 | I66: 6 | J66: 3
A67: 1.53 | B67: 11400/ORSE | C67: Lanterna grande - 10 Million | D67: un | E67: 6 | H67: ok | I67: 6 | J67: 3
A68: 1.54 | B68: 10592/ORSE | C68: Lima chata paralela murça 6" | D68: un | E68: 9 | H68: ok | I68: 9 | J68: 4
A69: 1.55 | B69: J040001106/EMBASA | C69: Lima paralela bastarda 6" | D69: un | E69: 9 | H69: ok | I69: 9 | J69: 4
A70: 1.56 | C70: Lima redonda murça 6" | D70: un | E70: 9 | I70: 9 | J70: 4
A71: 1.57 | C71: Kit Estojo de Limas Murça 19 peças | D71: un | E71: 9 | I71: 9 | J71: 4
A72: 1.58 | C72: Mala de ferramenta com 05 gavetas | D72: un | E72: 9 | I72: 9 | J72: 4
A73: 1.59 | B73: 4729 - ORSE | C73: Marreta 1kg | D73: un | E73: 9 | I73: 9 | J73: 4
A74: 1.60 | B74: J02000073/EMBASA | C74: Marreta 2 kg com cabo de fibra | D74: un | E74: 6 | H74: ok | I74: 6 | J74: 3
A75: 1.61 | B75: J020000076/EMBASA | C75: Marreta de 5kg com cabo de madeira | D75: un | E75: 6 | H75: ok | I75: 6 | J75: 3
A76: 1.62 | B76: J030000145/EMBASA | C76: Martelo bola 1kg cabo em madeira | D76: un | E76: 9 | H76: ok | I76: 9 | J76: 4
A77: 1.63 | B77: 11265/ORSE | C77: Martelo de borracha 32 Cm | D77: un | E77: 9 | H77: ok | I77: 9 | J77: 4
A78: 1.64 | C78: Nível a laser com base magnética e tripé | D78: un | E78: 6 | I78: 6 | J78: 3
A79: 1.65 | C79: Nível de mão – metálico e magnético | D79: un | E79: 6 | I79: 6 | J79: 3
A80: 1.66 | C80: Pe De Cabra, 900 Mm, Sextavado, Pintado | D80: un | E80: 6 | G80: =IF(F80="","",ROUND(E80*F80,2)) ->  | I80: 6 | J80: 3
A81: 1.67 | B81: 38377 - SINAPI | C81: Prumo de centro | D81: un | E81: 6 | I81: 6 | J81: =ROUNDDOWN((I81/2),0) -> 3
A82: 1.68 | C82: Punção de centro 100 x 4 mm | D82: un | E82: 9 | I82: 9 | J82: 4
A83: 1.69 | C83: Punção de centro 150 x 6 mm | D83: un | E83: 9 | I83: 9 | J83: 4
A84: 1.70 | B84: J030000058/EMBASA | C84: CONJUNTO DE SACA-PINOS | D84: un | E84: 9 | H84: ok | I84: 9 | J84: 4
A85: 1.71 | C85: Saca pino 08mm | D85: un | E85: 9 | H85: 34.15 | I85: 9 | J85: 4
A86: 1.72 | C86: Saca pino 17 mm | D86: un | E86: 9 | H86: 24.07 | I86: 9 | J86: 4
A87: 1.73 | C87: Saca pino paralelo 150x4 | D87: un | E87: 9 | H87: 23.9 | I87: 9 | J87: 4
A88: 1.74 | C88: Saca pino paralelo 150x6 | D88: un | E88: 9 | H88: 23.68 | I88: 9 | J88: 4
A89: 1.75 | C89: Saca pino paralelo 150x8 | D89: un | E89: 9 | H89: 26.89 | I89: 9 | J89: 4
A90: 1.76 | C90: Saca polia 10" | D90: un | E90: 3 | I90: 3 | J90: 1
A91: 1.77 | C91: Soquete Sextavado Quadra 1" 65 mm | D91: un | E91: 3 | I91: 3 | J91: 1
A92: 1.78 | C92: Soquete Sextavado Quadra 1" 70 mm | D92: un | E92: 3 | I92: 3 | J92: 1
A93: 1.79 | C93: Soquete Sextavado Quadra 1" 75/55 mm | D93: un | E93: 3 | I93: 3 | J93: 1
A94: 1.80 | B94: 11271/ORSE | C94: Talhadeira De Aço Com Empunhadura De Proteção 10'' | D94: un | E94: 9 | I94: 9 | J94: 4
A95: 1.81 | C95: Torquímetro de estalo 50 - 400 N.m | D95: un | E95: 3 | I95: 3 | J95: 1
A96: 1.82 | C96: Trena Metálica 8 m | D96: un | E96: 6 | I96: 6 | J96: 3
A97: ="TOTAL - "&C14&" - (R$):" -> TOTAL - FERRAMENTAS - MECÂNICA - (R$):
A99: 2. | C99: FERRAMENTAS - ELÉTRICA
A100: 2.1 | C100: Adaptador universal de tomadas | D100: un | E100: 46 | G100: =IF(F100="","",ROUND(E100*F100,2)) ->  | I100: 46 | J100: =ROUNDDOWN((I100/2),0) -> 23
A101: 2.2 | C101: Alavanca reta, 1,75 m | D101: un | E101: 10 | G101: =IF(F101="","",ROUND(E101*F101,2)) ->  | I101: 10 | J101: 5
A102: 2.3 | C102: Alicate bico chato/pato, 6" | D102: un | E102: 13 | I102: 13 | J102: 6
A103: 2.4 | B103: 38470 - SINAPI | C103: Alicate cortador de cabos diagonal, 6" | D103: un | E103: 23 | I103: 23 | J103: 11
A104: 2.5 | C104: Alicate cortador de cabos frontal, 6" | D104: un | E104: 13 | I104: 13 | J104: 6
A105: 2.6 | C105: Alicate/Tesoura cortador manual de cabos de até 300mm², 225mm | D105: un | E105: 13 | I105: 13 | J105: 6
A106: 2.7 | B106: 38547 - SINAPI | C106: Alicate crimpador, RJ-11/RJ-45, 200mm | D106: un | E106: 2 | I106: 2 | J106: 1
A107: 2.8 | B107: 38547 - SINAPI | C107: Alicate crimpador, RG-59 e RG-6, 130mm | D107: un | E107: 2 | I107: 2 | J107: 1
A108: 2.9 | B108: 11272 - ORSE | C108: Alicate crimpador para terminais 1,0 a 10mm², 220mm | D108: un | E108: 13 | I108: 13 | J108: 6
A109: 2.10 | B109: 11272 - ORSE | C109: Alicate crimpador para terminais 10 a 120mm², 620mm | D109: un | E109: 1 | I109: 1 | J109: 0
A110: 2.11 | B110: 11272 - ORSE | C110: Alicate crimpador 11", 280mm | D110: un | E110: 2 | I110: 2 | J110: 1
A111: 2.12 | C111: Alicate crimpador, hidráulico, prensa terminal, com matriz de 10 a 300mm² | D111: un | E111: 1 | I111: 1 | J111: 0
A112: 2.13 | B112: 11275 - ORSE | C112: Alicate de pressão, 10", 250mm | D112: un | E112: 13 | I112: 13 | J112: 6
A113: 2.14 | B113: 11240 - ORSE | C113: Alicate profissional universal, 8". Material: Cromo Vanadium | D113: un | E113: 13 | I113: 13 | J113: 6
A114: 2.15 | B114: 11240 - ORSE | C114: Alicate universal, 8", com isolação 1000 V | D114: un | E114: 10 | I114: 10 | J114: 5
A115: 2.16 | B115: 10585 - ORSE | C115: Arco de Serra manual (com serra) | D115: un | E115: 23 | I115: 23 | J115: 11
A116: 2.17 | C116: Aspirador de Pó / Liquidos 2 Motores de 1200W 220V AA280 | D116: un | E116: 2 | H116: ok | I116: 2 | J116: 1
A117: 2.18 | C117: Bastão isolante universal Ø 38 mm, 6 m, com 2 cabeçotes | D117: un | E117: 2 | I117: 2 | J117: 1
A118: 2.19 | C118: Bastão de resgate - 35 kV, 220 mm | D118: un | E118: 2 | I118: 2 | J118: 1
A119: 2.20 | C119: Chave de boca ajustável 8" | D119: un | E119: 10 | I119: 10 | J119: 5
A120: 2.21 | C120: Chave de boca ajustável 12" | D120: un | E120: 10 | I120: 10 | J120: 5
A121: 2.22 | C121: Chave de boca ajustável 18" | D121: un | E121: 10 | I121: 10 | J121: 5
A122: 2.23 | B122: 00425 - ORSE | C122: Cadeado 40mm | D122: un | E122: 27 | I122: 27 | J122: 13
A123: 2.24 | C123: Caixa de ferramentas para eletricista NR10 com 34 peças - Equipes de Manutenção | D123: un | E123: 6 | H123: ok | I123: 6 | J123: 3
A124: 2.25 | C124: Caixa de ferramentas para eletricista NR10 com 34 peças para operadores EB | D124: un | E124: 6 | H124: ok | I124: 6 | J124: 3
A125: 2.26 | C125: Caixa de ferramentas com 40 peças (Para técnicos de automação e telecom) | D125: un | E125: 2 | I125: 2 | J125: 1
A126: 2.27 | C126: Caixa de ferramentas tipo sanfonada, confeccionada em chapa de aço, com rodas e puxador | D126: un | E126: 13 | I126: 13 | J126: 6
A127: 2.28 | C127: Câmera fotográfica digital 20MP, 5x Zoom Óptico | D127: un | E127: 2 | I127: 2 | J127: 1
A128: 2.29 | C128: Chave com catraca 4 bocas 8x9x10x11 mm (Ref. 44637101 ou similar) | D128: un | E128: 10 | I128: 10 | J128: 5
A129: 2.30 | C129: Conjunto de aterramento rápido e temporário para cubículos até 35kV | D129: un | E129: 2 | I129: 2 | J129: 1
A130: 2.31 | C130: Conjunto de aterramento rápido e temporário para redes isoladas até 1kV | D130: un | E130: 2 | I130: 2 | J130: 1
A131: 2.32 | C131: Conjunto de aterramento temporário até 15 kV | D131: un | E131: 2 | I131: 2 | J131: 1
A132: 2.33 | C132: Conjunto de chaves básicas para eletricista com 06 peças | D132: un | E132: 10 | I132: 10 | J132: 5
A133: 2.34 | C133: Detector de Tensão por contato 1kV | D133: un | E133: 15 | I133: 23 | J133: 11
A134: 2.35 | C134: Detector unipolar de tensão por aproximação - 10 KV | D134: un | E134: 5 | I134: 13 | J134: 6
A135: 2.36 | C135: Encerado de lona (3x2 m) | D135: un | E135: 5 | I135: 10 | J135: 5
A136: 2.37 | B136: 38477/SINAPI | C136: Escada perfil "U" de fibra de vidro extensiva - altura esticada 8,40 m - 15 kV | D136: un | E136: 5 | H136: ok | I136: 10 | J136: 5
A137: 2.38 | B137: Banco de Preços (Pregão Eletrônico - FUND.P/CONSERV.PROD.FLORESTAL DO EST.SP GOVERNO DO ESTADO DE SÃO PAULO), 04/2022 | C137: Escada de fibra de vidro tipo "A" - 10 degraus | D137: un | E137: 2 | I137: 2 | J137: 1
A138: 2.39 | B138: 12 - SINAPI | C138: Escova com cerdas de aço para condutores | D138: un | E138: 10 | I138: 10 | J138: 5
A139: 2.40 | C139: Ferramenta universal para bastão de manobra - Cabeçote para grampo de aterramento | D139: un | E139: 2 | I139: 2 | J139: 1
A140: 2.41 | C140: Fumigador para apicultura | D140: un | E140: 10 | I140: 10 | J140: =ROUNDDOWN((I140/2),0) -> 5
A141: 2.42 | B141: 11248/ORSE | C141: Furadeira elétrica de impacto 1/2" Ø 13mm, 800W, 1050 A, 2800 rpm e 220V | D141: un | E141: 10 | H141: ok | I141: 10 | J141: 5
A142: 2.43 | B142: Licitação - Banco de preços (SECRETARIA DA SEGURANCA PUBLICA SãO PAULO-06/2022) | C142: Jogo de chave canhão com 12 unidades | D142: un | E142: 10 | H142: ok | I142: 10 | J142: 5
A143: 2.44 | C143: Jogo de chave combinada com 16 unidades (sextavado/boca fixa) de 1/4" a 1.1/4" (6,35 mm a 31,75 mm) | D143: un | E143: 10 | I143: 10 | J143: 5
A144: 2.45 | C144: Jogo de soquetes estriado com encaixe 1/2" com 38 soquetes - 10-32mmn | D144: un | E144: 10 | I144: 10 | J144: 5
A145: 2.46 | C145: Jogo de chaves biela 12 peças tipo L 8 a 19mm | D145: un | E145: 10 | I145: 10 | J145: 5
A146: 2.47 | C146: Jogo de chave de fenda e philips com haste protegida para eletricista com 07 peças | D146: un | E146: 10 | I146: 10 | J146: 5
A147: 2.48 | C147: Kit de reparo eletrônico (ferro de solda, sugador de placa de circuito impresso, componentes sobressalentes) | D147: un | E147: 2 | I147: 2 | J147: 1
A148: 2.49 | C148: Kit ferramenta fibra óptica (clivador +alicate decapador + alicate stripper + bolsa + 2 chaves allen + recipiente para álcool + guia) + Medidor de potência para fibra óptica (Power Meter Medidor Potência Fibra Óptica + Caneta Laser 10W) | D148: un | E148: 2 | I148: 2 | J148: 1
A149: 2.50 | C149: Kit ferramentas telecom ( tipo TRAMONTINA PRO 44970053 ou similar) | D149: un | E149: 2 | I149: 2 | J149: 1
A150: 2.51 | B150: 11396 - ORSE | C150: Lanterna tática grande - 5.500.000 lumens | D150: un | E150: 10 | I150: 10 | J150: 5
A151: 2.52 | B151: 10592/ORSE | C151: Lima chata murça 8" com cabo | D151: un | E151: 1 | I151: 1 | J151: 0
A152: 2.53 | B152: J040001106/EMBASA | C152: Lima chata bastarda 10" | D152: un | E152: 1 | I152: 1 | J152: 0
A153: 2.54 | B153: 036147/SINAPI | C153: Luva isolante classe 00 - 2,5kV | D153: un | E153: 13 | I153: 13 | J153: 6
A154: 2.55 | B154: B.07.000.049767/CPOS | C154: Luva isolante classe 3 - 30kV | D154: un | E154: 13 | I154: 13 | J154: 6
A155: 2.56 | B155: J020000076/EMBASA | C155: Marreta de 5kg com cabo de madeira | D155: un | E155: 10 | I155: 10 | J155: 5
A156: 2.57 | C156: Martelete Perfurador/Rompedor Profissional 220V, 800W, 870 RPM | D156: un | E156: 1 | I156: 1 | J156: 0
A157: 2.58 | B157: J030000145/EMBASA | C157: Martelo-bola 1kg com cabo de madeira | D157: un | E157: 10 | I157: 10 | J157: 5
A158: 2.59 | B158: 11244/ORSE | C158: Martelo universal (de unha) 25mm com cabo de madeira | D158: un | E158: 10 | I158: 10 | J158: 5
A159: 2.60 | B159: 31.41.36/SUDECAP | C159: Pá-de-bico com cabo de madeira | D159: un | E159: 10 | I159: 10 | J159: 5
A160: 2.61 | B160: 11248/ORSE | C160: Parafusadeira/Furadeira elétrica com fio - 220V, 400W | D160: un | E160: 10 | I160: 10 | J160: 5
A161: 2.62 | C161: Punho saca fusível NH tamanho 000 a 4, 1kV | D161: un | E161: 10 | I161: 10 | J161: 5
A162: 2.63 | C162: Soprador Costal 2T 59,2CC à Gasolina | D162: un | E162: 2 | I162: 2 | J162: 1
A163: 2.64 | C163: Soprador térmico 2000W, 220V | D163: un | E163: 1 | I163: 1 | J163: 0
A164: 2.65 | B164: I2587/SEINFRA | C164: Talha manual Tirfor 1.600kgf/cm² com alavanca | D164: un | E164: 1 | I164: 1 | J164: 0
A165: 2.66 | C165: Testador de bastão de manobra para isolador | D165: un | E165: 1 | G165: =IF(F165="","",ROUND(E165*F165,2)) ->  | H165: ok | I165: 1 | J165: 0
A166: 2.67 | C166: Teste de Bateria Digital com Impressora Térmica Embutida | D166: un | E166: 6 | H166: ok | I166: 6 | J166: 3
A167: 2.68 | C167: Testador Teste Crimpagem Cabo Rede Lan Rj45 Rj11 | D167: un | E167: 2 | I167: 2 | J167: 1
A168: ="TOTAL - "&C99&" - (R$):" -> TOTAL - FERRAMENTAS - ELÉTRICA - (R$): | G168: =SUBTOTAL(9,G99:G167) -> 0
A170: 3. | C170: FERRAMENTAS - CIVIL
A171: 3.1 | C171: Alavanca sextavada ponta pá curva para construção civil | D171: un | E171: 29 | G171: =IF(F171="","",ROUND(E171*F171,2)) ->  | I171: 59 | J171: =ROUNDDOWN((I171/2),0) -> 29
A172: 3.2 | C172: Ansinho curvo robusto 12 dentes com cabo de madeira | D172: un | E172: 29 | G172: =IF(F172="","",ROUND(E172*F172,2)) ->  | I172: 59 | J172: 29
A173: 3.3 | B173: 10585 - ORSE | C173: Arco de Serra manual (com serra) | D173: un | E173: 12 | I173: 12 | J173: 6
A174: 3.4 | B174: 10 - SINAPI | C174: Balde 10 l | D174: un | E174: 57 | I174: 118 | J174: 59
A175: 3.5 | C175: Binóculo Profissional Ampliação 8 à 24x 50mm | D175: un | E175: 10 | I175: 10 | J175: 5
A176: 3.6 | C176: Câmera fotográfica digital 20MP, 5x Zoom Óptico | D176: un | E176: 6 | I176: 6 | J176: 3
A177: 3.7 | C177: Carrinho para transporte de motor de popa até 40 Hp | D177: un | E177: 12 | I177: 12 | J177: 6
A178: 3.8 | B178: 2711 - SINAPI | C178: Carro de mão | D178: un | E178: 114 | I178: 236 | J178: 118
A179: 3.9 | C179: Cavador articulado com cabo de madeira 110cm | D179: un | E179: 29 | I179: 59 | J179: 29 | L179: =32.7*0.8 -> 26.16 | M179: =2000*L179 -> 52320
A180: 3.10 | C180: Chibanca metálica com cabo de madeira | D180: un | E180: 100 | I180: 207 | J180: 103 | L180: =L179*2500 -> 65400
A181: 3.11 | B181: J040001052/EMBASA | C181: Colher de pedreiro nº 9 | D181: un | E181: 2 | I181: 7 | J181: 3
A182: 3.12 | C182: Conjunto de ferramentas básicas para encanador | D182: un | E182: 3 | I182: 3 | J182: 1
A183: 3.13 | C183: Conjunto de ferramentas básicas para pedreiro | D183: un | E183: 2 | I183: 7 | J183: 3 | L183: =32000-27500 -> 4500
A184: 3.14 | B184: 38200/COMPESA | C184: Corda de bombeiro 12mm em nylon trançado (rolo de 100 m) | D184: un | E184: 5 | I184: 9 | J184: 4 | L184: =L183/32000 -> 0.140625 | M184: =66000*0.86 -> 56760
A185: 3.15 | C185: Desempenadeira de aço dentada | D185: un | E185: 5 | I185: 9 | J185: 4
A186: 3.16 | B186: 4174/ORSE | C186: Desempenadeira de aço lisa | D186: un | E186: 5 | I186: 9 | J186: 4 | L186: =8000/32000 -> 0.25
A187: 3.17 | B187: M0076/SICRO3 | C187: Disco corte abrasivo 18" para aço 178x1,6x22,2mm | D187: un | E187: 3 | I187: 6 | J187: 3
A188: 3.18 | B188: 38403 - SINAPI | C188: Enxada estreita de 240 x 230 mm, sem cabo | D188: un | E188: 100 | I188: 207 | J188: 103
A189: 3.19 | B189: 38477 - SINAPI | C189: Escada articulada multifuncional 16 degraus | D189: un | E189: 7 | I189: 12 | J189: 6
A190: 3.20 | B190: 12 - SINAPI | C190: Escova de aco, com cabo, *4 x 15* fileiras de cerdas | D190: un | E190: 7 | I190: 12 | J190: 6
A191: 3.21 | B191: 38367 - SINAPI | C191: Espátula aço inox, 8cm - cabo de madeira | D191: un | E191: 7 | I191: 12 | J191: 6
A192: 3.22 | B192: 38368 - SINAPI | C192: Espátula de plástico lisa, largura 10 cm | D192: un | E192: 7 | I192: 12 | J192: 6
A193: 3.23 | B193: D249722458/EMBASA | C193: Esponja de limpeza | D193: un | E193: 60 | I193: 105 | J193: 52
A194: 3.24 | B194: 38380 - SINAPI | C194: Esquadro 90º x 30cm (12") | D194: un | E194: 3 | I194: 6 | J194: 3
A195: 3.25 | B195: J020000046/EMBASA | C195: Estrovenga com cabo de madeira | D195: un | E195: 100 | I195: 207 | J195: 103
A196: 3.26 | C196: Facão para mato, 18 pol | D196: un | E196: 102 | I196: 211 | J196: 105
A197: 3.27 | B197: J020000052/EMBASA | C197: Foice 33mm com cabo de madeira | D197: un | E197: 102 | I197: 211 | J197: 105
A198: 3.28 | C198: Fumigador para apicultura | D198: un | E198: 14 | I198: 30 | J198: 15
A199: 3.29 | B199: 11400/ORSE | C199: Lanterna grande - 10 Million | D199: un | E199: 12 | I199: 12 | J199: 6
A200: 3.30 | B200: J020000061/EMBASA | C200: Machado lâmica 3,5 cabo de madeira 90 cm | D200: un | E200: 43 | I200: 89 | J200: 44
A201: 3.31 | B201: M2462/SICRO | C201: Mangueira de ¾ 50 MTS | D201: un | E201: 9 | I201: 15 | J201: 7
A202: 3.32 | B202: 00037458/SINAPI | C202: Mangueira de nível 5/16x1,3mm | D202: un | E202: 10 | I202: 18 | J202: 9
A203: 3.33 | B203: 11269 - ORSE | C203: Marreta de 1/2 kg com cabo | D203: un | E203: 11 | I203: 24 | J203: 12
A204: 3.34 | B204: J020000073/EMBASA | C204: Marreta oitavada de 2kg com cabo de madeira | D204: un | E204: 11 | I204: 24 | J204: 12
A205: 3.35 | B205: J020000076/EMBASA | C205: Marreta de 5kg com cabo de madeira | D205: un | E205: 11 | I205: 24 | J205: 12
A206: 3.36 | B206: 11244/ORSE | C206: Martelo com unha 25mm | D206: un | E206: 11 | I206: 24 | J206: 12
A207: 3.37 | B207: 11265/ORSE | C207: Martelo de borracha 32 Cm | D207: un | E207: 3 | I207: 5 | J207: 2
... 40 more rows

Sheet Instrumentos
C1: Ministério do Desenvolvimento Regional - MDR
C2: Companhia de Desenvolvimento dos Vales do São Francisco e do Parnaíba
C3: Gerência de Operação do PISF - Centro de Controle e Operação (AD / GOI / CCO)
A5: =Ferramentas!A5 -> TERMO DE REFERÊNCIA PARA CONTRATAÇÃO DOS RECURSOS NECESSÁRIOS À OPERAÇÃO E MANUTENÇÃO DAS INFRAESTRUTURAS DO EIXO LESTE DO PISF - PROJETO DE INTEGRAÇÃO DO SÃO FRANCISCO COM AS BACIAS HIDROGRÁFICAS DO NORDESTE SETENTRIONAL
A8: INSTRUMENTOS
A11: ITEM | B11: CÓDIGO | C11: DESCRIÇÃO | D11: UNIDADE | E11: QUANTIDADE | F11: VALOR (R$)
F12: UNITARIO | G12: TOTAL
C13: =A8 -> INSTRUMENTOS
A15: 1. | C15: INSTRUMENTOS - MECÂNICA | J15: 12 | K15: ='ORCAMENTO_CONSOLIDADO (2)'!$K$1 -> 6
A16: 1.1 | C16: Analisador de vibração VIB 496FFY VIBOTRON | D16: un x mês | E16: =K16 -> 6 | F16: =CPU_Instrumentos!H15 ->  | G16: =IF(F16="","",ROUND(E16*F16,2)) ->  | I16: 12 | J16: =I16/$J$15 -> 1 | K16: =J16*$K$15 -> 6
A17: 1.2 | B17: =CPU_Instrumentos!B16 -> Banco de preços (NºPregão:102022 / UASG:153029, MINISTÉRIO DA EDUCAÇÃO Universidade Tecnológica Federal do Paraná UTFPR - Campus Medianeira - Pregão Eletrônico, 06/2022) | C17: Base magnética para relógio comparador | D17: un x mês | E17: =K17 -> 24 | F17: =CPU_Instrumentos!H16 ->  | G17: =IF(F17="","",ROUND(E17*F17,2)) ->  | I17: 48 | J17: =I17/$J$15 -> 4 | K17: =J17*$K$15 -> 24
A18: 1.3 | B18: =CPU_Instrumentos!B17 -> Banco de preços (NºPregão:282022 / UASG:984723, PREFEITURA MUNICIPAL DE JOÃO MONLEVADE/MG - Pregão Eletrônico, 07/2022) | C18: Estetoscópio Kent | D18: un x mês | E18: 12 | F18: =CPU_Instrumentos!H17 ->  | I18: 24 | J18: =I18/$J$15 -> 2 | K18: 12
A19: 1.4 | C19: Micrômetro 100 à 200 externo | D19: un x mês | E19: 12 | F19: =CPU_Instrumentos!H18 ->  | I19: 24 | J19: 2 | K19: 12
A20: 1.5 | B20: =CPU_Instrumentos!B19 -> Banco de preços (NºPregão:752021 / UASG:168008, MINISTÉRIO DA DEFESA Comando do Exército Industria de Material Belico do Brasil/FE/RJ - Pregão Eletrônico, 01/2022) | C20: Micrômetro externo 0 – 100mm | D20: un x mês | E20: 12 | F20: =CPU_Instrumentos!H19 ->  | I20: 24 | J20: 2 | K20: 12
A21: 1.6 | B21: =CPU_Instrumentos!B20 -> Banco de preços (NºPregão:222022 / UASG:153178 - MINISTÉRIO DA EDUCAÇÃO Universidade Tecnológica Federal do Paraná UTFPR - Campus Ponta Grossa, Pregão Eletrônico - 07/2022) | C21: Micrômetro interno 50 – 800mm | D21: un x mês | E21: 12 | F21: =CPU_Instrumentos!H20 ->  | I21: 24 | J21: 2 | K21: 12
A22: 1.7 | B22: =CPU_Instrumentos!B21 -> Banco de preços (NºPregão:102022 / UASG:160353, MINISTÉRIO DA DEFESA Comando do Exército Comando Militar da Amazônia 2ºGrupamento de Engenharia de Construção 6ºBatalhão de Engenharia de Construção - Pregão eletrônico, 05/2022) | C22: Nível ótico (Topcon AT-B2) ou similar | D22: un x mês | E22: 6 | F22: =CPU_Instrumentos!H21 ->  | I22: 12 | J22: 1 | K22: 6
A23: 1.8 | B23: =CPU_Instrumentos!B22 -> Banco de preços (NºPregão:252022 / UASG:154043, MINISTÉRIO DA EDUCAÇÃO Universidade Federal de Uberlândia - Pregão Eletrônico, 06/2022) | C23: Paquímetro digital 0 – 150mm/0,01mm | D23: un x mês | E23: 12 | F23: =CPU_Instrumentos!H22 ->  | I23: 24 | J23: 2 | K23: 12
A24: 1.9 | C24: Paquímetro universal 0 - 650mm/0,02mm | D24: un x mês | E24: 12 | F24: =CPU_Instrumentos!H23 ->  | I24: 24 | J24: 2 | K24: 12
A25: 1.10 | B25: =CPU_Instrumentos!B24 -> Banco de preços (NºPregão:832021 / UASG:742050, MINISTÉRIO DA DEFESA COMANDO DA MARINHA Centro de Intendência Tecnológico da Marinha em São Paulo - Pregão Eletrônico, 01/2022) | C25: Relógio comparador 0 – 10/0,01mm digital | D25: un x mês | E25: 24 | F25: =CPU_Instrumentos!H24 ->  | I25: 48 | J25: 4 | K25: 24
A26: 1.11 | B26: =CPU_Instrumentos!B25 -> Banco de preços (NºPregão:62022 / UASG:158445, MINISTÉRIO DA EDUCAÇÃO SECRETARIA DE EDUCAÇÃO PROFISSIONAL E TECNOLÓGICA Instituto Federal de Educação, Ciência e Tecnologia do Amazonas Campus Manaus Centro - Pregão Eletrônico, 07/2022) | C26: Tacômetro digital 0,1 - 1,0 RPM DT - 2234 A | D26: un x mês | E26: 6 | F26: =CPU_Instrumentos!H25 ->  | I26: 12 | J26: 1 | K26: 6
A27: 1.12 | B27: =CPU_Instrumentos!B26 -> Banco de preços (NºPregão:7982021 / UASG:925373 - GOVERNO DO ESTADO DE RONDONIA Superintendência Estadual de Compras e Licitações, Pregão Eletrônico - 01/2022) | C27: Termômetro mira laser escala de -20 a 500ºC | D27: un x mês | E27: 6 | F27: =CPU_Instrumentos!H26 ->  | I27: 12 | J27: 1 | K27: 6
A28: 1.13 | C28: Termovisor, com resolução Infravermelha de 120 x 90, Sensibilidade Térmica menor que 0,10 ºC, frequência da imagem de 9 Hz e faixa de temperatura –20 a 250 °C. | D28: un x mês | E28: 18 | F28: =CPU_Instrumentos!H27 ->  | I28: 36 | J28: 3 | K28: 18
A29: ="TOTAL - "&C15&" - (R$):" -> TOTAL - INSTRUMENTOS - MECÂNICA - (R$): | G29: =SUBTOTAL(9,G15:G28) -> 0 | I29: 0 | J29: 0 | K29: 0
I30: 0 | J30: 0 | K30: 0
A31: 2. | C31: INSTRUMENTOS - ELÉTRICA | I31: 0 | J31: 0 | K31: 0
A32: 2.1 | C32: Alicate Amperímetro (mod. 381 CA/CC True-rms 1000V CAT III (ou similar) | D32: un x mês | E32: =K32 -> 78 | F32: =CPU_Instrumentos!H29 ->  | G32: =IF(F32="","",ROUND(E32*F32,2)) ->  | I32: 156 | J32: 13 | K32: 78
A33: 2.2 | B33: =CPU_Instrumentos!B30 -> Banco de preços (UNIVERSIDADE ESTADUAL DE CAMPINAS SECR. DESENV. ECONOMICO CAMPINAS - Dispensa de Licitação, 01/2022) | C33: Alicate amperímetro CA/CC de 600V, digital, CAT III FLUKE 305 | D33: un x mês | E33: 60 | F33: =CPU_Instrumentos!H30 ->  | G33: =IF(F33="","",ROUND(E33*F33,2)) ->  | I33: 120 | J33: 10 | K33: 60
A34: 2.3 | C34: Alicate Medidor de qualidade de energia (mod. Fluke 345 ou similar) | D34: un x mês | E34: 12 | F34: =CPU_Instrumentos!H31 ->  | I34: 24 | J34: 2 | K34: 12
A35: 2.4 | C35: Boroscópio Digital Tela LCD 2,7 Pol. com Câmera de Inspeção e Saída USB | D35: un x mês | E35: 12 | F35: =CPU_Instrumentos!H32 ->  | I35: 24 | J35: 2 | K35: 12
A36: 2.5 | C36: Calibrador de processos multifunção digital (mod. Fluke 725 ou similar) | D36: un x mês | E36: 12 | F36: =CPU_Instrumentos!H33 ->  | I36: 24 | J36: 2 | K36: 12
A37: 2.6 | C37: Fasímetro, digital, categoria IV, 40~700Vca, 600V | D37: un x mês | E37: 60 | F37: =CPU_Instrumentos!H34 ->  | I37: 120 | J37: 10 | K37: 60
A38: 2.7 | C38: Freqüencímetro gitital de bancada , 1GHz de 8 dígitos | D38: un x mês | E38: 6 | F38: =CPU_Instrumentos!H35 ->  | I38: 12 | J38: 1 | K38: 6
A39: 2.8 | C39: Medidor de distância, laser, amplitude de medição 1mm a 80m | D39: un x mês | E39: 6 | F39: =CPU_Instrumentos!H36 ->  | I39: 12 | J39: 1 | K39: 6
A40: 2.9 | C40: Medidor de resistência de aterramento e resistividade do solo (Faixa de medição de 0,02Ω a 300KΩ; Alcance de até 2 K Ω) com 02 pinças | D40: un x mês | E40: 6 | F40: =CPU_Instrumentos!H37 ->  | I40: 12 | J40: 1 | K40: 6
A41: 2.10 | C41: Medidor de vazão portátil tipo Clamp-on | D41: un x mês | E41: 6 | F41: =CPU_Instrumentos!H38 ->  | I41: 12 | J41: 1 | K41: 6
A42: 2.11 | C42: Megôhmetro digital de 15 kV, alcance de até 1 TΩ, Interface USB, IP54 | D42: un x mês | E42: 12 | F42: =CPU_Instrumentos!H39 ->  | I42: 24 | J42: 2 | K42: 12
A43: 2.12 | C43: Multímetro digital, tensão DC/AC 50,000 mV a 1000V, 0,4% (True/RMS), frequencia 99,999Hz a 999,99KHz "FLUKE-87-V" com pontas prova TWIST GUARD | D43: un x mês | E43: 78 | F43: =CPU_Instrumentos!H40 ->  | I43: 156 | J43: 13 | K43: 78
A44: 2.13 | C44: Multímetro digital para teste de equipotencialização (medições de baixas resistências), 100V, 10A, 0,1 Ω a 50 Ω | D44: un x mês | E44: 78 | F44: =CPU_Instrumentos!H41 ->  | I44: 156 | J44: 13 | K44: 78
A45: 2.14 | B45: =CPU_Instrumentos!B42 -> Banco de preços (NºPregão:42022 / UASG:784810, MINISTÉRIO DA DEFESA COMANDO DA MARINHA Centro de Intendencia da Marinha em Belem - Pregão Eletrônico, 03/2022) | C45: Osciloscópio portátil com frequência de trabalho de 100Mhz, LCD Colorido 7”, CAT II 600V | D45: un x mês | E45: 6 | F45: =CPU_Instrumentos!H42 ->  | I45: 12 | J45: 1 | K45: 6
A46: 2.15 | C46: Power Meter (Medidor Potência Fibra Óptica) potência 1310 nm, 1490 nm e 1550 nm + Caneta Laser 10w | D46: un x mês | E46: 12 | F46: =CPU_Instrumentos!H43 ->  | I46: 24 | J46: 2 | K46: 12
A47: 2.16 | B47: =CPU_Instrumentos!B44 -> Banco de preços (NºPregão:7982021 / UASG:925373, GOVERNO DO ESTADO DE RONDONIA Superintendência Estadual de Compras e Licitações - Pregão Eletrônico, 01/2022) | C47: Termômetro mira laser escala de -30ºC a 500ºc | D47: un x mês | E47: 78 | F47: =CPU_Instrumentos!H44 ->  | I47: 156 | J47: 13 | K47: 78
A48: 2.17 | B48: =CPU_Instrumentos!B45 -> Banco de preços (NºPregão:22022 / UASG:156654, HOSPITAL DAS CLÍNICAS DA UNIVERSIDADE FEDERAL DE UBERLÂNDIA - Pregão Eletrônico, 01/2022) | C48: Termovisor -20ºC a 350ºC, com camera de 5 megapixels, visor LCD de 3,5 polegadas | D48: un x mês | E48: 18 | F48: =CPU_Instrumentos!H45 ->  | I48: 36 | J48: 3 | K48: 18
A49: 2.18 | C49: Testador de cabos RJ45 / 11, frequencia 200kHz, display LCD 3 ½ digitos, 600V | D49: un x mês | E49: 12 | F49: =CPU_Instrumentos!H46 ->  | I49: 24 | J49: 2 | K49: 12
A50: 2.19 | C50: Verificador elétrico de tensão 1000V, sem contato com cabo (mod. T6-1000 Fluke ou similar) | D50: un x mês | E50: 78 | F50: =CPU_Instrumentos!H47 ->  | I50: 156 | J50: 13 | K50: 78
A51: ="TOTAL - "&C31&" - (R$):" -> TOTAL - INSTRUMENTOS - ELÉTRICA - (R$): | G51: =SUBTOTAL(9,G31:G50) -> 0 | I51: 0 | J51: 0 | K51: 0
I52: 0 | J52: 0 | K52: 0
A53: 3. | C53: INSTRUMENTOS - CIVIL | I53: 0 | J53: 0 | K53: 0
A54: 3.1 | B54: =CPU_Instrumentos!B49 -> H019701007/EMBASA | C54: GPS Geodésico portátil com visor 65K de cores legível sob luz solar, à prova d'água, geocaching informatizado e recurso de mapeamento ampliados. | D54: un x mês | E54: =K54 -> 6 | F54: =CPU_Instrumentos!H49 ->  | G54: =IF(F54="","",TRUNC(E54*F54,2)) ->  | I54: 12 | J54: 1 | K54: 6
A55: 3.2 | B55: =CPU_Instrumentos!B50 -> Banco de preços - NºPregão:12021 / UASG:154849 - 01/2022 (MINISTÉRIO DA EDUCAÇÃO Secretaria Executiva Subsecretaria de Planejamento e Orçamento Instituto Federal de Educação, Ciência e Tecnologia de Pernambuco /Campus Cabo de Santo Agostinho) | C55: Estação Total com leitura direta de 1 segundo e precisão de 2". Prumo óptico na alidade. Interface com principais softwares do mercado, à prova d'água e poeira conforme norma internacional: IEC529. Com kit completo, inclusive tripé com pernas extensíveis. | D55: un x mês | E55: 6 | F55: =CPU_Instrumentos!H50 ->  | G55: =IF(F55="","",TRUNC(E55*F55,2)) ->  | I55: 12 | J55: 1 | K55: 6
A56: 3.3 | C56: Nível automático com precisão de ± 1,0 mm/km duplo de nivelamento, aumento de imagem 32 vezes, limbo horizontal com escala de 1º, abertura da objetiva 45 mm, foco mínimo 1,60 m. Com tripé e mira. | D56: un x mês | E56: 6 | F56: =CPU_Instrumentos!H51 ->  | I56: 12 | J56: 1 | K56: 6
A57: 3.4 | C57: (GNSS GPS Geodésico modo RTK Precisão horizontal 8mm + 1ppm e Precisão Vertical 15mm + 1ppm modelo CHC X91+) | D57: un x mês | E57: 6 | I57: 12 | J57: 1 | K57: 6
A58: ="TOTAL - "&C53&" - (R$):" -> TOTAL - INSTRUMENTOS - CIVIL - (R$):
A60: ="TOTAL - "&C13&" - (R$):" -> TOTAL - INSTRUMENTOS - (R$):
A62: ="RESUMO - "&A$8 -> RESUMO - INSTRUMENTOS
A63: ITEM | C63: DESCRIÇÃO | F63: VALOR TOTAL (R$)
A64: 01 | C64: =C15 -> INSTRUMENTOS - MECÂNICA
A65: 02 | C65: =C31 -> INSTRUMENTOS - ELÉTRICA
A66: 03 | C66: =C53 -> INSTRUMENTOS - CIVIL
A67: ="TOTAL GERAL - "&A62&" - (R$):" -> TOTAL GERAL - RESUMO - INSTRUMENTOS - (R$):
A69: NOME DO INFORMANTE: | F69: QUALIFICAÇÃO:
A71: ASSINATURA: | F71: DATA:
A73: OBSERVAÇÃO:
A74: 1. A unidade adotada na planilha (un x mês) foi de acordo com o cronograma de alocação de recursos materiais, onde foi feita a divisão de uso mensalmente de cada equipamento, por canteiro. Dessa forma, é possivel diluir o custo durante todo o período do contrato.

Sheet CPU_Instrumentos
C1: Ministério do Desenvolvimento Regional -MDR
C2: Companhia de Desenvolvimento dos Vales do São Francisco e do Parnaíba
C3: Gerência de Operação do PISF-Centro de Controle e Operação (AD / GOI / CCO)
A5: =Instrumentos!A5 -> TERMO DE REFERÊNCIA PARA CONTRATAÇÃO DOS RECURSOS NECESSÁRIOS À OPERAÇÃO E MANUTENÇÃO DAS INFRAESTRUTURAS DO EIXO LESTE DO PISF - PROJETO DE INTEGRAÇÃO DO SÃO FRANCISCO COM AS BACIAS HIDROGRÁFICAS DO NORDESTE SETENTRIONAL
A8: COMPOSIÇÃO DE PREÇO - INSTRUMENTOS
A10: VALOR DE AQUISIÇÃO | G10: VALOR DE LOCAÇÃO
A12: ITEM | B12: CÓDIGO | C12: DESCRIÇÃO | D12: UNIDADE | E12: QUANTIDADE | F12: VALOR (R$) | G12: UNIDADE | H12: VALOR (R$)
F13: UNITARIO | H13: UNITARIO
A14: 1. | C14: INSTRUMENTOS - MECÂNICA
A15: 1.1 | C15: Analisador de vibração VIB 496FFY VIBOTRON | D15: un | E15: 1 | G15: un x mês | H15: =IF(F15="","",((CPU_Instrumentos!F15*CPU_Instrumentos!$C$67))/'MC - VALORES ADICIONAIS'!$B$170) ->  | I15: ok
A16: 1.2 | B16: Banco de preços (NºPregão:102022 / UASG:153029, MINISTÉRIO DA EDUCAÇÃO Universidade Tecnológica Federal do Paraná UTFPR - Campus Medianeira - Pregão Eletrônico, 06/2022) | C16: Base magnética para relógio comparador | D16: un | E16: 4 | G16: un x mês | H16: =IF(F16="","",((CPU_Instrumentos!F16*CPU_Instrumentos!$C$67))/'MC - VALORES ADICIONAIS'!$B$170) -> 
A17: 1.3 | B17: Banco de preços (NºPregão:282022 / UASG:984723, PREFEITURA MUNICIPAL DE JOÃO MONLEVADE/MG - Pregão Eletrônico, 07/2022) | C17: Estetoscópio Kent | D17: un | E17: 2 | G17: un x mês | H17: =IF(F17="","",((CPU_Instrumentos!F17*CPU_Instrumentos!$C$67))/'MC - VALORES ADICIONAIS'!$B$170) -> 
A18: 1.4 | C18: Micrômetro 100 à 200 externo | D18: un | E18: 2 | G18: un x mês | H18: =IF(F18="","",((CPU_Instrumentos!F18*CPU_Instrumentos!$C$67))/'MC - VALORES ADICIONAIS'!$B$170) -> 
A19: 1.5 | B19: Banco de preços (NºPregão:752021 / UASG:168008, MINISTÉRIO DA DEFESA Comando do Exército Industria de Material Belico do Brasil/FE/RJ - Pregão Eletrônico, 01/2022) | C19: Micrômetro externo 0 – 100mm | D19: un | E19: 2 | G19: un x mês | H19: =IF(F19="","",((CPU_Instrumentos!F19*CPU_Instrumentos!$C$67))/'MC - VALORES ADICIONAIS'!$B$170) -> 
A20: 1.6 | B20: Banco de preços (NºPregão:222022 / UASG:153178 - MINISTÉRIO DA EDUCAÇÃO Universidade Tecnológica Federal do Paraná UTFPR - Campus Ponta Grossa, Pregão Eletrônico - 07/2022) | C20: Micrômetro interno 50 – 800mm | D20: un | E20: 2 | G20: un x mês | H20: =IF(F20="","",((CPU_Instrumentos!F20*CPU_Instrumentos!$C$67))/'MC - VALORES ADICIONAIS'!$B$170) -> 
A21: 1.7 | B21: Banco de preços (NºPregão:102022 / UASG:160353, MINISTÉRIO DA DEFESA Comando do Exército Comando Militar da Amazônia 2ºGrupamento de Engenharia de Construção 6ºBatalhão de Engenharia de Construção - Pregão eletrônico, 05/2022) | C21: Nível ótico (Topcon AT-B2) ou similar | D21: un | E21: 1 | G21: un x mês | H21: =IF(F21="","",((CPU_Instrumentos!F21*CPU_Instrumentos!$C$67))/'MC - VALORES ADICIONAIS'!$B$170) -> 
A22: 1.8 | B22: Banco de preços (NºPregão:252022 / UASG:154043, MINISTÉRIO DA EDUCAÇÃO Universidade Federal de Uberlândia - Pregão Eletrônico, 06/2022) | C22: Paquímetro digital 0 – 150mm/0,01mm | D22: un | E22: 2 | G22: un x mês | H22: =IF(F22="","",((CPU_Instrumentos!F22*CPU_Instrumentos!$C$67))/'MC - VALORES ADICIONAIS'!$B$170) -> 
A23: 1.9 | C23: Paquímetro universal 0 - 650mm/0,02mm | D23: un | E23: 2 | G23: un x mês | H23: =IF(F23="","",((CPU_Instrumentos!F23*CPU_Instrumentos!$C$67))/'MC - VALORES ADICIONAIS'!$B$170) -> 
A24: 1.10 | B24: Banco de preços (NºPregão:832021 / UASG:742050, MINISTÉRIO DA DEFESA COMANDO DA MARINHA Centro de Intendência Tecnológico da Marinha em São Paulo - Pregão Eletrônico, 01/2022) | C24: Relógio comparador 0 – 10/0,01mm digital | D24: un | E24: 4 | G24: un x mês | H24: =IF(F24="","",((CPU_Instrumentos!F24*CPU_Instrumentos!$C$67))/'MC - VALORES ADICIONAIS'!$B$170) -> 
A25: 1.11 | B25: Banco de preços (NºPregão:62022 / UASG:158445, MINISTÉRIO DA EDUCAÇÃO SECRETARIA DE EDUCAÇÃO PROFISSIONAL E TECNOLÓGICA Instituto Federal de Educação, Ciência e Tecnologia do Amazonas Campus Manaus Centro - Pregão Eletrônico, 07/2022) | C25: Tacômetro digital 0,1 - 1,0 RPM DT - 2234 A | D25: un | E25: 1 | G25: un x mês | H25: =IF(F25="","",((CPU_Instrumentos!F25*CPU_Instrumentos!$C$67))/'MC - VALORES ADICIONAIS'!$B$170) -> 
A26: 1.12 | B26: Banco de preços (NºPregão:7982021 / UASG:925373 - GOVERNO DO ESTADO DE RONDONIA Superintendência Estadual de Compras e Licitações, Pregão Eletrônico - 01/2022) | C26: Termômetro mira laser escala de -20 a 500ºC | D26: un | E26: 1 | G26: un x mês | H26: =IF(F26="","",((CPU_Instrumentos!F26*CPU_Instrumentos!$C$67))/'MC - VALORES ADICIONAIS'!$B$170) -> 
A27: 1.13 | C27: Termovisor, com resolução Infravermelha de 120 x 90, Sensibilidade Térmica menor que 0,10 ºC, frequência da imagem de 9 Hz e faixa de temperatura –20 a 250 °C. | D27: un | E27: 3 | G27: un x mês | H27: =IF(F27="","",((CPU_Instrumentos!F27*CPU_Instrumentos!$C$67))/'MC - VALORES ADICIONAIS'!$B$170) -> 
A28: 2. | C28: INSTRUMENTOS - ELÉTRICA
A29: 2.1 | C29: Alicate Amperímetro (mod. 381 CA/CC True-rms 1000V CAT III (ou similar) | D29: un | E29: 13 | G29: un x mês | H29: =IF(F29="","",((CPU_Instrumentos!F29*CPU_Instrumentos!$C$67))/'MC - VALORES ADICIONAIS'!$B$170) -> 
A30: 2.2 | B30: Banco de preços (UNIVERSIDADE ESTADUAL DE CAMPINAS SECR. DESENV. ECONOMICO CAMPINAS - Dispensa de Licitação, 01/2022) | C30: Alicate amperímetro CA/CC de 600V, digital, CAT III FLUKE 305 | D30: un | E30: 10 | G30: un x mês | H30: =IF(F30="","",((CPU_Instrumentos!F30*CPU_Instrumentos!$C$67))/'MC - VALORES ADICIONAIS'!$B$170) -> 
A31: 2.3 | C31: Alicate Medidor de qualidade de energia (mod. Fluke 345 ou similar) | D31: un | E31: 2 | G31: un x mês | H31: =IF(F31="","",((CPU_Instrumentos!F31*CPU_Instrumentos!$C$67))/'MC - VALORES ADICIONAIS'!$B$170) -> 
A32: 2.4 | C32: Boroscópio Digital Tela LCD 2,7 Pol. com Câmera de Inspeção e Saída USB | D32: un | E32: 2 | G32: un x mês | H32: =IF(F32="","",((CPU_Instrumentos!F32*CPU_Instrumentos!$C$67))/'MC - VALORES ADICIONAIS'!$B$170) -> 
A33: 2.5 | C33: Calibrador de processos multifunção digital (mod. Fluke 725 ou similar) | D33: un | E33: 2 | G33: un x mês | H33: =IF(F33="","",((CPU_Instrumentos!F33*CPU_Instrumentos!$C$67))/'MC - VALORES ADICIONAIS'!$B$170) ->  | I33: ok
A34: 2.6 | C34: Fasímetro, digital, categoria IV, 40~700Vca, 600V | D34: un | E34: 10 | G34: un x mês | H34: =IF(F34="","",((CPU_Instrumentos!F34*CPU_Instrumentos!$C$67))/'MC - VALORES ADICIONAIS'!$B$170) -> 
A35: 2.7 | C35: Freqüencímetro ditital de bancada , 1GHz de 8 dígitos | D35: un | E35: 1 | G35: un x mês | H35: =IF(F35="","",((CPU_Instrumentos!F35*CPU_Instrumentos!$C$67))/'MC - VALORES ADICIONAIS'!$B$170) -> 
A36: 2.8 | C36: Medidor de distância, laser, amplitude de medição 1mm a 80m | D36: un | E36: 1 | G36: un x mês | H36: =IF(F36="","",((CPU_Instrumentos!F36*CPU_Instrumentos!$C$67))/'MC - VALORES ADICIONAIS'!$B$170) ->  | I36: ok
A37: 2.9 | C37: Medidor de resistência de aterramento e resistividade do solo (Faixa de medição de 0,02Ω a 300KΩ; Alcance de até 2 K Ω) com 02 pinças | D37: un | E37: 1 | G37: un x mês | H37: =IF(F37="","",((CPU_Instrumentos!F37*CPU_Instrumentos!$C$67))/'MC - VALORES ADICIONAIS'!$B$170) -> 
A38: 2.10 | C38: Medidor de vazão portátil tipo Clamp-on | D38: un | E38: 1 | G38: un x mês | H38: =IF(F38="","",((CPU_Instrumentos!F38*CPU_Instrumentos!$C$67))/'MC - VALORES ADICIONAIS'!$B$170) ->  | I38: ok
A39: 2.11 | C39: Megôhmetro digital de 15 kV, alcance de até 1 TΩ, Interface USB, IP54 | D39: un | E39: 2 | G39: un x mês | H39: =IF(F39="","",((CPU_Instrumentos!F39*CPU_Instrumentos!$C$67))/'MC - VALORES ADICIONAIS'!$B$170) ->  | I39: ok
A40: 2.12 | C40: Multímetro digital, tensão DC/AC 50,000 mV a 1000V, 0,4% (True/RMS), frequencia 99,999Hz a 999,99KHz "FLUKE-87-V" com pontas prova TWIST GUARD | D40: kg | E40: 13 | G40: un x mês | H40: =IF(F40="","",((CPU_Instrumentos!F40*CPU_Instrumentos!$C$67))/'MC - VALORES ADICIONAIS'!$B$170) ->  | I40: ok
A41: 2.13 | C41: Multímetro digital para teste de equipotencialização (medições de baixas resistências), 100V, 10A, 0,1 Ω a 50 Ω | D41: un | E41: 13 | G41: un x mês | H41: =IF(F41="","",((CPU_Instrumentos!F41*CPU_Instrumentos!$C$67))/'MC - VALORES ADICIONAIS'!$B$170) -> 
A42: 2.14 | B42: Banco de preços (NºPregão:42022 / UASG:784810, MINISTÉRIO DA DEFESA COMANDO DA MARINHA Centro de Intendencia da Marinha em Belem - Pregão Eletrônico, 03/2022) | C42: Osciloscópio portátil com frequência de trabalho de 100Mhz, LCD Colorido 7”, CAT II 600V | D42: un | E42: 1 | G42: un x mês | H42: =IF(F42="","",((CPU_Instrumentos!F42*CPU_Instrumentos!$C$67))/'MC - VALORES ADICIONAIS'!$B$170) -> 
A43: 2.15 | C43: Power Meter (Medidor Potência Fibra Óptica) potência 1310 nm, 1490 nm e 1550 nm + Caneta Laser 10w | D43: un | E43: 2 | G43: un x mês | H43: =IF(F43="","",((CPU_Instrumentos!F43*CPU_Instrumentos!$C$67))/'MC - VALORES ADICIONAIS'!$B$170) -> 
A44: 2.16 | B44: Banco de preços (NºPregão:7982021 / UASG:925373, GOVERNO DO ESTADO DE RONDONIA Superintendência Estadual de Compras e Licitações - Pregão Eletrônico, 01/2022) | C44: Termômetro mira laser escala de -30ºC a 500ºc | D44: un | E44: 13 | G44: un x mês | H44: =IF(F44="","",((CPU_Instrumentos!F44*CPU_Instrumentos!$C$67))/'MC - VALORES ADICIONAIS'!$B$170) -> 
A45: 2.17 | B45: Banco de preços (NºPregão:22022 / UASG:156654, HOSPITAL DAS CLÍNICAS DA UNIVERSIDADE FEDERAL DE UBERLÂNDIA - Pregão Eletrônico, 01/2022) | C45: Termovisor -20ºC a 350ºC, com camera de 5 megapixels, visor LCD de 3,5 polegadas | D45: un | E45: 3 | G45: un x mês | H45: =IF(F45="","",((CPU_Instrumentos!F45*CPU_Instrumentos!$C$67))/'MC - VALORES ADICIONAIS'!$B$170) -> 
A46: 2.18 | C46: Testador de cabos RJ45 / 11, frequencia 200kHz, display LCD 3 ½ digitos, 600V | D46: un | E46: 2 | G46: un x mês | H46: =IF(F46="","",((CPU_Instrumentos!F46*CPU_Instrumentos!$C$67))/'MC - VALORES ADICIONAIS'!$B$170) -> 
A47: 2.19 | C47: Verificador elétrico de tensão 1000V, sem contato com cabo (mod. T6-1000 Fluke ou similar) | D47: un | E47: 13 | G47: un x mês | H47: =IF(F47="","",((CPU_Instrumentos!F47*CPU_Instrumentos!$C$67))/'MC - VALORES ADICIONAIS'!$B$170) -> 
A48: 3. | C48: INSTRUMENTOS - CIVIL
A49: 3.1 | B49: H019701007/EMBASA | C49: GPS Geodésico portátil com visor 65K de cores legível sob luz solar, à prova d'água, geocaching informatizado e recurso de mapeamento ampliados. | D49: un | E49: 1 | G49: un x mês | H49: =IF(F49="","",((CPU_Instrumentos!F49*CPU_Instrumentos!$C$67))/'MC - VALORES ADICIONAIS'!$B$170) -> 
A50: 3.2 | B50: Banco de preços - NºPregão:12021 / UASG:154849 - 01/2022 (MINISTÉRIO DA EDUCAÇÃO Secretaria Executiva Subsecretaria de Planejamento e Orçamento Instituto Federal de Educação, Ciência e Tecnologia de Pernambuco /Campus Cabo de Santo Agostinho) | C50: Estação Total com leitura direta de 1 segundo e precisão de 2". Prumo óptico na alidade. Interface com principais softwares do mercado, à prova d'água e poeira conforme norma internacional: IEC529. Com kit completo, inclusive tripé com pernas extensíveis. | D50: un | E50: 1 | G50: un x mês | H50: =IF(F50="","",((CPU_Instrumentos!F50*CPU_Instrumentos!$C$67))/'MC - VALORES ADICIONAIS'!$B$170) -> 
A51: 3.3 | C51: Nível automático com precisão de ± 1,0 mm/km duplo de nivelamento, aumento de imagem 32 vezes, limbo horizontal com escala de 1º, abertura da objetiva 45 mm, foco mínimo 1,60 m. Com tripé e mira. | D51: un | E51: 1 | G51: un x mês | H51: =IF(F51="","",((CPU_Instrumentos!F51*CPU_Instrumentos!$C$67))/'MC - VALORES ADICIONAIS'!$B$170) -> 
A53: Observações
A55: art. 305 do RIR/1999 esclarece que: "Art. 305. Poderá ser computada, como custo ou encargo, em cada período de apuração, a importância correspondente à diminuição do valor dos bens do ativo resultante do desgaste pelo uso, ação da natureza e obsolescência normal (Lei nº 4.506, de 1964, art. 57)."
A60: Instrução Normativa da Secretaria da Receita Federal (SRF)
A61: Da | B61: Depreciação | C61: Da = (VN - VR) / N
A62: VN | B62: Valor Novo
A63: VR | B63: Valor Residual
A64: N | B64: Vída útil (anos)
A66: DADOS - Instrumentos | D66: CONSIDERAÇÕES
A67: Depreciação anual (%) | C67: 0.4
A68: Vida últil (anos) | C68: 2.5
A70: 1. Valor unitário final = (Depreciação anual) / (Tempo de contrato)
A71: 2. A vida útil adotada, leva em consideração o uso serevero dos itens listados, visto que são utilizados em canteiros de obras e frequentemente são deslocados entre canteiros e postos de serviço em campo.
A72: 3. Adotou-se tempo de contrato igual a 12 meses

Sheet CPU_MANUTENCAO_CANTEIRO
C1: Ministério do Desenvolvimento Regional - MDR
C2: Companhia de Desenvolvimento dos Vales do São Francisco e do Parnaíba
C3: Gerência de Operação do PISF - Centro de Controle e Operação (AD / GOI / CCO)
A5: =Instrumentos!A5 -> TERMO DE REFERÊNCIA PARA CONTRATAÇÃO DOS RECURSOS NECESSÁRIOS À OPERAÇÃO E MANUTENÇÃO DAS INFRAESTRUTURAS DO EIXO LESTE DO PISF - PROJETO DE INTEGRAÇÃO DO SÃO FRANCISCO COM AS BACIAS HIDROGRÁFICAS DO NORDESTE SETENTRIONAL
A8: MANUTENÇÃO DE CANTEIRO - ESCRITÓRIO
A11: ITEM | B11: CÓDIGO | C11: DESCRIÇÃO | D11: UNIDADE | E11: QUANTIDADE | F11: VALOR (R$)
F12: UNITARIO | G12: TOTAL
C13: =A8 -> MANUTENÇÃO DE CANTEIRO - ESCRITÓRIO
A15: 1. | C15: MATERIAL DE CONSUMO - ESCRITÓRIO
A16: 1.1 | C16: Açúcar | D16: kg | E16: 94 | H16: =ROUND(E16*3/4,0) -> 71
A17: 1.2 | C17: Água Mineral (20 l) | D17: un | E17: 467 | H17: =ROUND(E17*3/4,0) -> 350
A18: 1.3 | C18: Água Sanitária 1000 ml | D18: un | E18: 39 | H18: 29
A19: 1.4 | C19: Alcool Comum 90º GL | D19: l | E19: 39 | H19: 29
A20: 1.5 | C20: Bobina papel para ploter A0 | D20: un | E20: 2 | H20: 2
A21: 1.6 | C21: Café torrado e moído | D21: un | E21: 117 | H21: 88
A22: 1.7 | C22: Caneta esfereográfica Azul | D22: un | E22: 47 | H22: 35
A23: 1.8 | C23: Capa para encadernação Azul | D23: un | E23: 94 | H23: 71
A24: 1.9 | C24: Capa para encadernação Transparente | D24: un | E24: 187 | H24: 140
A25: 1.10 | B25: E200300240/EMBASA | C25: Cartucho colorido para impressora | D25: un | E25: 187 | H25: 140
A26: 1.11 | B26: 3117/ORSE | C26: Cartucho preto para impressora | D26: un | E26: 32 | H26: 24
A27: 1.12 | C27: Classificador elástico | D27: un | E27: 24 | H27: 18
A28: 1.13 | C28: Clips nº 02 (caixa com 100 unidades) | D28: cx | E28: 21 | H28: 16
A29: 1.14 | C29: Clips nº 04 (caixa com 100 unidades) | D29: cx | E29: 21 | H29: 16
A30: 1.15 | C30: Clips nº 06 (caixa com 100 unidades) | D30: cx | E30: 21 | H30: 16
A31: 1.16 | C31: Clips nº 08 (caixa com 100 unidades) | D31: cx | E31: 21 | H31: 16
A32: 1.17 | B32: D00065/SEDOP | C32: Cola branca PVA | D32: kg | E32: 4 | H32: 3
A33: 1.18 | B33: 2856/AGETOP CIVIL | C33: Copo descartável 200 ml (pacote c/ 50 und) | D33: un | E33: 77 | H33: 58
A34: 1.19 | C34: Copo descartável 50 ml (pacote c/ 50 und) | D34: un | E34: 77 | H34: 58
A35: 1.20 | C35: Corretivo à base d'agua 18 ml | D35: un | E35: 35 | H35: 26
A36: 1.21 | B36: 00044330/SINAPI | C36: Desinfetante 5L | D36: un | E36: 197 | H36: 148
A37: 1.22 | B37: D240000010/EMBASA | C37: Detergente 5L | D37: l | E37: 41 | H37: 31
A38: 1.23 | B38: 31.42.75/SUDECAP | C38: DVD Regravável | D38: un | E38: 245 | H38: 184
A39: 1.24 | C39: Envelope de papel tamanho A3 | D39: un | E39: 98 | H39: 74
A40: 1.25 | C40: Envelope de papel tamanho A4 | D40: un | E40: 245 | H40: 184
A41: 1.26 | C41: Envelope de papel tamanho A5 - 200 x 280 mm | D41: un | E41: 245 | H41: 184
A42: 1.27 | C42: Espiral 7mm | D42: un | E42: 78 | H42: 59
A43: 1.28 | C43: Espiral 9mm | D43: un | E43: 78 | H43: 59
A44: 1.29 | C44: Esponja de prato | D44: un | E44: 78 | H44: 59
A45: 1.30 | B45: F099800054/EMBASA | C45: Estilete 18mm | D45: un | E45: 8 | H45: 6
A46: 1.31 | C46: Fita adesiva 48/100 | D46: un | E46: 32 | H46: 24
A47: 1.32 | C47: Fita adesiva transparente | D47: un | E47: 32 | H47: 24
A48: 1.33 | B48: 011173/SBC | C48: Fita crepe branca 45 x 50m | D48: un | E48: 16 | H48: 12
A49: 1.34 | B49: J040001151/EMBASA | C49: Flanela | D49: un | E49: 12 | H49: 9
A50: 1.35 | B50: 005189/SBC | C50: Grampeador grande de mesa P/40F | D50: un | E50: 47 | H50: 35
A51: 1.36 | B51: 005187/SBC | C51: Grampo 26/6 | D51: un | E51: 10 | H51: 8
A52: 1.37 | C52: Grampo tipo trilho | D52: un | E52: 5 | H52: 4
A53: 1.38 | C53: Lápis grafite | D53: un | E53: 56 | H53: 42
A54: 1.39 | C54: Livro de ata com 100 páginas numeradas | D54: un | E54: 14 | H54: 11
A55: 1.40 | C55: Marca texto | D55: un | E55: 59 | H55: 44
A56: 1.41 | C56: Pacote de lã de aço 60 g | D56: un | E56: 24 | H56: 18
A57: 1.42 | C57: Pano de chão | D57: un | E57: 32 | H57: 24
A58: 1.43 | C58: Pano de prato | D58: un | E58: 10 | H58: 8
A59: 1.44 | B59: J049722508/EMBASA | C59: Papel A4-resma de 500 folhas | D59: un | E59: 39 | H59: 29
A60: 1.45 | B60: 2854/AGETOP CIVIL | C60: Papel higiênico | D60: un | E60: 357 | H60: 268
A61: 1.46 | B61: F039722481/EMBASA | C61: Papel Toalha | D61: un | E61: 98 | H61: 74
A62: 1.47 | C62: Pasta arquivo de A a Z Ofício | D62: un | E62: 78 | H62: 59
A63: 1.48 | C63: Pasta suspensa | D63: un | E63: 78 | H63: 59
A64: 1.49 | C64: Perfurador de papel 2 furos até 30 fls | D64: un | E64: 16 | H64: 12
A65: 1.50 | C65: Régua 30cm Acrílico Cristal | D65: un | E65: 16 | H65: 12
A66: 1.51 | B66: 00038401/SINAPI | C66: Rodo de borracha | D66: un | E66: 21 | H66: 16
A67: 1.52 | B67: 1997/ORSE | C67: Sabão em pó 500g | D67: un | E67: 32 | H67: 24
A68: 1.53 | B68: 2862/AGETOP CIVIL | C68: Sabonetes líquido | D68: l | E68: 197 | H68: 148
A69: 1.54 | C69: Tinta para carimbo | D69: un | E69: 4 | H69: 3
A70: 1.55 | B70: 00038400/SINAPI | C70: Vassoura | D70: un | E70: 21 | H70: 16
A72: TOTAL - MATERIAL DE CONSUMO - ESCRITÓRIO - (R$): | G72: 0
A74: 2. | C74: OUTRAS DESPESAS DE MANUTENÇÃO | J74: 12 | K74: ='ORCAMENTO_CONSOLIDADO (2)'!$K$1 -> 6
A75: 2.1 | B75: Média dos últimos meses de consumo histórico | C75: Internet - banda larga - adequação - CANTEIRO LOTE 09 - FLORESTA/PE | D75: mês | E75: 6 | I75: 12 | J75: =I75/$J$74 -> 1 | K75: =J75*$K$74 -> 6
A76: 2.2 | B76: Média dos últimos meses de consumo histórico | C76: Energia Elétrica - dispêndio mensal - ocupação plena adicional - CANTEIRO LOTE 09 - FLORESTA/PE | D76: mês | E76: 6 | I76: 12 | J76: =I76/$J$74 -> 1 | K76: =J76*$K$74 -> 6
A77: 2.3 | B77: Média dos últimos meses de consumo histórico | C77: Internet - banda larga - adequação - SERTÂNIA/PE | D77: mês | E77: 6 | I77: 12 | J77: 1 | K77: 6
A78: 2.4 | B78: Média dos últimos meses de consumo histórico | C78: Energia Elétrica - dispêndio mensal - ocupação plena adicional - SERTÂNIA/PE | D78: mês | E78: 6 | I78: 12 | J78: 1 | K78: 6
A79: 2.5 | B79: Média dos últimos meses de consumo histórico | C79: Água - dispêndio mensal | D79: mês | E79: 6 | I79: 12 | J79: 1 | K79: 6
A81: TOTAL - OUTRAS DESPESAS DE MANUTENÇÃO - (R$): | G81: 0
A83: TOTAL - MANUTENÇÃO DE CANTEIRO - ESCRITÓRIO - (R$): | G83: 0
A86: COMPOSIÇÃO MENSAL - MANUTENÇÃO DE CANTEIRO - ESCRITÓRIO
A87: ITEM | C87: DESCRIÇÃO | F87: VALOR
A88: 1 | C88: TOTAL - MATERIAL DE CONSUMO - ESCRITÓRIO - (R$)
A89: 2 | C89: TOTAL - OUTRAS DESPESAS DE MANUTENÇÃO - (R$)
A90: 4 | C90: PRAZO PREVISTO PARA EXECUÇÃO CONTRATUAL - (MÊS)
A91: TAXA MÉDIA - MANUTENÇÃO DE CANTEIRO - ESCRITÓRIO - (R$ / MÊS):
A94: NOME DO INFORMANTE: | F94: QUALIFICAÇÃO:
A96: ASSINATURA: | F96: DATA:
A98: OBSERVAÇÃO: Os valores unitários referentes ao item 2 "Outras Despesas de Manutenção" foi encontrado usando a média dos últimos dispêndios mensais pagos.

Sheet Sobressalentes
C1: Ministério do Desenvolvimento Regional - MDR
C2: Companhia de Desenvolvimento dos Vales do São Francisco e do Parnaíba
C3: Gerência de Operação do PISF - Centro de Controle e Operação (AD / GOI / CCO)
A5: =Equipamentos!A5 -> TERMO DE REFERÊNCIA PARA CONTRATAÇÃO DOS RECURSOS NECESSÁRIOS À OPERAÇÃO E MANUTENÇÃO DAS INFRAESTRUTURAS DO EIXO LESTE DO PISF - PROJETO DE INTEGRAÇÃO DO SÃO FRANCISCO COM AS BACIAS HIDROGRÁFICAS DO NORDESTE SETENTRIONAL
A8: AQUISIÇÃO DE PEÇAS SOBRESSALENTES PISF - EIXOS LESTE
A11: ITEM | B11: CÓDIGO | C11: DESCRIÇÃO | D11: UNIDADE | E11: QUANTIDADE | F11: VALOR (R$)
F12: UNITARIO | G12: TOTAL
C13: =A8 -> AQUISIÇÃO DE PEÇAS SOBRESSALENTES PISF - EIXOS LESTE
A14: 1. | C14: SOBRESSALENTES - MECÂNICA
A15: 1.1 | C15: Barra Roscada M-16 _ plicação: Vedação das juntas Dresser. Especificação: Aço inox A304 | D15: mt | E15: 80 | M15: =IF(G15<10000,"X","") -> 
A16: 1.2 | C16: Borracha de vedação _ Especificação: Vedante trapezidal 50x25x20x6 - EPDM Shore A70 | D16: mt | E16: 50 | M16: =IF(G16<10000,"X","") -> 
A17: 1.3 | C17: Borracha Neoprene 5mm _ Especificação: 2,5m x 20m (Junta de válvulas) | D17: mtr | E17: 20
A18: 1.4 | C18: Cavalete porta escova (mola) | D18: pç | E18: 10
A19: 1.5 | C19: Escova de aterramento do eixo _ Dimensões 10x25x40mm (AxLxC) - (Ref.: J12 item WEG 10169828) (Metal Grafite) | D19: pç | E19: 12
A20: 1.6 | C20: Escova para o motor 6,9kV _ Escova Carvão J12 dimen.32x25x64mm (Ref. Felca FCE-100A) | D20: pç | E20: 96
A21: 1.7 | C21: Filtro de ar do motor (entrada de ar) EBV-1, 2, 3 _ Especificação: Filtro de ar 345x925x25mm.Modelo Aeroglass FMT-C | D21: pç | E21: 16
A22: 1.8 | C22: Filtro de ar do motor (entrada de ar) EBV-5 _ Especificação: Filtro de ar 670x280x25mm.Modelo Aeroglass FMT-C | D22: pç | E22: 16
A23: 1.9 | C23: Filtro de ar do motor (entrada de ar) EBV-6 _ Especificação: Filtro de ar 750x225x25mm.Modelo Aeroglass FMT-C | D23: pç | E23: 16
A24: 1.10 | C24: Filtro de ar para caixa coletora (porta escovas) _ Especificação: Filtro de ar 330x185x50mm.Modelo Aeroglass PD-U GALV | D24: pç | E24: 36
A25: 1.11 | C25: Filtro de ar para caixa coletora (porta escovas) _ Especificação: Filtro de ar 450x400x50mm.Modelo Aeroglass PD-U GALV | D25: pç | E25: 24
A26: 1.12 | C26: Gaxeta grafitada ¾” Quadrada. | D26: mt | E26: 60
A27: 1.13 | C27: Gaxeta grafitada 1” Quadrada | D27: mt | E27: 396
A28: 1.14 | C28: Óleo lubrificante ISO VG-46 | D28: lt | E28: 200
A29: 1.15 | C29: Óleo lubrificante ISO VG-68 | D29: lt | E29: 1400
A30: 1.16 | C30: O'ring Ø10 - Especificação: O'ring Ø10 x 370 - Shore 70A SBR | D30: mt | E30: 40
A31: 1.17 | C31: O'ring Ø8 - Especificação: O'ring Ø8 x 370 - Shore 70A SBR | D31: mt | E31: 20
A32: 1.18 | B32: 421/COMPESA | C32: Pòrca M-16 _ Especificação: Aço inox A304 | D32: pç | E32: 240
A33: 1.19 | C33: PT 100 _ Especificação: Modelo T 01628 531166 | D33: pç | E33: 12
A34: 1.20 | C34: PT 100 _ Especificação: Modelo TR10-D CC22 2RØ11QD | D34: pç | E34: 16
A35: 1.21 | C35: Sensor de fluxo _ Especificação: Modelo FC10B02 | D35: pç | E35: 24 | H35: ok
A36: 1.22 | C36: Sensor de nível do óleo mancal - Especificação: Modelo HNS 3228-5-0410-000 | D36: pç | E36: 12
A37: 1.23 | C37: Sensor de nível do óleo mancal - Especificação: Modelo VB400-12GM+V1 | D37: pç | E37: 12
A38: 1.24 | C38: Sensor de vibração (acelerômetro) - Especificação: Modelo ST5484E-152-412-00 (Metrix) | D38: pç | E38: 12 | H38: ok
A39: 1.25 | C39: Termômetro - Especificação: Modelo BIE-IN 114 69M 100MM 0/150 C XGV XNH CD1 XN6 (ASHCROFT WILLY) | D39: pç | E39: 12
A40: 1.26 | B40: 11586/SETOP | C40: Tubo em aço galvanizado - Especificação: Tubo A/C galvanizado Ø 2" SCH 40 | D40: mt | E40: 72
A41: TOTAL - SOBRESSALENTES - MECÂNICA - (R$): | M41: X
M42: X
A43: 2. | C43: SOBRESSALENTES - ELÉTRICA | M43: X
A44: 2.1 | C44: CARREGADOR RETIFICADOR MODULAR 380Vca/ 125Vcc, 5x20A. ESPECIFICAÇÃO TECNICA: PISF-000-92000. 1635-DEF-2810-60-08-071-R00 | D44: pç | E44: 2 | H44: ok | I44: 1
A45: 2.2 | C45: CARREGADOR RETIFICADOR MODULAR 380Vca/ 125Vcc, 2x25A, CONFORME ESPECIFICAÇÃO TÉCNICA nº 1600‐EST‐2811‐ 60‐08‐003 (ET PARA CARREGADOR RETIFICADOR MODULAR) DESENHO DE FABRICAÇÃO: 1637‐DEF‐2819‐60‐08‐012-R02 | D45: pç | E45: 4 | I45: 4
A46: 2.3 | C46: Contator Tripolar de Barra 300A, 1NF + 2N, 125VCC (CV1-BH2H1HKD22) | D46: pç | E46: 2 | I46: 2
A47: 2.4 | C47: Mufla, terminal, 6,9/10kV, monofásica, uso interno, cabo condutor cobre/alumínio, isolamento sólido, material termocontrátil. | D47: pç | E47: 6 | I47: 6
A48: 2.5 | C48: RETIFICADOR FSE 380VCA/125VCC 10,8KVA/8,44KW 18,2A/60A (uma unidade será substituida por completo para a retirada servir de sobressalente) | D48: pç | E48: 1 | I48: 1 | M48: =IF(G48<10000,"X","") -> 
A49: 2.6 | C49: SENSOR DE TEMPERATURA PT100 IOPE | D49: pç | E49: 12 | I49: 12
A50: 2.7 | C50: SENSOR DE VIBRAÇÃO METRIX Modelo ST5484E-152-412-00 | D50: pç | E50: 12 | H50: ok | I50: 12
A51: 2.8 | C51: Terminação contrátil à frio para cabos de 120mm², 15kV, Fab. Prysmian | D51: pç | E51: 13 | I51: 13
A52: 2.9 | C52: Terminação contrátil à frio para cabos de 240mm², 15kV, Fab. Prysmian | D52: pç | E52: 13 | I52: 13
A53: 2.10 | C53: Terminação contrátil à frio para cabos de 400mm², 15kV, Fab. Prysmian | D53: pç | E53: 7 | I53: 7
A54: 2.11 | C54: Terminação contrátil à frio para cabos de 70mm², 15kV, Fab. Prysmian | D54: pç | E54: 13 | I54: 13
A55: 2.12 | C55: Terminação contrátil à frio para cabos de 95mm², 15kV, Fab. Prysmian | D55: pç | E55: 13 | I55: 13
A56: 2.13 | B56: 001425/SBC | C56: Terminal à compressão dois furos e duas compressões para cabos de 120mm². Cod.637400, Fab. Magnet | D56: pç | E56: 7 | I56: 7
A57: 2.14 | C57: Terminal à compressão dois furos e duas compressões para cabos de 400mm². Cod.637900, Fab. Magnet | D57: pç | E57: 7 | I57: 7
A58: 2.15 | B58: 008331/SBC | C58: Terminal à compressão dois furos e duas compressões para cabos de 95mm². Cod.637303, Fab. Magnet | D58: pç | E58: 13 | I58: 13
A59: 2.16 | C59: Terminal à compressão um furo e uma compressão para cabos de 120mm². Cod.631103, Fab. Magnet | D59: pç | E59: 7 | I59: 7
A60: 2.17 | C60: Terminal à compressão um furo e uma compressão para cabos de 70mm². Cod.631000, Fab. Magnet | D60: pç | E60: 13 | I60: 13
A61: TOTAL - SOBRESSALENTES - ELÉTRICA - (R$):
A64: 3. | C64: Peças para reposições nas manutenções preventivas e corretivas dos condicionadores de ar
A65: 3.1 | C65: Vareta de solda foscoper 2,5 mm com banho | D65: un. | E65: 20
A66: 3.2 | C66: gás inflamável para maçarico portátil | D66: kg | E66: 2
A67: 3.3 | C67: placa universal de 30.000 BTUs | D67: un. | E67: 5
A68: 3.4 | C68: placa universal de 18.000 BTUs | D68: un. | E68: 5
A69: 3.5 | C69: placa universal de 12.000 BTUs | D69: un. | E69: 5
A70: 3.6 | C70: Capacitor duplo de 30 HF 440 Vac | D70: un. | E70: 10
A71: 3.7 | C71: Capacitor duplo de 35 HF 440 Vac | D71: un. | E71: 24
A72: 3.8 | C72: Capacitor duplo de 40 HF 440 Vac | D72: un. | E72: 46
A73: 3.9 | C73: Capacitor duplo de 50 HF | D73: un. | E73: 40
A74: 3.10 | B74: 12440/ORSE | C74: Gás refrigerante R-22a | D74: kg | E74: 27.2
A75: 3.11 | C75: Gás refrigerante R-410a | D75: kg | E75: 22.6
A76: 3.12 | C76: Motor de ventilador de condensadora redonda (Midea) de 30.000 BTUs | D76: un. | E76: 10
A77: 3.13 | C77: Motor de ventilador de condensadora redonda (Midea) de 18.000 BTUs | D77: un. | E77: 10
A78: 3.14 | C78: Motor de ventilador de condensadora redonda (Midea) de 12.000 BTUs | D78: un. | E78: 10
A79: TOTAL - Peças para reposições nas manutenções preventivas e corretivas dos condicionadores de ar - (R$):
A81: 4. | C81: PEÇAS PARA MANUTENÇÃO GERADOR - MECÂNICA
A82: 4.1 | C82: FILTRO ÓLEO COMB PERKINS/MWM D3152/T4236/P4001/410/410T/D6 - PN 423651E / RC-253-A | D82: pç | E82: 6
A83: 4.2 | C83: Filtro de óleo lub perkins 404D-22G - pn 140517050 Marca: PERKINS | D83: pç | E83: 6
A84: 4.3 | C84: Arruela do bujão do carter perkins 1104 - pn 2415715eMarca: PERKIN | D84: pç | E84: 6
A85: 4.4 | C85: Filtro de óleo comb perkins 1104a/1104c - pn 4816636Marca: PERKINS | D85: pç | E85: 5
A86: 4.5 | C86: Solenoide de parada bomba perkins 404D-22G - pn U85206452Marca: PERKINS | D86: pç | E86: 3
A87: 4.6 | C87: Correia alter/vent perkins 1104C-44TAG2 - pn 2614B653Marca: PERKINS | D87: pç | E87: 1
A88: 4.7 | C88: BOMBA D'ÁGUA | D88: pç | E88: 2
A89: 4.8 | C89: VALVULA TERMOSTÁTICA | D89: pç | E89: 2
A90: 4.9 | C90: BOMBA ELÉTRICA+FILTRO | D90: pç | E90: 2
A91: 4.10 | C91: BICOS INJETORES | D91: pç | E91: 2
A92: 4.11 | C92: CABEÇOTE E RECUPERAÇÃO | D92: pç | E92: 2
A93: TOTAL - PEÇAS PARA MANUTENÇÃO GERADOR - MECÂNICA - (R$):
A95: TOTAL - AQUISIÇÃO DE PEÇAS SOBRESSALENTES PISF - EIXOS LESTE - (R$):
A97: RESUMO - AQUISIÇÃO DE PEÇAS SOBRESSALENTES PISF - EIXOS LESTE
A98: ITEM | C98: DESCRIÇÃO | F98: VALOR TOTAL (R$)
A99: 01 | C99: SOBRESSALENTES - MECÂNICA
A100: 02 | C100: SOBRESSALENTES - ELÉTRICA
A101: 03 | C101: Peças para reposições nas manutenções preventivas e corretivas dos condicionadores de ar
A102: 04 | C102: PEÇAS PARA MANUTENÇÃO GERADOR - MECÂNICA
A103: TOTAL GERAL - RESUMO - AQUISIÇÃO DE PEÇAS SOBRESSALENTES PISF - EIXOS LESTE - (R$):
A106: NOME DO INFORMANTE: | F106: QUALIFICAÇÃO:
A108: ASSINATURA: | F108: DATA:

Sheet Serviços Especializados
C1: Ministério do Desenvolvimento Regional - MDR
C2: Companhia de Desenvolvimento dos Vales do São Francisco e do Parnaíba
C3: Gerência de Operação do PISF - Centro de Controle e Operação (AD / GOI / CCO)
A5: =Equipamentos!A5 -> TERMO DE REFERÊNCIA PARA CONTRATAÇÃO DOS RECURSOS NECESSÁRIOS À OPERAÇÃO E MANUTENÇÃO DAS INFRAESTRUTURAS DO EIXO LESTE DO PISF - PROJETO DE INTEGRAÇÃO DO SÃO FRANCISCO COM AS BACIAS HIDROGRÁFICAS DO NORDESTE SETENTRIONAL
A8: SERVIÇOS ESPECIALIZADOS (EIXO LESTE)
A11: ITEM | B11: CÓDIGO | C11: DESCRIÇÃO | D11: UNIDADE | E11: QUANTIDADE | F11: VALOR (R$)
F12: UNITARIO | G12: TOTAL
C13: =A8 -> SERVIÇOS ESPECIALIZADOS (EIXO LESTE)
A15: 1. | C15: Serviços de recarga de extintores de incêndio (EB / SE / Canteiros)
A16: 1.1 | B16: 2.04.39/FDE | C16: Recarga Extintor AP 10 L BC | D16: Unid. | E16: 8 | G16: =IF(F16="","",TRUNC(E16*F16,2)) ->  | H16: ok
A17: 1.2 | B17: 05554/EMOP | C17: Recarga Extintor CO2 06 Kg BC | D17: Unid. | E17: 47 | G17: =IF(F17="","",TRUNC(E17*F17,2)) ->  | H17: ok
A18: 1.3 | B18: 07066/EMOP | C18: Recarga Extintor PQS 04 Kg BC | D18: Unid. | E18: 13 | H18: ok
A19: 1.4 | B19: 05563/EMOP | C19: Recarga Extintor PQS 06 Kg BC | D19: Unid. | E19: 28 | H19: ok
A20: 1.5 | B20: Banco de preços - MINISTÉRIO DA DEFESA COMANDO DA MARINHA Centro de Intendencia da Marinha em Salvador (NºPregão:132022 / UASG:782802 - 07/2022) | C20: Recarga Extintor PQS 08 Kg BC | D20: Unid. | E20: 2 | H20: ok
